Workbook

Sheet Impressum
C1: Impressum
C9: PLANUNGSTOOL
C10: &
C11: TRAININGSTAGEBUCH
E14: Conception / réalisation
F16: Louis Heyer
F17: Bundesamt für Sport / Trainingswissenschaft
F18: louis.heyer@baspo.admin.ch
F19: 032 327 64 99 / 079 507 58 25

Sheet Anleitung
E1: Anleitung
B3: Anleitung
B5: Gewicht | D5: Immer vor den Frühstück, mind. 2x/Wo
M6: Foster's Skala
B7: Gefühl | D7: Wie fühle ich mich ? Wie geht es mir ? Allg. Antwort über das Tagesgefühl.
D8: Werte von [ -3 ] bis [ +3 ] | M8: "Wenn du an das Training zurück denkst, wie anstrengend ist das Training heute gewesen?"
B10: Schlaf (2x) | D10: Hier musst du deine Schlafqualität beurteilen und eine Note von 1 (katastrophal) bis 6 (super) eintragen. Du schreibst unter "Montag" die Qualität deinem Schlaf in der Nacht von Sonntag bis Montag. Die Schlafstunden sollst du auch eingeben.
S12: RPE
B13: Verletzung /Erkrankung | D13: Wenn du wegen einer Verletzung oder einer Erkrankungen nicht "normal" trainieren konntest, trage einen "x" ein | M13: Wie in Ruhe | S13: 0
M14: Sehr locker | S14: 1
M15: Locker | S15: 2
B16: Dauer | D16: Hier sollst du erst die Dauer deines Trainings/Wettkampfs in Minuten angeben. Warm-up und cool-down gehören zum Training | S16: 3
M17: Etwas hart | S17: 4
M18: Hart | S18: 5
B19: RPE | D19: RPE = Rate of Perceived Exertion | S19: 6
D20: Vorgehen Trainingsbeurteilung mittels Fosterskala | M20: Sehr hart | S20: 7
S21: 8
D22: Durchführung der Beurteilung möglichst 15-30 Min. nach jeder Trainingseinheit, nicht unmittelbar nacher (nicht Borg Skala !) | M22: Extrem hart | S22: 9
M23: Wie mein härtestes Training überhaupt | S23: 10
D25: Beschreibe Deine Anstrengung bzw. Dein Belastungsgefühl für die ganze
D26: Trainings- oder Wettkampfeinheit nach dem Motto:
D27: Wenn du an das Training zurück denkst, wie anstrengend ist dasTraining heute gewesen?
D30: Trage die entsprechende Zahl in Deinem Protokollblatt ein.
D32: Wenn du mehrere Trainings- oder Wettkampfeinheiten pro Tag absolvierst, mach für jede Einheite eine solche Bewertung und schreibe sie dann unter Training 1, Training 2, etc ein.
B37: Km | D37: Anzahl Km eingeben - achtung keine Kommas ! 7.5 schreiben und nicht 7,5 !
B39: J | D39: Wie zufrieden bist du mit dem Training (bezgl Trainingsqualität) ?
D40: 1 | E40: = | F40: nicht zufrieden
D41: 2 | E41: = | F41: eher nicht zufrieden
D42: 3 | E42: = | F42: neutral
D43: 4 | E43: = | F43: eher zufrieden
D44: 5 | E44: = | F44: zufrieden
D45: 6 | E45: = | F45: hammer !
B47: Regeneration | D47: Massnahmen eintragen (zB "Massage")
B49: Mentales | D49: Massnahmen eintragen (zB "Autogenes Training")

Sheet Overview
E1: Overview
C2: Name Vorname : | D2: Vorname Name | M2: Jahr : | X2: Beginn Trainingsjahr : | Y2: 2013-05-06
H4: =CONCATENATE("Overview"," ",D2) -> Overview Vorname Name
Y5: Gewünschte Analyse : | AB5: Von Trainingswoche : | AC5: 1 | AG5: bis Trainingswoche : | AH5: 52
B7: Semaine | C7: Semaine | H7: b1 | I7: b2 | J7: b3 | K7: b4 | L7: b5 | M7: b6 | N7: b7 | O7: b8 | P7: b9 | Q7: b10 | R7: b11 | S7: b12
B8: =CONCATENATE(">","=",AC5) -> >=1 | C8: =CONCATENATE("<","=",AH5) -> <=52 | H8: b1 | I8: b2 | J8: b3 | K8: b4 | L8: b5 | M8: b6 | N8: b7 | O8: b8 | P8: b9 | Q8: b10 | R8: b11 | S8: b12
B10: Trainings- woche | C10: Kalenderwoche | H10: ='19'!$AF31 -> Trainingstagen | I10: ='19'!$AF33 -> Trainingseinheiten | J10: ='19'!$AF35 -> Trainingsstunden | K10: ='19'!$AF37 -> Training Load | L10: ='19'!$AF39 -> Monotonie | M10: ='19'!$AF41 -> Trainingsanstrengung | N10: ='19'!$AF43 -> Lauf Km | O10: ='19'!$AF45 -> J | P10: ='19'!$AF47 -> Swim Km | Q10: ='19'!$AF49 -> Mental Training | R10: ='19'!$AF51 -> Regeneration | S10: ='19'!$AF53 -> Verletzung/Erkrankung | AA10: Athlet
AA12: Total | AB12: MW/Woche
Y13: Trainingstagen | AA13: =H70 -> 0 | AB13: =AA13/$H$71 -> 
Y14: Trainingseinheiten | AA14: =I70 -> 0 | AB14: =AA14/$I$71 -> 
Y15: Trainingsstunden | AA15: =J70 -> 0 | AB15: =AA15/$J$71 -> 
Y16: Training Load | AA16: =K70 -> 0 | AB16: =AA16/$K$71 -> 
Y17: Monotonie | AA17: =L70 -> 0 | AB17: =AA17/$L$71 -> 
B18: 1 | C18: =Y2 -> 2013-05-06 | D18: - | E18: =C18+6 -> 2013-05-12 | F18: =INT(MOD(INT((C18-2)/7)+0.6,52+5/28))+1 -> 19 | H18: =TRANSPOSE($C99:$BB109) ->  | S18: =TRANSPOSE(C110:BB110) ->  | Y18: Trainingsanstrengung | AA18: =M70 -> 0 | AB18: =AA18/$M$71 -> 
B19: 2 | C19: =C18+7 -> 2013-05-13 | D19: - | E19: =C19+6 -> 2013-05-19 | F19: =INT(MOD(INT((C19-2)/7)+0.6,52+5/28))+1 -> 20 | Y19: ='19'!AF43 -> Lauf Km | AA19: =N70 -> 0 | AB19: =AA19/$N$71 -> 
B20: 3 | C20: =C19+7 -> 2013-05-20 | D20: - | E20: 2013-05-26 | F20: 21 | Y20: ='19'!AF45 -> J | AA20: =O70 -> 0 | AB20: =AA20/$O$71 -> 
B21: 4 | C21: 2013-05-27 | D21: - | E21: 2013-06-02 | F21: 22 | Y21: ='19'!AF47 -> Swim Km | AA21: =P70 -> 0 | AB21: =AA21/$P$71 -> 
B22: 5 | C22: 2013-06-03 | D22: - | E22: 2013-06-09 | F22: 23 | Y22: Mental Training | AA22: =Q70 -> 0 | AB22: =AA22/$Q$71 -> 
B23: 6 | C23: 2013-06-10 | D23: - | E23: 2013-06-16 | F23: 24 | Y23: Regeneration | AA23: =R70 -> 0 | AB23: =AA23/$R$71 -> 
B24: 7 | C24: 2013-06-17 | D24: - | E24: 2013-06-23 | F24: 25 | Y24: Verletzung/Erkrankung | AA24: =S70 -> 0 | AB24: =AA24/(AH5-AC5+1) -> 0
B25: 8 | C25: 2013-06-24 | D25: - | E25: 2013-06-30 | F25: 26
B26: 9 | C26: 2013-07-01 | D26: - | E26: 2013-07-07 | F26: 27
B27: 10 | C27: 2013-07-08 | D27: - | E27: 2013-07-14 | F27: 28
B28: 11 | C28: 2013-07-15 | D28: - | E28: 2013-07-21 | F28: 29
B29: 12 | C29: 2013-07-22 | D29: - | E29: 2013-07-28 | F29: 30
B30: 13 | C30: 2013-07-29 | D30: - | E30: 2013-08-04 | F30: 31
B31: 14 | C31: 2013-08-05 | D31: - | E31: 2013-08-11 | F31: 32
B32: 15 | C32: 2013-08-12 | D32: - | E32: 2013-08-18 | F32: 33
B33: 16 | C33: 2013-08-19 | D33: - | E33: 2013-08-25 | F33: 34
B34: 17 | C34: 2013-08-26 | D34: - | E34: 2013-09-01 | F34: 35
B35: 18 | C35: 2013-09-02 | D35: - | E35: 2013-09-08 | F35: 36
B36: 19 | C36: 2013-09-09 | D36: - | E36: 2013-09-15 | F36: 37
B37: 20 | C37: 2013-09-16 | D37: - | E37: 2013-09-22 | F37: 38
B38: 21 | C38: 2013-09-23 | D38: - | E38: 2013-09-29 | F38: 39
B39: 22 | C39: 2013-09-30 | D39: - | E39: 2013-10-06 | F39: 40
B40: 23 | C40: 2013-10-07 | D40: - | E40: 2013-10-13 | F40: 41
B41: 24 | C41: 2013-10-14 | D41: - | E41: 2013-10-20 | F41: 42
B42: 25 | C42: 2013-10-21 | D42: - | E42: 2013-10-27 | F42: 43
B43: 26 | C43: 2013-10-28 | D43: - | E43: 2013-11-03 | F43: 44
B44: 27 | C44: 2013-11-04 | D44: - | E44: 2013-11-10 | F44: 45
B45: 28 | C45: 2013-11-11 | D45: - | E45: 2013-11-17 | F45: 46
B46: 29 | C46: 2013-11-18 | D46: - | E46: 2013-11-24 | F46: 47
B47: 30 | C47: 2013-11-25 | D47: - | E47: 2013-12-01 | F47: 48
B48: 31 | C48: 2013-12-02 | D48: - | E48: 2013-12-08 | F48: 49
B49: 32 | C49: 2013-12-09 | D49: - | E49: 2013-12-15 | F49: 50
B50: 33 | C50: 2013-12-16 | D50: - | E50: 2013-12-22 | F50: 51
B51: 34 | C51: 2013-12-23 | D51: - | E51: 2013-12-29 | F51: 52
B52: 35 | C52: 2013-12-30 | D52: - | E52: 2014-01-05 | F52: 1
B53: 36 | C53: 2014-01-06 | D53: - | E53: 2014-01-12 | F53: 2
B54: 37 | C54: 2014-01-13 | D54: - | E54: 2014-01-19 | F54: 3
B55: 38 | C55: 2014-01-20 | D55: - | E55: 2014-01-26 | F55: 4
B56: 39 | C56: 2014-01-27 | D56: - | E56: 2014-02-02 | F56: 5
B57: 40 | C57: 2014-02-03 | D57: - | E57: 2014-02-09 | F57: 6
B58: 41 | C58: 2014-02-10 | D58: - | E58: 2014-02-16 | F58: 7
B59: 42 | C59: 2014-02-17 | D59: - | E59: 2014-02-23 | F59: 8
B60: 43 | C60: 2014-02-24 | D60: - | E60: 2014-03-02 | F60: 9
B61: 44 | C61: 2014-03-03 | D61: - | E61: 2014-03-09 | F61: 10
B62: 45 | C62: 2014-03-10 | D62: - | E62: 2014-03-16 | F62: 11
B63: 46 | C63: 2014-03-17 | D63: - | E63: 2014-03-23 | F63: 12
B64: 47 | C64: 2014-03-24 | D64: - | E64: 2014-03-30 | F64: 13
B65: 48 | C65: 2014-03-31 | D65: - | E65: 2014-04-06 | F65: 14
B66: 49 | C66: 2014-04-07 | D66: - | E66: 2014-04-13 | F66: 15
B67: 50 | C67: 2014-04-14 | D67: - | E67: 2014-04-20 | F67: 16
B68: 51 | C68: 2014-04-21 | D68: - | E68: 2014-04-27 | F68: 17
B69: 52 | C69: 2014-04-28 | D69: - | E69: 2014-05-04 | F69: 18
H70: =DSUM($B$7:H69,H8,$B$7:$C$8) -> 0 | I70: =DSUM($B$7:I69,I8,$B$7:$C$8) -> 0 | J70: =DSUM($B$7:J69,J8,$B$7:$C$8) -> 0 | K70: =DSUM($B$7:K69,K8,$B$7:$C$8) -> 0 | L70: =DSUM($B$7:L69,L8,$B$7:$C$8) -> 0 | M70: =DSUM($B$7:M69,M8,$B$7:$C$8) -> 0 | N70: =DSUM($B$7:N69,N8,$B$7:$C$8) -> 0 | O70: =DSUM($B$7:O69,O8,$B$7:$C$8) -> 0 | P70: =DSUM($B$7:P69,P8,$B$7:$C$8) -> 0 | Q70: =DSUM($B$7:Q69,Q8,$B$7:$C$8) -> 0 | R70: =DSUM($B$7:R69,R8,$B$7:$C$8) -> 0 | S70: =DSUM($B$7:S69,S8,$B$7:$C$8) -> 0
H71: =DCOUNT($B$7:H69,H8,$B$7:$C$8) -> 0 | I71: =DCOUNT($B$7:I69,I8,$B$7:$C$8) -> 0 | J71: =DCOUNT($B$7:J69,J8,$B$7:$C$8) -> 0 | K71: =DCOUNT($B$7:K69,K8,$B$7:$C$8) -> 0 | L71: =DCOUNT($B$7:L69,L8,$B$7:$C$8) -> 0 | M71: =DCOUNT($B$7:M69,M8,$B$7:$C$8) -> 0 | N71: =DCOUNT($B$7:N69,N8,$B$7:$C$8) -> 0 | O71: =DCOUNT($B$7:O69,O8,$B$7:$C$8) -> 0 | P71: =DCOUNT($B$7:P69,P8,$B$7:$C$8) -> 0 | Q71: =DCOUNT($B$7:Q69,Q8,$B$7:$C$8) -> 0 | R71: =DCOUNT($B$7:R69,R8,$B$7:$C$8) -> 0 | S71: =DCOUNT($B$7:S69,S8,$B$7:$C$8) -> 0
B98: Überblick | C98: =#REF! ->  | D98: =#REF! ->  | E98: =#REF! ->  | F98: =#REF! ->  | G98: =#REF! ->  | H98: =#REF! ->  | I98: =#REF! ->  | J98: =#REF! ->  | K98: =#REF! ->  | L98: =#REF! ->  | M98: =#REF! ->  | N98: =#REF! ->  | O98: =#REF! ->  | P98: =#REF! ->  | Q98: =#REF! ->  | R98: =#REF! ->  | S98: =#REF! ->  | T98: =#REF! ->  | U98: =#REF! ->  | V98: =#REF! ->  | W98: =#REF! ->  | X98: =#REF! ->  | Y98: =#REF! ->  | Z98: =#REF! ->  | AA98: =#REF! ->  | AB98: =#REF! ->  | AC98: =#REF! ->  | AD98: =#REF! ->  | AE98: =#REF! ->  | AF98: =#REF! ->  | AG98: =#REF! ->  | AH98: =#REF! ->  | AI98: =#REF! ->  | AJ98: =#REF! ->  | AK98: =#REF! ->  | AL98: =#REF! ->  | AM98: =#REF! ->  | AN98: =#REF! ->  | AO98: =#REF! ->  | AP98: =#REF! ->  | AQ98: =#REF! ->  | AR98: =#REF! ->  | AS98: =#REF! ->  | AT98: =#REF! ->  | AU98: =#REF! ->  | AV98: =#REF! ->  | AW98: =#REF! ->  | AX98: =#REF! ->  | AY98: =#REF! ->  | AZ98: =#REF! ->  | BA98: =#REF! ->  | BB98: =#REF! -> 
B99: Trainingstagen | C99: ='19'!$AH31 ->  | D99: ='20'!$AH31 ->  | E99: ='21'!$AH31 ->  | F99: ='22'!$AH31 ->  | G99: ='23'!$AH31 ->  | H99: ='24'!$AH31 ->  | I99: ='25'!$AH31 ->  | J99: ='26'!$AH31 ->  | K99: ='27'!$AH31 ->  | L99: ='28'!$AH31 ->  | M99: ='29'!$AH31 ->  | N99: ='30'!$AH31 ->  | O99: ='31'!$AH31 ->  | P99: ='32'!$AH31 ->  | Q99: ='33'!$AH31 ->  | R99: ='34'!$AH31 ->  | S99: ='35'!$AH31 ->  | T99: ='36'!$AH31 ->  | U99: ='37'!$AH31 ->  | V99: ='38'!$AH31 ->  | W99: ='39'!$AH31 ->  | X99: ='40'!$AH31 ->  | Y99: ='41'!$AH31 ->  | Z99: ='42'!$AH31 ->  | AA99: ='43'!$AH31 ->  | AB99: ='44'!$AH31 ->  | AC99: ='45'!$AH31 ->  | AD99: ='46'!$AH31 ->  | AE99: ='47'!$AH31 ->  | AF99: ='48'!$AH31 ->  | AG99: ='49'!$AH31 ->  | AH99: ='50'!$AH31 ->  | AI99: ='51'!$AH31 ->  | AJ99: ='52'!$AH31 ->  | AK99: ='1'!$AH31 ->  | AL99: ='2'!$AH31 ->  | AM99: ='3'!$AH31 ->  | AN99: ='4'!$AH31 ->  | AO99: ='5'!$AH31 ->  | AP99: ='6'!$AH31 ->  | AQ99: ='7'!$AH31 ->  | AR99: ='8'!$AH31 ->  | AS99: ='9'!$AH31 ->  | AT99: ='10'!$AH31 ->  | AU99: ='11'!$AH31 ->  | AV99: ='12'!$AH31 ->  | AW99: ='13'!$AH31 ->  | AX99: ='14'!$AH31 ->  | AY99: ='15'!$AH31 ->  | AZ99: ='16'!$AH31 ->  | BA99: ='17'!$AH31 ->  | BB99: ='18'!$AH31 -> 
B100: Trainingseinheiten | C100: ='19'!$AH33 ->  | D100: ='20'!$AH33 ->  | E100: ='21'!$AH33 ->  | F100: ='22'!$AH33 ->  | G100: ='23'!$AH33 ->  | H100: ='24'!$AH33 ->  | I100: ='25'!$AH33 ->  | J100: ='26'!$AH33 ->  | K100: ='27'!$AH33 ->  | L100: ='28'!$AH33 ->  | M100: ='29'!$AH33 ->  | N100: ='30'!$AH33 ->  | O100: ='31'!$AH33 ->  | P100: ='32'!$AH33 ->  | Q100: ='33'!$AH33 ->  | R100: ='34'!$AH33 ->  | S100: ='35'!$AH33 ->  | T100: ='36'!$AH33 ->  | U100: ='37'!$AH33 ->  | V100: ='38'!$AH33 ->  | W100: ='39'!$AH33 ->  | X100: ='40'!$AH33 ->  | Y100: ='41'!$AH33 ->  | Z100: ='42'!$AH33 ->  | AA100: ='43'!$AH33 ->  | AB100: ='44'!$AH33 ->  | AC100: ='45'!$AH33 ->  | AD100: ='46'!$AH33 ->  | AE100: ='47'!$AH33 ->  | AF100: ='48'!$AH33 ->  | AG100: ='49'!$AH33 ->  | AH100: ='50'!$AH33 ->  | AI100: ='51'!$AH33 ->  | AJ100: ='52'!$AH33 ->  | AK100: ='1'!$AH33 ->  | AL100: ='2'!$AH33 ->  | AM100: ='3'!$AH33 ->  | AN100: ='4'!$AH33 ->  | AO100: ='5'!$AH33 ->  | AP100: ='6'!$AH33 ->  | AQ100: ='7'!$AH33 ->  | AR100: ='8'!$AH33 ->  | AS100: ='9'!$AH33 ->  | AT100: ='10'!$AH33 ->  | AU100: ='11'!$AH33 ->  | AV100: ='12'!$AH33 ->  | AW100: ='13'!$AH33 ->  | AX100: ='14'!$AH33 ->  | AY100: ='15'!$AH33 ->  | AZ100: ='16'!$AH33 ->  | BA100: ='17'!$AH33 ->  | BB100: ='18'!$AH33 -> 
B101: Trainingsstunden | C101: ='19'!$AH35 ->  | D101: ='20'!$AH35 ->  | E101: ='21'!$AH35 ->  | F101: ='22'!$AH35 ->  | G101: ='23'!$AH35 ->  | H101: ='24'!$AH35 ->  | I101: ='25'!$AH35 ->  | J101: ='26'!$AH35 ->  | K101: ='27'!$AH35 ->  | L101: ='28'!$AH35 ->  | M101: ='29'!$AH35 ->  | N101: ='30'!$AH35 ->  | O101: ='31'!$AH35 ->  | P101: ='32'!$AH35 ->  | Q101: ='33'!$AH35 ->  | R101: ='34'!$AH35 ->  | S101: ='35'!$AH35 ->  | T101: ='36'!$AH35 ->  | U101: ='37'!$AH35 ->  | V101: ='38'!$AH35 ->  | W101: ='39'!$AH35 ->  | X101: ='40'!$AH35 ->  | Y101: ='41'!$AH35 ->  | Z101: ='42'!$AH35 ->  | AA101: ='43'!$AH35 ->  | AB101: ='44'!$AH35 ->  | AC101: ='45'!$AH35 ->  | AD101: ='46'!$AH35 ->  | AE101: ='47'!$AH35 ->  | AF101: ='48'!$AH35 ->  | AG101: ='49'!$AH35 ->  | AH101: ='50'!$AH35 ->  | AI101: ='51'!$AH35 ->  | AJ101: ='52'!$AH35 ->  | AK101: ='1'!$AH35 ->  | AL101: ='2'!$AH35 ->  | AM101: ='3'!$AH35 ->  | AN101: ='4'!$AH35 ->  | AO101: ='5'!$AH35 ->  | AP101: ='6'!$AH35 ->  | AQ101: ='7'!$AH35 ->  | AR101: ='8'!$AH35 ->  | AS101: ='9'!$AH35 ->  | AT101: ='10'!$AH35 ->  | AU101: ='11'!$AH35 ->  | AV101: ='12'!$AH35 ->  | AW101: ='13'!$AH35 ->  | AX101: ='14'!$AH35 ->  | AY101: ='15'!$AH35 ->  | AZ101: ='16'!$AH35 ->  | BA101: ='17'!$AH35 ->  | BB101: ='18'!$AH35 -> 
B102: Training Load | C102: ='19'!$AH37 ->  | D102: ='20'!$AH37 ->  | E102: ='21'!$AH37 ->  | F102: ='22'!$AH37 ->  | G102: ='23'!$AH37 ->  | H102: ='24'!$AH37 ->  | I102: ='25'!$AH37 ->  | J102: ='26'!$AH37 ->  | K102: ='27'!$AH37 ->  | L102: ='28'!$AH37 ->  | M102: ='29'!$AH37 ->  | N102: ='30'!$AH37 ->  | O102: ='31'!$AH37 ->  | P102: ='32'!$AH37 ->  | Q102: ='33'!$AH37 ->  | R102: ='34'!$AH37 ->  | S102: ='35'!$AH37 ->  | T102: ='36'!$AH37 ->  | U102: ='37'!$AH37 ->  | V102: ='38'!$AH37 ->  | W102: ='39'!$AH37 ->  | X102: ='40'!$AH37 ->  | Y102: ='41'!$AH37 ->  | Z102: ='42'!$AH37 ->  | AA102: ='43'!$AH37 ->  | AB102: ='44'!$AH37 ->  | AC102: ='45'!$AH37 ->  | AD102: ='46'!$AH37 ->  | AE102: ='47'!$AH37 ->  | AF102: ='48'!$AH37 ->  | AG102: ='49'!$AH37 ->  | AH102: ='50'!$AH37 ->  | AI102: ='51'!$AH37 ->  | AJ102: ='52'!$AH37 ->  | AK102: ='1'!$AH37 ->  | AL102: ='2'!$AH37 ->  | AM102: ='3'!$AH37 ->  | AN102: ='4'!$AH37 ->  | AO102: ='5'!$AH37 ->  | AP102: ='6'!$AH37 ->  | AQ102: ='7'!$AH37 ->  | AR102: ='8'!$AH37 ->  | AS102: ='9'!$AH37 ->  | AT102: ='10'!$AH37 ->  | AU102: ='11'!$AH37 ->  | AV102: ='12'!$AH37 ->  | AW102: ='13'!$AH37 ->  | AX102: ='14'!$AH37 ->  | AY102: ='15'!$AH37 ->  | AZ102: ='16'!$AH37 ->  | BA102: ='17'!$AH37 ->  | BB102: ='18'!$AH37 -> 
B103: Monotonie | C103: ='19'!$AH39 ->  | D103: ='20'!$AH39 ->  | E103: ='21'!$AH39 ->  | F103: ='22'!$AH39 ->  | G103: ='23'!$AH39 ->  | H103: ='24'!$AH39 ->  | I103: ='25'!$AH39 ->  | J103: ='26'!$AH39 ->  | K103: ='27'!$AH39 ->  | L103: ='28'!$AH39 ->  | M103: ='29'!$AH39 ->  | N103: ='30'!$AH39 ->  | O103: ='31'!$AH39 ->  | P103: ='32'!$AH39 ->  | Q103: ='33'!$AH39 ->  | R103: ='34'!$AH39 ->  | S103: ='35'!$AH39 ->  | T103: ='36'!$AH39 ->  | U103: ='37'!$AH39 ->  | V103: ='38'!$AH39 ->  | W103: ='39'!$AH39 ->  | X103: ='40'!$AH39 ->  | Y103: ='41'!$AH39 ->  | Z103: ='42'!$AH39 ->  | AA103: ='43'!$AH39 ->  | AB103: ='44'!$AH39 ->  | AC103: ='45'!$AH39 ->  | AD103: ='46'!$AH39 ->  | AE103: ='47'!$AH39 ->  | AF103: ='48'!$AH39 ->  | AG103: ='49'!$AH39 ->  | AH103: ='50'!$AH39 ->  | AI103: ='51'!$AH39 ->  | AJ103: ='52'!$AH39 ->  | AK103: ='1'!$AH39 ->  | AL103: ='2'!$AH39 ->  | AM103: ='3'!$AH39 ->  | AN103: ='4'!$AH39 ->  | AO103: ='5'!$AH39 ->  | AP103: ='6'!$AH39 ->  | AQ103: ='7'!$AH39 ->  | AR103: ='8'!$AH39 ->  | AS103: ='9'!$AH39 ->  | AT103: ='10'!$AH39 ->  | AU103: ='11'!$AH39 ->  | AV103: ='12'!$AH39 ->  | AW103: ='13'!$AH39 ->  | AX103: ='14'!$AH39 ->  | AY103: ='15'!$AH39 ->  | AZ103: ='16'!$AH39 ->  | BA103: ='17'!$AH39 ->  | BB103: ='18'!$AH39 -> 
B104: Trainingsanstrengung | C104: ='19'!$AH41 ->  | D104: ='20'!$AH41 ->  | E104: ='21'!$AH41 ->  | F104: ='22'!$AH41 ->  | G104: ='23'!$AH41 ->  | H104: ='24'!$AH41 ->  | I104: ='25'!$AH41 ->  | J104: ='26'!$AH41 ->  | K104: ='27'!$AH41 ->  | L104: ='28'!$AH41 ->  | M104: ='29'!$AH41 ->  | N104: ='30'!$AH41 ->  | O104: ='31'!$AH41 ->  | P104: ='32'!$AH41 ->  | Q104: ='33'!$AH41 ->  | R104: ='34'!$AH41 ->  | S104: ='35'!$AH41 ->  | T104: ='36'!$AH41 ->  | U104: ='37'!$AH41 ->  | V104: ='38'!$AH41 ->  | W104: ='39'!$AH41 ->  | X104: ='40'!$AH41 ->  | Y104: ='41'!$AH41 ->  | Z104: ='42'!$AH41 ->  | AA104: ='43'!$AH41 ->  | AB104: ='44'!$AH41 ->  | AC104: ='45'!$AH41 ->  | AD104: ='46'!$AH41 ->  | AE104: ='47'!$AH41 ->  | AF104: ='48'!$AH41 ->  | AG104: ='49'!$AH41 ->  | AH104: ='50'!$AH41 ->  | AI104: ='51'!$AH41 ->  | AJ104: ='52'!$AH41 ->  | AK104: ='1'!$AH41 ->  | AL104: ='2'!$AH41 ->  | AM104: ='3'!$AH41 ->  | AN104: ='4'!$AH41 ->  | AO104: ='5'!$AH41 ->  | AP104: ='6'!$AH41 ->  | AQ104: ='7'!$AH41 ->  | AR104: ='8'!$AH41 ->  | AS104: ='9'!$AH41 ->  | AT104: ='10'!$AH41 ->  | AU104: ='11'!$AH41 ->  | AV104: ='12'!$AH41 ->  | AW104: ='13'!$AH41 ->  | AX104: ='14'!$AH41 ->  | AY104: ='15'!$AH41 ->  | AZ104: ='16'!$AH41 ->  | BA104: ='17'!$AH41 ->  | BB104: ='18'!$AH41 -> 
B105: Swim Km | C105: ='19'!$AH43 ->  | D105: ='20'!$AH43 ->  | E105: ='21'!$AH43 ->  | F105: ='22'!$AH43 ->  | G105: ='23'!$AH43 ->  | H105: ='24'!$AH43 ->  | I105: ='25'!$AH43 ->  | J105: ='26'!$AH43 ->  | K105: ='27'!$AH43 ->  | L105: ='28'!$AH43 ->  | M105: ='29'!$AH43 ->  | N105: ='30'!$AH43 ->  | O105: ='31'!$AH43 ->  | P105: ='32'!$AH43 ->  | Q105: ='33'!$AH43 ->  | R105: ='34'!$AH43 ->  | S105: ='35'!$AH43 ->  | T105: ='36'!$AH43 ->  | U105: ='37'!$AH43 ->  | V105: ='38'!$AH43 ->  | W105: ='39'!$AH43 ->  | X105: ='40'!$AH43 ->  | Y105: ='41'!$AH43 ->  | Z105: ='42'!$AH43 ->  | AA105: ='43'!$AH43 ->  | AB105: ='44'!$AH43 ->  | AC105: ='45'!$AH43 ->  | AD105: ='46'!$AH43 ->  | AE105: ='47'!$AH43 ->  | AF105: ='48'!$AH43 ->  | AG105: ='49'!$AH43 ->  | AH105: ='50'!$AH43 ->  | AI105: ='51'!$AH43 ->  | AJ105: ='52'!$AH43 ->  | AK105: ='1'!$AH43 ->  | AL105: ='2'!$AH43 ->  | AM105: ='3'!$AH43 ->  | AN105: ='4'!$AH43 ->  | AO105: ='5'!$AH43 ->  | AP105: ='6'!$AH43 ->  | AQ105: ='7'!$AH43 ->  | AR105: ='8'!$AH43 ->  | AS105: ='9'!$AH43 ->  | AT105: ='10'!$AH43 ->  | AU105: ='11'!$AH43 ->  | AV105: ='12'!$AH43 ->  | AW105: ='13'!$AH43 ->  | AX105: ='14'!$AH43 ->  | AY105: ='15'!$AH43 ->  | AZ105: ='16'!$AH43 ->  | BA105: ='17'!$AH43 ->  | BB105: ='18'!$AH43 -> 
B106: Rad Km | C106: ='19'!$AH45 ->  | D106: ='20'!$AH45 ->  | E106: ='21'!$AH45 ->  | F106: ='22'!$AH45 ->  | G106: ='23'!$AH45 ->  | H106: ='24'!$AH45 ->  | I106: ='25'!$AH45 ->  | J106: ='26'!$AH45 ->  | K106: ='27'!$AH45 ->  | L106: ='28'!$AH45 ->  | M106: ='29'!$AH45 ->  | N106: ='30'!$AH45 ->  | O106: ='31'!$AH45 ->  | P106: ='32'!$AH45 ->  | Q106: ='33'!$AH45 ->  | R106: ='34'!$AH45 ->  | S106: ='35'!$AH45 ->  | T106: ='36'!$AH45 ->  | U106: ='37'!$AH45 ->  | V106: ='38'!$AH45 ->  | W106: ='39'!$AH45 ->  | X106: ='40'!$AH45 ->  | Y106: ='41'!$AH45 ->  | Z106: ='42'!$AH45 ->  | AA106: ='43'!$AH45 ->  | AB106: ='44'!$AH45 ->  | AC106: ='45'!$AH45 ->  | AD106: ='46'!$AH45 ->  | AE106: ='47'!$AH45 ->  | AF106: ='48'!$AH45 ->  | AG106: ='49'!$AH45 ->  | AH106: ='50'!$AH45 ->  | AI106: ='51'!$AH45 ->  | AJ106: ='52'!$AH45 ->  | AK106: ='1'!$AH45 ->  | AL106: ='2'!$AH45 ->  | AM106: ='3'!$AH45 ->  | AN106: ='4'!$AH45 ->  | AO106: ='5'!$AH45 ->  | AP106: ='6'!$AH45 ->  | AQ106: ='7'!$AH45 ->  | AR106: ='8'!$AH45 ->  | AS106: ='9'!$AH45 ->  | AT106: ='10'!$AH45 ->  | AU106: ='11'!$AH45 ->  | AV106: ='12'!$AH45 ->  | AW106: ='13'!$AH45 ->  | AX106: ='14'!$AH45 ->  | AY106: ='15'!$AH45 ->  | AZ106: ='16'!$AH45 ->  | BA106: ='17'!$AH45 ->  | BB106: ='18'!$AH45 -> 
B107: Lauf Km | C107: ='19'!$AH47 ->  | D107: ='20'!$AH47 ->  | E107: ='21'!$AH47 ->  | F107: ='22'!$AH47 ->  | G107: ='23'!$AH47 ->  | H107: ='24'!$AH47 ->  | I107: ='25'!$AH47 ->  | J107: ='26'!$AH47 ->  | K107: ='27'!$AH47 ->  | L107: ='28'!$AH47 ->  | M107: ='29'!$AH47 ->  | N107: ='30'!$AH47 ->  | O107: ='31'!$AH47 ->  | P107: ='32'!$AH47 ->  | Q107: ='33'!$AH47 ->  | R107: ='34'!$AH47 ->  | S107: ='35'!$AH47 ->  | T107: ='36'!$AH47 ->  | U107: ='37'!$AH47 ->  | V107: ='38'!$AH47 ->  | W107: ='39'!$AH47 ->  | X107: ='40'!$AH47 ->  | Y107: ='41'!$AH47 ->  | Z107: ='42'!$AH47 ->  | AA107: ='43'!$AH47 ->  | AB107: ='44'!$AH47 ->  | AC107: ='45'!$AH47 ->  | AD107: ='46'!$AH47 ->  | AE107: ='47'!$AH47 ->  | AF107: ='48'!$AH47 ->  | AG107: ='49'!$AH47 ->  | AH107: ='50'!$AH47 ->  | AI107: ='51'!$AH47 ->  | AJ107: ='52'!$AH47 ->  | AK107: ='1'!$AH47 ->  | AL107: ='2'!$AH47 ->  | AM107: ='3'!$AH47 ->  | AN107: ='4'!$AH47 ->  | AO107: ='5'!$AH47 ->  | AP107: ='6'!$AH47 ->  | AQ107: ='7'!$AH47 ->  | AR107: ='8'!$AH47 ->  | AS107: ='9'!$AH47 ->  | AT107: ='10'!$AH47 ->  | AU107: ='11'!$AH47 ->  | AV107: ='12'!$AH47 ->  | AW107: ='13'!$AH47 ->  | AX107: ='14'!$AH47 ->  | AY107: ='15'!$AH47 ->  | AZ107: ='16'!$AH47 ->  | BA107: ='17'!$AH47 ->  | BB107: ='18'!$AH47 -> 
B108: Mental Training | C108: ='19'!$AH49 ->  | D108: ='20'!$AH49 ->  | E108: ='21'!$AH49 ->  | F108: ='22'!$AH49 ->  | G108: ='23'!$AH49 ->  | H108: ='24'!$AH49 ->  | I108: ='25'!$AH49 ->  | J108: ='26'!$AH49 ->  | K108: ='27'!$AH49 ->  | L108: ='28'!$AH49 ->  | M108: ='29'!$AH49 ->  | N108: ='30'!$AH49 ->  | O108: ='31'!$AH49 ->  | P108: ='32'!$AH49 ->  | Q108: ='33'!$AH49 ->  | R108: ='34'!$AH49 ->  | S108: ='35'!$AH49 ->  | T108: ='36'!$AH49 ->  | U108: ='37'!$AH49 ->  | V108: ='38'!$AH49 ->  | W108: ='39'!$AH49 ->  | X108: ='40'!$AH49 ->  | Y108: ='41'!$AH49 ->  | Z108: ='42'!$AH49 ->  | AA108: ='43'!$AH49 ->  | AB108: ='44'!$AH49 ->  | AC108: ='45'!$AH49 ->  | AD108: ='46'!$AH49 ->  | AE108: ='47'!$AH49 ->  | AF108: ='48'!$AH49 ->  | AG108: ='49'!$AH49 ->  | AH108: ='50'!$AH49 ->  | AI108: ='51'!$AH49 ->  | AJ108: ='52'!$AH49 ->  | AK108: ='1'!$AH49 ->  | AL108: ='2'!$AH49 ->  | AM108: ='3'!$AH49 ->  | AN108: ='4'!$AH49 ->  | AO108: ='5'!$AH49 ->  | AP108: ='6'!$AH49 ->  | AQ108: ='7'!$AH49 ->  | AR108: ='8'!$AH49 ->  | AS108: ='9'!$AH49 ->  | AT108: ='10'!$AH49 ->  | AU108: ='11'!$AH49 ->  | AV108: ='12'!$AH49 ->  | AW108: ='13'!$AH49 ->  | AX108: ='14'!$AH49 ->  | AY108: ='15'!$AH49 ->  | AZ108: ='16'!$AH49 ->  | BA108: ='17'!$AH49 ->  | BB108: ='18'!$AH49 -> 
B109: Regenration | C109: ='19'!$AH51 ->  | D109: ='20'!$AH51 ->  | E109: ='21'!$AH51 ->  | F109: ='22'!$AH51 ->  | G109: ='23'!$AH51 ->  | H109: ='24'!$AH51 ->  | I109: ='25'!$AH51 ->  | J109: ='26'!$AH51 ->  | K109: ='27'!$AH51 ->  | L109: ='28'!$AH51 ->  | M109: ='29'!$AH51 ->  | N109: ='30'!$AH51 ->  | O109: ='31'!$AH51 ->  | P109: ='32'!$AH51 ->  | Q109: ='33'!$AH51 ->  | R109: ='34'!$AH51 ->  | S109: ='35'!$AH51 ->  | T109: ='36'!$AH51 ->  | U109: ='37'!$AH51 ->  | V109: ='38'!$AH51 ->  | W109: ='39'!$AH51 ->  | X109: ='40'!$AH51 ->  | Y109: ='41'!$AH51 ->  | Z109: ='42'!$AH51 ->  | AA109: ='43'!$AH51 ->  | AB109: ='44'!$AH51 ->  | AC109: ='45'!$AH51 ->  | AD109: ='46'!$AH51 ->  | AE109: ='47'!$AH51 ->  | AF109: ='48'!$AH51 ->  | AG109: ='49'!$AH51 ->  | AH109: ='50'!$AH51 ->  | AI109: ='51'!$AH51 ->  | AJ109: ='52'!$AH51 ->  | AK109: ='1'!$AH51 ->  | AL109: ='2'!$AH51 ->  | AM109: ='3'!$AH51 ->  | AN109: ='4'!$AH51 ->  | AO109: ='5'!$AH51 ->  | AP109: ='6'!$AH51 ->  | AQ109: ='7'!$AH51 ->  | AR109: ='8'!$AH51 ->  | AS109: ='9'!$AH51 ->  | AT109: ='10'!$AH51 ->  | AU109: ='11'!$AH51 ->  | AV109: ='12'!$AH51 ->  | AW109: ='13'!$AH51 ->  | AX109: ='14'!$AH51 ->  | AY109: ='15'!$AH51 ->  | AZ109: ='16'!$AH51 ->  | BA109: ='17'!$AH51 ->  | BB109: ='18'!$AH51 -> 
B110: Verletzung/Erkrankung | C110: ='19'!$AH53 ->  | D110: ='20'!$AH53 ->  | E110: ='21'!$AH53 ->  | F110: ='22'!$AH53 ->  | G110: ='23'!$AH53 ->  | H110: ='24'!$AH53 ->  | I110: ='25'!$AH53 ->  | J110: ='26'!$AH53 ->  | K110: ='27'!$AH53 ->  | L110: ='28'!$AH53 ->  | M110: ='29'!$AH53 ->  | N110: ='30'!$AH53 ->  | O110: ='31'!$AH53 ->  | P110: ='32'!$AH53 ->  | Q110: ='33'!$AH53 ->  | R110: ='34'!$AH53 ->  | S110: ='35'!$AH53 ->  | T110: ='36'!$AH53 ->  | U110: ='37'!$AH53 ->  | V110: ='38'!$AH53 ->  | W110: ='39'!$AH53 ->  | X110: ='40'!$AH53 ->  | Y110: ='41'!$AH53 ->  | Z110: ='42'!$AH53 ->  | AA110: ='43'!$AH53 ->  | AB110: ='44'!$AH53 ->  | AC110: ='45'!$AH53 ->  | AD110: ='46'!$AH53 ->  | AE110: ='47'!$AH53 ->  | AF110: ='48'!$AH53 ->  | AG110: ='49'!$AH53 ->  | AH110: ='50'!$AH53 ->  | AI110: ='51'!$AH53 ->  | AJ110: ='52'!$AH53 ->  | AK110: ='1'!$AH53 ->  | AL110: ='2'!$AH53 ->  | AM110: ='3'!$AH53 ->  | AN110: ='4'!$AH53 ->  | AO110: ='5'!$AH53 ->  | AP110: ='6'!$AH53 ->  | AQ110: ='7'!$AH53 ->  | AR110: ='8'!$AH53 ->  | AS110: ='9'!$AH53 ->  | AT110: ='10'!$AH53 ->  | AU110: ='11'!$AH53 ->  | AV110: ='12'!$AH53 ->  | AW110: ='13'!$AH53 ->  | AX110: ='14'!$AH53 ->  | AY110: ='15'!$AH53 ->  | AZ110: ='16'!$AH53 ->  | BA110: ='17'!$AH53 ->  | BB110: ='18'!$AH53 -> 
T120: =U120 ->  | U120: =IF(V120=0,"",V120) -> 

Sheet Beanspruchungverteilung
D1: Beanspruchungverteilung
E3: =F47 -> Dauerlauf | I3: =I47 -> Bahn/Intervall | M3: =L47 -> Sprint/Koord/Tech | Q3: =O47 -> Kraft | U3: =R47 -> Alternativ | Y3: =U47 -> Divers | AD3: =D1 -> Beanspruchungverteilung | AM3: =CONCATENATE(Overview!D2," ",Overview!N2) -> Vorname Name
E5: Zone | H5: Total | I5: Zone | L5: Total | M5: Zone | P5: Total | Q5: Zone | T5: Total | U5: Zone | X5: Total | Y5: Zone | AB5: Total
E6: 1 | F6: 2 | G6: 3 | I6: 1 | J6: 2 | K6: 3 | M6: 1 | N6: 2 | O6: 3 | Q6: 1 | R6: 2 | S6: 3 | U6: 1 | V6: 2 | W6: 3 | Y6: 1 | Z6: 2 | AA6: 3
AE7: Gewünschte Analyse : | AK7: Von Trainingswoche : | AO7: 1 | AQ7: bis Trainingswoche : | AU7: 44
D8: Trainingseinheiten | E8: =F101 -> 0 | F8: =G101 -> 0 | G8: =H101 -> 0 | H8: =SUM(E8:G8) -> 0 | I8: =I101 -> 0 | J8: =J101 -> 0 | K8: =K101 -> 0 | L8: =SUM(I8:K8) -> 0 | M8: =L101 -> 0 | N8: =M101 -> 0 | O8: =N101 -> 0 | P8: =SUM(M8:O8) -> 0 | Q8: =O101 -> 0 | R8: =P101 -> 0 | S8: =Q101 -> 0 | T8: =SUM(Q8:S8) -> 0 | U8: =R101 -> 0 | V8: =S101 -> 0 | W8: =T101 -> 0 | X8: =SUM(U8:W8) -> 0 | Y8: =U101 -> 0 | Z8: =V101 -> 0 | AA8: =W101 -> 0 | AB8: =SUM(Y8:AA8) -> 0
D10: Trainingsstunden | E10: =AA101 -> 0 | F10: =AB101 -> 0 | G10: =AC101 -> 0 | H10: =SUM(E10:G10) -> 0 | I10: =AD101 -> 0 | J10: =AE101 -> 0 | K10: =AF101 -> 0 | L10: =SUM(I10:K10) -> 0 | M10: =AG101 -> 0 | N10: =AH101 -> 0 | O10: =AI101 -> 0 | P10: =SUM(M10:O10) -> 0 | Q10: =AJ101 -> 0 | R10: =AK101 -> 0 | S10: =AL101 -> 0 | T10: =SUM(Q10:S10) -> 0 | U10: =AM101 -> 0 | V10: =AN101 -> 0 | W10: =AO101 -> 0 | X10: =SUM(U10:W10) -> 0 | Y10: =AP101 -> 0 | Z10: =AQ101 -> 0 | AA10: =AR101 -> 0 | AB10: =SUM(Y10:AA10) -> 0
AO15: RPE | AR15: Zone | AT15: RPE
AO17: 1-4 | AR17: I | AT17: 1-3
AO18: 5-6 | AR18: II | AT18: 4-5
AO19: 7-10 | AR19: III | AT19: 6-10
C44: Intensitätverteilung | F44: Trainingseinheiten | AA44: Trainingsstunden
A45: Semaine | B45: Semaine | F45: b1 | G45: b2 | H45: b3 | I45: r1 | J45: r2 | K45: r3 | L45: c1 | M45: c2 | N45: c3 | O45: s1 | P45: s2 | Q45: s3 | R45: f1 | S45: f2 | T45: f3 | U45: d1 | V45: d2 | W45: d3 | AA45: b1 | AB45: b2 | AC45: b3 | AD45: r1 | AE45: r2 | AF45: r3 | AG45: c1 | AH45: c2 | AI45: c3 | AJ45: s1 | AK45: s2 | AL45: s3 | AM45: f1 | AN45: f2 | AO45: f3 | AP45: d1 | AQ45: d2 | AR45: d3 | AS45: Semaine | AT45: Semaine
A46: =CONCATENATE(">","=",AO7) -> >=1 | B46: =CONCATENATE("<","=",AU7) -> <=44 | F46: b1 | G46: b2 | H46: b3 | I46: r1 | J46: r2 | K46: r3 | L46: c1 | M46: c2 | N46: c3 | O46: s1 | P46: s2 | Q46: s3 | R46: f1 | S46: f2 | T46: f3 | U46: d1 | V46: d2 | W46: d3 | AA46: b1 | AB46: b2 | AC46: b3 | AD46: r1 | AE46: r2 | AF46: r3 | AG46: c1 | AH46: c2 | AI46: c3 | AJ46: s1 | AK46: s2 | AL46: s3 | AM46: f1 | AN46: f2 | AO46: f3 | AP46: d1 | AQ46: d2 | AR46: d3 | AS46: =CONCATENATE(">","=",AO7) -> >=1 | AT46: =CONCATENATE("<","=",AU7) -> <=44
F47: ='19'!M2 -> Dauerlauf | I47: ='19'!P2 -> Bahn/Intervall | L47: ='19'!S2 -> Sprint/Koord/Tech | O47: ='19'!V2 -> Kraft | R47: ='19'!Y2 -> Alternativ | U47: ='19'!AB2 -> Divers | AA47: =F47 -> Dauerlauf | AD47: =I47 -> Bahn/Intervall | AG47: =L47 -> Sprint/Koord/Tech | AJ47: =O47 -> Kraft | AM47: =R47 -> Alternativ | AP47: =U47 -> Divers
A48: Trainings- woche | B48: Kalenderwoche | F48: I | G48: II | H48: III | I48: I | J48: II | K48: III | L48: I | M48: II | N48: III | O48: I | P48: II | Q48: III | R48: I | S48: II | T48: III | U48: I | V48: II | W48: III | AA48: I | AB48: II | AC48: III | AD48: I | AE48: II | AF48: III | AG48: I | AH48: II | AI48: III | AJ48: I | AK48: II | AL48: III | AM48: I | AN48: II | AO48: III | AP48: I | AQ48: II | AR48: III | AS48: =A48 -> Trainings- woche | AT48: =B48 -> Kalenderwoche
A49: 1 | B49: =Overview!C18 -> 2013-05-06 | C49: - | D49: =B49+6 -> 2013-05-12 | E49: =Overview!F18 -> 19 | F49: ='19'!M$27 -> 0 | G49: ='19'!N$27 -> 0 | H49: ='19'!O$27 -> 0 | I49: ='19'!P$27 -> 0 | J49: ='19'!Q$27 -> 0 | K49: ='19'!R$27 -> 0 | L49: ='19'!S$27 -> 0 | M49: ='19'!T$27 -> 0 | N49: ='19'!U$27 -> 0 | O49: ='19'!V$27 -> 0 | P49: ='19'!W$27 -> 0 | Q49: ='19'!X$27 -> 0 | R49: ='19'!Y$27 -> 0 | S49: ='19'!Z$27 -> 0 | T49: ='19'!AA$27 -> 0 | U49: ='19'!AB$27 -> 0 | V49: ='19'!AC$27 -> 0 | W49: ='19'!AD$27 -> 0 | AA49: ='19'!M$28 -> 0 | AB49: ='19'!N$28 -> 0 | AC49: ='19'!O$28 -> 0 | AD49: ='19'!P$28 -> 0 | AE49: ='19'!Q$28 -> 0 | AF49: ='19'!R$28 -> 0 | AG49: ='19'!S$28 -> 0 | AH49: ='19'!T$28 -> 0 | AI49: ='19'!U$28 -> 0 | AJ49: ='19'!V$28 -> 0 | AK49: ='19'!W$28 -> 0 | AL49: ='19'!X$28 -> 0 | AM49: ='19'!Y$28 -> 0 | AN49: ='19'!Z$28 -> 0 | AO49: ='19'!AA$28 -> 0 | AP49: ='19'!AB$28 -> 0 | AQ49: ='19'!AC$28 -> 0 | AR49: ='19'!AD$28 -> 0 | AS49: 1 | AT49: 2013-05-06 | AU49: =C49 -> - | AV49: =D49 -> 2013-05-12 | AW49: =E49 -> 19
A50: 2 | B50: =B49+7 -> 2013-05-13 | C50: - | D50: =D49+7 -> 2013-05-19 | E50: =Overview!F19 -> 20 | F50: ='20'!M$27 -> 0 | G50: ='20'!N$27 -> 0 | H50: ='20'!O$27 -> 0 | I50: ='20'!P$27 -> 0 | J50: ='20'!Q$27 -> 0 | K50: ='20'!R$27 -> 0 | L50: ='20'!S$27 -> 0 | M50: ='20'!T$27 -> 0 | N50: ='20'!U$27 -> 0 | O50: ='20'!V$27 -> 0 | P50: ='20'!W$27 -> 0 | Q50: ='20'!X$27 -> 0 | R50: ='20'!Y$27 -> 0 | S50: ='20'!Z$27 -> 0 | T50: ='20'!AA$27 -> 0 | U50: ='20'!AB$27 -> 0 | V50: ='20'!AC$27 -> 0 | W50: ='20'!AD$27 -> 0 | AA50: ='20'!M$28 -> 0 | AB50: ='20'!N$28 -> 0 | AC50: ='20'!O$28 -> 0 | AD50: ='20'!P$28 -> 0 | AE50: ='20'!Q$28 -> 0 | AF50: ='20'!R$28 -> 0 | AG50: ='20'!S$28 -> 0 | AH50: ='20'!T$28 -> 0 | AI50: ='20'!U$28 -> 0 | AJ50: ='20'!V$28 -> 0 | AK50: ='20'!W$28 -> 0 | AL50: ='20'!X$28 -> 0 | AM50: ='20'!Y$28 -> 0 | AN50: ='20'!Z$28 -> 0 | AO50: ='20'!AA$28 -> 0 | AP50: ='20'!AB$28 -> 0 | AQ50: ='20'!AC$28 -> 0 | AR50: ='20'!AD$28 -> 0 | AS50: 2 | AT50: 2013-05-13 | AU50: - | AV50: 2013-05-19 | AW50: 20
A51: 3 | B51: =B50+7 -> 2013-05-20 | C51: - | D51: =D50+7 -> 2013-05-26 | E51: =Overview!F20 -> 21 | F51: ='21'!M$27 -> 0 | G51: ='21'!N$27 -> 0 | H51: ='21'!O$27 -> 0 | I51: ='21'!P$27 -> 0 | J51: ='21'!Q$27 -> 0 | K51: ='21'!R$27 -> 0 | L51: ='21'!S$27 -> 0 | M51: ='21'!T$27 -> 0 | N51: ='21'!U$27 -> 0 | O51: ='21'!V$27 -> 0 | P51: ='21'!W$27 -> 0 | Q51: ='21'!X$27 -> 0 | R51: ='21'!Y$27 -> 0 | S51: ='21'!Z$27 -> 0 | T51: ='21'!AA$27 -> 0 | U51: ='21'!AB$27 -> 0 | V51: ='21'!AC$27 -> 0 | W51: ='21'!AD$27 -> 0 | AA51: ='21'!M$28 -> 0 | AB51: ='21'!N$28 -> 0 | AC51: ='21'!O$28 -> 0 | AD51: ='21'!P$28 -> 0 | AE51: ='21'!Q$28 -> 0 | AF51: ='21'!R$28 -> 0 | AG51: ='21'!S$28 -> 0 | AH51: ='21'!T$28 -> 0 | AI51: ='21'!U$28 -> 0 | AJ51: ='21'!V$28 -> 0 | AK51: ='21'!W$28 -> 0 | AL51: ='21'!X$28 -> 0 | AM51: ='21'!Y$28 -> 0 | AN51: ='21'!Z$28 -> 0 | AO51: ='21'!AA$28 -> 0 | AP51: ='21'!AB$28 -> 0 | AQ51: ='21'!AC$28 -> 0 | AR51: ='21'!AD$28 -> 0 | AS51: 3 | AT51: 2013-05-20 | AU51: - | AV51: 2013-05-26 | AW51: 21
A52: 4 | B52: =B51+7 -> 2013-05-27 | C52: - | D52: =D51+7 -> 2013-06-02 | E52: =Overview!F21 -> 22 | F52: ='22'!M$27 -> 0 | G52: ='22'!N$27 -> 0 | H52: ='22'!O$27 -> 0 | I52: ='22'!P$27 -> 0 | J52: ='22'!Q$27 -> 0 | K52: ='22'!R$27 -> 0 | L52: ='22'!S$27 -> 0 | M52: ='22'!T$27 -> 0 | N52: ='22'!U$27 -> 0 | O52: ='22'!V$27 -> 0 | P52: ='22'!W$27 -> 0 | Q52: ='22'!X$27 -> 0 | R52: ='22'!Y$27 -> 0 | S52: ='22'!Z$27 -> 0 | T52: ='22'!AA$27 -> 0 | U52: ='22'!AB$27 -> 0 | V52: ='22'!AC$27 -> 0 | W52: ='22'!AD$27 -> 0 | AA52: ='22'!M$28 -> 0 | AB52: ='22'!N$28 -> 0 | AC52: ='22'!O$28 -> 0 | AD52: ='22'!P$28 -> 0 | AE52: ='22'!Q$28 -> 0 | AF52: ='22'!R$28 -> 0 | AG52: ='22'!S$28 -> 0 | AH52: ='22'!T$28 -> 0 | AI52: ='22'!U$28 -> 0 | AJ52: ='22'!V$28 -> 0 | AK52: ='22'!W$28 -> 0 | AL52: ='22'!X$28 -> 0 | AM52: ='22'!Y$28 -> 0 | AN52: ='22'!Z$28 -> 0 | AO52: ='22'!AA$28 -> 0 | AP52: ='22'!AB$28 -> 0 | AQ52: ='22'!AC$28 -> 0 | AR52: ='22'!AD$28 -> 0 | AS52: 4 | AT52: 2013-05-27 | AU52: - | AV52: 2013-06-02 | AW52: 22
A53: 5 | B53: =B52+7 -> 2013-06-03 | C53: - | D53: =D52+7 -> 2013-06-09 | E53: =Overview!F22 -> 23 | F53: ='23'!M$27 -> 0 | G53: ='23'!N$27 -> 0 | H53: ='23'!O$27 -> 0 | I53: ='23'!P$27 -> 0 | J53: ='23'!Q$27 -> 0 | K53: ='23'!R$27 -> 0 | L53: ='23'!S$27 -> 0 | M53: ='23'!T$27 -> 0 | N53: ='23'!U$27 -> 0 | O53: ='23'!V$27 -> 0 | P53: ='23'!W$27 -> 0 | Q53: ='23'!X$27 -> 0 | R53: ='23'!Y$27 -> 0 | S53: ='23'!Z$27 -> 0 | T53: ='23'!AA$27 -> 0 | U53: ='23'!AB$27 -> 0 | V53: ='23'!AC$27 -> 0 | W53: ='23'!AD$27 -> 0 | AA53: ='23'!M$28 -> 0 | AB53: ='23'!N$28 -> 0 | AC53: ='23'!O$28 -> 0 | AD53: ='23'!P$28 -> 0 | AE53: ='23'!Q$28 -> 0 | AF53: ='23'!R$28 -> 0 | AG53: ='23'!S$28 -> 0 | AH53: ='23'!T$28 -> 0 | AI53: ='23'!U$28 -> 0 | AJ53: ='23'!V$28 -> 0 | AK53: ='23'!W$28 -> 0 | AL53: ='23'!X$28 -> 0 | AM53: ='23'!Y$28 -> 0 | AN53: ='23'!Z$28 -> 0 | AO53: ='23'!AA$28 -> 0 | AP53: ='23'!AB$28 -> 0 | AQ53: ='23'!AC$28 -> 0 | AR53: ='23'!AD$28 -> 0 | AS53: 5 | AT53: 2013-06-03 | AU53: - | AV53: 2013-06-09 | AW53: 23
A54: 6 | B54: =B53+7 -> 2013-06-10 | C54: - | D54: =D53+7 -> 2013-06-16 | E54: =Overview!F23 -> 24 | F54: ='24'!M$27 -> 0 | G54: ='24'!N$27 -> 0 | H54: ='24'!O$27 -> 0 | I54: ='24'!P$27 -> 0 | J54: ='24'!Q$27 -> 0 | K54: ='24'!R$27 -> 0 | L54: ='24'!S$27 -> 0 | M54: ='24'!T$27 -> 0 | N54: ='24'!U$27 -> 0 | O54: ='24'!V$27 -> 0 | P54: ='24'!W$27 -> 0 | Q54: ='24'!X$27 -> 0 | R54: ='24'!Y$27 -> 0 | S54: ='24'!Z$27 -> 0 | T54: ='24'!AA$27 -> 0 | U54: ='24'!AB$27 -> 0 | V54: ='24'!AC$27 -> 0 | W54: ='24'!AD$27 -> 0 | AA54: ='24'!M$28 -> 0 | AB54: ='24'!N$28 -> 0 | AC54: ='24'!O$28 -> 0 | AD54: ='24'!P$28 -> 0 | AE54: ='24'!Q$28 -> 0 | AF54: ='24'!R$28 -> 0 | AG54: ='24'!S$28 -> 0 | AH54: ='24'!T$28 -> 0 | AI54: ='24'!U$28 -> 0 | AJ54: ='24'!V$28 -> 0 | AK54: ='24'!W$28 -> 0 | AL54: ='24'!X$28 -> 0 | AM54: ='24'!Y$28 -> 0 | AN54: ='24'!Z$28 -> 0 | AO54: ='24'!AA$28 -> 0 | AP54: ='24'!AB$28 -> 0 | AQ54: ='24'!AC$28 -> 0 | AR54: ='24'!AD$28 -> 0 | AS54: 6 | AT54: 2013-06-10 | AU54: - | AV54: 2013-06-16 | AW54: 24
A55: 7 | B55: 2013-06-17 | C55: - | D55: 2013-06-23 | E55: =Overview!F24 -> 25 | F55: ='25'!M$27 -> 0 | G55: ='25'!N$27 -> 0 | H55: ='25'!O$27 -> 0 | I55: ='25'!P$27 -> 0 | J55: ='25'!Q$27 -> 0 | K55: ='25'!R$27 -> 0 | L55: ='25'!S$27 -> 0 | M55: ='25'!T$27 -> 0 | N55: ='25'!U$27 -> 0 | O55: ='25'!V$27 -> 0 | P55: ='25'!W$27 -> 0 | Q55: ='25'!X$27 -> 0 | R55: ='25'!Y$27 -> 0 | S55: ='25'!Z$27 -> 0 | T55: ='25'!AA$27 -> 0 | U55: ='25'!AB$27 -> 0 | V55: ='25'!AC$27 -> 0 | W55: ='25'!AD$27 -> 0 | AA55: ='25'!M$28 -> 0 | AB55: ='25'!N$28 -> 0 | AC55: ='25'!O$28 -> 0 | AD55: ='25'!P$28 -> 0 | AE55: ='25'!Q$28 -> 0 | AF55: ='25'!R$28 -> 0 | AG55: ='25'!S$28 -> 0 | AH55: ='25'!T$28 -> 0 | AI55: ='25'!U$28 -> 0 | AJ55: ='25'!V$28 -> 0 | AK55: ='25'!W$28 -> 0 | AL55: ='25'!X$28 -> 0 | AM55: ='25'!Y$28 -> 0 | AN55: ='25'!Z$28 -> 0 | AO55: ='25'!AA$28 -> 0 | AP55: ='25'!AB$28 -> 0 | AQ55: ='25'!AC$28 -> 0 | AR55: ='25'!AD$28 -> 0 | AS55: 7 | AT55: 2013-06-17 | AU55: - | AV55: 2013-06-23 | AW55: 25
A56: 8 | B56: 2013-06-24 | C56: - | D56: 2013-06-30 | E56: =Overview!F25 -> 26 | F56: ='26'!M$27 -> 0 | G56: ='26'!N$27 -> 0 | H56: ='26'!O$27 -> 0 | I56: ='26'!P$27 -> 0 | J56: ='26'!Q$27 -> 0 | K56: ='26'!R$27 -> 0 | L56: ='26'!S$27 -> 0 | M56: ='26'!T$27 -> 0 | N56: ='26'!U$27 -> 0 | O56: ='26'!V$27 -> 0 | P56: ='26'!W$27 -> 0 | Q56: ='26'!X$27 -> 0 | R56: ='26'!Y$27 -> 0 | S56: ='26'!Z$27 -> 0 | T56: ='26'!AA$27 -> 0 | U56: ='26'!AB$27 -> 0 | V56: ='26'!AC$27 -> 0 | W56: ='26'!AD$27 -> 0 | AA56: ='26'!M$28 -> 0 | AB56: ='26'!N$28 -> 0 | AC56: ='26'!O$28 -> 0 | AD56: ='26'!P$28 -> 0 | AE56: ='26'!Q$28 -> 0 | AF56: ='26'!R$28 -> 0 | AG56: ='26'!S$28 -> 0 | AH56: ='26'!T$28 -> 0 | AI56: ='26'!U$28 -> 0 | AJ56: ='26'!V$28 -> 0 | AK56: ='26'!W$28 -> 0 | AL56: ='26'!X$28 -> 0 | AM56: ='26'!Y$28 -> 0 | AN56: ='26'!Z$28 -> 0 | AO56: ='26'!AA$28 -> 0 | AP56: ='26'!AB$28 -> 0 | AQ56: ='26'!AC$28 -> 0 | AR56: ='26'!AD$28 -> 0 | AS56: 8 | AT56: 2013-06-24 | AU56: - | AV56: 2013-06-30 | AW56: 26
A57: 9 | B57: 2013-07-01 | C57: - | D57: 2013-07-07 | E57: =Overview!F26 -> 27 | F57: ='27'!M$27 -> 0 | G57: ='27'!N$27 -> 0 | H57: ='27'!O$27 -> 0 | I57: ='27'!P$27 -> 0 | J57: ='27'!Q$27 -> 0 | K57: ='27'!R$27 -> 0 | L57: ='27'!S$27 -> 0 | M57: ='27'!T$27 -> 0 | N57: ='27'!U$27 -> 0 | O57: ='27'!V$27 -> 0 | P57: ='27'!W$27 -> 0 | Q57: ='27'!X$27 -> 0 | R57: ='27'!Y$27 -> 0 | S57: ='27'!Z$27 -> 0 | T57: ='27'!AA$27 -> 0 | U57: ='27'!AB$27 -> 0 | V57: ='27'!AC$27 -> 0 | W57: ='27'!AD$27 -> 0 | AA57: ='27'!M$28 -> 0 | AB57: ='27'!N$28 -> 0 | AC57: ='27'!O$28 -> 0 | AD57: ='27'!P$28 -> 0 | AE57: ='27'!Q$28 -> 0 | AF57: ='27'!R$28 -> 0 | AG57: ='27'!S$28 -> 0 | AH57: ='27'!T$28 -> 0 | AI57: ='27'!U$28 -> 0 | AJ57: ='27'!V$28 -> 0 | AK57: ='27'!W$28 -> 0 | AL57: ='27'!X$28 -> 0 | AM57: ='27'!Y$28 -> 0 | AN57: ='27'!Z$28 -> 0 | AO57: ='27'!AA$28 -> 0 | AP57: ='27'!AB$28 -> 0 | AQ57: ='27'!AC$28 -> 0 | AR57: ='27'!AD$28 -> 0 | AS57: 9 | AT57: 2013-07-01 | AU57: - | AV57: 2013-07-07 | AW57: 27
A58: 10 | B58: 2013-07-08 | C58: - | D58: 2013-07-14 | E58: =Overview!F27 -> 28 | F58: ='28'!M$27 -> 0 | G58: ='28'!N$27 -> 0 | H58: ='28'!O$27 -> 0 | I58: ='28'!P$27 -> 0 | J58: ='28'!Q$27 -> 0 | K58: ='28'!R$27 -> 0 | L58: ='28'!S$27 -> 0 | M58: ='28'!T$27 -> 0 | N58: ='28'!U$27 -> 0 | O58: ='28'!V$27 -> 0 | P58: ='28'!W$27 -> 0 | Q58: ='28'!X$27 -> 0 | R58: ='28'!Y$27 -> 0 | S58: ='28'!Z$27 -> 0 | T58: ='28'!AA$27 -> 0 | U58: ='28'!AB$27 -> 0 | V58: ='28'!AC$27 -> 0 | W58: ='28'!AD$27 -> 0 | AA58: ='28'!M$28 -> 0 | AB58: ='28'!N$28 -> 0 | AC58: ='28'!O$28 -> 0 | AD58: ='28'!P$28 -> 0 | AE58: ='28'!Q$28 -> 0 | AF58: ='28'!R$28 -> 0 | AG58: ='28'!S$28 -> 0 | AH58: ='28'!T$28 -> 0 | AI58: ='28'!U$28 -> 0 | AJ58: ='28'!V$28 -> 0 | AK58: ='28'!W$28 -> 0 | AL58: ='28'!X$28 -> 0 | AM58: ='28'!Y$28 -> 0 | AN58: ='28'!Z$28 -> 0 | AO58: ='28'!AA$28 -> 0 | AP58: ='28'!AB$28 -> 0 | AQ58: ='28'!AC$28 -> 0 | AR58: ='28'!AD$28 -> 0 | AS58: 10 | AT58: 2013-07-08 | AU58: - | AV58: 2013-07-14 | AW58: 28
A59: 11 | B59: 2013-07-15 | C59: - | D59: 2013-07-21 | E59: =Overview!F28 -> 29 | F59: ='29'!M$27 -> 0 | G59: ='29'!N$27 -> 0 | H59: ='29'!O$27 -> 0 | I59: ='29'!P$27 -> 0 | J59: ='29'!Q$27 -> 0 | K59: ='29'!R$27 -> 0 | L59: ='29'!S$27 -> 0 | M59: ='29'!T$27 -> 0 | N59: ='29'!U$27 -> 0 | O59: ='29'!V$27 -> 0 | P59: ='29'!W$27 -> 0 | Q59: ='29'!X$27 -> 0 | R59: ='29'!Y$27 -> 0 | S59: ='29'!Z$27 -> 0 | T59: ='29'!AA$27 -> 0 | U59: ='29'!AB$27 -> 0 | V59: ='29'!AC$27 -> 0 | W59: ='29'!AD$27 -> 0 | AA59: ='29'!M$28 -> 0 | AB59: ='29'!N$28 -> 0 | AC59: ='29'!O$28 -> 0 | AD59: ='29'!P$28 -> 0 | AE59: ='29'!Q$28 -> 0 | AF59: ='29'!R$28 -> 0 | AG59: ='29'!S$28 -> 0 | AH59: ='29'!T$28 -> 0 | AI59: ='29'!U$28 -> 0 | AJ59: ='29'!V$28 -> 0 | AK59: ='29'!W$28 -> 0 | AL59: ='29'!X$28 -> 0 | AM59: ='29'!Y$28 -> 0 | AN59: ='29'!Z$28 -> 0 | AO59: ='29'!AA$28 -> 0 | AP59: ='29'!AB$28 -> 0 | AQ59: ='29'!AC$28 -> 0 | AR59: ='29'!AD$28 -> 0 | AS59: 11 | AT59: 2013-07-15 | AU59: - | AV59: 2013-07-21 | AW59: 29
A60: 12 | B60: 2013-07-22 | C60: - | D60: 2013-07-28 | E60: =Overview!F29 -> 30 | F60: ='30'!M$27 -> 0 | G60: ='30'!N$27 -> 0 | H60: ='30'!O$27 -> 0 | I60: ='30'!P$27 -> 0 | J60: ='30'!Q$27 -> 0 | K60: ='30'!R$27 -> 0 | L60: ='30'!S$27 -> 0 | M60: ='30'!T$27 -> 0 | N60: ='30'!U$27 -> 0 | O60: ='30'!V$27 -> 0 | P60: ='30'!W$27 -> 0 | Q60: ='30'!X$27 -> 0 | R60: ='30'!Y$27 -> 0 | S60: ='30'!Z$27 -> 0 | T60: ='30'!AA$27 -> 0 | U60: ='30'!AB$27 -> 0 | V60: ='30'!AC$27 -> 0 | W60: ='30'!AD$27 -> 0 | AA60: ='30'!M$28 -> 0 | AB60: ='30'!N$28 -> 0 | AC60: ='30'!O$28 -> 0 | AD60: ='30'!P$28 -> 0 | AE60: ='30'!Q$28 -> 0 | AF60: ='30'!R$28 -> 0 | AG60: ='30'!S$28 -> 0 | AH60: ='30'!T$28 -> 0 | AI60: ='30'!U$28 -> 0 | AJ60: ='30'!V$28 -> 0 | AK60: ='30'!W$28 -> 0 | AL60: ='30'!X$28 -> 0 | AM60: ='30'!Y$28 -> 0 | AN60: ='30'!Z$28 -> 0 | AO60: ='30'!AA$28 -> 0 | AP60: ='30'!AB$28 -> 0 | AQ60: ='30'!AC$28 -> 0 | AR60: ='30'!AD$28 -> 0 | AS60: 12 | AT60: 2013-07-22 | AU60: - | AV60: 2013-07-28 | AW60: 30
A61: 13 | B61: 2013-07-29 | C61: - | D61: 2013-08-04 | E61: =Overview!F30 -> 31 | F61: ='31'!M$27 -> 0 | G61: ='31'!N$27 -> 0 | H61: ='31'!O$27 -> 0 | I61: ='31'!P$27 -> 0 | J61: ='31'!Q$27 -> 0 | K61: ='31'!R$27 -> 0 | L61: ='31'!S$27 -> 0 | M61: ='31'!T$27 -> 0 | N61: ='31'!U$27 -> 0 | O61: ='31'!V$27 -> 0 | P61: ='31'!W$27 -> 0 | Q61: ='31'!X$27 -> 0 | R61: ='31'!Y$27 -> 0 | S61: ='31'!Z$27 -> 0 | T61: ='31'!AA$27 -> 0 | U61: ='31'!AB$27 -> 0 | V61: ='31'!AC$27 -> 0 | W61: ='31'!AD$27 -> 0 | AA61: ='31'!M$28 -> 0 | AB61: ='31'!N$28 -> 0 | AC61: ='31'!O$28 -> 0 | AD61: ='31'!P$28 -> 0 | AE61: ='31'!Q$28 -> 0 | AF61: ='31'!R$28 -> 0 | AG61: ='31'!S$28 -> 0 | AH61: ='31'!T$28 -> 0 | AI61: ='31'!U$28 -> 0 | AJ61: ='31'!V$28 -> 0 | AK61: ='31'!W$28 -> 0 | AL61: ='31'!X$28 -> 0 | AM61: ='31'!Y$28 -> 0 | AN61: ='31'!Z$28 -> 0 | AO61: ='31'!AA$28 -> 0 | AP61: ='31'!AB$28 -> 0 | AQ61: ='31'!AC$28 -> 0 | AR61: ='31'!AD$28 -> 0 | AS61: 13 | AT61: 2013-07-29 | AU61: - | AV61: 2013-08-04 | AW61: 31
A62: 14 | B62: 2013-08-05 | C62: - | D62: 2013-08-11 | E62: =Overview!F31 -> 32 | F62: ='32'!M$27 -> 0 | G62: ='32'!N$27 -> 0 | H62: ='32'!O$27 -> 0 | I62: ='32'!P$27 -> 0 | J62: ='32'!Q$27 -> 0 | K62: ='32'!R$27 -> 0 | L62: ='32'!S$27 -> 0 | M62: ='32'!T$27 -> 0 | N62: ='32'!U$27 -> 0 | O62: ='32'!V$27 -> 0 | P62: ='32'!W$27 -> 0 | Q62: ='32'!X$27 -> 0 | R62: ='32'!Y$27 -> 0 | S62: ='32'!Z$27 -> 0 | T62: ='32'!AA$27 -> 0 | U62: ='32'!AB$27 -> 0 | V62: ='32'!AC$27 -> 0 | W62: ='32'!AD$27 -> 0 | AA62: ='32'!M$28 -> 0 | AB62: ='32'!N$28 -> 0 | AC62: ='32'!O$28 -> 0 | AD62: ='32'!P$28 -> 0 | AE62: ='32'!Q$28 -> 0 | AF62: ='32'!R$28 -> 0 | AG62: ='32'!S$28 -> 0 | AH62: ='32'!T$28 -> 0 | AI62: ='32'!U$28 -> 0 | AJ62: ='32'!V$28 -> 0 | AK62: ='32'!W$28 -> 0 | AL62: ='32'!X$28 -> 0 | AM62: ='32'!Y$28 -> 0 | AN62: ='32'!Z$28 -> 0 | AO62: ='32'!AA$28 -> 0 | AP62: ='32'!AB$28 -> 0 | AQ62: ='32'!AC$28 -> 0 | AR62: ='32'!AD$28 -> 0 | AS62: 14 | AT62: 2013-08-05 | AU62: - | AV62: 2013-08-11 | AW62: 32
A63: 15 | B63: 2013-08-12 | C63: - | D63: 2013-08-18 | E63: =Overview!F32 -> 33 | F63: ='33'!M$27 -> 0 | G63: ='33'!N$27 -> 0 | H63: ='33'!O$27 -> 0 | I63: ='33'!P$27 -> 0 | J63: ='33'!Q$27 -> 0 | K63: ='33'!R$27 -> 0 | L63: ='33'!S$27 -> 0 | M63: ='33'!T$27 -> 0 | N63: ='33'!U$27 -> 0 | O63: ='33'!V$27 -> 0 | P63: ='33'!W$27 -> 0 | Q63: ='33'!X$27 -> 0 | R63: ='33'!Y$27 -> 0 | S63: ='33'!Z$27 -> 0 | T63: ='33'!AA$27 -> 0 | U63: ='33'!AB$27 -> 0 | V63: ='33'!AC$27 -> 0 | W63: ='33'!AD$27 -> 0 | AA63: ='33'!M$28 -> 0 | AB63: ='33'!N$28 -> 0 | AC63: ='33'!O$28 -> 0 | AD63: ='33'!P$28 -> 0 | AE63: ='33'!Q$28 -> 0 | AF63: ='33'!R$28 -> 0 | AG63: ='33'!S$28 -> 0 | AH63: ='33'!T$28 -> 0 | AI63: ='33'!U$28 -> 0 | AJ63: ='33'!V$28 -> 0 | AK63: ='33'!W$28 -> 0 | AL63: ='33'!X$28 -> 0 | AM63: ='33'!Y$28 -> 0 | AN63: ='33'!Z$28 -> 0 | AO63: ='33'!AA$28 -> 0 | AP63: ='33'!AB$28 -> 0 | AQ63: ='33'!AC$28 -> 0 | AR63: ='33'!AD$28 -> 0 | AS63: 15 | AT63: 2013-08-12 | AU63: - | AV63: 2013-08-18 | AW63: 33
A64: 16 | B64: 2013-08-19 | C64: - | D64: 2013-08-25 | E64: =Overview!F33 -> 34 | F64: ='34'!M$27 -> 0 | G64: ='34'!N$27 -> 0 | H64: ='34'!O$27 -> 0 | I64: ='34'!P$27 -> 0 | J64: ='34'!Q$27 -> 0 | K64: ='34'!R$27 -> 0 | L64: ='34'!S$27 -> 0 | M64: ='34'!T$27 -> 0 | N64: ='34'!U$27 -> 0 | O64: ='34'!V$27 -> 0 | P64: ='34'!W$27 -> 0 | Q64: ='34'!X$27 -> 0 | R64: ='34'!Y$27 -> 0 | S64: ='34'!Z$27 -> 0 | T64: ='34'!AA$27 -> 0 | U64: ='34'!AB$27 -> 0 | V64: ='34'!AC$27 -> 0 | W64: ='34'!AD$27 -> 0 | AA64: ='34'!M$28 -> 0 | AB64: ='34'!N$28 -> 0 | AC64: ='34'!O$28 -> 0 | AD64: ='34'!P$28 -> 0 | AE64: ='34'!Q$28 -> 0 | AF64: ='34'!R$28 -> 0 | AG64: ='34'!S$28 -> 0 | AH64: ='34'!T$28 -> 0 | AI64: ='34'!U$28 -> 0 | AJ64: ='34'!V$28 -> 0 | AK64: ='34'!W$28 -> 0 | AL64: ='34'!X$28 -> 0 | AM64: ='34'!Y$28 -> 0 | AN64: ='34'!Z$28 -> 0 | AO64: ='34'!AA$28 -> 0 | AP64: ='34'!AB$28 -> 0 | AQ64: ='34'!AC$28 -> 0 | AR64: ='34'!AD$28 -> 0 | AS64: 16 | AT64: 2013-08-19 | AU64: - | AV64: 2013-08-25 | AW64: 34
A65: 17 | B65: 2013-08-26 | C65: - | D65: 2013-09-01 | E65: =Overview!F34 -> 35 | F65: ='35'!M$27 -> 0 | G65: ='35'!N$27 -> 0 | H65: ='35'!O$27 -> 0 | I65: ='35'!P$27 -> 0 | J65: ='35'!Q$27 -> 0 | K65: ='35'!R$27 -> 0 | L65: ='35'!S$27 -> 0 | M65: ='35'!T$27 -> 0 | N65: ='35'!U$27 -> 0 | O65: ='35'!V$27 -> 0 | P65: ='35'!W$27 -> 0 | Q65: ='35'!X$27 -> 0 | R65: ='35'!Y$27 -> 0 | S65: ='35'!Z$27 -> 0 | T65: ='35'!AA$27 -> 0 | U65: ='35'!AB$27 -> 0 | V65: ='35'!AC$27 -> 0 | W65: ='35'!AD$27 -> 0 | AA65: ='35'!M$28 -> 0 | AB65: ='35'!N$28 -> 0 | AC65: ='35'!O$28 -> 0 | AD65: ='35'!P$28 -> 0 | AE65: ='35'!Q$28 -> 0 | AF65: ='35'!R$28 -> 0 | AG65: ='35'!S$28 -> 0 | AH65: ='35'!T$28 -> 0 | AI65: ='35'!U$28 -> 0 | AJ65: ='35'!V$28 -> 0 | AK65: ='35'!W$28 -> 0 | AL65: ='35'!X$28 -> 0 | AM65: ='35'!Y$28 -> 0 | AN65: ='35'!Z$28 -> 0 | AO65: ='35'!AA$28 -> 0 | AP65: ='35'!AB$28 -> 0 | AQ65: ='35'!AC$28 -> 0 | AR65: ='35'!AD$28 -> 0 | AS65: 17 | AT65: 2013-08-26 | AU65: - | AV65: 2013-09-01 | AW65: 35
A66: 18 | B66: 2013-09-02 | C66: - | D66: 2013-09-08 | E66: =Overview!F35 -> 36 | F66: ='36'!M$27 -> 0 | G66: ='36'!N$27 -> 0 | H66: ='36'!O$27 -> 0 | I66: ='36'!P$27 -> 0 | J66: ='36'!Q$27 -> 0 | K66: ='36'!R$27 -> 0 | L66: ='36'!S$27 -> 0 | M66: ='36'!T$27 -> 0 | N66: ='36'!U$27 -> 0 | O66: ='36'!V$27 -> 0 | P66: ='36'!W$27 -> 0 | Q66: ='36'!X$27 -> 0 | R66: ='36'!Y$27 -> 0 | S66: ='36'!Z$27 -> 0 | T66: ='36'!AA$27 -> 0 | U66: ='36'!AB$27 -> 0 | V66: ='36'!AC$27 -> 0 | W66: ='36'!AD$27 -> 0 | AA66: ='36'!M$28 -> 0 | AB66: ='36'!N$28 -> 0 | AC66: ='36'!O$28 -> 0 | AD66: ='36'!P$28 -> 0 | AE66: ='36'!Q$28 -> 0 | AF66: ='36'!R$28 -> 0 | AG66: ='36'!S$28 -> 0 | AH66: ='36'!T$28 -> 0 | AI66: ='36'!U$28 -> 0 | AJ66: ='36'!V$28 -> 0 | AK66: ='36'!W$28 -> 0 | AL66: ='36'!X$28 -> 0 | AM66: ='36'!Y$28 -> 0 | AN66: ='36'!Z$28 -> 0 | AO66: ='36'!AA$28 -> 0 | AP66: ='36'!AB$28 -> 0 | AQ66: ='36'!AC$28 -> 0 | AR66: ='36'!AD$28 -> 0 | AS66: 18 | AT66: 2013-09-02 | AU66: - | AV66: 2013-09-08 | AW66: 36
A67: 19 | B67: 2013-09-09 | C67: - | D67: 2013-09-15 | E67: =Overview!F36 -> 37 | F67: ='37'!M$27 -> 0 | G67: ='37'!N$27 -> 0 | H67: ='37'!O$27 -> 0 | I67: ='37'!P$27 -> 0 | J67: ='37'!Q$27 -> 0 | K67: ='37'!R$27 -> 0 | L67: ='37'!S$27 -> 0 | M67: ='37'!T$27 -> 0 | N67: ='37'!U$27 -> 0 | O67: ='37'!V$27 -> 0 | P67: ='37'!W$27 -> 0 | Q67: ='37'!X$27 -> 0 | R67: ='37'!Y$27 -> 0 | S67: ='37'!Z$27 -> 0 | T67: ='37'!AA$27 -> 0 | U67: ='37'!AB$27 -> 0 | V67: ='37'!AC$27 -> 0 | W67: ='37'!AD$27 -> 0 | AA67: ='37'!M$28 -> 0 | AB67: ='37'!N$28 -> 0 | AC67: ='37'!O$28 -> 0 | AD67: ='37'!P$28 -> 0 | AE67: ='37'!Q$28 -> 0 | AF67: ='37'!R$28 -> 0 | AG67: ='37'!S$28 -> 0 | AH67: ='37'!T$28 -> 0 | AI67: ='37'!U$28 -> 0 | AJ67: ='37'!V$28 -> 0 | AK67: ='37'!W$28 -> 0 | AL67: ='37'!X$28 -> 0 | AM67: ='37'!Y$28 -> 0 | AN67: ='37'!Z$28 -> 0 | AO67: ='37'!AA$28 -> 0 | AP67: ='37'!AB$28 -> 0 | AQ67: ='37'!AC$28 -> 0 | AR67: ='37'!AD$28 -> 0 | AS67: 19 | AT67: 2013-09-09 | AU67: - | AV67: 2013-09-15 | AW67: 37
A68: 20 | B68: 2013-09-16 | C68: - | D68: 2013-09-22 | E68: =Overview!F37 -> 38 | F68: ='38'!M$27 -> 0 | G68: ='38'!N$27 -> 0 | H68: ='38'!O$27 -> 0 | I68: ='38'!P$27 -> 0 | J68: ='38'!Q$27 -> 0 | K68: ='38'!R$27 -> 0 | L68: ='38'!S$27 -> 0 | M68: ='38'!T$27 -> 0 | N68: ='38'!U$27 -> 0 | O68: ='38'!V$27 -> 0 | P68: ='38'!W$27 -> 0 | Q68: ='38'!X$27 -> 0 | R68: ='38'!Y$27 -> 0 | S68: ='38'!Z$27 -> 0 | T68: ='38'!AA$27 -> 0 | U68: ='38'!AB$27 -> 0 | V68: ='38'!AC$27 -> 0 | W68: ='38'!AD$27 -> 0 | AA68: ='38'!M$28 -> 0 | AB68: ='38'!N$28 -> 0 | AC68: ='38'!O$28 -> 0 | AD68: ='38'!P$28 -> 0 | AE68: ='38'!Q$28 -> 0 | AF68: ='38'!R$28 -> 0 | AG68: ='38'!S$28 -> 0 | AH68: ='38'!T$28 -> 0 | AI68: ='38'!U$28 -> 0 | AJ68: ='38'!V$28 -> 0 | AK68: ='38'!W$28 -> 0 | AL68: ='38'!X$28 -> 0 | AM68: ='38'!Y$28 -> 0 | AN68: ='38'!Z$28 -> 0 | AO68: ='38'!AA$28 -> 0 | AP68: ='38'!AB$28 -> 0 | AQ68: ='38'!AC$28 -> 0 | AR68: ='38'!AD$28 -> 0 | AS68: 20 | AT68: 2013-09-16 | AU68: - | AV68: 2013-09-22 | AW68: 38
A69: 21 | B69: 2013-09-23 | C69: - | D69: 2013-09-29 | E69: =Overview!F38 -> 39 | F69: ='39'!M$27 -> 0 | G69: ='39'!N$27 -> 0 | H69: ='39'!O$27 -> 0 | I69: ='39'!P$27 -> 0 | J69: ='39'!Q$27 -> 0 | K69: ='39'!R$27 -> 0 | L69: ='39'!S$27 -> 0 | M69: ='39'!T$27 -> 0 | N69: ='39'!U$27 -> 0 | O69: ='39'!V$27 -> 0 | P69: ='39'!W$27 -> 0 | Q69: ='39'!X$27 -> 0 | R69: ='39'!Y$27 -> 0 | S69: ='39'!Z$27 -> 0 | T69: ='39'!AA$27 -> 0 | U69: ='39'!AB$27 -> 0 | V69: ='39'!AC$27 -> 0 | W69: ='39'!AD$27 -> 0 | AA69: ='39'!M$28 -> 0 | AB69: ='39'!N$28 -> 0 | AC69: ='39'!O$28 -> 0 | AD69: ='39'!P$28 -> 0 | AE69: ='39'!Q$28 -> 0 | AF69: ='39'!R$28 -> 0 | AG69: ='39'!S$28 -> 0 | AH69: ='39'!T$28 -> 0 | AI69: ='39'!U$28 -> 0 | AJ69: ='39'!V$28 -> 0 | AK69: ='39'!W$28 -> 0 | AL69: ='39'!X$28 -> 0 | AM69: ='39'!Y$28 -> 0 | AN69: ='39'!Z$28 -> 0 | AO69: ='39'!AA$28 -> 0 | AP69: ='39'!AB$28 -> 0 | AQ69: ='39'!AC$28 -> 0 | AR69: ='39'!AD$28 -> 0 | AS69: 21 | AT69: 2013-09-23 | AU69: - | AV69: 2013-09-29 | AW69: 39
A70: 22 | B70: 2013-09-30 | C70: - | D70: 2013-10-06 | E70: =Overview!F39 -> 40 | F70: ='40'!M$27 -> 0 | G70: ='40'!N$27 -> 0 | H70: ='40'!O$27 -> 0 | I70: ='40'!P$27 -> 0 | J70: ='40'!Q$27 -> 0 | K70: ='40'!R$27 -> 0 | L70: ='40'!S$27 -> 0 | M70: ='40'!T$27 -> 0 | N70: ='40'!U$27 -> 0 | O70: ='40'!V$27 -> 0 | P70: ='40'!W$27 -> 0 | Q70: ='40'!X$27 -> 0 | R70: ='40'!Y$27 -> 0 | S70: ='40'!Z$27 -> 0 | T70: ='40'!AA$27 -> 0 | U70: ='40'!AB$27 -> 0 | V70: ='40'!AC$27 -> 0 | W70: ='40'!AD$27 -> 0 | AA70: ='40'!M$28 -> 0 | AB70: ='40'!N$28 -> 0 | AC70: ='40'!O$28 -> 0 | AD70: ='40'!P$28 -> 0 | AE70: ='40'!Q$28 -> 0 | AF70: ='40'!R$28 -> 0 | AG70: ='40'!S$28 -> 0 | AH70: ='40'!T$28 -> 0 | AI70: ='40'!U$28 -> 0 | AJ70: ='40'!V$28 -> 0 | AK70: ='40'!W$28 -> 0 | AL70: ='40'!X$28 -> 0 | AM70: ='40'!Y$28 -> 0 | AN70: ='40'!Z$28 -> 0 | AO70: ='40'!AA$28 -> 0 | AP70: ='40'!AB$28 -> 0 | AQ70: ='40'!AC$28 -> 0 | AR70: ='40'!AD$28 -> 0 | AS70: 22 | AT70: 2013-09-30 | AU70: - | AV70: 2013-10-06 | AW70: 40
A71: 23 | B71: 2013-10-07 | C71: - | D71: 2013-10-13 | E71: =Overview!F40 -> 41 | F71: ='41'!M$27 -> 0 | G71: ='41'!N$27 -> 0 | H71: ='41'!O$27 -> 0 | I71: ='41'!P$27 -> 0 | J71: ='41'!Q$27 -> 0 | K71: ='41'!R$27 -> 0 | L71: ='41'!S$27 -> 0 | M71: ='41'!T$27 -> 0 | N71: ='41'!U$27 -> 0 | O71: ='41'!V$27 -> 0 | P71: ='41'!W$27 -> 0 | Q71: ='41'!X$27 -> 0 | R71: ='41'!Y$27 -> 0 | S71: ='41'!Z$27 -> 0 | T71: ='41'!AA$27 -> 0 | U71: ='41'!AB$27 -> 0 | V71: ='41'!AC$27 -> 0 | W71: ='41'!AD$27 -> 0 | AA71: ='41'!M$28 -> 0 | AB71: ='41'!N$28 -> 0 | AC71: ='41'!O$28 -> 0 | AD71: ='41'!P$28 -> 0 | AE71: ='41'!Q$28 -> 0 | AF71: ='41'!R$28 -> 0 | AG71: ='41'!S$28 -> 0 | AH71: ='41'!T$28 -> 0 | AI71: ='41'!U$28 -> 0 | AJ71: ='41'!V$28 -> 0 | AK71: ='41'!W$28 -> 0 | AL71: ='41'!X$28 -> 0 | AM71: ='41'!Y$28 -> 0 | AN71: ='41'!Z$28 -> 0 | AO71: ='41'!AA$28 -> 0 | AP71: ='41'!AB$28 -> 0 | AQ71: ='41'!AC$28 -> 0 | AR71: ='41'!AD$28 -> 0 | AS71: 23 | AT71: 2013-10-07 | AU71: - | AV71: 2013-10-13 | AW71: 41
A72: 24 | B72: 2013-10-14 | C72: - | D72: 2013-10-20 | E72: =Overview!F41 -> 42 | F72: ='42'!M$27 -> 0 | G72: ='42'!N$27 -> 0 | H72: ='42'!O$27 -> 0 | I72: ='42'!P$27 -> 0 | J72: ='42'!Q$27 -> 0 | K72: ='42'!R$27 -> 0 | L72: ='42'!S$27 -> 0 | M72: ='42'!T$27 -> 0 | N72: ='42'!U$27 -> 0 | O72: ='42'!V$27 -> 0 | P72: ='42'!W$27 -> 0 | Q72: ='42'!X$27 -> 0 | R72: ='42'!Y$27 -> 0 | S72: ='42'!Z$27 -> 0 | T72: ='42'!AA$27 -> 0 | U72: ='42'!AB$27 -> 0 | V72: ='42'!AC$27 -> 0 | W72: ='42'!AD$27 -> 0 | AA72: ='42'!M$28 -> 0 | AB72: ='42'!N$28 -> 0 | AC72: ='42'!O$28 -> 0 | AD72: ='42'!P$28 -> 0 | AE72: ='42'!Q$28 -> 0 | AF72: ='42'!R$28 -> 0 | AG72: ='42'!S$28 -> 0 | AH72: ='42'!T$28 -> 0 | AI72: ='42'!U$28 -> 0 | AJ72: ='42'!V$28 -> 0 | AK72: ='42'!W$28 -> 0 | AL72: ='42'!X$28 -> 0 | AM72: ='42'!Y$28 -> 0 | AN72: ='42'!Z$28 -> 0 | AO72: ='42'!AA$28 -> 0 | AP72: ='42'!AB$28 -> 0 | AQ72: ='42'!AC$28 -> 0 | AR72: ='42'!AD$28 -> 0 | AS72: 24 | AT72: 2013-10-14 | AU72: - | AV72: 2013-10-20 | AW72: 42
A73: 25 | B73: 2013-10-21 | C73: - | D73: 2013-10-27 | E73: =Overview!F42 -> 43 | F73: ='43'!M$27 -> 0 | G73: ='43'!N$27 -> 0 | H73: ='43'!O$27 -> 0 | I73: ='43'!P$27 -> 0 | J73: ='43'!Q$27 -> 0 | K73: ='43'!R$27 -> 0 | L73: ='43'!S$27 -> 0 | M73: ='43'!T$27 -> 0 | N73: ='43'!U$27 -> 0 | O73: ='43'!V$27 -> 0 | P73: ='43'!W$27 -> 0 | Q73: ='43'!X$27 -> 0 | R73: ='43'!Y$27 -> 0 | S73: ='43'!Z$27 -> 0 | T73: ='43'!AA$27 -> 0 | U73: ='43'!AB$27 -> 0 | V73: ='43'!AC$27 -> 0 | W73: ='43'!AD$27 -> 0 | AA73: ='43'!M$28 -> 0 | AB73: ='43'!N$28 -> 0 | AC73: ='43'!O$28 -> 0 | AD73: ='43'!P$28 -> 0 | AE73: ='43'!Q$28 -> 0 | AF73: ='43'!R$28 -> 0 | AG73: ='43'!S$28 -> 0 | AH73: ='43'!T$28 -> 0 | AI73: ='43'!U$28 -> 0 | AJ73: ='43'!V$28 -> 0 | AK73: ='43'!W$28 -> 0 | AL73: ='43'!X$28 -> 0 | AM73: ='43'!Y$28 -> 0 | AN73: ='43'!Z$28 -> 0 | AO73: ='43'!AA$28 -> 0 | AP73: ='43'!AB$28 -> 0 | AQ73: ='43'!AC$28 -> 0 | AR73: ='43'!AD$28 -> 0 | AS73: 25 | AT73: 2013-10-21 | AU73: - | AV73: 2013-10-27 | AW73: 43
A74: 26 | B74: 2013-10-28 | C74: - | D74: 2013-11-03 | E74: =Overview!F43 -> 44 | F74: ='44'!M$27 -> 0 | G74: ='44'!N$27 -> 0 | H74: ='44'!O$27 -> 0 | I74: ='44'!P$27 -> 0 | J74: ='44'!Q$27 -> 0 | K74: ='44'!R$27 -> 0 | L74: ='44'!S$27 -> 0 | M74: ='44'!T$27 -> 0 | N74: ='44'!U$27 -> 0 | O74: ='44'!V$27 -> 0 | P74: ='44'!W$27 -> 0 | Q74: ='44'!X$27 -> 0 | R74: ='44'!Y$27 -> 0 | S74: ='44'!Z$27 -> 0 | T74: ='44'!AA$27 -> 0 | U74: ='44'!AB$27 -> 0 | V74: ='44'!AC$27 -> 0 | W74: ='44'!AD$27 -> 0 | AA74: ='44'!M$28 -> 0 | AB74: ='44'!N$28 -> 0 | AC74: ='44'!O$28 -> 0 | AD74: ='44'!P$28 -> 0 | AE74: ='44'!Q$28 -> 0 | AF74: ='44'!R$28 -> 0 | AG74: ='44'!S$28 -> 0 | AH74: ='44'!T$28 -> 0 | AI74: ='44'!U$28 -> 0 | AJ74: ='44'!V$28 -> 0 | AK74: ='44'!W$28 -> 0 | AL74: ='44'!X$28 -> 0 | AM74: ='44'!Y$28 -> 0 | AN74: ='44'!Z$28 -> 0 | AO74: ='44'!AA$28 -> 0 | AP74: ='44'!AB$28 -> 0 | AQ74: ='44'!AC$28 -> 0 | AR74: ='44'!AD$28 -> 0 | AS74: 26 | AT74: 2013-10-28 | AU74: - | AV74: 2013-11-03 | AW74: 44
A75: 27 | B75: 2013-11-04 | C75: - | D75: 2013-11-10 | E75: =Overview!F44 -> 45 | F75: ='45'!M$27 -> 0 | G75: ='45'!N$27 -> 0 | H75: ='45'!O$27 -> 0 | I75: ='45'!P$27 -> 0 | J75: ='45'!Q$27 -> 0 | K75: ='45'!R$27 -> 0 | L75: ='45'!S$27 -> 0 | M75: ='45'!T$27 -> 0 | N75: ='45'!U$27 -> 0 | O75: ='45'!V$27 -> 0 | P75: ='45'!W$27 -> 0 | Q75: ='45'!X$27 -> 0 | R75: ='45'!Y$27 -> 0 | S75: ='45'!Z$27 -> 0 | T75: ='45'!AA$27 -> 0 | U75: ='45'!AB$27 -> 0 | V75: ='45'!AC$27 -> 0 | W75: ='45'!AD$27 -> 0 | AA75: ='45'!M$28 -> 0 | AB75: ='45'!N$28 -> 0 | AC75: ='45'!O$28 -> 0 | AD75: ='45'!P$28 -> 0 | AE75: ='45'!Q$28 -> 0 | AF75: ='45'!R$28 -> 0 | AG75: ='45'!S$28 -> 0 | AH75: ='45'!T$28 -> 0 | AI75: ='45'!U$28 -> 0 | AJ75: ='45'!V$28 -> 0 | AK75: ='45'!W$28 -> 0 | AL75: ='45'!X$28 -> 0 | AM75: ='45'!Y$28 -> 0 | AN75: ='45'!Z$28 -> 0 | AO75: ='45'!AA$28 -> 0 | AP75: ='45'!AB$28 -> 0 | AQ75: ='45'!AC$28 -> 0 | AR75: ='45'!AD$28 -> 0 | AS75: 27 | AT75: 2013-11-04 | AU75: - | AV75: 2013-11-10 | AW75: 45
A76: 28 | B76: 2013-11-11 | C76: - | D76: 2013-11-17 | E76: =Overview!F45 -> 46 | F76: ='46'!M$27 -> 0 | G76: ='46'!N$27 -> 0 | H76: ='46'!O$27 -> 0 | I76: ='46'!P$27 -> 0 | J76: ='46'!Q$27 -> 0 | K76: ='46'!R$27 -> 0 | L76: ='46'!S$27 -> 0 | M76: ='46'!T$27 -> 0 | N76: ='46'!U$27 -> 0 | O76: ='46'!V$27 -> 0 | P76: ='46'!W$27 -> 0 | Q76: ='46'!X$27 -> 0 | R76: ='46'!Y$27 -> 0 | S76: ='46'!Z$27 -> 0 | T76: ='46'!AA$27 -> 0 | U76: ='46'!AB$27 -> 0 | V76: ='46'!AC$27 -> 0 | W76: ='46'!AD$27 -> 0 | AA76: ='46'!M$28 -> 0 | AB76: ='46'!N$28 -> 0 | AC76: ='46'!O$28 -> 0 | AD76: ='46'!P$28 -> 0 | AE76: ='46'!Q$28 -> 0 | AF76: ='46'!R$28 -> 0 | AG76: ='46'!S$28 -> 0 | AH76: ='46'!T$28 -> 0 | AI76: ='46'!U$28 -> 0 | AJ76: ='46'!V$28 -> 0 | AK76: ='46'!W$28 -> 0 | AL76: ='46'!X$28 -> 0 | AM76: ='46'!Y$28 -> 0 | AN76: ='46'!Z$28 -> 0 | AO76: ='46'!AA$28 -> 0 | AP76: ='46'!AB$28 -> 0 | AQ76: ='46'!AC$28 -> 0 | AR76: ='46'!AD$28 -> 0 | AS76: 28 | AT76: 2013-11-11 | AU76: - | AV76: 2013-11-17 | AW76: 46
A77: 29 | B77: 2013-11-18 | C77: - | D77: 2013-11-24 | E77: =Overview!F46 -> 47 | F77: ='47'!M$27 -> 0 | G77: ='47'!N$27 -> 0 | H77: ='47'!O$27 -> 0 | I77: ='47'!P$27 -> 0 | J77: ='47'!Q$27 -> 0 | K77: ='47'!R$27 -> 0 | L77: ='47'!S$27 -> 0 | M77: ='47'!T$27 -> 0 | N77: ='47'!U$27 -> 0 | O77: ='47'!V$27 -> 0 | P77: ='47'!W$27 -> 0 | Q77: ='47'!X$27 -> 0 | R77: ='47'!Y$27 -> 0 | S77: ='47'!Z$27 -> 0 | T77: ='47'!AA$27 -> 0 | U77: ='47'!AB$27 -> 0 | V77: ='47'!AC$27 -> 0 | W77: ='47'!AD$27 -> 0 | AA77: ='47'!M$28 -> 0 | AB77: ='47'!N$28 -> 0 | AC77: ='47'!O$28 -> 0 | AD77: ='47'!P$28 -> 0 | AE77: ='47'!Q$28 -> 0 | AF77: ='47'!R$28 -> 0 | AG77: ='47'!S$28 -> 0 | AH77: ='47'!T$28 -> 0 | AI77: ='47'!U$28 -> 0 | AJ77: ='47'!V$28 -> 0 | AK77: ='47'!W$28 -> 0 | AL77: ='47'!X$28 -> 0 | AM77: ='47'!Y$28 -> 0 | AN77: ='47'!Z$28 -> 0 | AO77: ='47'!AA$28 -> 0 | AP77: ='47'!AB$28 -> 0 | AQ77: ='47'!AC$28 -> 0 | AR77: ='47'!AD$28 -> 0 | AS77: 29 | AT77: 2013-11-18 | AU77: - | AV77: 2013-11-24 | AW77: 47
A78: 30 | B78: 2013-11-25 | C78: - | D78: 2013-12-01 | E78: =Overview!F47 -> 48 | F78: ='48'!M$27 -> 0 | G78: ='48'!N$27 -> 0 | H78: ='48'!O$27 -> 0 | I78: ='48'!P$27 -> 0 | J78: ='48'!Q$27 -> 0 | K78: ='48'!R$27 -> 0 | L78: ='48'!S$27 -> 0 | M78: ='48'!T$27 -> 0 | N78: ='48'!U$27 -> 0 | O78: ='48'!V$27 -> 0 | P78: ='48'!W$27 -> 0 | Q78: ='48'!X$27 -> 0 | R78: ='48'!Y$27 -> 0 | S78: ='48'!Z$27 -> 0 | T78: ='48'!AA$27 -> 0 | U78: ='48'!AB$27 -> 0 | V78: ='48'!AC$27 -> 0 | W78: ='48'!AD$27 -> 0 | AA78: ='48'!M$28 -> 0 | AB78: ='48'!N$28 -> 0 | AC78: ='48'!O$28 -> 0 | AD78: ='48'!P$28 -> 0 | AE78: ='48'!Q$28 -> 0 | AF78: ='48'!R$28 -> 0 | AG78: ='48'!S$28 -> 0 | AH78: ='48'!T$28 -> 0 | AI78: ='48'!U$28 -> 0 | AJ78: ='48'!V$28 -> 0 | AK78: ='48'!W$28 -> 0 | AL78: ='48'!X$28 -> 0 | AM78: ='48'!Y$28 -> 0 | AN78: ='48'!Z$28 -> 0 | AO78: ='48'!AA$28 -> 0 | AP78: ='48'!AB$28 -> 0 | AQ78: ='48'!AC$28 -> 0 | AR78: ='48'!AD$28 -> 0 | AS78: 30 | AT78: 2013-11-25 | AU78: - | AV78: 2013-12-01 | AW78: 48
A79: 31 | B79: 2013-12-02 | C79: - | D79: 2013-12-08 | E79: =Overview!F48 -> 49 | F79: ='49'!M$27 -> 0 | G79: ='49'!N$27 -> 0 | H79: ='49'!O$27 -> 0 | I79: ='49'!P$27 -> 0 | J79: ='49'!Q$27 -> 0 | K79: ='49'!R$27 -> 0 | L79: ='49'!S$27 -> 0 | M79: ='49'!T$27 -> 0 | N79: ='49'!U$27 -> 0 | O79: ='49'!V$27 -> 0 | P79: ='49'!W$27 -> 0 | Q79: ='49'!X$27 -> 0 | R79: ='49'!Y$27 -> 0 | S79: ='49'!Z$27 -> 0 | T79: ='49'!AA$27 -> 0 | U79: ='49'!AB$27 -> 0 | V79: ='49'!AC$27 -> 0 | W79: ='49'!AD$27 -> 0 | AA79: ='49'!M$28 -> 0 | AB79: ='49'!N$28 -> 0 | AC79: ='49'!O$28 -> 0 | AD79: ='49'!P$28 -> 0 | AE79: ='49'!Q$28 -> 0 | AF79: ='49'!R$28 -> 0 | AG79: ='49'!S$28 -> 0 | AH79: ='49'!T$28 -> 0 | AI79: ='49'!U$28 -> 0 | AJ79: ='49'!V$28 -> 0 | AK79: ='49'!W$28 -> 0 | AL79: ='49'!X$28 -> 0 | AM79: ='49'!Y$28 -> 0 | AN79: ='49'!Z$28 -> 0 | AO79: ='49'!AA$28 -> 0 | AP79: ='49'!AB$28 -> 0 | AQ79: ='49'!AC$28 -> 0 | AR79: ='49'!AD$28 -> 0 | AS79: 31 | AT79: 2013-12-02 | AU79: - | AV79: 2013-12-08 | AW79: 49
A80: 32 | B80: 2013-12-09 | C80: - | D80: 2013-12-15 | E80: =Overview!F49 -> 50 | F80: ='50'!M$27 -> 0 | G80: ='50'!N$27 -> 0 | H80: ='50'!O$27 -> 0 | I80: ='50'!P$27 -> 0 | J80: ='50'!Q$27 -> 0 | K80: ='50'!R$27 -> 0 | L80: ='50'!S$27 -> 0 | M80: ='50'!T$27 -> 0 | N80: ='50'!U$27 -> 0 | O80: ='50'!V$27 -> 0 | P80: ='50'!W$27 -> 0 | Q80: ='50'!X$27 -> 0 | R80: ='50'!Y$27 -> 0 | S80: ='50'!Z$27 -> 0 | T80: ='50'!AA$27 -> 0 | U80: ='50'!AB$27 -> 0 | V80: ='50'!AC$27 -> 0 | W80: ='50'!AD$27 -> 0 | AA80: ='50'!M$28 -> 0 | AB80: ='50'!N$28 -> 0 | AC80: ='50'!O$28 -> 0 | AD80: ='50'!P$28 -> 0 | AE80: ='50'!Q$28 -> 0 | AF80: ='50'!R$28 -> 0 | AG80: ='50'!S$28 -> 0 | AH80: ='50'!T$28 -> 0 | AI80: ='50'!U$28 -> 0 | AJ80: ='50'!V$28 -> 0 | AK80: ='50'!W$28 -> 0 | AL80: ='50'!X$28 -> 0 | AM80: ='50'!Y$28 -> 0 | AN80: ='50'!Z$28 -> 0 | AO80: ='50'!AA$28 -> 0 | AP80: ='50'!AB$28 -> 0 | AQ80: ='50'!AC$28 -> 0 | AR80: ='50'!AD$28 -> 0 | AS80: 32 | AT80: =B80 -> 2013-12-09 | AU80: =C80 -> - | AV80: =D80 -> 2013-12-15 | AW80: =E80 -> 50
A81: 33 | B81: 2013-12-16 | C81: - | D81: 2013-12-22 | E81: =Overview!F50 -> 51 | F81: ='51'!M$27 -> 0 | G81: ='51'!N$27 -> 0 | H81: ='51'!O$27 -> 0 | I81: ='51'!P$27 -> 0 | J81: ='51'!Q$27 -> 0 | K81: ='51'!R$27 -> 0 | L81: ='51'!S$27 -> 0 | M81: ='51'!T$27 -> 0 | N81: ='51'!U$27 -> 0 | O81: ='51'!V$27 -> 0 | P81: ='51'!W$27 -> 0 | Q81: ='51'!X$27 -> 0 | R81: ='51'!Y$27 -> 0 | S81: ='51'!Z$27 -> 0 | T81: ='51'!AA$27 -> 0 | U81: ='51'!AB$27 -> 0 | V81: ='51'!AC$27 -> 0 | W81: ='51'!AD$27 -> 0 | AA81: ='51'!M$28 -> 0 | AB81: ='51'!N$28 -> 0 | AC81: ='51'!O$28 -> 0 | AD81: ='51'!P$28 -> 0 | AE81: ='51'!Q$28 -> 0 | AF81: ='51'!R$28 -> 0 | AG81: ='51'!S$28 -> 0 | AH81: ='51'!T$28 -> 0 | AI81: ='51'!U$28 -> 0 | AJ81: ='51'!V$28 -> 0 | AK81: ='51'!W$28 -> 0 | AL81: ='51'!X$28 -> 0 | AM81: ='51'!Y$28 -> 0 | AN81: ='51'!Z$28 -> 0 | AO81: ='51'!AA$28 -> 0 | AP81: ='51'!AB$28 -> 0 | AQ81: ='51'!AC$28 -> 0 | AR81: ='51'!AD$28 -> 0 | AS81: 33 | AT81: 2013-12-16 | AU81: - | AV81: 2013-12-22 | AW81: 51
A82: 34 | B82: 2013-12-23 | C82: - | D82: 2013-12-29 | E82: =Overview!F51 -> 52 | F82: ='52'!M$27 -> 0 | G82: ='52'!N$27 -> 0 | H82: ='52'!O$27 -> 0 | I82: ='52'!P$27 -> 0 | J82: ='52'!Q$27 -> 0 | K82: ='52'!R$27 -> 0 | L82: ='52'!S$27 -> 0 | M82: ='52'!T$27 -> 0 | N82: ='52'!U$27 -> 0 | O82: ='52'!V$27 -> 0 | P82: ='52'!W$27 -> 0 | Q82: ='52'!X$27 -> 0 | R82: ='52'!Y$27 -> 0 | S82: ='52'!Z$27 -> 0 | T82: ='52'!AA$27 -> 0 | U82: ='52'!AB$27 -> 0 | V82: ='52'!AC$27 -> 0 | W82: ='52'!AD$27 -> 0 | AA82: ='52'!M$28 -> 0 | AB82: ='52'!N$28 -> 0 | AC82: ='52'!O$28 -> 0 | AD82: ='52'!P$28 -> 0 | AE82: ='52'!Q$28 -> 0 | AF82: ='52'!R$28 -> 0 | AG82: ='52'!S$28 -> 0 | AH82: ='52'!T$28 -> 0 | AI82: ='52'!U$28 -> 0 | AJ82: ='52'!V$28 -> 0 | AK82: ='52'!W$28 -> 0 | AL82: ='52'!X$28 -> 0 | AM82: ='52'!Y$28 -> 0 | AN82: ='52'!Z$28 -> 0 | AO82: ='52'!AA$28 -> 0 | AP82: ='52'!AB$28 -> 0 | AQ82: ='52'!AC$28 -> 0 | AR82: ='52'!AD$28 -> 0 | AS82: 34 | AT82: 2013-12-23 | AU82: - | AV82: 2013-12-29 | AW82: 52
A83: 35 | B83: 2013-12-30 | C83: - | D83: 2014-01-05 | E83: =Overview!F52 -> 1 | F83: ='1'!M$27 -> 0 | G83: ='1'!N$27 -> 0 | H83: ='1'!O$27 -> 0 | I83: ='1'!P$27 -> 0 | J83: ='1'!Q$27 -> 0 | K83: ='1'!R$27 -> 0 | L83: ='1'!S$27 -> 0 | M83: ='1'!T$27 -> 0 | N83: ='1'!U$27 -> 0 | O83: ='1'!V$27 -> 0 | P83: ='1'!W$27 -> 0 | Q83: ='1'!X$27 -> 0 | R83: ='1'!Y$27 -> 0 | S83: ='1'!Z$27 -> 0 | T83: ='1'!AA$27 -> 0 | U83: ='1'!AB$27 -> 0 | V83: ='1'!AC$27 -> 0 | W83: ='1'!AD$27 -> 0 | AA83: ='1'!M$28 -> 0 | AB83: ='1'!N$28 -> 0 | AC83: ='1'!O$28 -> 0 | AD83: ='1'!P$28 -> 0 | AE83: ='1'!Q$28 -> 0 | AF83: ='1'!R$28 -> 0 | AG83: ='1'!S$28 -> 0 | AH83: ='1'!T$28 -> 0 | AI83: ='1'!U$28 -> 0 | AJ83: ='1'!V$28 -> 0 | AK83: ='1'!W$28 -> 0 | AL83: ='1'!X$28 -> 0 | AM83: ='1'!Y$28 -> 0 | AN83: ='1'!Z$28 -> 0 | AO83: ='1'!AA$28 -> 0 | AP83: ='1'!AB$28 -> 0 | AQ83: ='1'!AC$28 -> 0 | AR83: ='1'!AD$28 -> 0 | AS83: 35 | AT83: 2013-12-30 | AU83: - | AV83: 2014-01-05 | AW83: 1
A84: 36 | B84: 2014-01-06 | C84: - | D84: 2014-01-12 | E84: =Overview!F53 -> 2 | F84: ='2'!M$27 -> 0 | G84: ='2'!N$27 -> 0 | H84: ='2'!O$27 -> 0 | I84: ='2'!P$27 -> 0 | J84: ='2'!Q$27 -> 0 | K84: ='2'!R$27 -> 0 | L84: ='2'!S$27 -> 0 | M84: ='2'!T$27 -> 0 | N84: ='2'!U$27 -> 0 | O84: ='2'!V$27 -> 0 | P84: ='2'!W$27 -> 0 | Q84: ='2'!X$27 -> 0 | R84: ='2'!Y$27 -> 0 | S84: ='2'!Z$27 -> 0 | T84: ='2'!AA$27 -> 0 | U84: ='2'!AB$27 -> 0 | V84: ='2'!AC$27 -> 0 | W84: ='2'!AD$27 -> 0 | AA84: ='2'!M$28 -> 0 | AB84: ='2'!N$28 -> 0 | AC84: ='2'!O$28 -> 0 | AD84: ='2'!P$28 -> 0 | AE84: ='2'!Q$28 -> 0 | AF84: ='2'!R$28 -> 0 | AG84: ='2'!S$28 -> 0 | AH84: ='2'!T$28 -> 0 | AI84: ='2'!U$28 -> 0 | AJ84: ='2'!V$28 -> 0 | AK84: ='2'!W$28 -> 0 | AL84: ='2'!X$28 -> 0 | AM84: ='2'!Y$28 -> 0 | AN84: ='2'!Z$28 -> 0 | AO84: ='2'!AA$28 -> 0 | AP84: ='2'!AB$28 -> 0 | AQ84: ='2'!AC$28 -> 0 | AR84: ='2'!AD$28 -> 0 | AS84: 36 | AT84: 2014-01-06 | AU84: - | AV84: 2014-01-12 | AW84: 2
A85: 37 | B85: 2014-01-13 | C85: - | D85: 2014-01-19 | E85: =Overview!F54 -> 3 | F85: ='3'!M$27 -> 0 | G85: ='3'!N$27 -> 0 | H85: ='3'!O$27 -> 0 | I85: ='3'!P$27 -> 0 | J85: ='3'!Q$27 -> 0 | K85: ='3'!R$27 -> 0 | L85: ='3'!S$27 -> 0 | M85: ='3'!T$27 -> 0 | N85: ='3'!U$27 -> 0 | O85: ='3'!V$27 -> 0 | P85: ='3'!W$27 -> 0 | Q85: ='3'!X$27 -> 0 | R85: ='3'!Y$27 -> 0 | S85: ='3'!Z$27 -> 0 | T85: ='3'!AA$27 -> 0 | U85: ='3'!AB$27 -> 0 | V85: ='3'!AC$27 -> 0 | W85: ='3'!AD$27 -> 0 | AA85: ='3'!M$28 -> 0 | AB85: ='3'!N$28 -> 0 | AC85: ='3'!O$28 -> 0 | AD85: ='3'!P$28 -> 0 | AE85: ='3'!Q$28 -> 0 | AF85: ='3'!R$28 -> 0 | AG85: ='3'!S$28 -> 0 | AH85: ='3'!T$28 -> 0 | AI85: ='3'!U$28 -> 0 | AJ85: ='3'!V$28 -> 0 | AK85: ='3'!W$28 -> 0 | AL85: ='3'!X$28 -> 0 | AM85: ='3'!Y$28 -> 0 | AN85: ='3'!Z$28 -> 0 | AO85: ='3'!AA$28 -> 0 | AP85: ='3'!AB$28 -> 0 | AQ85: ='3'!AC$28 -> 0 | AR85: ='3'!AD$28 -> 0 | AS85: 37 | AT85: 2014-01-13 | AU85: - | AV85: 2014-01-19 | AW85: 3
A86: 38 | B86: 2014-01-20 | C86: - | D86: 2014-01-26 | E86: =Overview!F55 -> 4 | F86: ='4'!M$27 -> 0 | G86: ='4'!N$27 -> 0 | H86: ='4'!O$27 -> 0 | I86: ='4'!P$27 -> 0 | J86: ='4'!Q$27 -> 0 | K86: ='4'!R$27 -> 0 | L86: ='4'!S$27 -> 0 | M86: ='4'!T$27 -> 0 | N86: ='4'!U$27 -> 0 | O86: ='4'!V$27 -> 0 | P86: ='4'!W$27 -> 0 | Q86: ='4'!X$27 -> 0 | R86: ='4'!Y$27 -> 0 | S86: ='4'!Z$27 -> 0 | T86: ='4'!AA$27 -> 0 | U86: ='4'!AB$27 -> 0 | V86: ='4'!AC$27 -> 0 | W86: ='4'!AD$27 -> 0 | AA86: ='4'!M$28 -> 0 | AB86: ='4'!N$28 -> 0 | AC86: ='4'!O$28 -> 0 | AD86: ='4'!P$28 -> 0 | AE86: ='4'!Q$28 -> 0 | AF86: ='4'!R$28 -> 0 | AG86: ='4'!S$28 -> 0 | AH86: ='4'!T$28 -> 0 | AI86: ='4'!U$28 -> 0 | AJ86: ='4'!V$28 -> 0 | AK86: ='4'!W$28 -> 0 | AL86: ='4'!X$28 -> 0 | AM86: ='4'!Y$28 -> 0 | AN86: ='4'!Z$28 -> 0 | AO86: ='4'!AA$28 -> 0 | AP86: ='4'!AB$28 -> 0 | AQ86: ='4'!AC$28 -> 0 | AR86: ='4'!AD$28 -> 0 | AS86: 38 | AT86: 2014-01-20 | AU86: - | AV86: 2014-01-26 | AW86: 4
A87: 39 | B87: 2014-01-27 | C87: - | D87: 2014-02-02 | E87: =Overview!F56 -> 5 | F87: ='5'!M$27 -> 0 | G87: ='5'!N$27 -> 0 | H87: ='5'!O$27 -> 0 | I87: ='5'!P$27 -> 0 | J87: ='5'!Q$27 -> 0 | K87: ='5'!R$27 -> 0 | L87: ='5'!S$27 -> 0 | M87: ='5'!T$27 -> 0 | N87: ='5'!U$27 -> 0 | O87: ='5'!V$27 -> 0 | P87: ='5'!W$27 -> 0 | Q87: ='5'!X$27 -> 0 | R87: ='5'!Y$27 -> 0 | S87: ='5'!Z$27 -> 0 | T87: ='5'!AA$27 -> 0 | U87: ='5'!AB$27 -> 0 | V87: ='5'!AC$27 -> 0 | W87: ='5'!AD$27 -> 0 | AA87: ='5'!M$28 -> 0 | AB87: ='5'!N$28 -> 0 | AC87: ='5'!O$28 -> 0 | AD87: ='5'!P$28 -> 0 | AE87: ='5'!Q$28 -> 0 | AF87: ='5'!R$28 -> 0 | AG87: ='5'!S$28 -> 0 | AH87: ='5'!T$28 -> 0 | AI87: ='5'!U$28 -> 0 | AJ87: ='5'!V$28 -> 0 | AK87: ='5'!W$28 -> 0 | AL87: ='5'!X$28 -> 0 | AM87: ='5'!Y$28 -> 0 | AN87: ='5'!Z$28 -> 0 | AO87: ='5'!AA$28 -> 0 | AP87: ='5'!AB$28 -> 0 | AQ87: ='5'!AC$28 -> 0 | AR87: ='5'!AD$28 -> 0 | AS87: 39 | AT87: 2014-01-27 | AU87: - | AV87: 2014-02-02 | AW87: 5
A88: 40 | B88: 2014-02-03 | C88: - | D88: 2014-02-09 | E88: =Overview!F57 -> 6 | F88: ='6'!M$27 -> 0 | G88: ='6'!N$27 -> 0 | H88: ='6'!O$27 -> 0 | I88: ='6'!P$27 -> 0 | J88: ='6'!Q$27 -> 0 | K88: ='6'!R$27 -> 0 | L88: ='6'!S$27 -> 0 | M88: ='6'!T$27 -> 0 | N88: ='6'!U$27 -> 0 | O88: ='6'!V$27 -> 0 | P88: ='6'!W$27 -> 0 | Q88: ='6'!X$27 -> 0 | R88: ='6'!Y$27 -> 0 | S88: ='6'!Z$27 -> 0 | T88: ='6'!AA$27 -> 0 | U88: ='6'!AB$27 -> 0 | V88: ='6'!AC$27 -> 0 | W88: ='6'!AD$27 -> 0 | AA88: ='6'!M$28 -> 0 | AB88: ='6'!N$28 -> 0 | AC88: ='6'!O$28 -> 0 | AD88: ='6'!P$28 -> 0 | AE88: ='6'!Q$28 -> 0 | AF88: ='6'!R$28 -> 0 | AG88: ='6'!S$28 -> 0 | AH88: ='6'!T$28 -> 0 | AI88: ='6'!U$28 -> 0 | AJ88: ='6'!V$28 -> 0 | AK88: ='6'!W$28 -> 0 | AL88: ='6'!X$28 -> 0 | AM88: ='6'!Y$28 -> 0 | AN88: ='6'!Z$28 -> 0 | AO88: ='6'!AA$28 -> 0 | AP88: ='6'!AB$28 -> 0 | AQ88: ='6'!AC$28 -> 0 | AR88: ='6'!AD$28 -> 0 | AS88: 40 | AT88: 2014-02-03 | AU88: - | AV88: 2014-02-09 | AW88: 6
A89: 41 | B89: 2014-02-10 | C89: - | D89: 2014-02-16 | E89: =Overview!F58 -> 7 | F89: ='7'!M$27 -> 0 | G89: ='7'!N$27 -> 0 | H89: ='7'!O$27 -> 0 | I89: ='7'!P$27 -> 0 | J89: ='7'!Q$27 -> 0 | K89: ='7'!R$27 -> 0 | L89: ='7'!S$27 -> 0 | M89: ='7'!T$27 -> 0 | N89: ='7'!U$27 -> 0 | O89: ='7'!V$27 -> 0 | P89: ='7'!W$27 -> 0 | Q89: ='7'!X$27 -> 0 | R89: ='7'!Y$27 -> 0 | S89: ='7'!Z$27 -> 0 | T89: ='7'!AA$27 -> 0 | U89: ='7'!AB$27 -> 0 | V89: ='7'!AC$27 -> 0 | W89: ='7'!AD$27 -> 0 | AA89: ='7'!M$28 -> 0 | AB89: ='7'!N$28 -> 0 | AC89: ='7'!O$28 -> 0 | AD89: ='7'!P$28 -> 0 | AE89: ='7'!Q$28 -> 0 | AF89: ='7'!R$28 -> 0 | AG89: ='7'!S$28 -> 0 | AH89: ='7'!T$28 -> 0 | AI89: ='7'!U$28 -> 0 | AJ89: ='7'!V$28 -> 0 | AK89: ='7'!W$28 -> 0 | AL89: ='7'!X$28 -> 0 | AM89: ='7'!Y$28 -> 0 | AN89: ='7'!Z$28 -> 0 | AO89: ='7'!AA$28 -> 0 | AP89: ='7'!AB$28 -> 0 | AQ89: ='7'!AC$28 -> 0 | AR89: ='7'!AD$28 -> 0 | AS89: 41 | AT89: 2014-02-10 | AU89: - | AV89: 2014-02-16 | AW89: 7
A90: 42 | B90: 2014-02-17 | C90: - | D90: 2014-02-23 | E90: =Overview!F59 -> 8 | F90: ='8'!M$27 -> 0 | G90: ='8'!N$27 -> 0 | H90: ='8'!O$27 -> 0 | I90: ='8'!P$27 -> 0 | J90: ='8'!Q$27 -> 0 | K90: ='8'!R$27 -> 0 | L90: ='8'!S$27 -> 0 | M90: ='8'!T$27 -> 0 | N90: ='8'!U$27 -> 0 | O90: ='8'!V$27 -> 0 | P90: ='8'!W$27 -> 0 | Q90: ='8'!X$27 -> 0 | R90: ='8'!Y$27 -> 0 | S90: ='8'!Z$27 -> 0 | T90: ='8'!AA$27 -> 0 | U90: ='8'!AB$27 -> 0 | V90: ='8'!AC$27 -> 0 | W90: ='8'!AD$27 -> 0 | AA90: ='8'!M$28 -> 0 | AB90: ='8'!N$28 -> 0 | AC90: ='8'!O$28 -> 0 | AD90: ='8'!P$28 -> 0 | AE90: ='8'!Q$28 -> 0 | AF90: ='8'!R$28 -> 0 | AG90: ='8'!S$28 -> 0 | AH90: ='8'!T$28 -> 0 | AI90: ='8'!U$28 -> 0 | AJ90: ='8'!V$28 -> 0 | AK90: ='8'!W$28 -> 0 | AL90: ='8'!X$28 -> 0 | AM90: ='8'!Y$28 -> 0 | AN90: ='8'!Z$28 -> 0 | AO90: ='8'!AA$28 -> 0 | AP90: ='8'!AB$28 -> 0 | AQ90: ='8'!AC$28 -> 0 | AR90: ='8'!AD$28 -> 0 | AS90: 42 | AT90: 2014-02-17 | AU90: - | AV90: 2014-02-23 | AW90: 8
A91: 43 | B91: 2014-02-24 | C91: - | D91: 2014-03-02 | E91: =Overview!F60 -> 9 | F91: ='9'!M$27 -> 0 | G91: ='9'!N$27 -> 0 | H91: ='9'!O$27 -> 0 | I91: ='9'!P$27 -> 0 | J91: ='9'!Q$27 -> 0 | K91: ='9'!R$27 -> 0 | L91: ='9'!S$27 -> 0 | M91: ='9'!T$27 -> 0 | N91: ='9'!U$27 -> 0 | O91: ='9'!V$27 -> 0 | P91: ='9'!W$27 -> 0 | Q91: ='9'!X$27 -> 0 | R91: ='9'!Y$27 -> 0 | S91: ='9'!Z$27 -> 0 | T91: ='9'!AA$27 -> 0 | U91: ='9'!AB$27 -> 0 | V91: ='9'!AC$27 -> 0 | W91: ='9'!AD$27 -> 0 | AA91: ='9'!M$28 -> 0 | AB91: ='9'!N$28 -> 0 | AC91: ='9'!O$28 -> 0 | AD91: ='9'!P$28 -> 0 | AE91: ='9'!Q$28 -> 0 | AF91: ='9'!R$28 -> 0 | AG91: ='9'!S$28 -> 0 | AH91: ='9'!T$28 -> 0 | AI91: ='9'!U$28 -> 0 | AJ91: ='9'!V$28 -> 0 | AK91: ='9'!W$28 -> 0 | AL91: ='9'!X$28 -> 0 | AM91: ='9'!Y$28 -> 0 | AN91: ='9'!Z$28 -> 0 | AO91: ='9'!AA$28 -> 0 | AP91: ='9'!AB$28 -> 0 | AQ91: ='9'!AC$28 -> 0 | AR91: ='9'!AD$28 -> 0 | AS91: 43 | AT91: 2014-02-24 | AU91: - | AV91: 2014-03-02 | AW91: 9
A92: 44 | B92: 2014-03-03 | C92: - | D92: 2014-03-09 | E92: =Overview!F61 -> 10 | F92: ='10'!M$27 -> 0 | G92: ='10'!N$27 -> 0 | H92: ='10'!O$27 -> 0 | I92: ='10'!P$27 -> 0 | J92: ='10'!Q$27 -> 0 | K92: ='10'!R$27 -> 0 | L92: ='10'!S$27 -> 0 | M92: ='10'!T$27 -> 0 | N92: ='10'!U$27 -> 0 | O92: ='10'!V$27 -> 0 | P92: ='10'!W$27 -> 0 | Q92: ='10'!X$27 -> 0 | R92: ='10'!Y$27 -> 0 | S92: ='10'!Z$27 -> 0 | T92: ='10'!AA$27 -> 0 | U92: ='10'!AB$27 -> 0 | V92: ='10'!AC$27 -> 0 | W92: ='10'!AD$27 -> 0 | AA92: ='10'!M$28 -> 0 | AB92: ='10'!N$28 -> 0 | AC92: ='10'!O$28 -> 0 | AD92: ='10'!P$28 -> 0 | AE92: ='10'!Q$28 -> 0 | AF92: ='10'!R$28 -> 0 | AG92: ='10'!S$28 -> 0 | AH92: ='10'!T$28 -> 0 | AI92: ='10'!U$28 -> 0 | AJ92: ='10'!V$28 -> 0 | AK92: ='10'!W$28 -> 0 | AL92: ='10'!X$28 -> 0 | AM92: ='10'!Y$28 -> 0 | AN92: ='10'!Z$28 -> 0 | AO92: ='10'!AA$28 -> 0 | AP92: ='10'!AB$28 -> 0 | AQ92: ='10'!AC$28 -> 0 | AR92: ='10'!AD$28 -> 0 | AS92: 44 | AT92: 2014-03-03 | AU92: - | AV92: 2014-03-09 | AW92: 10
A93: 45 | B93: 2014-03-10 | C93: - | D93: 2014-03-16 | E93: =Overview!F62 -> 11 | F93: ='11'!M$27 -> 0 | G93: ='11'!N$27 -> 0 | H93: ='11'!O$27 -> 0 | I93: ='11'!P$27 -> 0 | J93: ='11'!Q$27 -> 0 | K93: ='11'!R$27 -> 0 | L93: ='11'!S$27 -> 0 | M93: ='11'!T$27 -> 0 | N93: ='11'!U$27 -> 0 | O93: ='11'!V$27 -> 0 | P93: ='11'!W$27 -> 0 | Q93: ='11'!X$27 -> 0 | R93: ='11'!Y$27 -> 0 | S93: ='11'!Z$27 -> 0 | T93: ='11'!AA$27 -> 0 | U93: ='11'!AB$27 -> 0 | V93: ='11'!AC$27 -> 0 | W93: ='11'!AD$27 -> 0 | AA93: ='11'!M$28 -> 0 | AB93: ='11'!N$28 -> 0 | AC93: ='11'!O$28 -> 0 | AD93: ='11'!P$28 -> 0 | AE93: ='11'!Q$28 -> 0 | AF93: ='11'!R$28 -> 0 | AG93: ='11'!S$28 -> 0 | AH93: ='11'!T$28 -> 0 | AI93: ='11'!U$28 -> 0 | AJ93: ='11'!V$28 -> 0 | AK93: ='11'!W$28 -> 0 | AL93: ='11'!X$28 -> 0 | AM93: ='11'!Y$28 -> 0 | AN93: ='11'!Z$28 -> 0 | AO93: ='11'!AA$28 -> 0 | AP93: ='11'!AB$28 -> 0 | AQ93: ='11'!AC$28 -> 0 | AR93: ='11'!AD$28 -> 0 | AS93: 45 | AT93: 2014-03-10 | AU93: - | AV93: 2014-03-16 | AW93: 11
A94: 46 | B94: 2014-03-17 | C94: - | D94: 2014-03-23 | E94: =Overview!F63 -> 12 | F94: ='12'!M$27 -> 0 | G94: ='12'!N$27 -> 0 | H94: ='12'!O$27 -> 0 | I94: ='12'!P$27 -> 0 | J94: ='12'!Q$27 -> 0 | K94: ='12'!R$27 -> 0 | L94: ='12'!S$27 -> 0 | M94: ='12'!T$27 -> 0 | N94: ='12'!U$27 -> 0 | O94: ='12'!V$27 -> 0 | P94: ='12'!W$27 -> 0 | Q94: ='12'!X$27 -> 0 | R94: ='12'!Y$27 -> 0 | S94: ='12'!Z$27 -> 0 | T94: ='12'!AA$27 -> 0 | U94: ='12'!AB$27 -> 0 | V94: ='12'!AC$27 -> 0 | W94: ='12'!AD$27 -> 0 | AA94: ='12'!M$28 -> 0 | AB94: ='12'!N$28 -> 0 | AC94: ='12'!O$28 -> 0 | AD94: ='12'!P$28 -> 0 | AE94: ='12'!Q$28 -> 0 | AF94: ='12'!R$28 -> 0 | AG94: ='12'!S$28 -> 0 | AH94: ='12'!T$28 -> 0 | AI94: ='12'!U$28 -> 0 | AJ94: ='12'!V$28 -> 0 | AK94: ='12'!W$28 -> 0 | AL94: ='12'!X$28 -> 0 | AM94: ='12'!Y$28 -> 0 | AN94: ='12'!Z$28 -> 0 | AO94: ='12'!AA$28 -> 0 | AP94: ='12'!AB$28 -> 0 | AQ94: ='12'!AC$28 -> 0 | AR94: ='12'!AD$28 -> 0 | AS94: 46 | AT94: 2014-03-17 | AU94: - | AV94: 2014-03-23 | AW94: 12
A95: 47 | B95: 2014-03-24 | C95: - | D95: 2014-03-30 | E95: =Overview!F64 -> 13 | F95: ='13'!M$27 -> 0 | G95: ='13'!N$27 -> 0 | H95: ='13'!O$27 -> 0 | I95: ='13'!P$27 -> 0 | J95: ='13'!Q$27 -> 0 | K95: ='13'!R$27 -> 0 | L95: ='13'!S$27 -> 0 | M95: ='13'!T$27 -> 0 | N95: ='13'!U$27 -> 0 | O95: ='13'!V$27 -> 0 | P95: ='13'!W$27 -> 0 | Q95: ='13'!X$27 -> 0 | R95: ='13'!Y$27 -> 0 | S95: ='13'!Z$27 -> 0 | T95: ='13'!AA$27 -> 0 | U95: ='13'!AB$27 -> 0 | V95: ='13'!AC$27 -> 0 | W95: ='13'!AD$27 -> 0 | AA95: ='13'!M$28 -> 0 | AB95: ='13'!N$28 -> 0 | AC95: ='13'!O$28 -> 0 | AD95: ='13'!P$28 -> 0 | AE95: ='13'!Q$28 -> 0 | AF95: ='13'!R$28 -> 0 | AG95: ='13'!S$28 -> 0 | AH95: ='13'!T$28 -> 0 | AI95: ='13'!U$28 -> 0 | AJ95: ='13'!V$28 -> 0 | AK95: ='13'!W$28 -> 0 | AL95: ='13'!X$28 -> 0 | AM95: ='13'!Y$28 -> 0 | AN95: ='13'!Z$28 -> 0 | AO95: ='13'!AA$28 -> 0 | AP95: ='13'!AB$28 -> 0 | AQ95: ='13'!AC$28 -> 0 | AR95: ='13'!AD$28 -> 0 | AS95: 47 | AT95: 2014-03-24 | AU95: - | AV95: 2014-03-30 | AW95: 13
A96: 48 | B96: 2014-03-31 | C96: - | D96: 2014-04-06 | E96: =Overview!F65 -> 14 | F96: ='14'!M$27 -> 0 | G96: ='14'!N$27 -> 0 | H96: ='14'!O$27 -> 0 | I96: ='14'!P$27 -> 0 | J96: ='14'!Q$27 -> 0 | K96: ='14'!R$27 -> 0 | L96: ='14'!S$27 -> 0 | M96: ='14'!T$27 -> 0 | N96: ='14'!U$27 -> 0 | O96: ='14'!V$27 -> 0 | P96: ='14'!W$27 -> 0 | Q96: ='14'!X$27 -> 0 | R96: ='14'!Y$27 -> 0 | S96: ='14'!Z$27 -> 0 | T96: ='14'!AA$27 -> 0 | U96: ='14'!AB$27 -> 0 | V96: ='14'!AC$27 -> 0 | W96: ='14'!AD$27 -> 0 | AA96: ='14'!M$28 -> 0 | AB96: ='14'!N$28 -> 0 | AC96: ='14'!O$28 -> 0 | AD96: ='14'!P$28 -> 0 | AE96: ='14'!Q$28 -> 0 | AF96: ='14'!R$28 -> 0 | AG96: ='14'!S$28 -> 0 | AH96: ='14'!T$28 -> 0 | AI96: ='14'!U$28 -> 0 | AJ96: ='14'!V$28 -> 0 | AK96: ='14'!W$28 -> 0 | AL96: ='14'!X$28 -> 0 | AM96: ='14'!Y$28 -> 0 | AN96: ='14'!Z$28 -> 0 | AO96: ='14'!AA$28 -> 0 | AP96: ='14'!AB$28 -> 0 | AQ96: ='14'!AC$28 -> 0 | AR96: ='14'!AD$28 -> 0 | AS96: 48 | AT96: 2014-03-31 | AU96: - | AV96: 2014-04-06 | AW96: 14
A97: 49 | B97: 2014-04-07 | C97: - | D97: 2014-04-13 | E97: =Overview!F66 -> 15 | F97: ='15'!M$27 -> 0 | G97: ='15'!N$27 -> 0 | H97: ='15'!O$27 -> 0 | I97: ='15'!P$27 -> 0 | J97: ='15'!Q$27 -> 0 | K97: ='15'!R$27 -> 0 | L97: ='15'!S$27 -> 0 | M97: ='15'!T$27 -> 0 | N97: ='15'!U$27 -> 0 | O97: ='15'!V$27 -> 0 | P97: ='15'!W$27 -> 0 | Q97: ='15'!X$27 -> 0 | R97: ='15'!Y$27 -> 0 | S97: ='15'!Z$27 -> 0 | T97: ='15'!AA$27 -> 0 | U97: ='15'!AB$27 -> 0 | V97: ='15'!AC$27 -> 0 | W97: ='15'!AD$27 -> 0 | AA97: ='15'!M$28 -> 0 | AB97: ='15'!N$28 -> 0 | AC97: ='15'!O$28 -> 0 | AD97: ='15'!P$28 -> 0 | AE97: ='15'!Q$28 -> 0 | AF97: ='15'!R$28 -> 0 | AG97: ='15'!S$28 -> 0 | AH97: ='15'!T$28 -> 0 | AI97: ='15'!U$28 -> 0 | AJ97: ='15'!V$28 -> 0 | AK97: ='15'!W$28 -> 0 | AL97: ='15'!X$28 -> 0 | AM97: ='15'!Y$28 -> 0 | AN97: ='15'!Z$28 -> 0 | AO97: ='15'!AA$28 -> 0 | AP97: ='15'!AB$28 -> 0 | AQ97: ='15'!AC$28 -> 0 | AR97: ='15'!AD$28 -> 0 | AS97: 49 | AT97: 2014-04-07 | AU97: - | AV97: 2014-04-13 | AW97: 15
A98: 50 | B98: 2014-04-14 | C98: - | D98: 2014-04-20 | E98: =Overview!F67 -> 16 | F98: ='16'!M$27 -> 0 | G98: ='16'!N$27 -> 0 | H98: ='16'!O$27 -> 0 | I98: ='16'!P$27 -> 0 | J98: ='16'!Q$27 -> 0 | K98: ='16'!R$27 -> 0 | L98: ='16'!S$27 -> 0 | M98: ='16'!T$27 -> 0 | N98: ='16'!U$27 -> 0 | O98: ='16'!V$27 -> 0 | P98: ='16'!W$27 -> 0 | Q98: ='16'!X$27 -> 0 | R98: ='16'!Y$27 -> 0 | S98: ='16'!Z$27 -> 0 | T98: ='16'!AA$27 -> 0 | U98: ='16'!AB$27 -> 0 | V98: ='16'!AC$27 -> 0 | W98: ='16'!AD$27 -> 0 | AA98: ='16'!M$28 -> 0 | AB98: ='16'!N$28 -> 0 | AC98: ='16'!O$28 -> 0 | AD98: ='16'!P$28 -> 0 | AE98: ='16'!Q$28 -> 0 | AF98: ='16'!R$28 -> 0 | AG98: ='16'!S$28 -> 0 | AH98: ='16'!T$28 -> 0 | AI98: ='16'!U$28 -> 0 | AJ98: ='16'!V$28 -> 0 | AK98: ='16'!W$28 -> 0 | AL98: ='16'!X$28 -> 0 | AM98: ='16'!Y$28 -> 0 | AN98: ='16'!Z$28 -> 0 | AO98: ='16'!AA$28 -> 0 | AP98: ='16'!AB$28 -> 0 | AQ98: ='16'!AC$28 -> 0 | AR98: ='16'!AD$28 -> 0 | AS98: 50 | AT98: 2014-04-14 | AU98: - | AV98: 2014-04-20 | AW98: 16
A99: 51 | B99: 2014-04-21 | C99: - | D99: 2014-04-27 | E99: =Overview!F68 -> 17 | F99: ='17'!M$27 -> 0 | G99: ='17'!N$27 -> 0 | H99: ='17'!O$27 -> 0 | I99: ='17'!P$27 -> 0 | J99: ='17'!Q$27 -> 0 | K99: ='17'!R$27 -> 0 | L99: ='17'!S$27 -> 0 | M99: ='17'!T$27 -> 0 | N99: ='17'!U$27 -> 0 | O99: ='17'!V$27 -> 0 | P99: ='17'!W$27 -> 0 | Q99: ='17'!X$27 -> 0 | R99: ='17'!Y$27 -> 0 | S99: ='17'!Z$27 -> 0 | T99: ='17'!AA$27 -> 0 | U99: ='17'!AB$27 -> 0 | V99: ='17'!AC$27 -> 0 | W99: ='17'!AD$27 -> 0 | AA99: ='17'!M$28 -> 0 | AB99: ='17'!N$28 -> 0 | AC99: ='17'!O$28 -> 0 | AD99: ='17'!P$28 -> 0 | AE99: ='17'!Q$28 -> 0 | AF99: ='17'!R$28 -> 0 | AG99: ='17'!S$28 -> 0 | AH99: ='17'!T$28 -> 0 | AI99: ='17'!U$28 -> 0 | AJ99: ='17'!V$28 -> 0 | AK99: ='17'!W$28 -> 0 | AL99: ='17'!X$28 -> 0 | AM99: ='17'!Y$28 -> 0 | AN99: ='17'!Z$28 -> 0 | AO99: ='17'!AA$28 -> 0 | AP99: ='17'!AB$28 -> 0 | AQ99: ='17'!AC$28 -> 0 | AR99: ='17'!AD$28 -> 0 | AS99: 51 | AT99: 2014-04-21 | AU99: - | AV99: 2014-04-27 | AW99: 17
A100: 52 | B100: 2014-04-28 | C100: - | D100: 2014-05-04 | E100: =Overview!F69 -> 18 | F100: ='18'!M$27 -> 0 | G100: ='18'!N$27 -> 0 | H100: ='18'!O$27 -> 0 | I100: ='18'!P$27 -> 0 | J100: ='18'!Q$27 -> 0 | K100: ='18'!R$27 -> 0 | L100: ='18'!S$27 -> 0 | M100: ='18'!T$27 -> 0 | N100: ='18'!U$27 -> 0 | O100: ='18'!V$27 -> 0 | P100: ='18'!W$27 -> 0 | Q100: ='18'!X$27 -> 0 | R100: ='18'!Y$27 -> 0 | S100: ='18'!Z$27 -> 0 | T100: ='18'!AA$27 -> 0 | U100: ='18'!AB$27 -> 0 | V100: ='18'!AC$27 -> 0 | W100: ='18'!AD$27 -> 0 | AA100: ='18'!M$28 -> 0 | AB100: ='18'!N$28 -> 0 | AC100: ='18'!O$28 -> 0 | AD100: ='18'!P$28 -> 0 | AE100: ='18'!Q$28 -> 0 | AF100: ='18'!R$28 -> 0 | AG100: ='18'!S$28 -> 0 | AH100: ='18'!T$28 -> 0 | AI100: ='18'!U$28 -> 0 | AJ100: ='18'!V$28 -> 0 | AK100: ='18'!W$28 -> 0 | AL100: ='18'!X$28 -> 0 | AM100: ='18'!Y$28 -> 0 | AN100: ='18'!Z$28 -> 0 | AO100: ='18'!AA$28 -> 0 | AP100: ='18'!AB$28 -> 0 | AQ100: ='18'!AC$28 -> 0 | AR100: ='18'!AD$28 -> 0 | AS100: 52 | AT100: 2014-04-28 | AU100: - | AV100: 2014-05-04 | AW100: 18
E101: Total Trainingseinheiten | F101: =DSUM($A$45:H100,F46,$A$45:$B$46) -> 0 | G101: =DSUM($A$45:I100,G46,$A$45:$B$46) -> 0 | H101: =DSUM($A$45:J100,H46,$A$45:$B$46) -> 0 | I101: =DSUM($A$45:K100,I46,$A$45:$B$46) -> 0 | J101: =DSUM($A$45:L100,J46,$A$45:$B$46) -> 0 | K101: =DSUM($A$45:M100,K46,$A$45:$B$46) -> 0 | L101: =DSUM($A$45:N100,L46,$A$45:$B$46) -> 0 | M101: =DSUM($A$45:O100,M46,$A$45:$B$46) -> 0 | N101: =DSUM($A$45:P100,N46,$A$45:$B$46) -> 0 | O101: =DSUM($A$45:Q100,O46,$A$45:$B$46) -> 0 | P101: =DSUM($A$45:R100,P46,$A$45:$B$46) -> 0 | Q101: =DSUM($A$45:S100,Q46,$A$45:$B$46) -> 0 | R101: =DSUM($A$45:T100,R46,$A$45:$B$46) -> 0 | S101: =DSUM($A$45:U100,S46,$A$45:$B$46) -> 0 | T101: =DSUM($A$45:V100,T46,$A$45:$B$46) -> 0 | U101: =DSUM($A$45:W100,U46,$A$45:$B$46) -> 0 | V101: =DSUM($A$45:X100,V46,$A$45:$B$46) -> 0 | W101: =DSUM($A$45:Z100,W46,$A$45:$B$46) -> 0 | Z101: Total Trainingsstunden | AA101: =DSUM($AA$45:AT100,AA46,$AS$45:$AT$46)/60 -> 0 | AB101: =DSUM($AA$45:AU100,AB46,$AS$45:$AT$46)/60 -> 0 | AC101: =DSUM($AA$45:AV100,AC46,$AS$45:$AT$46)/60 -> 0 | AD101: =DSUM($AA$45:AW100,AD46,$AS$45:$AT$46)/60 -> 0 | AE101: =DSUM($AA$45:AW100,AE46,$AS$45:$AT$46)/60 -> 0 | AF101: =DSUM($AA$45:AW100,AF46,$AS$45:$AT$46)/60 -> 0 | AG101: =DSUM($AA$45:AW100,AG46,$AS$45:$AT$46)/60 -> 0 | AH101: =DSUM($AA$45:AW100,AH46,$AS$45:$AT$46)/60 -> 0 | AI101: =DSUM($AA$45:AW100,AI46,$AS$45:$AT$46)/60 -> 0 | AJ101: =DSUM($AA$45:AW100,AJ46,$AS$45:$AT$46)/60 -> 0 | AK101: =DSUM($AA$45:AW100,AK46,$AS$45:$AT$46)/60 -> 0 | AL101: =DSUM($AA$45:AW100,AL46,$AS$45:$AT$46)/60 -> 0 | AM101: =DSUM($AA$45:AW100,AM46,$AS$45:$AT$46)/60 -> 0 | AN101: =DSUM($AA$45:AW100,AN46,$AS$45:$AT$46)/60 -> 0 | AO101: =DSUM($AA$45:AW100,AO46,$AS$45:$AT$46)/60 -> 0 | AP101: =DSUM($AA$45:AW100,AP46,$AS$45:$AT$46)/60 -> 0 | AQ101: =DSUM($AA$45:AW100,AQ46,$AS$45:$AT$46)/60 -> 0 | AR101: =DSUM($AA$45:AW100,AR46,$AS$45:$AT$46)/60 -> 0
E102: % des Sportartes | F102: =SUM(F101:H101)/(SUM($F$101:$W$101)) ->  | I102: =SUM(I101:K101)/(SUM($F$101:$W$101)) ->  | L102: =SUM(L101:N101)/(SUM($F$101:$W$101)) ->  | O102: =SUM(O101:Q101)/(SUM($F$101:$W$101)) ->  | R102: =SUM(R101:T101)/(SUM($F$101:$W$101)) ->  | U102: =SUM(U101:W101)/(SUM($F$101:$W$101)) ->  | Z102: % des Sportartes | AA102: =SUM(AA101:AC101)/(SUM($AA$101:$AR$101)) ->  | AD102: =SUM(AD101:AF101)/(SUM($AA$101:$AR$101)) ->  | AG102: =SUM(AG101:AI101)/(SUM($AA$101:$AR$101)) ->  | AJ102: =SUM(AJ101:AL101)/(SUM($AA$101:$AR$101)) ->  | AM102: =SUM(AM101:AO101)/(SUM($AA$101:$AR$101)) ->  | AP102: =SUM(AP101:AR101)/(SUM($AA$101:$AR$101)) -> 
E103: Intensitätsverteilung (Total) | F103: =SUM(F101,I101,L101,O101,R101,U101)/SUM($F$101:$W$101) ->  | G103: =SUM(G101,J101,M101,P101,S101,V101)/SUM($F$101:$W$101) ->  | H103: =SUM(H101,K101,N101,Q101,T101,W101)/SUM($F$101:$W$101) ->  | Z103: Intensitätsverteilung (Total) | AA103: =SUM(AA101,AD101,AG101,AJ101,AM101,AP101)/SUM($AA$101:$AR$101) ->  | AB103: =SUM(AB101,AE101,AH101,AK101,AN101,AQ101)/SUM($AA$101:$AR$101) ->  | AC103: =SUM(AC101,AF101,AI101,AL101,AO101,AR101)/SUM($AA$101:$AR$101) -> 
E104: Intensitätsverteilung (pro Sportart) | F104: =F101/SUM($F$101:$H$101) ->  | G104: =G101/SUM($F$101:$H$101) ->  | H104: =H101/SUM($F$101:$H$101) ->  | I104: =I101/SUM($I$101:$K$101) ->  | J104: =J101/SUM($I$101:$K$101) ->  | K104: =K101/SUM($I$101:$K$101) ->  | L104: =L101/SUM($L$101:$N$101) ->  | M104: =M101/SUM($L$101:$N$101) ->  | N104: =N101/SUM($L$101:$N$101) ->  | O104: =O101/SUM($O$101:$Q$101) ->  | P104: =P101/SUM($O$101:$Q$101) ->  | Q104: =Q101/SUM($O$101:$Q$101) ->  | R104: =R101/SUM($R$101:$T$101) ->  | S104: =S101/SUM($R$101:$T$101) ->  | T104: =T101/SUM($R$101:$T$101) ->  | U104: =U101/SUM($U$101:$W$101) ->  | V104: =V101/SUM($U$101:$W$101) ->  | W104: =W101/SUM($U$101:$W$101) ->  | Z104: Intensitätsverteilung | AA104: =AA101/SUM($AA$101:$AC$101) ->  | AB104: =AB101/SUM($AA$101:$AC$101) ->  | AC104: =AC101/SUM($AA$101:$AC$101) ->  | AD104: =AD101/SUM($AD$101:$AF$101) ->  | AE104: =AE101/SUM($AD$101:$AF$101) ->  | AF104: =AF101/SUM($AD$101:$AF$101) ->  | AG104: =AG101/SUM($AG$101:$AI$101) ->  | AH104: =AH101/SUM($AG$101:$AI$101) ->  | AI104: =AI101/SUM($AG$101:$AI$101) ->  | AJ104: =AJ101/SUM($AJ$101:$AL$101) ->  | AK104: =AK101/SUM($AJ$101:$AL$101) ->  | AL104: =AL101/SUM($AJ$101:$AL$101) ->  | AM104: =AM101/SUM($AM$101:$AO$101) ->  | AN104: =AN101/SUM($AM$101:$AO$101) ->  | AO104: =AO101/SUM($AM$101:$AO$101) ->  | AP104: =AP101/SUM($AP$101:$AR$101) ->  | AQ104: =AQ101/SUM($AP$101:$AR$101) ->  | AR104: =AR101/SUM($AP$101:$AR$101) -> 
E170: Total | F170: =F47 -> Dauerlauf | G170: =I47 -> Bahn/Intervall | H170: =L47 -> Sprint/Koord/Tech | I170: =O47 -> Kraft | J170: =R47 -> Alternativ | K170: =U47 -> Divers

Sheet Gewicht-Motiv-Schlaf
D1: Gewicht-Motiv-Schlaf
B2: Athlet : | C2: =Overview!D2 -> Vorname Name | G2: Jahr : | H2: =Overview!N2 -> 0
A4: Kalender-woche | B4: Datum | E4: Gewicht | F4: Motivation | G4: Schlaf | H4: Schlaf
E5: Kg | F5: [-2….+2] | G5: 1-6 | H5: Std
A6: =Overview!F18 -> 19 | B6: =Overview!C18 -> 2013-05-06 | C6: =Overview!D18 -> - | D6: =Overview!E18 -> 2013-05-12 | E6: =IF('19'!D$26="","",'19'!D$26) ->  | F6: =IF('19'!E$26="","",'19'!E$26) ->  | G6: =IF('19'!F$26="","",'19'!F$26) ->  | H6: =IF('19'!G$26="","",'19'!G$26) ->  | AN6: =IF(E6="",#N/A,E6) ->  | AO6: =IF(F6="",#N/A,F6) -> 
A7: =Overview!F19 -> 20 | B7: =Overview!C19 -> 2013-05-13 | C7: =Overview!D19 -> - | D7: =Overview!E19 -> 2013-05-19 | E7: =IF('20'!D$26="","",'20'!D$26) ->  | F7: =IF('20'!E$26="","",'20'!E$26) ->  | G7: =IF('20'!F$26="","",'20'!F$26) ->  | H7: =IF('20'!G$26="","",'20'!G$26) ->  | AN7: =IF(E7="",#N/A,E7) -> 
A8: =Overview!F20 -> 21 | B8: =Overview!C20 -> 2013-05-20 | C8: =Overview!D20 -> - | D8: =Overview!E20 -> 2013-05-26 | E8: =IF('21'!D$26="","",'21'!D$26) ->  | F8: =IF('21'!E$26="","",'21'!E$26) ->  | G8: =IF('21'!F$26="","",'21'!F$26) ->  | H8: =IF('21'!G$26="","",'21'!G$26) -> 
A9: =Overview!F21 -> 22 | B9: =Overview!C21 -> 2013-05-27 | C9: =Overview!D21 -> - | D9: =Overview!E21 -> 2013-06-02 | E9: =IF('22'!D$26="","",'22'!D$26) ->  | F9: =IF('22'!E$26="","",'22'!E$26) ->  | G9: =IF('22'!F$26="","",'22'!F$26) ->  | H9: =IF('22'!G$26="","",'22'!G$26) -> 
A10: =Overview!F22 -> 23 | B10: =Overview!C22 -> 2013-06-03 | C10: =Overview!D22 -> - | D10: =Overview!E22 -> 2013-06-09 | E10: =IF('23'!D$26="","",'23'!D$26) ->  | F10: =IF('23'!E$26="","",'23'!E$26) ->  | G10: =IF('23'!F$26="","",'23'!F$26) ->  | H10: =IF('23'!G$26="","",'23'!G$26) -> 
A11: =Overview!F23 -> 24 | B11: =Overview!C23 -> 2013-06-10 | C11: =Overview!D23 -> - | D11: =Overview!E23 -> 2013-06-16 | E11: =IF('24'!D$26="","",'24'!D$26) ->  | F11: =IF('24'!E$26="","",'24'!E$26) ->  | G11: =IF('24'!F$26="","",'24'!F$26) ->  | H11: =IF('24'!G$26="","",'24'!G$26) -> 
A12: =Overview!F24 -> 25 | B12: =Overview!C24 -> 2013-06-17 | C12: =Overview!D24 -> - | D12: =Overview!E24 -> 2013-06-23 | E12: =IF('25'!D$26="","",'25'!D$26) ->  | F12: =IF('25'!E$26="","",'25'!E$26) ->  | G12: =IF('25'!F$26="","",'25'!F$26) ->  | H12: =IF('25'!G$26="","",'25'!G$26) -> 
A13: =Overview!F25 -> 26 | B13: =Overview!C25 -> 2013-06-24 | C13: =Overview!D25 -> - | D13: =Overview!E25 -> 2013-06-30 | E13: =IF('26'!D$26="","",'26'!D$26) ->  | F13: =IF('26'!E$26="","",'26'!E$26) ->  | G13: =IF('26'!F$26="","",'26'!F$26) ->  | H13: =IF('26'!G$26="","",'26'!G$26) -> 
A14: =Overview!F26 -> 27 | B14: =Overview!C26 -> 2013-07-01 | C14: =Overview!D26 -> - | D14: =Overview!E26 -> 2013-07-07 | E14: =IF('27'!D$26="","",'27'!D$26) ->  | F14: =IF('27'!E$26="","",'27'!E$26) ->  | G14: =IF('27'!F$26="","",'27'!F$26) ->  | H14: =IF('27'!G$26="","",'27'!G$26) -> 
A15: =Overview!F27 -> 28 | B15: =Overview!C27 -> 2013-07-08 | C15: =Overview!D27 -> - | D15: =Overview!E27 -> 2013-07-14 | E15: =IF('28'!D$26="","",'28'!D$26) ->  | F15: =IF('28'!E$26="","",'28'!E$26) ->  | G15: =IF('28'!F$26="","",'28'!F$26) ->  | H15: =IF('28'!G$26="","",'28'!G$26) -> 
A16: =Overview!F28 -> 29 | B16: =Overview!C28 -> 2013-07-15 | C16: =Overview!D28 -> - | D16: =Overview!E28 -> 2013-07-21 | E16: =IF('29'!D$26="","",'29'!D$26) ->  | F16: =IF('29'!E$26="","",'29'!E$26) ->  | G16: =IF('29'!F$26="","",'29'!F$26) ->  | H16: =IF('29'!G$26="","",'29'!G$26) -> 
A17: =Overview!F29 -> 30 | B17: =Overview!C29 -> 2013-07-22 | C17: =Overview!D29 -> - | D17: =Overview!E29 -> 2013-07-28 | E17: =IF('30'!D$26="","",'30'!D$26) ->  | F17: =IF('30'!E$26="","",'30'!E$26) ->  | G17: =IF('30'!F$26="","",'30'!F$26) ->  | H17: =IF('30'!G$26="","",'30'!G$26) -> 
A18: =Overview!F30 -> 31 | B18: =Overview!C30 -> 2013-07-29 | C18: =Overview!D30 -> - | D18: =Overview!E30 -> 2013-08-04 | E18: =IF('31'!D$26="","",'31'!D$26) ->  | F18: =IF('31'!E$26="","",'31'!E$26) ->  | G18: =IF('31'!F$26="","",'31'!F$26) ->  | H18: =IF('31'!G$26="","",'31'!G$26) -> 
A19: =Overview!F31 -> 32 | B19: =Overview!C31 -> 2013-08-05 | C19: =Overview!D31 -> - | D19: =Overview!E31 -> 2013-08-11 | E19: =IF('32'!D$26="","",'32'!D$26) ->  | F19: =IF('32'!E$26="","",'32'!E$26) ->  | G19: =IF('32'!F$26="","",'32'!F$26) ->  | H19: =IF('32'!G$26="","",'32'!G$26) -> 
A20: =Overview!F32 -> 33 | B20: =Overview!C32 -> 2013-08-12 | C20: =Overview!D32 -> - | D20: =Overview!E32 -> 2013-08-18 | E20: =IF('33'!D$26="","",'33'!D$26) ->  | F20: =IF('33'!E$26="","",'33'!E$26) ->  | G20: =IF('33'!F$26="","",'33'!F$26) ->  | H20: =IF('33'!G$26="","",'33'!G$26) -> 
A21: =Overview!F33 -> 34 | B21: =Overview!C33 -> 2013-08-19 | C21: =Overview!D33 -> - | D21: =Overview!E33 -> 2013-08-25 | E21: =IF('34'!D$26="","",'34'!D$26) ->  | F21: =IF('34'!E$26="","",'34'!E$26) ->  | G21: =IF('34'!F$26="","",'34'!F$26) ->  | H21: =IF('34'!G$26="","",'34'!G$26) -> 
A22: =Overview!F34 -> 35 | B22: =Overview!C34 -> 2013-08-26 | C22: =Overview!D34 -> - | D22: =Overview!E34 -> 2013-09-01 | E22: =IF('35'!D$26="","",'35'!D$26) ->  | F22: =IF('35'!E$26="","",'35'!E$26) ->  | G22: =IF('35'!F$26="","",'35'!F$26) ->  | H22: =IF('35'!G$26="","",'35'!G$26) ->  | AO22: =IF(F22="",#N/A,F22) ->  | AP22: =IF(G22="",#N/A,G22) ->  | AQ22: =IF(H22="",#N/A,H22) -> 
A23: =Overview!F35 -> 36 | B23: =Overview!C35 -> 2013-09-02 | C23: =Overview!D35 -> - | D23: =Overview!E35 -> 2013-09-08 | E23: =IF('36'!D$26="","",'36'!D$26) ->  | F23: =IF('36'!E$26="","",'36'!E$26) ->  | G23: =IF('36'!F$26="","",'36'!F$26) ->  | H23: =IF('36'!G$26="","",'36'!G$26) -> 
A24: =Overview!F36 -> 37 | B24: =Overview!C36 -> 2013-09-09 | C24: =Overview!D36 -> - | D24: =Overview!E36 -> 2013-09-15 | E24: =IF('37'!D$26="","",'37'!D$26) ->  | F24: =IF('37'!E$26="","",'37'!E$26) ->  | G24: =IF('37'!F$26="","",'37'!F$26) ->  | H24: =IF('37'!G$26="","",'37'!G$26) -> 
A25: =Overview!F37 -> 38 | B25: =Overview!C37 -> 2013-09-16 | C25: =Overview!D37 -> - | D25: =Overview!E37 -> 2013-09-22 | E25: =IF('38'!D$26="","",'38'!D$26) ->  | F25: =IF('38'!E$26="","",'38'!E$26) ->  | G25: =IF('38'!F$26="","",'38'!F$26) ->  | H25: =IF('38'!G$26="","",'38'!G$26) -> 
A26: =Overview!F38 -> 39 | B26: =Overview!C38 -> 2013-09-23 | C26: =Overview!D38 -> - | D26: =Overview!E38 -> 2013-09-29 | E26: =IF('39'!D$26="","",'39'!D$26) ->  | F26: =IF('39'!E$26="","",'39'!E$26) ->  | G26: =IF('39'!F$26="","",'39'!F$26) ->  | H26: =IF('39'!G$26="","",'39'!G$26) -> 
A27: =Overview!F39 -> 40 | B27: =Overview!C39 -> 2013-09-30 | C27: =Overview!D39 -> - | D27: =Overview!E39 -> 2013-10-06 | E27: =IF('40'!D$26="","",'40'!D$26) ->  | F27: =IF('40'!E$26="","",'40'!E$26) ->  | G27: =IF('40'!F$26="","",'40'!F$26) ->  | H27: =IF('40'!G$26="","",'40'!G$26) -> 
A28: =Overview!F40 -> 41 | B28: =Overview!C40 -> 2013-10-07 | C28: =Overview!D40 -> - | D28: =Overview!E40 -> 2013-10-13 | E28: =IF('41'!D$26="","",'41'!D$26) ->  | F28: =IF('41'!E$26="","",'41'!E$26) ->  | G28: =IF('41'!F$26="","",'41'!F$26) ->  | H28: =IF('41'!G$26="","",'41'!G$26) -> 
A29: =Overview!F41 -> 42 | B29: =Overview!C41 -> 2013-10-14 | C29: =Overview!D41 -> - | D29: =Overview!E41 -> 2013-10-20 | E29: =IF('42'!D$26="","",'42'!D$26) ->  | F29: =IF('42'!E$26="","",'42'!E$26) ->  | G29: =IF('42'!F$26="","",'42'!F$26) ->  | H29: =IF('42'!G$26="","",'42'!G$26) -> 
A30: =Overview!F42 -> 43 | B30: =Overview!C42 -> 2013-10-21 | C30: =Overview!D42 -> - | D30: =Overview!E42 -> 2013-10-27 | E30: =IF('43'!D$26="","",'43'!D$26) ->  | F30: =IF('43'!E$26="","",'43'!E$26) ->  | G30: =IF('43'!F$26="","",'43'!F$26) ->  | H30: =IF('43'!G$26="","",'43'!G$26) -> 
A31: =Overview!F43 -> 44 | B31: =Overview!C43 -> 2013-10-28 | C31: =Overview!D43 -> - | D31: =Overview!E43 -> 2013-11-03 | E31: =IF('44'!D$26="","",'44'!D$26) ->  | F31: =IF('44'!E$26="","",'44'!E$26) ->  | G31: =IF('44'!F$26="","",'44'!F$26) ->  | H31: =IF('44'!G$26="","",'44'!G$26) -> 
A32: =Overview!F44 -> 45 | B32: =Overview!C44 -> 2013-11-04 | C32: =Overview!D44 -> - | D32: =Overview!E44 -> 2013-11-10 | E32: =IF('45'!D$26="","",'45'!D$26) ->  | F32: =IF('45'!E$26="","",'45'!E$26) ->  | G32: =IF('45'!F$26="","",'45'!F$26) ->  | H32: =IF('45'!G$26="","",'45'!G$26) -> 
A33: =Overview!F45 -> 46 | B33: =Overview!C45 -> 2013-11-11 | C33: =Overview!D45 -> - | D33: =Overview!E45 -> 2013-11-17 | E33: =IF('46'!D$26="","",'46'!D$26) ->  | F33: =IF('46'!E$26="","",'46'!E$26) ->  | G33: =IF('46'!F$26="","",'46'!F$26) ->  | H33: =IF('46'!G$26="","",'46'!G$26) -> 
A34: =Overview!F46 -> 47 | B34: =Overview!C46 -> 2013-11-18 | C34: =Overview!D46 -> - | D34: =Overview!E46 -> 2013-11-24 | E34: =IF('47'!D$26="","",'47'!D$26) ->  | F34: =IF('47'!E$26="","",'47'!E$26) ->  | G34: =IF('47'!F$26="","",'47'!F$26) ->  | H34: =IF('47'!G$26="","",'47'!G$26) -> 
A35: =Overview!F47 -> 48 | B35: =Overview!C47 -> 2013-11-25 | C35: =Overview!D47 -> - | D35: =Overview!E47 -> 2013-12-01 | E35: =IF('48'!D$26="","",'48'!D$26) ->  | F35: =IF('48'!E$26="","",'48'!E$26) ->  | G35: =IF('48'!F$26="","",'48'!F$26) ->  | H35: =IF('48'!G$26="","",'48'!G$26) -> 
A36: =Overview!F48 -> 49 | B36: =Overview!C48 -> 2013-12-02 | C36: =Overview!D48 -> - | D36: =Overview!E48 -> 2013-12-08 | E36: =IF('49'!D$26="","",'49'!D$26) ->  | F36: =IF('49'!E$26="","",'49'!E$26) ->  | G36: =IF('49'!F$26="","",'49'!F$26) ->  | H36: =IF('49'!G$26="","",'49'!G$26) -> 
A37: =Overview!F49 -> 50 | B37: =Overview!C49 -> 2013-12-09 | C37: =Overview!D49 -> - | D37: =Overview!E49 -> 2013-12-15 | E37: =IF('50'!D$26="","",'50'!D$26) ->  | F37: =IF('50'!E$26="","",'50'!E$26) ->  | G37: =IF('50'!F$26="","",'50'!F$26) ->  | H37: =IF('50'!G$26="","",'50'!G$26) -> 
A38: =Overview!F50 -> 51 | B38: =Overview!C50 -> 2013-12-16 | C38: =Overview!D50 -> - | D38: =Overview!E50 -> 2013-12-22 | E38: =IF('51'!D$26="","",'51'!D$26) ->  | F38: =IF('51'!E$26="","",'51'!E$26) ->  | G38: =IF('51'!F$26="","",'51'!F$26) ->  | H38: =IF('51'!G$26="","",'51'!G$26) ->  | AN38: =IF(E38="",#N/A,E38) ->  | AO38: =IF(F38="",#N/A,F38) ->  | AP38: =IF(G38="",#N/A,G38) ->  | AQ38: =IF(H38="",#N/A,H38) -> 
A39: =Overview!F51 -> 52 | B39: =Overview!C51 -> 2013-12-23 | C39: =Overview!D51 -> - | D39: =Overview!E51 -> 2013-12-29 | E39: =IF('52'!D$26="","",'52'!D$26) ->  | F39: =IF('52'!E$26="","",'52'!E$26) ->  | G39: =IF('52'!F$26="","",'52'!F$26) ->  | H39: =IF('52'!G$26="","",'52'!G$26) -> 
A40: =Overview!F52 -> 1 | B40: =Overview!C52 -> 2013-12-30 | C40: =Overview!D52 -> - | D40: =Overview!E52 -> 2014-01-05 | E40: =IF('1'!D$26="","",'1'!D$26) ->  | F40: =IF('1'!E$26="","",'1'!E$26) ->  | G40: =IF('1'!F$26="","",'1'!F$26) ->  | H40: =IF('1'!G$26="","",'1'!G$26) -> 
A41: =Overview!F53 -> 2 | B41: =Overview!C53 -> 2014-01-06 | C41: =Overview!D53 -> - | D41: =Overview!E53 -> 2014-01-12 | E41: =IF('2'!D$26="","",'2'!D$26) ->  | F41: =IF('2'!E$26="","",'2'!E$26) ->  | G41: =IF('2'!F$26="","",'2'!F$26) ->  | H41: =IF('2'!G$26="","",'2'!G$26) -> 
A42: =Overview!F54 -> 3 | B42: =Overview!C54 -> 2014-01-13 | C42: =Overview!D54 -> - | D42: =Overview!E54 -> 2014-01-19 | E42: =IF('3'!D$26="","",'3'!D$26) ->  | F42: =IF('3'!E$26="","",'3'!E$26) ->  | G42: =IF('3'!F$26="","",'3'!F$26) ->  | H42: =IF('3'!G$26="","",'3'!G$26) -> 
A43: =Overview!F55 -> 4 | B43: =Overview!C55 -> 2014-01-20 | C43: =Overview!D55 -> - | D43: =Overview!E55 -> 2014-01-26 | E43: =IF('4'!D$26="","",'4'!D$26) ->  | F43: =IF('4'!E$26="","",'4'!E$26) ->  | G43: =IF('4'!F$26="","",'4'!F$26) ->  | H43: =IF('4'!G$26="","",'4'!G$26) -> 
A44: =Overview!F56 -> 5 | B44: =Overview!C56 -> 2014-01-27 | C44: =Overview!D56 -> - | D44: =Overview!E56 -> 2014-02-02 | E44: =IF('5'!D$26="","",'5'!D$26) ->  | F44: =IF('5'!E$26="","",'5'!E$26) ->  | G44: =IF('5'!F$26="","",'5'!F$26) ->  | H44: =IF('5'!G$26="","",'5'!G$26) -> 
A45: =Overview!F57 -> 6 | B45: =Overview!C57 -> 2014-02-03 | C45: =Overview!D57 -> - | D45: =Overview!E57 -> 2014-02-09 | E45: =IF('6'!D$26="","",'6'!D$26) ->  | F45: =IF('6'!E$26="","",'6'!E$26) ->  | G45: =IF('6'!F$26="","",'6'!F$26) ->  | H45: =IF('6'!G$26="","",'6'!G$26) -> 
A46: =Overview!F58 -> 7 | B46: =Overview!C58 -> 2014-02-10 | C46: =Overview!D58 -> - | D46: =Overview!E58 -> 2014-02-16 | E46: =IF('7'!D$26="","",'7'!D$26) ->  | F46: =IF('7'!E$26="","",'7'!E$26) ->  | G46: =IF('7'!F$26="","",'7'!F$26) ->  | H46: =IF('7'!G$26="","",'7'!G$26) -> 
A47: =Overview!F59 -> 8 | B47: =Overview!C59 -> 2014-02-17 | C47: =Overview!D59 -> - | D47: =Overview!E59 -> 2014-02-23 | E47: =IF('8'!D$26="","",'8'!D$26) ->  | F47: =IF('8'!E$26="","",'8'!E$26) ->  | G47: =IF('8'!F$26="","",'8'!F$26) ->  | H47: =IF('8'!G$26="","",'8'!G$26) -> 
A48: =Overview!F60 -> 9 | B48: =Overview!C60 -> 2014-02-24 | C48: =Overview!D60 -> - | D48: =Overview!E60 -> 2014-03-02 | E48: =IF('9'!D$26="","",'9'!D$26) ->  | F48: =IF('9'!E$26="","",'9'!E$26) ->  | G48: =IF('9'!F$26="","",'9'!F$26) ->  | H48: =IF('9'!G$26="","",'9'!G$26) -> 
A49: =Overview!F61 -> 10 | B49: =Overview!C61 -> 2014-03-03 | C49: =Overview!D61 -> - | D49: =Overview!E61 -> 2014-03-09 | E49: =IF('10'!D$26="","",'10'!D$26) ->  | F49: =IF('10'!E$26="","",'10'!E$26) ->  | G49: =IF('10'!F$26="","",'10'!F$26) ->  | H49: =IF('10'!G$26="","",'10'!G$26) -> 
A50: =Overview!F62 -> 11 | B50: =Overview!C62 -> 2014-03-10 | C50: =Overview!D62 -> - | D50: =Overview!E62 -> 2014-03-16 | E50: =IF('11'!D$26="","",'11'!D$26) ->  | F50: =IF('11'!E$26="","",'11'!E$26) ->  | G50: =IF('11'!F$26="","",'11'!F$26) ->  | H50: =IF('11'!G$26="","",'11'!G$26) -> 
A51: =Overview!F63 -> 12 | B51: =Overview!C63 -> 2014-03-17 | C51: =Overview!D63 -> - | D51: =Overview!E63 -> 2014-03-23 | E51: =IF('12'!D$26="","",'12'!D$26) ->  | F51: =IF('12'!E$26="","",'12'!E$26) ->  | G51: =IF('12'!F$26="","",'12'!F$26) ->  | H51: =IF('12'!G$26="","",'12'!G$26) -> 
A52: =Overview!F64 -> 13 | B52: =Overview!C64 -> 2014-03-24 | C52: =Overview!D64 -> - | D52: =Overview!E64 -> 2014-03-30 | E52: =IF('13'!D$26="","",'13'!D$26) ->  | F52: =IF('13'!E$26="","",'13'!E$26) ->  | G52: =IF('13'!F$26="","",'13'!F$26) ->  | H52: =IF('13'!G$26="","",'13'!G$26) -> 
A53: =Overview!F65 -> 14 | B53: =Overview!C65 -> 2014-03-31 | C53: =Overview!D65 -> - | D53: =Overview!E65 -> 2014-04-06 | E53: =IF('14'!D$26="","",'14'!D$26) ->  | F53: =IF('14'!E$26="","",'14'!E$26) ->  | G53: =IF('14'!F$26="","",'14'!F$26) ->  | H53: =IF('14'!G$26="","",'14'!G$26) -> 
A54: =Overview!F66 -> 15 | B54: =Overview!C66 -> 2014-04-07 | C54: =Overview!D66 -> - | D54: =Overview!E66 -> 2014-04-13 | E54: =IF('15'!D$26="","",'15'!D$26) ->  | F54: =IF('15'!E$26="","",'15'!E$26) ->  | G54: =IF('15'!F$26="","",'15'!F$26) ->  | H54: =IF('15'!G$26="","",'15'!G$26) -> 
A55: =Overview!F67 -> 16 | B55: =Overview!C67 -> 2014-04-14 | C55: =Overview!D67 -> - | D55: =Overview!E67 -> 2014-04-20 | E55: =IF('16'!D$26="","",'16'!D$26) ->  | F55: =IF('16'!E$26="","",'16'!E$26) ->  | G55: =IF('16'!F$26="","",'16'!F$26) ->  | H55: =IF('16'!G$26="","",'16'!G$26) -> 
A56: =Overview!F68 -> 17 | B56: =Overview!C68 -> 2014-04-21 | C56: =Overview!D68 -> - | D56: =Overview!E68 -> 2014-04-27 | E56: =IF('17'!D$26="","",'17'!D$26) ->  | F56: =IF('17'!E$26="","",'17'!E$26) ->  | G56: =IF('17'!F$26="","",'17'!F$26) ->  | H56: =IF('17'!G$26="","",'17'!G$26) -> 
A57: =Overview!F69 -> 18 | B57: =Overview!C69 -> 2014-04-28 | C57: =Overview!D69 -> - | D57: =Overview!E69 -> 2014-05-04 | E57: =IF('18'!D$26="","",'18'!D$26) ->  | F57: =IF('18'!E$26="","",'18'!E$26) ->  | G57: =IF('18'!F$26="","",'18'!F$26) ->  | H57: =IF('18'!G$26="","",'18'!G$26) -> 

Sheet 19
C1: Woche | D1: =INT(MOD(INT((F1-2)/7)+0.6,52+5/28))+1 -> 19 | E1: =D1+1000 -> 1019 | F1: =Overview!C18 -> 2013-05-06 | G1: - | H1: =F1+6 -> 2013-05-12 | AD1: =Overview!D2 -> Vorname Name | AF1: =Overview!N2 -> 0
B2: Tag | D2: Gewicht | E2: Gefühl | F2: Schlaf | G2: Schlaf | H2: Verletzung/Erkrankung | J2: Trainingsbeschreibung | M2: Dauerlauf | P2: Bahn/Intervall | S2: Sprint/Koord/Tech | V2: Kraft | Y2: Alternativ | AB2: Divers | AF2: Bemerkungen | AH2: Load/Tag | AJ2: Lauf Km | AK2: J | AL2: Swim Km | AM2: Mental Training | AN2: Regeneration
D3: kg | E3: [-3….+3] | F3: 1-6 | G3: Std | H3: "x" wenn ja | M3: Dauer | N3: RPE | O3: Load | P3: Dauer | Q3: RPE | R3: Load | S3: Dauer | T3: RPE | U3: Load | V3: Dauer | W3: RPE | X3: Load | Y3: Dauer | Z3: RPE | AA3: Load | AB3: Dauer | AC3: RPE | AD3: Load
B4: Mo | O4: =M4*N4 -> 0 | R4: =P4*Q4 -> 0 | U4: =S4*T4 -> 0 | X4: =V4*W4 -> 0 | AA4: =Y4*Z4 -> 0 | AD4: =AB4*AC4 -> 0 | AH4: =SUM(O4:O6,R4:R6,U4:U6,X4:X6,AA4:AA6,AD4:AD6) -> 0
O5: =M5*N5 -> 0 | R5: =P5*Q5 -> 0 | U5: =S5*T5 -> 0 | X5: =V5*W5 -> 0 | AA5: =Y5*Z5 -> 0 | AD5: =AB5*AC5 -> 0
O6: 0 | R6: 0 | U6: 0 | X6: 0 | AA6: 0 | AD6: 0
B7: Di | O7: 0 | R7: 0 | U7: 0 | X7: 0 | AA7: 0 | AD7: 0 | AH7: =SUM(O7:O9,R7:R9,U7:U9,X7:X9,AA7:AA9,AD7:AD9) -> 0
O8: 0 | R8: 0 | U8: 0 | X8: 0 | AA8: 0 | AD8: 0
O9: 0 | R9: 0 | U9: 0 | X9: 0 | AA9: 0 | AD9: 0
B10: Mi | O10: 0 | R10: 0 | U10: 0 | X10: 0 | AA10: 0 | AD10: 0 | AH10: =SUM(O10:O12,R10:R12,U10:U12,X10:X12,AA10:AA12,AD10:AD12) -> 0
O11: 0 | R11: 0 | U11: 0 | X11: 0 | AA11: 0 | AD11: 0
O12: 0 | R12: 0 | U12: 0 | X12: 0 | AA12: 0 | AD12: 0
B13: Do | O13: 0 | R13: 0 | U13: 0 | X13: 0 | AA13: 0 | AD13: 0 | AH13: =SUM(O13:O15,R13:R15,U13:U15,X13:X15,AA13:AA15,AD13:AD15) -> 0
O14: 0 | R14: 0 | U14: 0 | X14: 0 | AA14: 0 | AD14: 0
O15: 0 | R15: 0 | U15: 0 | X15: 0 | AA15: 0 | AD15: 0
B16: Fr | O16: 0 | R16: 0 | U16: 0 | X16: 0 | AA16: 0 | AD16: 0 | AH16: =SUM(O16:O18,R16:R18,U16:U18,X16:X18,AA16:AA18,AD16:AD18) -> 0
O17: 0 | R17: 0 | U17: 0 | X17: 0 | AA17: 0 | AD17: 0
O18: 0 | R18: 0 | U18: 0 | X18: 0 | AA18: 0 | AD18: 0
B19: Sa | O19: 0 | R19: 0 | U19: 0 | X19: 0 | AA19: 0 | AD19: 0 | AH19: =SUM(O19:O21,R19:R21,U19:U21,X19:X21,AA19:AA21,AD19:AD21) -> 0
O20: 0 | R20: 0 | U20: 0 | X20: 0 | AA20: 0 | AD20: 0
O21: 0 | R21: 0 | U21: 0 | X21: 0 | AA21: 0 | AD21: 0
B22: So | O22: 0 | R22: 0 | U22: 0 | X22: 0 | AA22: 0 | AD22: 0 | AH22: =SUM(O22:O24,R22:R24,U22:U24,X22:X24,AA22:AA24,AD22:AD24) -> 0
O23: 0 | R23: 0 | U23: 0 | X23: 0 | AA23: 0 | AD23: 0
O24: 0 | R24: 0 | U24: 0 | X24: 0 | AA24: 0 | AD24: 0
K25: Total | M25: =SUM(M4:M24) -> 0 | O25: =SUM(O4:O24) -> 0 | P25: =SUM(P4:P24) -> 0 | R25: =SUM(R4:R24) -> 0 | S25: =SUM(S4:S24) -> 0 | U25: =SUM(U4:U24) -> 0 | V25: =SUM(V4:V24) -> 0 | X25: =SUM(X4:X24) -> 0 | Y25: =SUM(Y4:Y24) -> 0 | AA25: =SUM(AA4:AA24) -> 0 | AB25: =SUM(AB4:AB24) -> 0 | AD25: =SUM(AD4:AD24) -> 0 | AF25: TOTAL LOAD | AH25: =SUM(AH4:AH24) -> 0
B26: avg | D26: =IF(COUNTA(D4:D24)=0,"",AVERAGE(D4:D24)) ->  | E26: =IF(COUNTA(E4:E24)=0,"",AVERAGE(E4:E24)) ->  | F26: =IF(COUNTA(F4:F24)=0,"",AVERAGE(F4:F24)) ->  | G26: =IF(COUNTA(G4:G24)=0,"",AVERAGE(G4:G24)) ->  | H26: =IF(COUNTA(H4:H24)=0,"",COUNTIF(H4:H24,"x")) ->  | K26: Zone | M26: 1 | N26: 2 | O26: 3 | P26: 1 | Q26: 2 | R26: 3 | S26: 1 | T26: 2 | U26: 3 | V26: 1 | W26: 2 | X26: 3 | Y26: 1 | Z26: 2 | AA26: 3 | AB26: 1 | AC26: 2 | AD26: 3 | AF26: Mittelwert | AH26: =AVERAGE(AH4:AH24) -> 0
K27: Einheiten pro Zone (RPE) | M27: =IF(Beanspruchungverteilung!$AT$21="x",COUNTIF(N4:N24,"<3.5"),COUNTIF(N4:N24,"<4.5")) -> 0 | N27: =COUNT(N4:N24)-(M27+O27) -> 0 | O27: =IF(Beanspruchungverteilung!$AT$21="x",COUNTIF(N4:N24,">5.5"),COUNTIF(N4:N24,">6.5")) -> 0 | P27: =IF(Beanspruchungverteilung!$AT$21="x",COUNTIF(Q4:Q24,"<3.5"),COUNTIF(Q4:Q24,"<4.5")) -> 0 | Q27: =COUNT(Q4:Q24)-(P27+R27) -> 0 | R27: =IF(Beanspruchungverteilung!$AT$21="x",COUNTIF(Q4:Q24,">5.5"),COUNTIF(Q4:Q24,">6.5")) -> 0 | S27: =IF(Beanspruchungverteilung!$AT$21="x",COUNTIF(T4:T24,"<3.5"),COUNTIF(T4:T24,"<4.5")) -> 0 | T27: =COUNT(T4:T24)-(S27+U27) -> 0 | U27: =IF(Beanspruchungverteilung!$AT$21="x",COUNTIF(T4:T24,">5.5"),COUNTIF(T4:T24,">6.5")) -> 0 | V27: =IF(Beanspruchungverteilung!$AT$21="x",COUNTIF(W4:W24,"<3.5"),COUNTIF(W4:W24,"<4.5")) -> 0 | W27: =COUNT(W4:W24)-(V27+X27) -> 0 | X27: =IF(Beanspruchungverteilung!$AT$21="x",COUNTIF(W4:W24,">5.5"),COUNTIF(W4:W24,">6.5")) -> 0 | Y27: =IF(Beanspruchungverteilung!$AT$21="x",COUNTIF(Z4:Z24,"<3.5"),COUNTIF(Z4:Z24,"<4.5")) -> 0 | Z27: =COUNT(Z4:Z24)-(Y27+AA27) -> 0 | AA27: =IF(Beanspruchungverteilung!$AT$21="x",COUNTIF(Z4:Z24,">5.5"),COUNTIF(Z4:Z24,">6.5")) -> 0 | AB27: =IF(Beanspruchungverteilung!$AT$21="x",COUNTIF(AC4:AC24,"<3.5"),COUNTIF(AC4:AC24,"<4.5")) -> 0 | AC27: =COUNT(AC4:AC24)-(AB27+AD27) -> 0 | AD27: =IF(Beanspruchungverteilung!$AT$21="x",COUNTIF(AC4:AC24,">5.5"),COUNTIF(AC4:AC24,">6.5")) -> 0 | AF27: Standardabweichung | AH27: =STDEVP(AH4:AH24) -> 0
D28: Foster's Skala | H28: RPE | K28: Zeit pro Zone (RPE) | M28: =IF(Beanspruchungverteilung!$AT$21="x",SUMIF(N4:N24,"<3.5",M4:M24),SUMIF(N4:N24,"<4.5",M4:M24)) -> 0 | N28: =IF(N27=0,0,SUM((M25)-(M28+O28))) -> 0 | O28: =IF(Beanspruchungverteilung!$AT$21="x",SUMIF(N4:N24,">5.5",M4:M24),SUMIF(N4:N24,">6.5",M4:M24)) -> 0 | P28: =IF(Beanspruchungverteilung!$AT$21="x",SUMIF(Q4:Q24,"<3.5",P4:P24),SUMIF(Q4:Q24,"<4.5",P4:P24)) -> 0 | Q28: =IF(Q27=0,0,SUM((P25)-(P28+R28))) -> 0 | R28: =IF(Beanspruchungverteilung!$AT$21="x",SUMIF(Q4:Q24,">5.5",P4:P24),SUMIF(Q4:Q24,">6.5",P4:P24)) -> 0 | S28: =IF(Beanspruchungverteilung!$AT$21="x",SUMIF(T4:T24,"<3.5",S4:S24),SUMIF(T4:T24,"<4.5",S4:S24)) -> 0 | T28: =IF(T27=0,0,SUM((S25)-(S28+U28))) -> 0 | U28: =IF(Beanspruchungverteilung!$AT$21="x",SUMIF(T4:T24,">5.5",S4:S24),SUMIF(T4:T24,">6.5",S4:S24)) -> 0 | V28: =IF(Beanspruchungverteilung!$AT$21="x",SUMIF(W4:W24,"<3.5",V4:V24),SUMIF(W4:W24,"<4.5",V4:V24)) -> 0 | W28: =IF(W27=0,0,SUM((V25)-(V28+X28))) -> 0 | X28: =IF(Beanspruchungverteilung!$AT$21="x",SUMIF(W4:W24,">5.5",V4:V24),SUMIF(W4:W24,">6.5",V4:V24)) -> 0 | Y28: =IF(Beanspruchungverteilung!$AT$21="x",SUMIF(Z4:Z24,"<3.5",Y4:Y24),SUMIF(Z4:Z24,"<4.5",Y4:Y24)) -> 0 | Z28: =IF(Z27=0,0,SUM((Y25)-(Y28+AA28))) -> 0 | AA28: =IF(Beanspruchungverteilung!$AT$21="x",SUMIF(Z4:Z24,">5.5",Y4:Y24),SUMIF(Z4:Z24,">6.5",Y4:Y24)) -> 0 | AB28: =IF(Beanspruchungverteilung!$AT$21="x",SUMIF(AC4:AC24,"<3.5",AB4:AB24),SUMIF(AC4:AC24,"<4.5",AB4:AB24)) -> 0 | AC28: =IF(AC27=0,0,SUM((AB25)-(AB28+AD28))) -> 0 | AD28: =IF(Beanspruchungverteilung!$AT$21="x",SUMIF(AC4:AC24,">5.5",AB4:AB24),SUMIF(AC4:AC24,">6.5",AB4:AB24)) -> 0
D29: Wie in Ruhe | H29: 0
D30: Sehr locker | H30: 1
D31: Locker | H31: 2 | AF31: Trainingstagen | AH31: =IF(SUM(AH4:AH24)=0,"",COUNTIF(AH4:AH24,">0")) -> 
H32: 3
D33: Etwas hart | H33: 4 | AF33: Trainingseinheiten | AH33: =IF(AH31="","",SUM(M27:AD27)) -> 
D34: Hart | H34: 5
H35: 6 | AF35: Trainingsstunden | AH35: =IF(AH31="","",SUM(M25,P25,V25,Y25,S25,AB25)/60) -> 
D36: Sehr hart | H36: 7
H37: 8 | AF37: Training Load | AH37: =IF(AH31="","",SUM(AH25)) -> 
D38: Extrem hart | H38: 9
D39: Wie mein härtestes Training | H39: 10 | AF39: Monotonie | AH39: =IF(AH31="","",(AVERAGE(AH4:AH24))/AH27) -> 
AF41: Trainingsanstrengung | AH41: =IF(AH31="","",AH37*AH39) -> 
AF43: =AJ2 -> Lauf Km | AH43: =IF(AH31="","",SUM(AJ4:AJ24)) -> 
AF45: =AK2 -> J | AH45: =IF(AH31="","",SUM(AK4:AK24)) -> 
AF47: =AL2 -> Swim Km | AH47: =IF(AH31="","",SUM(AL4:AL24)) -> 
AF49: =AM2 -> Mental Training | AH49: =IF(AH31="","",COUNTA(AM4:AM24)) -> 
AF51: =AN2 -> Regeneration | AH51: =IF(AH31="","",COUNTA(AN4:AN24)) -> 
AF53: =H2 -> Verletzung/Erkrankung | AH53: =IF(H26="","",COUNTA(H4:H24)) -> 
AF153: =AE155+1 -> 24 | AG153: =AF153+1 -> 25 | AH153: =AG153+1 -> 26
V155: =W155-1 -> 14 | W155: =X155-1 -> 15 | X155: =Y155-1 -> 16 | Y155: =Z155-1 -> 17 | Z155: =AA155-1 -> 18 | AA155: =D1 -> 19 | AB155: =AA155+1 -> 20 | AC155: =AB155+1 -> 21 | AD155: =AC155+1 -> 22 | AE155: =AD155+1 -> 23

Sheet 20
C1: Woche | D1: =INT(MOD(INT((F1-2)/7)+0.6,52+5/28))+1 -> 20 | E1: =D1+1000 -> 1020 | F1: ='19'!F1+7 -> 2013-05-13 | G1: - | H1: =F1+6 -> 2013-05-19 | AD1: =Overview!D2 -> Vorname Name | AF1: =Overview!N2 -> 0
B2: Tag | D2: Gewicht | E2: Motiv. | F2: Schlaf | G2: Schlaf | H2: Verletzung/Erkrankung | J2: Trainingsbeschreibung | M2: ='19'!M2:O2 -> Dauerlauf | P2: ='19'!P2:R2 -> Bahn/Intervall | S2: ='19'!S2:U2 -> Sprint/Koord/Tech | V2: ='19'!V2:X2 -> Kraft | Y2: ='19'!Y2:AA2 -> Alternativ | AB2: ='19'!AB2:AD2 -> Divers | AF2: Bemerkungen | AH2: Load/Tag | AJ2: Lauf Km | AK2: J | AL2: Swim Km | AM2: Mental Training | AN2: Regeneration
D3: kg | E3: [-2….+2] | F3: 1-6 | G3: Std | H3: "x" wenn ja | M3: Dauer | N3: RPE | O3: Load | P3: Dauer | Q3: RPE | R3: Load | S3: Dauer | T3: RPE | U3: Load | V3: Dauer | W3: RPE | X3: Load | Y3: Dauer | Z3: RPE | AA3: Load | AB3: Dauer | AC3: RPE | AD3: Load
B4: Mo | O4: =M4*N4 -> 0 | R4: =P4*Q4 -> 0 | U4: =S4*T4 -> 0 | X4: =V4*W4 -> 0 | AA4: =Y4*Z4 -> 0 | AD4: =AB4*AC4 -> 0 | AH4: =SUM(O4:O6,R4:R6,U4:U6,X4:X6,AA4:AA6,AD4:AD6) -> 0
O5: 0 | R5: 0 | U5: 0 | X5: 0 | AA5: 0 | AD5: 0
O6: 0 | R6: 0 | U6: 0 | X6: 0 | AA6: 0 | AD6: 0
B7: Di | O7: 0 | R7: 0 | U7: 0 | X7: 0 | AA7: 0 | AD7: 0 | AH7: =SUM(O7:O9,R7:R9,U7:U9,X7:X9,AA7:AA9,AD7:AD9) -> 0
O8: 0 | R8: 0 | U8: 0 | X8: 0 | AA8: 0 | AD8: 0
O9: 0 | R9: 0 | U9: 0 | X9: 0 | AA9: 0 | AD9: 0
B10: Mi | O10: 0 | R10: 0 | U10: 0 | X10: 0 | AA10: 0 | AD10: 0 | AH10: =SUM(O10:O12,R10:R12,U10:U12,X10:X12,AA10:AA12,AD10:AD12) -> 0
O11: 0 | R11: 0 | U11: 0 | X11: 0 | AA11: 0 | AD11: 0
O12: 0 | R12: 0 | U12: 0 | X12: 0 | AA12: 0 | AD12: 0
B13: Do | O13: 0 | R13: 0 | U13: 0 | X13: 0 | AA13: 0 | AD13: 0 | AH13: =SUM(O13:O15,R13:R15,U13:U15,X13:X15,AA13:AA15,AD13:AD15) -> 0
O14: 0 | R14: 0 | U14: 0 | X14: 0 | AA14: 0 | AD14: 0
O15: 0 | R15: 0 | U15: 0 | X15: 0 | AA15: 0 | AD15: 0
B16: Fr | O16: 0 | R16: 0 | U16: 0 | X16: 0 | AA16: 0 | AD16: 0 | AH16: =SUM(O16:O18,R16:R18,U16:U18,X16:X18,AA16:AA18,AD16:AD18) -> 0
O17: 0 | R17: 0 | U17: 0 | X17: 0 | AA17: 0 | AD17: 0
O18: 0 | R18: 0 | U18: 0 | X18: 0 | AA18: 0 | AD18: 0
B19: Sa | O19: 0 | R19: 0 | U19: 0 | X19: 0 | AA19: 0 | AD19: 0 | AH19: =SUM(O19:O21,R19:R21,U19:U21,X19:X21,AA19:AA21,AD19:AD21) -> 0
O20: 0 | R20: 0 | U20: 0 | X20: 0 | AA20: 0 | AD20: 0
O21: 0 | R21: 0 | U21: 0 | X21: 0 | AA21: 0 | AD21: 0
B22: So | O22: 0 | R22: 0 | U22: 0 | X22: 0 | AA22: 0 | AD22: 0 | AH22: =SUM(O22:O24,R22:R24,U22:U24,X22:X24,AA22:AA24,AD22:AD24) -> 0
O23: 0 | R23: 0 | U23: 0 | X23: 0 | AA23: 0 | AD23: 0
O24: 0 | R24: 0 | U24: 0 | X24: 0 | AA24: 0 | AD24: 0
K25: Total | M25: =SUM(M4:M24) -> 0 | O25: =SUM(O4:O24) -> 0 | P25: =SUM(P4:P24) -> 0 | R25: =SUM(R4:R24) -> 0 | S25: =SUM(S4:S24) -> 0 | U25: =SUM(U4:U24) -> 0 | V25: =SUM(V4:V24) -> 0 | X25: =SUM(X4:X24) -> 0 | Y25: =SUM(Y4:Y24) -> 0 | AA25: =SUM(AA4:AA24) -> 0 | AB25: =SUM(AB4:AB24) -> 0 | AD25: =SUM(AD4:AD24) -> 0 | AF25: TOTAL LOAD | AH25: =SUM(AH4:AH24) -> 0
B26: avg | D26: =IF(COUNTA(D4:D24)=0,"",AVERAGE(D4:D24)) ->  | E26: =IF(COUNTA(E4:E24)=0,"",AVERAGE(E4:E24)) ->  | F26: =IF(COUNTA(F4:F24)=0,"",AVERAGE(F4:F24)) ->  | G26: =IF(COUNTA(G4:G24)=0,"",AVERAGE(G4:G24)) ->  | H26: =IF(COUNTA(H4:H24)=0,"",COUNTIF(H4:H24,"x")) ->  | K26: Zone | M26: 1 | N26: 2 | O26: 3 | P26: 1 | Q26: 2 | R26: 3 | S26: 1 | T26: 2 | U26: 3 | V26: 1 | W26: 2 | X26: 3 | Y26: 1 | Z26: 2 | AA26: 3 | AB26: 1 | AC26: 2 | AD26: 3 | AF26: Mittelwert | AH26: =AVERAGE(AH4:AH24) -> 0
K27: Einheiten pro Zone (RPE) | M27: =IF(Beanspruchungverteilung!$AT$21="x",COUNTIF(N4:N24,"<3.5"),COUNTIF(N4:N24,"<4.5")) -> 0 | N27: =COUNT(N4:N24)-(M27+O27) -> 0 | O27: =IF(Beanspruchungverteilung!$AT$21="x",COUNTIF(N4:N24,">5.5"),COUNTIF(N4:N24,">6.5")) -> 0 | P27: =IF(Beanspruchungverteilung!$AT$21="x",COUNTIF(Q4:Q24,"<3.5"),COUNTIF(Q4:Q24,"<4.5")) -> 0 | Q27: =COUNT(Q4:Q24)-(P27+R27) -> 0 | R27: =IF(Beanspruchungverteilung!$AT$21="x",COUNTIF(Q4:Q24,">5.5"),COUNTIF(Q4:Q24,">6.5")) -> 0 | S27: =IF(Beanspruchungverteilung!$AT$21="x",COUNTIF(T4:T24,"<3.5"),COUNTIF(T4:T24,"<4.5")) -> 0 | T27: =COUNT(T4:T24)-(S27+U27) -> 0 | U27: =IF(Beanspruchungverteilung!$AT$21="x",COUNTIF(T4:T24,">5.5"),COUNTIF(T4:T24,">6.5")) -> 0 | V27: =IF(Beanspruchungverteilung!$AT$21="x",COUNTIF(W4:W24,"<3.5"),COUNTIF(W4:W24,"<4.5")) -> 0 | W27: =COUNT(W4:W24)-(V27+X27) -> 0 | X27: =IF(Beanspruchungverteilung!$AT$21="x",COUNTIF(W4:W24,">5.5"),COUNTIF(W4:W24,">6.5")) -> 0 | Y27: =IF(Beanspruchungverteilung!$AT$21="x",COUNTIF(Z4:Z24,"<3.5"),COUNTIF(Z4:Z24,"<4.5")) -> 0 | Z27: =COUNT(Z4:Z24)-(Y27+AA27) -> 0 | AA27: =IF(Beanspruchungverteilung!$AT$21="x",COUNTIF(Z4:Z24,">5.5"),COUNTIF(Z4:Z24,">6.5")) -> 0 | AB27: =IF(Beanspruchungverteilung!$AT$21="x",COUNTIF(AC4:AC24,"<3.5"),COUNTIF(AC4:AC24,"<4.5")) -> 0 | AC27: =COUNT(AC4:AC24)-(AB27+AD27) -> 0 | AD27: =IF(Beanspruchungverteilung!$AT$21="x",COUNTIF(AC4:AC24,">5.5"),COUNTIF(AC4:AC24,">6.5")) -> 0 | AF27: Standardabweichung | AH27: =STDEVP(AH4:AH24) -> 0
D28: Foster's Skala | H28: RPE | K28: Zeit pro Zone (RPE) | M28: =IF(Beanspruchungverteilung!$AT$21="x",SUMIF(N4:N24,"<3.5",M4:M24),SUMIF(N4:N24,"<4.5",M4:M24)) -> 0 | N28: =IF(N27=0,0,SUM((M25)-(M28+O28))) -> 0 | O28: =IF(Beanspruchungverteilung!$AT$21="x",SUMIF(N4:N24,">5.5",M4:M24),SUMIF(N4:N24,">6.5",M4:M24)) -> 0 | P28: =IF(Beanspruchungverteilung!$AT$21="x",SUMIF(Q4:Q24,"<3.5",P4:P24),SUMIF(Q4:Q24,"<4.5",P4:P24)) -> 0 | Q28: =IF(Q27=0,0,SUM((P25)-(P28+R28))) -> 0 | R28: =IF(Beanspruchungverteilung!$AT$21="x",SUMIF(Q4:Q24,">5.5",P4:P24),SUMIF(Q4:Q24,">6.5",P4:P24)) -> 0 | S28: =IF(Beanspruchungverteilung!$AT$21="x",SUMIF(T4:T24,"<3.5",S4:S24),SUMIF(T4:T24,"<4.5",S4:S24)) -> 0 | T28: =IF(T27=0,0,SUM((S25)-(S28+U28))) -> 0 | U28: =IF(Beanspruchungverteilung!$AT$21="x",SUMIF(T4:T24,">5.5",S4:S24),SUMIF(T4:T24,">6.5",S4:S24)) -> 0 | V28: =IF(Beanspruchungverteilung!$AT$21="x",SUMIF(W4:W24,"<3.5",V4:V24),SUMIF(W4:W24,"<4.5",V4:V24)) -> 0 | W28: =IF(W27=0,0,SUM((V25)-(V28+X28))) -> 0 | X28: =IF(Beanspruchungverteilung!$AT$21="x",SUMIF(W4:W24,">5.5",V4:V24),SUMIF(W4:W24,">6.5",V4:V24)) -> 0 | Y28: =IF(Beanspruchungverteilung!$AT$21="x",SUMIF(Z4:Z24,"<3.5",Y4:Y24),SUMIF(Z4:Z24,"<4.5",Y4:Y24)) -> 0 | Z28: =IF(Z27=0,0,SUM((Y25)-(Y28+AA28))) -> 0 | AA28: =IF(Beanspruchungverteilung!$AT$21="x",SUMIF(Z4:Z24,">5.5",Y4:Y24),SUMIF(Z4:Z24,">6.5",Y4:Y24)) -> 0 | AB28: =IF(Beanspruchungverteilung!$AT$21="x",SUMIF(AC4:AC24,"<3.5",AB4:AB24),SUMIF(AC4:AC24,"<4.5",AB4:AB24)) -> 0 | AC28: =IF(AC27=0,0,SUM((AB25)-(AB28+AD28))) -> 0 | AD28: =IF(Beanspruchungverteilung!$AT$21="x",SUMIF(AC4:AC24,">5.5",AB4:AB24),SUMIF(AC4:AC24,">6.5",AB4:AB24)) -> 0
D29: Wie in Ruhe | H29: 0
D30: Sehr locker | H30: 1
D31: Locker | H31: 2 | AF31: Trainingstagen | AH31: =IF(SUM(AH4:AH24)=0,"",COUNTIF(AH4:AH24,">0")) -> 
H32: 3
D33: Etwas hart | H33: 4 | AF33: Trainingseinheiten | AH33: =IF(AH31="","",SUM(M27:AD27)) -> 
D34: Hart | H34: 5
H35: 6 | AF35: Trainingsstunden | AH35: =IF(AH31="","",SUM(M25,P25,V25,Y25,S25,AB25)/60) -> 
D36: Sehr hart | H36: 7
H37: 8 | AF37: Training Load | AH37: =IF(AH31="","",SUM(AH25)) -> 
D38: Extrem hart | H38: 9
D39: Wie mein härtestes Training | H39: 10 | AF39: Monotonie | AH39: =IF(AH31="","",(AVERAGE(AH4:AH24))/AH27) -> 
AF41: Trainingsanstrengung | AH41: =IF(AH31="","",AH37*AH39) -> 
AF43: =AJ2 -> Lauf Km | AH43: =IF(AH31="","",SUM(AJ4:AJ24)) -> 
AF45: =AK2 -> J | AH45: =IF(AH31="","",SUM(AK4:AK24)) -> 
AF47: =AL2 -> Swim Km | AH47: =IF(AH31="","",SUM(AL4:AL24)) -> 
AF49: =AM2 -> Mental Training | AH49: =IF(AH31="","",COUNTA(AM4:AM24)) -> 
AF51: =AN2 -> Regeneration | AH51: =IF(AH31="","",COUNTA(AN4:AN24)) -> 
AF53: =H2 -> Verletzung/Erkrankung | AH53: =IF(H26="","",COUNTA(H4:H24)) -> 
V136: =W136-1 -> 15 | W136: =X136-1 -> 16 | X136: =Y136-1 -> 17 | Y136: =Z136-1 -> 18 | Z136: =AA136-1 -> 19 | AA136: =D1 -> 20 | AB136: =AA136+1 -> 21 | AC136: =AB136+1 -> 22
AD155: =AC136+1 -> 23 | AE155: =AD155+1 -> 24 | AF155: =AE155+1 -> 25 | AG155: =AF155+1 -> 26 | AH155: =AG155+1 -> 27

Sheet 21
C1: Woche | D1: =INT(MOD(INT((F1-2)/7)+0.6,52+5/28))+1 -> 21 | E1: =D1+1000 -> 1021 | F1: ='20'!F1+7 -> 2013-05-20 | G1: - | H1: =F1+6 -> 2013-05-26 | AD1: =Overview!D2 -> Vorname Name | AF1: =Overview!N2 -> 0
B2: Tag | D2: Gewicht | E2: Motiv. | F2: Schlaf | G2: Schlaf | H2: Verletzung/Erkrankung | J2: Trainingsbeschreibung | M2: ='19'!M2:O2 -> Dauerlauf | P2: ='19'!P2:R2 -> Bahn/Intervall | S2: ='19'!S2:U2 -> Sprint/Koord/Tech | V2: ='19'!V2:X2 -> Kraft | Y2: ='19'!Y2:AA2 -> Alternativ | AB2: ='19'!AB2:AD2 -> Divers | AF2: Bemerkungen | AH2: Load/Tag | AJ2: Lauf Km | AK2: J | AL2: Swim Km | AM2: Mental Training | AN2: Regeneration
D3: kg | E3: [-2….+2] | F3: 1-6 | G3: Std | H3: "x" wenn ja | M3: Dauer | N3: RPE | O3: Load | P3: Dauer | Q3: RPE | R3: Load | S3: Dauer | T3: RPE | U3: Load | V3: Dauer | W3: RPE | X3: Load | Y3: Dauer | Z3: RPE | AA3: Load | AB3: Dauer | AC3: RPE | AD3: Load
B4: Mo | O4: =M4*N4 -> 0 | R4: =P4*Q4 -> 0 | U4: =S4*T4 -> 0 | X4: =V4*W4 -> 0 | AA4: =Y4*Z4 -> 0 | AD4: =AB4*AC4 -> 0 | AH4: =SUM(O4:O6,R4:R6,U4:U6,X4:X6,AA4:AA6,AD4:AD6) -> 0
O5: 0 | R5: 0 | U5: 0 | X5: 0 | AA5: 0 | AD5: 0
O6: 0 | R6: 0 | U6: 0 | X6: 0 | AA6: 0 | AD6: 0
B7: Di | O7: 0 | R7: 0 | U7: 0 | X7: 0 | AA7: 0 | AD7: 0 | AH7: =SUM(O7:O9,R7:R9,U7:U9,X7:X9,AA7:AA9,AD7:AD9) -> 0
O8: 0 | R8: 0 | U8: 0 | X8: 0 | AA8: 0 | AD8: 0
O9: 0 | R9: 0 | U9: 0 | X9: 0 | AA9: 0 | AD9: 0
B10: Mi | O10: 0 | R10: 0 | U10: 0 | X10: 0 | AA10: 0 | AD10: 0 | AH10: =SUM(O10:O12,R10:R12,U10:U12,X10:X12,AA10:AA12,AD10:AD12) -> 0
O11: 0 | R11: 0 | U11: 0 | X11: 0 | AA11: 0 | AD11: 0
O12: 0 | R12: 0 | U12: 0 | X12: 0 | AA12: 0 | AD12: 0
B13: Do | O13: 0 | R13: 0 | U13: 0 | X13: 0 | AA13: 0 | AD13: 0 | AH13: =SUM(O13:O15,R13:R15,U13:U15,X13:X15,AA13:AA15,AD13:AD15) -> 0
O14: 0 | R14: 0 | U14: 0 | X14: 0 | AA14: 0 | AD14: 0
O15: 0 | R15: 0 | U15: 0 | X15: 0 | AA15: 0 | AD15: 0
B16: Fr | O16: 0 | R16: 0 | U16: 0 | X16: 0 | AA16: 0 | AD16: 0 | AH16: =SUM(O16:O18,R16:R18,U16:U18,X16:X18,AA16:AA18,AD16:AD18) -> 0
O17: 0 | R17: 0 | U17: 0 | X17: 0 | AA17: 0 | AD17: 0
O18: 0 | R18: 0 | U18: 0 | X18: 0 | AA18: 0 | AD18: 0
B19: Sa | O19: 0 | R19: 0 | U19: 0 | X19: 0 | AA19: 0 | AD19: 0 | AH19: =SUM(O19:O21,R19:R21,U19:U21,X19:X21,AA19:AA21,AD19:AD21) -> 0
O20: 0 | R20: 0 | U20: 0 | X20: 0 | AA20: 0 | AD20: 0
O21: 0 | R21: 0 | U21: 0 | X21: 0 | AA21: 0 | AD21: 0
B22: So | O22: 0 | R22: 0 | U22: 0 | X22: 0 | AA22: 0 | AD22: 0 | AH22: =SUM(O22:O24,R22:R24,U22:U24,X22:X24,AA22:AA24,AD22:AD24) -> 0
O23: 0 | R23: 0 | U23: 0 | X23: 0 | AA23: 0 | AD23: 0
O24: 0 | R24: 0 | U24: 0 | X24: 0 | AA24: 0 | AD24: 0
K25: Total | M25: =SUM(M4:M24) -> 0 | O25: =SUM(O4:O24) -> 0 | P25: =SUM(P4:P24) -> 0 | R25: =SUM(R4:R24) -> 0 | S25: =SUM(S4:S24) -> 0 | U25: =SUM(U4:U24) -> 0 | V25: =SUM(V4:V24) -> 0 | X25: =SUM(X4:X24) -> 0 | Y25: =SUM(Y4:Y24) -> 0 | AA25: =SUM(AA4:AA24) -> 0 | AB25: =SUM(AB4:AB24) -> 0 | AD25: =SUM(AD4:AD24) -> 0 | AF25: TOTAL LOAD | AH25: =SUM(AH4:AH24) -> 0
B26: avg | D26: =IF(COUNTA(D4:D24)=0,"",AVERAGE(D4:D24)) ->  | E26: =IF(COUNTA(E4:E24)=0,"",AVERAGE(E4:E24)) ->  | F26: =IF(COUNTA(F4:F24)=0,"",AVERAGE(F4:F24)) ->  | G26: =IF(COUNTA(G4:G24)=0,"",AVERAGE(G4:G24)) ->  | H26: =IF(COUNTA(H4:H24)=0,"",COUNTIF(H4:H24,"x")) ->  | K26: Zone | M26: 1 | N26: 2 | O26: 3 | P26: 1 | Q26: 2 | R26: 3 | S26: 1 | T26: 2 | U26: 3 | V26: 1 | W26: 2 | X26: 3 | Y26: 1 | Z26: 2 | AA26: 3 | AB26: 1 | AC26: 2 | AD26: 3 | AF26: Mittelwert | AH26: =AVERAGE(AH4:AH24) -> 0
K27: Einheiten pro Zone (RPE) | M27: =IF(Beanspruchungverteilung!$AT$21="x",COUNTIF(N4:N24,"<3.5"),COUNTIF(N4:N24,"<4.5")) -> 0 | N27: =COUNT(N4:N24)-(M27+O27) -> 0 | O27: =IF(Beanspruchungverteilung!$AT$21="x",COUNTIF(N4:N24,">5.5"),COUNTIF(N4:N24,">6.5")) -> 0 | P27: =IF(Beanspruchungverteilung!$AT$21="x",COUNTIF(Q4:Q24,"<3.5"),COUNTIF(Q4:Q24,"<4.5")) -> 0 | Q27: =COUNT(Q4:Q24)-(P27+R27) -> 0 | R27: =IF(Beanspruchungverteilung!$AT$21="x",COUNTIF(Q4:Q24,">5.5"),COUNTIF(Q4:Q24,">6.5")) -> 0 | S27: =IF(Beanspruchungverteilung!$AT$21="x",COUNTIF(T4:T24,"<3.5"),COUNTIF(T4:T24,"<4.5")) -> 0 | T27: =COUNT(T4:T24)-(S27+U27) -> 0 | U27: =IF(Beanspruchungverteilung!$AT$21="x",COUNTIF(T4:T24,">5.5"),COUNTIF(T4:T24,">6.5")) -> 0 | V27: =IF(Beanspruchungverteilung!$AT$21="x",COUNTIF(W4:W24,"<3.5"),COUNTIF(W4:W24,"<4.5")) -> 0 | W27: =COUNT(W4:W24)-(V27+X27) -> 0 | X27: =IF(Beanspruchungverteilung!$AT$21="x",COUNTIF(W4:W24,">5.5"),COUNTIF(W4:W24,">6.5")) -> 0 | Y27: =IF(Beanspruchungverteilung!$AT$21="x",COUNTIF(Z4:Z24,"<3.5"),COUNTIF(Z4:Z24,"<4.5")) -> 0 | Z27: =COUNT(Z4:Z24)-(Y27+AA27) -> 0 | AA27: =IF(Beanspruchungverteilung!$AT$21="x",COUNTIF(Z4:Z24,">5.5"),COUNTIF(Z4:Z24,">6.5")) -> 0 | AB27: =IF(Beanspruchungverteilung!$AT$21="x",COUNTIF(AC4:AC24,"<3.5"),COUNTIF(AC4:AC24,"<4.5")) -> 0 | AC27: =COUNT(AC4:AC24)-(AB27+AD27) -> 0 | AD27: =IF(Beanspruchungverteilung!$AT$21="x",COUNTIF(AC4:AC24,">5.5"),COUNTIF(AC4:AC24,">6.5")) -> 0 | AF27: Standardabweichung | AH27: =STDEVP(AH4:AH24) -> 0
D28: Foster's Skala | H28: RPE | K28: Zeit pro Zone (RPE) | M28: =IF(Beanspruchungverteilung!$AT$21="x",SUMIF(N4:N24,"<3.5",M4:M24),SUMIF(N4:N24,"<4.5",M4:M24)) -> 0 | N28: =IF(N27=0,0,SUM((M25)-(M28+O28))) -> 0 | O28: =IF(Beanspruchungverteilung!$AT$21="x",SUMIF(N4:N24,">5.5",M4:M24),SUMIF(N4:N24,">6.5",M4:M24)) -> 0 | P28: =IF(Beanspruchungverteilung!$AT$21="x",SUMIF(Q4:Q24,"<3.5",P4:P24),SUMIF(Q4:Q24,"<4.5",P4:P24)) -> 0 | Q28: =IF(Q27=0,0,SUM((P25)-(P28+R28))) -> 0 | R28: =IF(Beanspruchungverteilung!$AT$21="x",SUMIF(Q4:Q24,">5.5",P4:P24),SUMIF(Q4:Q24,">6.5",P4:P24)) -> 0 | S28: =IF(Beanspruchungverteilung!$AT$21="x",SUMIF(T4:T24,"<3.5",S4:S24),SUMIF(T4:T24,"<4.5",S4:S24)) -> 0 | T28: =IF(T27=0,0,SUM((S25)-(S28+U28))) -> 0 | U28: =IF(Beanspruchungverteilung!$AT$21="x",SUMIF(T4:T24,">5.5",S4:S24),SUMIF(T4:T24,">6.5",S4:S24)) -> 0 | V28: =IF(Beanspruchungverteilung!$AT$21="x",SUMIF(W4:W24,"<3.5",V4:V24),SUMIF(W4:W24,"<4.5",V4:V24)) -> 0 | W28: =IF(W27=0,0,SUM((V25)-(V28+X28))) -> 0 | X28: =IF(Beanspruchungverteilung!$AT$21="x",SUMIF(W4:W24,">5.5",V4:V24),SUMIF(W4:W24,">6.5",V4:V24)) -> 0 | Y28: =IF(Beanspruchungverteilung!$AT$21="x",SUMIF(Z4:Z24,"<3.5",Y4:Y24),SUMIF(Z4:Z24,"<4.5",Y4:Y24)) -> 0 | Z28: =IF(Z27=0,0,SUM((Y25)-(Y28+AA28))) -> 0 | AA28: =IF(Beanspruchungverteilung!$AT$21="x",SUMIF(Z4:Z24,">5.5",Y4:Y24),SUMIF(Z4:Z24,">6.5",Y4:Y24)) -> 0 | AB28: =IF(Beanspruchungverteilung!$AT$21="x",SUMIF(AC4:AC24,"<3.5",AB4:AB24),SUMIF(AC4:AC24,"<4.5",AB4:AB24)) -> 0 | AC28: =IF(AC27=0,0,SUM((AB25)-(AB28+AD28))) -> 0 | AD28: =IF(Beanspruchungverteilung!$AT$21="x",SUMIF(AC4:AC24,">5.5",AB4:AB24),SUMIF(AC4:AC24,">6.5",AB4:AB24)) -> 0
D29: Wie in Ruhe | H29: 0
D30: Sehr locker | H30: 1
D31: Locker | H31: 2 | AF31: Trainingstagen | AH31: =IF(SUM(AH4:AH24)=0,"",COUNTIF(AH4:AH24,">0")) -> 
H32: 3
D33: Etwas hart | H33: 4 | AF33: Trainingseinheiten | AH33: =IF(AH31="","",SUM(M27:AD27)) -> 
D34: Hart | H34: 5
H35: 6 | AF35: Trainingsstunden | AH35: =IF(AH31="","",SUM(M25,P25,V25,Y25,S25,AB25)/60) -> 
D36: Sehr hart | H36: 7
H37: 8 | AF37: Training Load | AH37: =IF(AH31="","",SUM(AH25)) -> 
D38: Extrem hart | H38: 9
D39: Wie mein härtestes Training | H39: 10 | AF39: Monotonie | AH39: =IF(AH31="","",(AVERAGE(AH4:AH24))/AH27) -> 
AF41: Trainingsanstrengung | AH41: =IF(AH31="","",AH37*AH39) -> 
AF43: =AJ2 -> Lauf Km | AH43: =IF(AH31="","",SUM(AJ4:AJ24)) -> 
AF45: =AK2 -> J | AH45: =IF(AH31="","",SUM(AK4:AK24)) -> 
AF47: =AL2 -> Swim Km | AH47: =IF(AH31="","",SUM(AL4:AL24)) -> 
AF49: =AM2 -> Mental Training | AH49: =IF(AH31="","",COUNTA(AM4:AM24)) -> 
AF51: =AN2 -> Regeneration | AH51: =IF(AH31="","",COUNTA(AN4:AN24)) -> 
AF53: =H2 -> Verletzung/Erkrankung | AH53: =IF(H26="","",COUNTA(H4:H24)) -> 
V134: =W134-1 -> 16 | W134: =X134-1 -> 17 | X134: =Y134-1 -> 18 | Y134: =Z134-1 -> 19 | Z134: =AA134-1 -> 20 | AA134: =D1 -> 21 | AB134: =AA134+1 -> 22 | AC134: =AB134+1 -> 23
AD155: =AC134+1 -> 24 | AE155: =AD155+1 -> 25

Sheet 22
C1: Woche | D1: =INT(MOD(INT((F1-2)/7)+0.6,52+5/28))+1 -> 22 | E1: =D1+1000 -> 1022 | F1: ='21'!F1+7 -> 2013-05-27 | G1: - | H1: =F1+6 -> 2013-06-02 | AD1: =Overview!D2 -> Vorname Name | AF1: =Overview!N2 -> 0
B2: Tag | D2: Gewicht | E2: Motiv. | F2: Schlaf | G2: Schlaf | H2: Verletzung/Erkrankung | J2: Trainingsbeschreibung | M2: ='19'!M2:O2 -> Dauerlauf | P2: ='19'!P2:R2 -> Bahn/Intervall | S2: ='19'!S2:U2 -> Sprint/Koord/Tech | V2: ='19'!V2:X2 -> Kraft | Y2: ='19'!Y2:AA2 -> Alternativ | AB2: ='19'!AB2:AD2 -> Divers | AF2: Bemerkungen | AH2: Load/Tag | AJ2: Lauf Km | AK2: J | AL2: Swim Km | AM2: Mental Training | AN2: Regeneration
D3: kg | E3: [-2….+2] | F3: 1-6 | G3: Std | H3: "x" wenn ja | M3: Dauer | N3: RPE | O3: Load | P3: Dauer | Q3: RPE | R3: Load | S3: Dauer | T3: RPE | U3: Load | V3: Dauer | W3: RPE | X3: Load | Y3: Dauer | Z3: RPE | AA3: Load | AB3: Dauer | AC3: RPE | AD3: Load
B4: Mo | O4: =M4*N4 -> 0 | R4: =P4*Q4 -> 0 | U4: =S4*T4 -> 0 | X4: =V4*W4 -> 0 | AA4: =Y4*Z4 -> 0 | AD4: =AB4*AC4 -> 0 | AH4: =SUM(O4:O6,R4:R6,U4:U6,X4:X6,AA4:AA6,AD4:AD6) -> 0
O5: 0 | R5: 0 | U5: 0 | X5: 0 | AA5: 0 | AD5: 0
O6: 0 | R6: 0 | U6: 0 | X6: 0 | AA6: 0 | AD6: 0
B7: Di | O7: 0 | R7: 0 | U7: 0 | X7: 0 | AA7: 0 | AD7: 0 | AH7: =SUM(O7:O9,R7:R9,U7:U9,X7:X9,AA7:AA9,AD7:AD9) -> 0
O8: 0 | R8: 0 | U8: 0 | X8: 0 | AA8: 0 | AD8: 0
O9: 0 | R9: 0 | U9: 0 | X9: 0 | AA9: 0 | AD9: 0
B10: Mi | O10: 0 | R10: 0 | U10: 0 | X10: 0 | AA10: 0 | AD10: 0 | AH10: =SUM(O10:O12,R10:R12,U10:U12,X10:X12,AA10:AA12,AD10:AD12) -> 0
O11: 0 | R11: 0 | U11: 0 | X11: 0 | AA11: 0 | AD11: 0
O12: 0 | R12: 0 | U12: 0 | X12: 0 | AA12: 0 | AD12: 0
B13: Do | O13: 0 | R13: 0 | U13: 0 | X13: 0 | AA13: 0 | AD13: 0 | AH13: =SUM(O13:O15,R13:R15,U13:U15,X13:X15,AA13:AA15,AD13:AD15) -> 0
O14: 0 | R14: 0 | U14: 0 | X14: 0 | AA14: 0 | AD14: 0
O15: 0 | R15: 0 | U15: 0 | X15: 0 | AA15: 0 | AD15: 0
B16: Fr | O16: 0 | R16: 0 | U16: 0 | X16: 0 | AA16: 0 | AD16: 0 | AH16: =SUM(O16:O18,R16:R18,U16:U18,X16:X18,AA16:AA18,AD16:AD18) -> 0
O17: 0 | R17: 0 | U17: 0 | X17: 0 | AA17: 0 | AD17: 0
O18: 0 | R18: 0 | U18: 0 | X18: 0 | AA18: 0 | AD18: 0
B19: Sa | O19: 0 | R19: 0 | U19: 0 | X19: 0 | AA19: 0 | AD19: 0 | AH19: =SUM(O19:O21,R19:R21,U19:U21,X19:X21,AA19:AA21,AD19:AD21) -> 0
O20: 0 | R20: 0 | U20: 0 | X20: 0 | AA20: 0 | AD20: 0
O21: 0 | R21: 0 | U21: 0 | X21: 0 | AA21: 0 | AD21: 0
B22: So | O22: 0 | R22: 0 | U22: 0 | X22: 0 | AA22: 0 | AD22: 0 | AH22: =SUM(O22:O24,R22:R24,U22:U24,X22:X24,AA22:AA24,AD22:AD24) -> 0
O23: 0 | R23: 0 | U23: 0 | X23: 0 | AA23: 0 | AD23: 0
O24: 0 | R24: 0 | U24: 0 | X24: 0 | AA24: 0 | AD24: 0
K25: Total | M25: =SUM(M4:M24) -> 0 | O25: =SUM(O4:O24) -> 0 | P25: =SUM(P4:P24) -> 0 | R25: =SUM(R4:R24) -> 0 | S25: =SUM(S4:S24) -> 0 | U25: =SUM(U4:U24) -> 0 | V25: =SUM(V4:V24) -> 0 | X25: =SUM(X4:X24) -> 0 | Y25: =SUM(Y4:Y24) -> 0 | AA25: =SUM(AA4:AA24) -> 0 | AB25: =SUM(AB4:AB24) -> 0 | AD25: =SUM(AD4:AD24) -> 0 | AF25: TOTAL LOAD | AH25: =SUM(AH4:AH24) -> 0
B26: avg | D26: =IF(COUNTA(D4:D24)=0,"",AVERAGE(D4:D24)) ->  | E26: =IF(COUNTA(E4:E24)=0,"",AVERAGE(E4:E24)) ->  | F26: =IF(COUNTA(F4:F24)=0,"",AVERAGE(F4:F24)) ->  | G26: =IF(COUNTA(G4:G24)=0,"",AVERAGE(G4:G24)) ->  | H26: =IF(COUNTA(H4:H24)=0,"",COUNTIF(H4:H24,"x")) ->  | K26: Zone | M26: 1 | N26: 2 | O26: 3 | P26: 1 | Q26: 2 | R26: 3 | S26: 1 | T26: 2 | U26: 3 | V26: 1 | W26: 2 | X26: 3 | Y26: 1 | Z26: 2 | AA26: 3 | AB26: 1 | AC26: 2 | AD26: 3 | AF26: Mittelwert | AH26: =AVERAGE(AH4:AH24) -> 0
K27: Einheiten pro Zone (RPE) | M27: =IF(Beanspruchungverteilung!$AT$21="x",COUNTIF(N4:N24,"<3.5"),COUNTIF(N4:N24,"<4.5")) -> 0 | N27: =COUNT(N4:N24)-(M27+O27) -> 0 | O27: =IF(Beanspruchungverteilung!$AT$21="x",COUNTIF(N4:N24,">5.5"),COUNTIF(N4:N24,">6.5")) -> 0 | P27: =IF(Beanspruchungverteilung!$AT$21="x",COUNTIF(Q4:Q24,"<3.5"),COUNTIF(Q4:Q24,"<4.5")) -> 0 | Q27: =COUNT(Q4:Q24)-(P27+R27) -> 0 | R27: =IF(Beanspruchungverteilung!$AT$21="x",COUNTIF(Q4:Q24,">5.5"),COUNTIF(Q4:Q24,">6.5")) -> 0 | S27: =IF(Beanspruchungverteilung!$AT$21="x",COUNTIF(T4:T24,"<3.5"),COUNTIF(T4:T24,"<4.5")) -> 0 | T27: =COUNT(T4:T24)-(S27+U27) -> 0 | U27: =IF(Beanspruchungverteilung!$AT$21="x",COUNTIF(T4:T24,">5.5"),COUNTIF(T4:T24,">6.5")) -> 0 | V27: =IF(Beanspruchungverteilung!$AT$21="x",COUNTIF(W4:W24,"<3.5"),COUNTIF(W4:W24,"<4.5")) -> 0 | W27: =COUNT(W4:W24)-(V27+X27) -> 0 | X27: =IF(Beanspruchungverteilung!$AT$21="x",COUNTIF(W4:W24,">5.5"),COUNTIF(W4:W24,">6.5")) -> 0 | Y27: =IF(Beanspruchungverteilung!$AT$21="x",COUNTIF(Z4:Z24,"<3.5"),COUNTIF(Z4:Z24,"<4.5")) -> 0 | Z27: =COUNT(Z4:Z24)-(Y27+AA27) -> 0 | AA27: =IF(Beanspruchungverteilung!$AT$21="x",COUNTIF(Z4:Z24,">5.5"),COUNTIF(Z4:Z24,">6.5")) -> 0 | AB27: =IF(Beanspruchungverteilung!$AT$21="x",COUNTIF(AC4:AC24,"<3.5"),COUNTIF(AC4:AC24,"<4.5")) -> 0 | AC27: =COUNT(AC4:AC24)-(AB27+AD27) -> 0 | AD27: =IF(Beanspruchungverteilung!$AT$21="x",COUNTIF(AC4:AC24,">5.5"),COUNTIF(AC4:AC24,">6.5")) -> 0 | AF27: Standardabweichung | AH27: =STDEVP(AH4:AH24) -> 0
D28: Foster's Skala | H28: RPE | K28: Zeit pro Zone (RPE) | M28: =IF(Beanspruchungverteilung!$AT$21="x",SUMIF(N4:N24,"<3.5",M4:M24),SUMIF(N4:N24,"<4.5",M4:M24)) -> 0 | N28: =IF(N27=0,0,SUM((M25)-(M28+O28))) -> 0 | O28: =IF(Beanspruchungverteilung!$AT$21="x",SUMIF(N4:N24,">5.5",M4:M24),SUMIF(N4:N24,">6.5",M4:M24)) -> 0 | P28: =IF(Beanspruchungverteilung!$AT$21="x",SUMIF(Q4:Q24,"<3.5",P4:P24),SUMIF(Q4:Q24,"<4.5",P4:P24)) -> 0 | Q28: =IF(Q27=0,0,SUM((P25)-(P28+R28))) -> 0 | R28: =IF(Beanspruchungverteilung!$AT$21="x",SUMIF(Q4:Q24,">5.5",P4:P24),SUMIF(Q4:Q24,">6.5",P4:P24)) -> 0 | S28: =IF(Beanspruchungverteilung!$AT$21="x",SUMIF(T4:T24,"<3.5",S4:S24),SUMIF(T4:T24,"<4.5",S4:S24)) -> 0 | T28: =IF(T27=0,0,SUM((S25)-(S28+U28))) -> 0 | U28: =IF(Beanspruchungverteilung!$AT$21="x",SUMIF(T4:T24,">5.5",S4:S24),SUMIF(T4:T24,">6.5",S4:S24)) -> 0 | V28: =IF(Beanspruchungverteilung!$AT$21="x",SUMIF(W4:W24,"<3.5",V4:V24),SUMIF(W4:W24,"<4.5",V4:V24)) -> 0 | W28: =IF(W27=0,0,SUM((V25)-(V28+X28))) -> 0 | X28: =IF(Beanspruchungverteilung!$AT$21="x",SUMIF(W4:W24,">5.5",V4:V24),SUMIF(W4:W24,">6.5",V4:V24)) -> 0 | Y28: =IF(Beanspruchungverteilung!$AT$21="x",SUMIF(Z4:Z24,"<3.5",Y4:Y24),SUMIF(Z4:Z24,"<4.5",Y4:Y24)) -> 0 | Z28: =IF(Z27=0,0,SUM((Y25)-(Y28+AA28))) -> 0 | AA28: =IF(Beanspruchungverteilung!$AT$21="x",SUMIF(Z4:Z24,">5.5",Y4:Y24),SUMIF(Z4:Z24,">6.5",Y4:Y24)) -> 0 | AB28: =IF(Beanspruchungverteilung!$AT$21="x",SUMIF(AC4:AC24,"<3.5",AB4:AB24),SUMIF(AC4:AC24,"<4.5",AB4:AB24)) -> 0 | AC28: =IF(AC27=0,0,SUM((AB25)-(AB28+AD28))) -> 0 | AD28: =IF(Beanspruchungverteilung!$AT$21="x",SUMIF(AC4:AC24,">5.5",AB4:AB24),SUMIF(AC4:AC24,">6.5",AB4:AB24)) -> 0
D29: Wie in Ruhe | H29: 0
D30: Sehr locker | H30: 1
D31: Locker | H31: 2 | AF31: Trainingstagen | AH31: =IF(SUM(AH4:AH24)=0,"",COUNTIF(AH4:AH24,">0")) -> 
H32: 3
D33: Etwas hart | H33: 4 | AF33: Trainingseinheiten | AH33: =IF(AH31="","",SUM(M27:AD27)) -> 
D34: Hart | H34: 5
H35: 6 | AF35: Trainingsstunden | AH35: =IF(AH31="","",SUM(M25,P25,V25,Y25,S25,AB25)/60) -> 
D36: Sehr hart | H36: 7
H37: 8 | AF37: Training Load | AH37: =IF(AH31="","",SUM(AH25)) -> 
D38: Extrem hart | H38: 9
D39: Wie mein härtestes Training | H39: 10 | AF39: Monotonie | AH39: =IF(AH31="","",(AVERAGE(AH4:AH24))/AH27) -> 
AF41: Trainingsanstrengung | AH41: =IF(AH31="","",AH37*AH39) -> 
AF43: =AJ2 -> Lauf Km | AH43: =IF(AH31="","",SUM(AJ4:AJ24)) -> 
AF45: =AK2 -> J | AH45: =IF(AH31="","",SUM(AK4:AK24)) -> 
AF47: =AL2 -> Swim Km | AH47: =IF(AH31="","",SUM(AL4:AL24)) -> 
AF49: =AM2 -> Mental Training | AH49: =IF(AH31="","",COUNTA(AM4:AM24)) -> 
AF51: =AN2 -> Regeneration | AH51: =IF(AH31="","",COUNTA(AN4:AN24)) -> 
AF53: =H2 -> Verletzung/Erkrankung | AH53: =IF(H26="","",COUNTA(H4:H24)) -> 
V134: =W134-1 -> 17 | W134: =X134-1 -> 18 | X134: =Y134-1 -> 19 | Y134: =Z134-1 -> 20 | Z134: =AA134-1 -> 21 | AA134: =D1 -> 22 | AB134: =AA134+1 -> 23 | AC134: =AB134+1 -> 24
AD155: =G1 -> -

Sheet 23
C1: Woche | D1: =INT(MOD(INT((F1-2)/7)+0.6,52+5/28))+1 -> 23 | E1: =D1+1000 -> 1023 | F1: ='22'!F1+7 -> 2013-06-03 | G1: - | H1: =F1+6 -> 2013-06-09 | AD1: =Overview!D2 -> Vorname Name | AF1: =Overview!N2 -> 0
B2: Tag | D2: Gewicht | E2: Motiv. | F2: Schlaf | G2: Schlaf | H2: Verletzung/Erkrankung | J2: Trainingsbeschreibung | M2: ='19'!M2:O2 -> Dauerlauf | P2: ='19'!P2:R2 -> Bahn/Intervall | S2: ='19'!S2:U2 -> Sprint/Koord/Tech | V2: ='19'!V2:X2 -> Kraft | Y2: ='19'!Y2:AA2 -> Alternativ | AB2: ='19'!AB2:AD2 -> Divers | AF2: Bemerkungen | AH2: Load/Tag | AJ2: Lauf Km | AK2: J | AL2: Swim Km | AM2: Mental Training | AN2: Regeneration
D3: kg | E3: [-2….+2] | F3: 1-6 | G3: Std | H3: "x" wenn ja | M3: Dauer | N3: RPE | O3: Load | P3: Dauer | Q3: RPE | R3: Load | S3: Dauer | T3: RPE | U3: Load | V3: Dauer | W3: RPE | X3: Load | Y3: Dauer | Z3: RPE | AA3: Load | AB3: Dauer | AC3: RPE | AD3: Load
B4: Mo | O4: =M4*N4 -> 0 | R4: =P4*Q4 -> 0 | U4: =S4*T4 -> 0 | X4: =V4*W4 -> 0 | AA4: =Y4*Z4 -> 0 | AD4: =AB4*AC4 -> 0 | AH4: =SUM(O4:O6,R4:R6,U4:U6,X4:X6,AA4:AA6,AD4:AD6) -> 0
O5: 0 | R5: 0 | U5: 0 | X5: 0 | AA5: 0 | AD5: 0
O6: 0 | R6: 0 | U6: 0 | X6: 0 | AA6: 0 | AD6: 0
B7: Di | O7: 0 | R7: 0 | U7: 0 | X7: 0 | AA7: 0 | AD7: 0 | AH7: =SUM(O7:O9,R7:R9,U7:U9,X7:X9,AA7:AA9,AD7:AD9) -> 0
O8: 0 | R8: 0 | U8: 0 | X8: 0 | AA8: 0 | AD8: 0
O9: 0 | R9: 0 | U9: 0 | X9: 0 | AA9: 0 | AD9: 0
B10: Mi | O10: 0 | R10: 0 | U10: 0 | X10: 0 | AA10: 0 | AD10: 0 | AH10: =SUM(O10:O12,R10:R12,U10:U12,X10:X12,AA10:AA12,AD10:AD12) -> 0
O11: 0 | R11: 0 | U11: 0 | X11: 0 | AA11: 0 | AD11: 0
O12: 0 | R12: 0 | U12: 0 | X12: 0 | AA12: 0 | AD12: 0
B13: Do | O13: 0 | R13: 0 | U13: 0 | X13: 0 | AA13: 0 | AD13: 0 | AH13: =SUM(O13:O15,R13:R15,U13:U15,X13:X15,AA13:AA15,AD13:AD15) -> 0
O14: 0 | R14: 0 | U14: 0 | X14: 0 | AA14: 0 | AD14: 0
O15: 0 | R15: 0 | U15: 0 | X15: 0 | AA15: 0 | AD15: 0
B16: Fr | O16: 0 | R16: 0 | U16: 0 | X16: 0 | AA16: 0 | AD16: 0 | AH16: =SUM(O16:O18,R16:R18,U16:U18,X16:X18,AA16:AA18,AD16:AD18) -> 0
O17: 0 | R17: 0 | U17: 0 | X17: 0 | AA17: 0 | AD17: 0
O18: 0 | R18: 0 | U18: 0 | X18: 0 | AA18: 0 | AD18: 0
B19: Sa | O19: 0 | R19: 0 | U19: 0 | X19: 0 | AA19: 0 | AD19: 0 | AH19: =SUM(O19:O21,R19:R21,U19:U21,X19:X21,AA19:AA21,AD19:AD21) -> 0
O20: 0 | R20: 0 | U20: 0 | X20: 0 | AA20: 0 | AD20: 0
O21: 0 | R21: 0 | U21: 0 | X21: 0 | AA21: 0 | AD21: 0
B22: So | O22: 0 | R22: 0 | U22: 0 | X22: 0 | AA22: 0 | AD22: 0 | AH22: =SUM(O22:O24,R22:R24,U22:U24,X22:X24,AA22:AA24,AD22:AD24) -> 0
O23: 0 | R23: 0 | U23: 0 | X23: 0 | AA23: 0 | AD23: 0
O24: 0 | R24: 0 | U24: 0 | X24: 0 | AA24: 0 | AD24: 0
K25: Total | M25: =SUM(M4:M24) -> 0 | O25: =SUM(O4:O24) -> 0 | P25: =SUM(P4:P24) -> 0 | R25: =SUM(R4:R24) -> 0 | S25: =SUM(S4:S24) -> 0 | U25: =SUM(U4:U24) -> 0 | V25: =SUM(V4:V24) -> 0 | X25: =SUM(X4:X24) -> 0 | Y25: =SUM(Y4:Y24) -> 0 | AA25: =SUM(AA4:AA24) -> 0 | AB25: =SUM(AB4:AB24) -> 0 | AD25: =SUM(AD4:AD24) -> 0 | AF25: TOTAL LOAD | AH25: =SUM(AH4:AH24) -> 0
B26: avg | D26: =IF(COUNTA(D4:D24)=0,"",AVERAGE(D4:D24)) ->  | E26: =IF(COUNTA(E4:E24)=0,"",AVERAGE(E4:E24)) ->  | F26: =IF(COUNTA(F4:F24)=0,"",AVERAGE(F4:F24)) ->  | G26: =IF(COUNTA(G4:G24)=0,"",AVERAGE(G4:G24)) ->  | H26: =IF(COUNTA(H4:H24)=0,"",COUNTIF(H4:H24,"x")) ->  | K26: Zone | M26: 1 | N26: 2 | O26: 3 | P26: 1 | Q26: 2 | R26: 3 | S26: 1 | T26: 2 | U26: 3 | V26: 1 | W26: 2 | X26: 3 | Y26: 1 | Z26: 2 | AA26: 3 | AB26: 1 | AC26: 2 | AD26: 3 | AF26: Mittelwert | AH26: =AVERAGE(AH4:AH24) -> 0
K27: Einheiten pro Zone (RPE) | M27: =IF(Beanspruchungverteilung!$AT$21="x",COUNTIF(N4:N24,"<3.5"),COUNTIF(N4:N24,"<4.5")) -> 0 | N27: =COUNT(N4:N24)-(M27+O27) -> 0 | O27: =IF(Beanspruchungverteilung!$AT$21="x",COUNTIF(N4:N24,">5.5"),COUNTIF(N4:N24,">6.5")) -> 0 | P27: =IF(Beanspruchungverteilung!$AT$21="x",COUNTIF(Q4:Q24,"<3.5"),COUNTIF(Q4:Q24,"<4.5")) -> 0 | Q27: =COUNT(Q4:Q24)-(P27+R27) -> 0 | R27: =IF(Beanspruchungverteilung!$AT$21="x",COUNTIF(Q4:Q24,">5.5"),COUNTIF(Q4:Q24,">6.5")) -> 0 | S27: =IF(Beanspruchungverteilung!$AT$21="x",COUNTIF(T4:T24,"<3.5"),COUNTIF(T4:T24,"<4.5")) -> 0 | T27: =COUNT(T4:T24)-(S27+U27) -> 0 | U27: =IF(Beanspruchungverteilung!$AT$21="x",COUNTIF(T4:T24,">5.5"),COUNTIF(T4:T24,">6.5")) -> 0 | V27: =IF(Beanspruchungverteilung!$AT$21="x",COUNTIF(W4:W24,"<3.5"),COUNTIF(W4:W24,"<4.5")) -> 0 | W27: =COUNT(W4:W24)-(V27+X27) -> 0 | X27: =IF(Beanspruchungverteilung!$AT$21="x",COUNTIF(W4:W24,">5.5"),COUNTIF(W4:W24,">6.5")) -> 0 | Y27: =IF(Beanspruchungverteilung!$AT$21="x",COUNTIF(Z4:Z24,"<3.5"),COUNTIF(Z4:Z24,"<4.5")) -> 0 | Z27: =COUNT(Z4:Z24)-(Y27+AA27) -> 0 | AA27: =IF(Beanspruchungverteilung!$AT$21="x",COUNTIF(Z4:Z24,">5.5"),COUNTIF(Z4:Z24,">6.5")) -> 0 | AB27: =IF(Beanspruchungverteilung!$AT$21="x",COUNTIF(AC4:AC24,"<3.5"),COUNTIF(AC4:AC24,"<4.5")) -> 0 | AC27: =COUNT(AC4:AC24)-(AB27+AD27) -> 0 | AD27: =IF(Beanspruchungverteilung!$AT$21="x",COUNTIF(AC4:AC24,">5.5"),COUNTIF(AC4:AC24,">6.5")) -> 0 | AF27: Standardabweichung | AH27: =STDEVP(AH4:AH24) -> 0
D28: Foster's Skala | H28: RPE | K28: Zeit pro Zone (RPE) | M28: =IF(Beanspruchungverteilung!$AT$21="x",SUMIF(N4:N24,"<3.5",M4:M24),SUMIF(N4:N24,"<4.5",M4:M24)) -> 0 | N28: =IF(N27=0,0,SUM((M25)-(M28+O28))) -> 0 | O28: =IF(Beanspruchungverteilung!$AT$21="x",SUMIF(N4:N24,">5.5",M4:M24),SUMIF(N4:N24,">6.5",M4:M24)) -> 0 | P28: =IF(Beanspruchungverteilung!$AT$21="x",SUMIF(Q4:Q24,"<3.5",P4:P24),SUMIF(Q4:Q24,"<4.5",P4:P24)) -> 0 | Q28: =IF(Q27=0,0,SUM((P25)-(P28+R28))) -> 0 | R28: =IF(Beanspruchungverteilung!$AT$21="x",SUMIF(Q4:Q24,">5.5",P4:P24),SUMIF(Q4:Q24,">6.5",P4:P24)) -> 0 | S28: =IF(Beanspruchungverteilung!$AT$21="x",SUMIF(T4:T24,"<3.5",S4:S24),SUMIF(T4:T24,"<4.5",S4:S24)) -> 0 | T28: =IF(T27=0,0,SUM((S25)-(S28+U28))) -> 0 | U28: =IF(Beanspruchungverteilung!$AT$21="x",SUMIF(T4:T24,">5.5",S4:S24),SUMIF(T4:T24,">6.5",S4:S24)) -> 0 | V28: =IF(Beanspruchungverteilung!$AT$21="x",SUMIF(W4:W24,"<3.5",V4:V24),SUMIF(W4:W24,"<4.5",V4:V24)) -> 0 | W28: =IF(W27=0,0,SUM((V25)-(V28+X28))) -> 0 | X28: =IF(Beanspruchungverteilung!$AT$21="x",SUMIF(W4:W24,">5.5",V4:V24),SUMIF(W4:W24,">6.5",V4:V24)) -> 0 | Y28: =IF(Beanspruchungverteilung!$AT$21="x",SUMIF(Z4:Z24,"<3.5",Y4:Y24),SUMIF(Z4:Z24,"<4.5",Y4:Y24)) -> 0 | Z28: =IF(Z27=0,0,SUM((Y25)-(Y28+AA28))) -> 0 | AA28: =IF(Beanspruchungverteilung!$AT$21="x",SUMIF(Z4:Z24,">5.5",Y4:Y24),SUMIF(Z4:Z24,">6.5",Y4:Y24)) -> 0 | AB28: =IF(Beanspruchungverteilung!$AT$21="x",SUMIF(AC4:AC24,"<3.5",AB4:AB24),SUMIF(AC4:AC24,"<4.5",AB4:AB24)) -> 0 | AC28: =IF(AC27=0,0,SUM((AB25)-(AB28+AD28))) -> 0 | AD28: =IF(Beanspruchungverteilung!$AT$21="x",SUMIF(AC4:AC24,">5.5",AB4:AB24),SUMIF(AC4:AC24,">6.5",AB4:AB24)) -> 0
D29: Wie in Ruhe | H29: 0
D30: Sehr locker | H30: 1
D31: Locker | H31: 2 | AF31: Trainingstagen | AH31: =IF(SUM(AH4:AH24)=0,"",COUNTIF(AH4:AH24,">0")) -> 
H32: 3
D33: Etwas hart | H33: 4 | AF33: Trainingseinheiten | AH33: =IF(AH31="","",SUM(M27:AD27)) -> 
D34: Hart | H34: 5
H35: 6 | AF35: Trainingsstunden | AH35: =IF(AH31="","",SUM(M25,P25,V25,Y25,S25,AB25)/60) -> 
D36: Sehr hart | H36: 7
H37: 8 | AF37: Training Load | AH37: =IF(AH31="","",SUM(AH25)) -> 
D38: Extrem hart | H38: 9
D39: Wie mein härtestes Training | H39: 10 | AF39: Monotonie | AH39: =IF(AH31="","",(AVERAGE(AH4:AH24))/AH27) -> 
AF41: Trainingsanstrengung | AH41: =IF(AH31="","",AH37*AH39) -> 
AF43: =AJ2 -> Lauf Km | AH43: =IF(AH31="","",SUM(AJ4:AJ24)) -> 
AF45: =AK2 -> J | AH45: =IF(AH31="","",SUM(AK4:AK24)) -> 
AF47: =AL2 -> Swim Km | AH47: =IF(AH31="","",SUM(AL4:AL24)) -> 
AF49: =AM2 -> Mental Training | AH49: =IF(AH31="","",COUNTA(AM4:AM24)) -> 
AF51: =AN2 -> Regeneration | AH51: =IF(AH31="","",COUNTA(AN4:AN24)) -> 
AF53: =H2 -> Verletzung/Erkrankung | AH53: =IF(H26="","",COUNTA(H4:H24)) -> 
V134: =W134-1 -> 18 | W134: =X134-1 -> 19 | X134: =Y134-1 -> 20 | Y134: =Z134-1 -> 21 | Z134: =AA134-1 -> 22 | AA134: =D1 -> 23 | AB134: =AA134+1 -> 24 | AC134: =AB134+1 -> 25
AD155: =G1 -> -

Sheet 24
C1: Woche | D1: =INT(MOD(INT((F1-2)/7)+0.6,52+5/28))+1 -> 24 | E1: =D1+1000 -> 1024 | F1: ='23'!F1+7 -> 2013-06-10 | G1: - | H1: =F1+6 -> 2013-06-16 | AD1: =Overview!D2 -> Vorname Name | AF1: =Overview!N2 -> 0
B2: Tag | D2: Gewicht | E2: Motiv. | F2: Schlaf | G2: Schlaf | H2: Verletzung/Erkrankung | J2: Trainingsbeschreibung | M2: ='19'!M2:O2 -> Dauerlauf | P2: ='19'!P2:R2 -> Bahn/Intervall | S2: ='19'!S2:U2 -> Sprint/Koord/Tech | V2: ='19'!V2:X2 -> Kraft | Y2: ='19'!Y2:AA2 -> Alternativ | AB2: ='19'!AB2:AD2 -> Divers | AF2: Bemerkungen | AH2: Load/Tag | AJ2: Lauf Km | AK2: J | AL2: Swim Km | AM2: Mental Training | AN2: Regeneration
D3: kg | E3: [-2….+2] | F3: 1-6 | G3: Std | H3: "x" wenn ja | M3: Dauer | N3: RPE | O3: Load | P3: Dauer | Q3: RPE | R3: Load | S3: Dauer | T3: RPE | U3: Load | V3: Dauer | W3: RPE | X3: Load | Y3: Dauer | Z3: RPE | AA3: Load | AB3: Dauer | AC3: RPE | AD3: Load
B4: Mo | O4: =M4*N4 -> 0 | R4: =P4*Q4 -> 0 | U4: =S4*T4 -> 0 | X4: =V4*W4 -> 0 | AA4: =Y4*Z4 -> 0 | AD4: =AB4*AC4 -> 0 | AH4: =SUM(O4:O6,R4:R6,U4:U6,X4:X6,AA4:AA6,AD4:AD6) -> 0
O5: 0 | R5: 0 | U5: 0 | X5: 0 | AA5: 0 | AD5: 0
O6: 0 | R6: 0 | U6: 0 | X6: 0 | AA6: 0 | AD6: 0
B7: Di | O7: 0 | R7: 0 | U7: 0 | X7: 0 | AA7: 0 | AD7: 0 | AH7: =SUM(O7:O9,R7:R9,U7:U9,X7:X9,AA7:AA9,AD7:AD9) -> 0
O8: 0 | R8: 0 | U8: 0 | X8: 0 | AA8: 0 | AD8: 0
O9: 0 | R9: 0 | U9: 0 | X9: 0 | AA9: 0 | AD9: 0
B10: Mi | O10: 0 | R10: 0 | U10: 0 | X10: 0 | AA10: 0 | AD10: 0 | AH10: =SUM(O10:O12,R10:R12,U10:U12,X10:X12,AA10:AA12,AD10:AD12) -> 0
O11: 0 | R11: 0 | U11: 0 | X11: 0 | AA11: 0 | AD11: 0
O12: 0 | R12: 0 | U12: 0 | X12: 0 | AA12: 0 | AD12: 0
B13: Do | O13: 0 | R13: 0 | U13: 0 | X13: 0 | AA13: 0 | AD13: 0 | AH13: =SUM(O13:O15,R13:R15,U13:U15,X13:X15,AA13:AA15,AD13:AD15) -> 0
O14: 0 | R14: 0 | U14: 0 | X14: 0 | AA14: 0 | AD14: 0
O15: 0 | R15: 0 | U15: 0 | X15: 0 | AA15: 0 | AD15: 0
B16: Fr | O16: 0 | R16: 0 | U16: 0 | X16: 0 | AA16: 0 | AD16: 0 | AH16: =SUM(O16:O18,R16:R18,U16:U18,X16:X18,AA16:AA18,AD16:AD18) -> 0
O17: 0 | R17: 0 | U17: 0 | X17: 0 | AA17: 0 | AD17: 0
O18: 0 | R18: 0 | U18: 0 | X18: 0 | AA18: 0 | AD18: 0
B19: Sa | O19: 0 | R19: 0 | U19: 0 | X19: 0 | AA19: 0 | AD19: 0 | AH19: =SUM(O19:O21,R19:R21,U19:U21,X19:X21,AA19:AA21,AD19:AD21) -> 0
O20: 0 | R20: 0 | U20: 0 | X20: 0 | AA20: 0 | AD20: 0
O21: 0 | R21: 0 | U21: 0 | X21: 0 | AA21: 0 | AD21: 0
B22: So | O22: 0 | R22: 0 | U22: 0 | X22: 0 | AA22: 0 | AD22: 0 | AH22: =SUM(O22:O24,R22:R24,U22:U24,X22:X24,AA22:AA24,AD22:AD24) -> 0
O23: 0 | R23: 0 | U23: 0 | X23: 0 | AA23: 0 | AD23: 0
O24: 0 | R24: 0 | U24: 0 | X24: 0 | AA24: 0 | AD24: 0
K25: Total | M25: =SUM(M4:M24) -> 0 | O25: =SUM(O4:O24) -> 0 | P25: =SUM(P4:P24) -> 0 | R25: =SUM(R4:R24) -> 0 | S25: =SUM(S4:S24) -> 0 | U25: =SUM(U4:U24) -> 0 | V25: =SUM(V4:V24) -> 0 | X25: =SUM(X4:X24) -> 0 | Y25: =SUM(Y4:Y24) -> 0 | AA25: =SUM(AA4:AA24) -> 0 | AB25: =SUM(AB4:AB24) -> 0 | AD25: =SUM(AD4:AD24) -> 0 | AF25: TOTAL LOAD | AH25: =SUM(AH4:AH24) -> 0
B26: avg | D26: =IF(COUNTA(D4:D24)=0,"",AVERAGE(D4:D24)) ->  | E26: =IF(COUNTA(E4:E24)=0,"",AVERAGE(E4:E24)) ->  | F26: =IF(COUNTA(F4:F24)=0,"",AVERAGE(F4:F24)) ->  | G26: =IF(COUNTA(G4:G24)=0,"",AVERAGE(G4:G24)) ->  | H26: =IF(COUNTA(H4:H24)=0,"",COUNTIF(H4:H24,"x")) ->  | K26: Zone | M26: 1 | N26: 2 | O26: 3 | P26: 1 | Q26: 2 | R26: 3 | S26: 1 | T26: 2 | U26: 3 | V26: 1 | W26: 2 | X26: 3 | Y26: 1 | Z26: 2 | AA26: 3 | AB26: 1 | AC26: 2 | AD26: 3 | AF26: Mittelwert | AH26: =AVERAGE(AH4:AH24) -> 0
K27: Einheiten pro Zone (RPE) | M27: =IF(Beanspruchungverteilung!$AT$21="x",COUNTIF(N4:N24,"<3.5"),COUNTIF(N4:N24,"<4.5")) -> 0 | N27: =COUNT(N4:N24)-(M27+O27) -> 0 | O27: =IF(Beanspruchungverteilung!$AT$21="x",COUNTIF(N4:N24,">5.5"),COUNTIF(N4:N24,">6.5")) -> 0 | P27: =IF(Beanspruchungverteilung!$AT$21="x",COUNTIF(Q4:Q24,"<3.5"),COUNTIF(Q4:Q24,"<4.5")) -> 0 | Q27: =COUNT(Q4:Q24)-(P27+R27) -> 0 | R27: =IF(Beanspruchungverteilung!$AT$21="x",COUNTIF(Q4:Q24,">5.5"),COUNTIF(Q4:Q24,">6.5")) -> 0 | S27: =IF(Beanspruchungverteilung!$AT$21="x",COUNTIF(T4:T24,"<3.5"),COUNTIF(T4:T24,"<4.5")) -> 0 | T27: =COUNT(T4:T24)-(S27+U27) -> 0 | U27: =IF(Beanspruchungverteilung!$AT$21="x",COUNTIF(T4:T24,">5.5"),COUNTIF(T4:T24,">6.5")) -> 0 | V27: =IF(Beanspruchungverteilung!$AT$21="x",COUNTIF(W4:W24,"<3.5"),COUNTIF(W4:W24,"<4.5")) -> 0 | W27: =COUNT(W4:W24)-(V27+X27) -> 0 | X27: =IF(Beanspruchungverteilung!$AT$21="x",COUNTIF(W4:W24,">5.5"),COUNTIF(W4:W24,">6.5")) -> 0 | Y27: =IF(Beanspruchungverteilung!$AT$21="x",COUNTIF(Z4:Z24,"<3.5"),COUNTIF(Z4:Z24,"<4.5")) -> 0 | Z27: =COUNT(Z4:Z24)-(Y27+AA27) -> 0 | AA27: =IF(Beanspruchungverteilung!$AT$21="x",COUNTIF(Z4:Z24,">5.5"),COUNTIF(Z4:Z24,">6.5")) -> 0 | AB27: =IF(Beanspruchungverteilung!$AT$21="x",COUNTIF(AC4:AC24,"<3.5"),COUNTIF(AC4:AC24,"<4.5")) -> 0 | AC27: =COUNT(AC4:AC24)-(AB27+AD27) -> 0 | AD27: =IF(Beanspruchungverteilung!$AT$21="x",COUNTIF(AC4:AC24,">5.5"),COUNTIF(AC4:AC24,">6.5")) -> 0 | AF27: Standardabweichung | AH27: =STDEVP(AH4:AH24) -> 0
D28: Foster's Skala | H28: RPE | K28: Zeit pro Zone (RPE) | M28: =IF(Beanspruchungverteilung!$AT$21="x",SUMIF(N4:N24,"<3.5",M4:M24),SUMIF(N4:N24,"<4.5",M4:M24)) -> 0 | N28: =IF(N27=0,0,SUM((M25)-(M28+O28))) -> 0 | O28: =IF(Beanspruchungverteilung!$AT$21="x",SUMIF(N4:N24,">5.5",M4:M24),SUMIF(N4:N24,">6.5",M4:M24)) -> 0 | P28: =IF(Beanspruchungverteilung!$AT$21="x",SUMIF(Q4:Q24,"<3.5",P4:P24),SUMIF(Q4:Q24,"<4.5",P4:P24)) -> 0 | Q28: =IF(Q27=0,0,SUM((P25)-(P28+R28))) -> 0 | R28: =IF(Beanspruchungverteilung!$AT$21="x",SUMIF(Q4:Q24,">5.5",P4:P24),SUMIF(Q4:Q24,">6.5",P4:P24)) -> 0 | S28: =IF(Beanspruchungverteilung!$AT$21="x",SUMIF(T4:T24,"<3.5",S4:S24),SUMIF(T4:T24,"<4.5",S4:S24)) -> 0 | T28: =IF(T27=0,0,SUM((S25)-(S28+U28))) -> 0 | U28: =IF(Beanspruchungverteilung!$AT$21="x",SUMIF(T4:T24,">5.5",S4:S24),SUMIF(T4:T24,">6.5",S4:S24)) -> 0 | V28: =IF(Beanspruchungverteilung!$AT$21="x",SUMIF(W4:W24,"<3.5",V4:V24),SUMIF(W4:W24,"<4.5",V4:V24)) -> 0 | W28: =IF(W27=0,0,SUM((V25)-(V28+X28))) -> 0 | X28: =IF(Beanspruchungverteilung!$AT$21="x",SUMIF(W4:W24,">5.5",V4:V24),SUMIF(W4:W24,">6.5",V4:V24)) -> 0 | Y28: =IF(Beanspruchungverteilung!$AT$21="x",SUMIF(Z4:Z24,"<3.5",Y4:Y24),SUMIF(Z4:Z24,"<4.5",Y4:Y24)) -> 0 | Z28: =IF(Z27=0,0,SUM((Y25)-(Y28+AA28))) -> 0 | AA28: =IF(Beanspruchungverteilung!$AT$21="x",SUMIF(Z4:Z24,">5.5",Y4:Y24),SUMIF(Z4:Z24,">6.5",Y4:Y24)) -> 0 | AB28: =IF(Beanspruchungverteilung!$AT$21="x",SUMIF(AC4:AC24,"<3.5",AB4:AB24),SUMIF(AC4:AC24,"<4.5",AB4:AB24)) -> 0 | AC28: =IF(AC27=0,0,SUM((AB25)-(AB28+AD28))) -> 0 | AD28: =IF(Beanspruchungverteilung!$AT$21="x",SUMIF(AC4:AC24,">5.5",AB4:AB24),SUMIF(AC4:AC24,">6.5",AB4:AB24)) -> 0
D29: Wie in Ruhe | H29: 0
D30: Sehr locker | H30: 1
D31: Locker | H31: 2 | AF31: Trainingstagen | AH31: =IF(SUM(AH4:AH24)=0,"",COUNTIF(AH4:AH24,">0")) -> 
H32: 3
D33: Etwas hart | H33: 4 | AF33: Trainingseinheiten | AH33: =IF(AH31="","",SUM(M27:AD27)) -> 
D34: Hart | H34: 5
H35: 6 | AF35: Trainingsstunden | AH35: =IF(AH31="","",SUM(M25,P25,V25,Y25,S25,AB25)/60) -> 
D36: Sehr hart | H36: 7
H37: 8 | AF37: Training Load | AH37: =IF(AH31="","",SUM(AH25)) -> 
D38: Extrem hart | H38: 9
D39: Wie mein härtestes Training | H39: 10 | AF39: Monotonie | AH39: =IF(AH31="","",(AVERAGE(AH4:AH24))/AH27) -> 
AF41: Trainingsanstrengung | AH41: =IF(AH31="","",AH37*AH39) -> 
AF43: =AJ2 -> Lauf Km | AH43: =IF(AH31="","",SUM(AJ4:AJ24)) -> 
AF45: =AK2 -> J | AH45: =IF(AH31="","",SUM(AK4:AK24)) -> 
AF47: =AL2 -> Swim Km | AH47: =IF(AH31="","",SUM(AL4:AL24)) -> 
AF49: =AM2 -> Mental Training | AH49: =IF(AH31="","",COUNTA(AM4:AM24)) -> 
AF51: =AN2 -> Regeneration | AH51: =IF(AH31="","",COUNTA(AN4:AN24)) -> 
AF53: =H2 -> Verletzung/Erkrankung | AH53: =IF(H26="","",COUNTA(H4:H24)) -> 
V134: =W134-1 -> 17 | W134: 18 | X134: 19 | Y134: 20 | Z134: 21 | AA134: 22 | AB134: 23 | AC134: =D1 -> 24
AD155: =AC134+1 -> 25 | AE155: =AD155+1 -> 26 | AF155: =AE155+1 -> 27

Sheet 25
C1: Woche | D1: =INT(MOD(INT((F1-2)/7)+0.6,52+5/28))+1 -> 25 | E1: =D1+1000 -> 1025 | F1: ='24'!F1+7 -> 2013-06-17 | G1: - | H1: =F1+6 -> 2013-06-23 | AD1: =Overview!D2 -> Vorname Name | AF1: =Overview!N2 -> 0
B2: Tag | D2: Gewicht | E2: Motiv. | F2: Schlaf | G2: Schlaf | H2: Verletzung/Erkrankung | J2: Trainingsbeschreibung | M2: ='19'!M2:O2 -> Dauerlauf | P2: ='19'!P2:R2 -> Bahn/Intervall | S2: ='19'!S2:U2 -> Sprint/Koord/Tech | V2: ='19'!V2:X2 -> Kraft | Y2: ='19'!Y2:AA2 -> Alternativ | AB2: ='19'!AB2:AD2 -> Divers | AF2: Bemerkungen | AH2: Load/Tag | AJ2: Lauf Km | AK2: J | AL2: Swim Km | AM2: Mental Training | AN2: Regeneration
D3: kg | E3: [-2….+2] | F3: 1-6 | G3: Std | H3: "x" wenn ja | M3: Dauer | N3: RPE | O3: Load | P3: Dauer | Q3: RPE | R3: Load | S3: Dauer | T3: RPE | U3: Load | V3: Dauer | W3: RPE | X3: Load | Y3: Dauer | Z3: RPE | AA3: Load | AB3: Dauer | AC3: RPE | AD3: Load
B4: Mo | O4: =M4*N4 -> 0 | R4: =P4*Q4 -> 0 | U4: =S4*T4 -> 0 | X4: =V4*W4 -> 0 | AA4: =Y4*Z4 -> 0 | AD4: =AB4*AC4 -> 0 | AH4: =SUM(O4:O6,R4:R6,U4:U6,X4:X6,AA4:AA6,AD4:AD6) -> 0
O5: 0 | R5: 0 | U5: 0 | X5: 0 | AA5: 0 | AD5: 0
O6: 0 | R6: 0 | U6: 0 | X6: 0 | AA6: 0 | AD6: 0
B7: Di | O7: 0 | R7: 0 | U7: 0 | X7: 0 | AA7: 0 | AD7: 0 | AH7: =SUM(O7:O9,R7:R9,U7:U9,X7:X9,AA7:AA9,AD7:AD9) -> 0
O8: 0 | R8: 0 | U8: 0 | X8: 0 | AA8: 0 | AD8: 0
O9: 0 | R9: 0 | U9: 0 | X9: 0 | AA9: 0 | AD9: 0
B10: Mi | O10: 0 | R10: 0 | U10: 0 | X10: 0 | AA10: 0 | AD10: 0 | AH10: =SUM(O10:O12,R10:R12,U10:U12,X10:X12,AA10:AA12,AD10:AD12) -> 0
O11: 0 | R11: 0 | U11: 0 | X11: 0 | AA11: 0 | AD11: 0
O12: 0 | R12: 0 | U12: 0 | X12: 0 | AA12: 0 | AD12: 0
B13: Do | O13: 0 | R13: 0 | U13: 0 | X13: 0 | AA13: 0 | AD13: 0 | AH13: =SUM(O13:O15,R13:R15,U13:U15,X13:X15,AA13:AA15,AD13:AD15) -> 0
O14: 0 | R14: 0 | U14: 0 | X14: 0 | AA14: 0 | AD14: 0
O15: 0 | R15: 0 | U15: 0 | X15: 0 | AA15: 0 | AD15: 0
B16: Fr | O16: 0 | R16: 0 | U16: 0 | X16: 0 | AA16: 0 | AD16: 0 | AH16: =SUM(O16:O18,R16:R18,U16:U18,X16:X18,AA16:AA18,AD16:AD18) -> 0
O17: 0 | R17: 0 | U17: 0 | X17: 0 | AA17: 0 | AD17: 0
O18: 0 | R18: 0 | U18: 0 | X18: 0 | AA18: 0 | AD18: 0
B19: Sa | O19: 0 | R19: 0 | U19: 0 | X19: 0 | AA19: 0 | AD19: 0 | AH19: =SUM(O19:O21,R19:R21,U19:U21,X19:X21,AA19:AA21,AD19:AD21) -> 0
O20: 0 | R20: 0 | U20: 0 | X20: 0 | AA20: 0 | AD20: 0
O21: 0 | R21: 0 | U21: 0 | X21: 0 | AA21: 0 | AD21: 0
B22: So | O22: 0 | R22: 0 | U22: 0 | X22: 0 | AA22: 0 | AD22: 0 | AH22: =SUM(O22:O24,R22:R24,U22:U24,X22:X24,AA22:AA24,AD22:AD24) -> 0
O23: 0 | R23: 0 | U23: 0 | X23: 0 | AA23: 0 | AD23: 0
O24: 0 | R24: 0 | U24: 0 | X24: 0 | AA24: 0 | AD24: 0
K25: Total | M25: =SUM(M4:M24) -> 0 | O25: =SUM(O4:O24) -> 0 | P25: =SUM(P4:P24) -> 0 | R25: =SUM(R4:R24) -> 0 | S25: =SUM(S4:S24) -> 0 | U25: =SUM(U4:U24) -> 0 | V25: =SUM(V4:V24) -> 0 | X25: =SUM(X4:X24) -> 0 | Y25: =SUM(Y4:Y24) -> 0 | AA25: =SUM(AA4:AA24) -> 0 | AB25: =SUM(AB4:AB24) -> 0 | AD25: =SUM(AD4:AD24) -> 0 | AF25: TOTAL LOAD | AH25: =SUM(AH4:AH24) -> 0
B26: avg | D26: =IF(COUNTA(D4:D24)=0,"",AVERAGE(D4:D24)) ->  | E26: =IF(COUNTA(E4:E24)=0,"",AVERAGE(E4:E24)) ->  | F26: =IF(COUNTA(F4:F24)=0,"",AVERAGE(F4:F24)) ->  | G26: =IF(COUNTA(G4:G24)=0,"",AVERAGE(G4:G24)) ->  | H26: =IF(COUNTA(H4:H24)=0,"",COUNTIF(H4:H24,"x")) ->  | K26: Zone | M26: 1 | N26: 2 | O26: 3 | P26: 1 | Q26: 2 | R26: 3 | S26: 1 | T26: 2 | U26: 3 | V26: 1 | W26: 2 | X26: 3 | Y26: 1 | Z26: 2 | AA26: 3 | AB26: 1 | AC26: 2 | AD26: 3 | AF26: Mittelwert | AH26: =AVERAGE(AH4:AH24) -> 0
K27: Einheiten pro Zone (RPE) | M27: =IF(Beanspruchungverteilung!$AT$21="x",COUNTIF(N4:N24,"<3.5"),COUNTIF(N4:N24,"<4.5")) -> 0 | N27: =COUNT(N4:N24)-(M27+O27) -> 0 | O27: =IF(Beanspruchungverteilung!$AT$21="x",COUNTIF(N4:N24,">5.5"),COUNTIF(N4:N24,">6.5")) -> 0 | P27: =IF(Beanspruchungverteilung!$AT$21="x",COUNTIF(Q4:Q24,"<3.5"),COUNTIF(Q4:Q24,"<4.5")) -> 0 | Q27: =COUNT(Q4:Q24)-(P27+R27) -> 0 | R27: =IF(Beanspruchungverteilung!$AT$21="x",COUNTIF(Q4:Q24,">5.5"),COUNTIF(Q4:Q24,">6.5")) -> 0 | S27: =IF(Beanspruchungverteilung!$AT$21="x",COUNTIF(T4:T24,"<3.5"),COUNTIF(T4:T24,"<4.5")) -> 0 | T27: =COUNT(T4:T24)-(S27+U27) -> 0 | U27: =IF(Beanspruchungverteilung!$AT$21="x",COUNTIF(T4:T24,">5.5"),COUNTIF(T4:T24,">6.5")) -> 0 | V27: =IF(Beanspruchungverteilung!$AT$21="x",COUNTIF(W4:W24,"<3.5"),COUNTIF(W4:W24,"<4.5")) -> 0 | W27: =COUNT(W4:W24)-(V27+X27) -> 0 | X27: =IF(Beanspruchungverteilung!$AT$21="x",COUNTIF(W4:W24,">5.5"),COUNTIF(W4:W24,">6.5")) -> 0 | Y27: =IF(Beanspruchungverteilung!$AT$21="x",COUNTIF(Z4:Z24,"<3.5"),COUNTIF(Z4:Z24,"<4.5")) -> 0 | Z27: =COUNT(Z4:Z24)-(Y27+AA27) -> 0 | AA27: =IF(Beanspruchungverteilung!$AT$21="x",COUNTIF(Z4:Z24,">5.5"),COUNTIF(Z4:Z24,">6.5")) -> 0 | AB27: =IF(Beanspruchungverteilung!$AT$21="x",COUNTIF(AC4:AC24,"<3.5"),COUNTIF(AC4:AC24,"<4.5")) -> 0 | AC27: =COUNT(AC4:AC24)-(AB27+AD27) -> 0 | AD27: =IF(Beanspruchungverteilung!$AT$21="x",COUNTIF(AC4:AC24,">5.5"),COUNTIF(AC4:AC24,">6.5")) -> 0 | AF27: Standardabweichung | AH27: =STDEVP(AH4:AH24) -> 0
D28: Foster's Skala | H28: RPE | K28: Zeit pro Zone (RPE) | M28: =IF(Beanspruchungverteilung!$AT$21="x",SUMIF(N4:N24,"<3.5",M4:M24),SUMIF(N4:N24,"<4.5",M4:M24)) -> 0 | N28: =IF(N27=0,0,SUM((M25)-(M28+O28))) -> 0 | O28: =IF(Beanspruchungverteilung!$AT$21="x",SUMIF(N4:N24,">5.5",M4:M24),SUMIF(N4:N24,">6.5",M4:M24)) -> 0 | P28: =IF(Beanspruchungverteilung!$AT$21="x",SUMIF(Q4:Q24,"<3.5",P4:P24),SUMIF(Q4:Q24,"<4.5",P4:P24)) -> 0 | Q28: =IF(Q27=0,0,SUM((P25)-(P28+R28))) -> 0 | R28: =IF(Beanspruchungverteilung!$AT$21="x",SUMIF(Q4:Q24,">5.5",P4:P24),SUMIF(Q4:Q24,">6.5",P4:P24)) -> 0 | S28: =IF(Beanspruchungverteilung!$AT$21="x",SUMIF(T4:T24,"<3.5",S4:S24),SUMIF(T4:T24,"<4.5",S4:S24)) -> 0 | T28: =IF(T27=0,0,SUM((S25)-(S28+U28))) -> 0 | U28: =IF(Beanspruchungverteilung!$AT$21="x",SUMIF(T4:T24,">5.5",S4:S24),SUMIF(T4:T24,">6.5",S4:S24)) -> 0 | V28: =IF(Beanspruchungverteilung!$AT$21="x",SUMIF(W4:W24,"<3.5",V4:V24),SUMIF(W4:W24,"<4.5",V4:V24)) -> 0 | W28: =IF(W27=0,0,SUM((V25)-(V28+X28))) -> 0 | X28: =IF(Beanspruchungverteilung!$AT$21="x",SUMIF(W4:W24,">5.5",V4:V24),SUMIF(W4:W24,">6.5",V4:V24)) -> 0 | Y28: =IF(Beanspruchungverteilung!$AT$21="x",SUMIF(Z4:Z24,"<3.5",Y4:Y24),SUMIF(Z4:Z24,"<4.5",Y4:Y24)) -> 0 | Z28: =IF(Z27=0,0,SUM((Y25)-(Y28+AA28))) -> 0 | AA28: =IF(Beanspruchungverteilung!$AT$21="x",SUMIF(Z4:Z24,">5.5",Y4:Y24),SUMIF(Z4:Z24,">6.5",Y4:Y24)) -> 0 | AB28: =IF(Beanspruchungverteilung!$AT$21="x",SUMIF(AC4:AC24,"<3.5",AB4:AB24),SUMIF(AC4:AC24,"<4.5",AB4:AB24)) -> 0 | AC28: =IF(AC27=0,0,SUM((AB25)-(AB28+AD28))) -> 0 | AD28: =IF(Beanspruchungverteilung!$AT$21="x",SUMIF(AC4:AC24,">5.5",AB4:AB24),SUMIF(AC4:AC24,">6.5",AB4:AB24)) -> 0
D29: Wie in Ruhe | H29: 0
D30: Sehr locker | H30: 1
D31: Locker | H31: 2 | AF31: Trainingstagen | AH31: =IF(SUM(AH4:AH24)=0,"",COUNTIF(AH4:AH24,">0")) -> 
H32: 3
D33: Etwas hart | H33: 4 | AF33: Trainingseinheiten | AH33: =IF(AH31="","",SUM(M27:AD27)) -> 
D34: Hart | H34: 5
H35: 6 | AF35: Trainingsstunden | AH35: =IF(AH31="","",SUM(M25,P25,V25,Y25,S25,AB25)/60) -> 
D36: Sehr hart | H36: 7
H37: 8 | AF37: Training Load | AH37: =IF(AH31="","",SUM(AH25)) -> 
D38: Extrem hart | H38: 9
D39: Wie mein härtestes Training | H39: 10 | AF39: Monotonie | AH39: =IF(AH31="","",(AVERAGE(AH4:AH24))/AH27) -> 
AF41: Trainingsanstrengung | AH41: =IF(AH31="","",AH37*AH39) -> 
AF43: =AJ2 -> Lauf Km | AH43: =IF(AH31="","",SUM(AJ4:AJ24)) -> 
AF45: =AK2 -> J | AH45: =IF(AH31="","",SUM(AK4:AK24)) -> 
AF47: =AL2 -> Swim Km | AH47: =IF(AH31="","",SUM(AL4:AL24)) -> 
AF49: =AM2 -> Mental Training | AH49: =IF(AH31="","",COUNTA(AM4:AM24)) -> 
AF51: =AN2 -> Regeneration | AH51: =IF(AH31="","",COUNTA(AN4:AN24)) -> 
AF53: =H2 -> Verletzung/Erkrankung | AH53: =IF(H26="","",COUNTA(H4:H24)) -> 
V134: =W134-1 -> 18 | W134: 19 | X134: 20 | Y134: 21 | Z134: 22 | AA134: 23 | AB134: 24 | AC134: =D1 -> 25
AD155: =AC134+1 -> 26 | AE155: =AD155+1 -> 27 | AF155: =AE155+1 -> 28

Sheet 26
C1: Woche | D1: =INT(MOD(INT((F1-2)/7)+0.6,52+5/28))+1 -> 26 | E1: =D1+1000 -> 1026 | F1: ='25'!F1+7 -> 2013-06-24 | G1: - | H1: =F1+6 -> 2013-06-30 | AD1: =Overview!D2 -> Vorname Name | AF1: =Overview!N2 -> 0
B2: Tag | D2: Gewicht | E2: Motiv. | F2: Schlaf | G2: Schlaf | H2: Verletzung/Erkrankung | J2: Trainingsbeschreibung | M2: ='19'!M2:O2 -> Dauerlauf | P2: ='19'!P2:R2 -> Bahn/Intervall | S2: ='19'!S2:U2 -> Sprint/Koord/Tech | V2: ='19'!V2:X2 -> Kraft | Y2: ='19'!Y2:AA2 -> Alternativ | AB2: ='19'!AB2:AD2 -> Divers | AF2: Bemerkungen | AH2: Load/Tag | AJ2: Lauf Km | AK2: J | AL2: Swim Km | AM2: Mental Training | AN2: Regeneration
D3: kg | E3: [-2….+2] | F3: 1-6 | G3: Std | H3: "x" wenn ja | M3: Dauer | N3: RPE | O3: Load | P3: Dauer | Q3: RPE | R3: Load | S3: Dauer | T3: RPE | U3: Load | V3: Dauer | W3: RPE | X3: Load | Y3: Dauer | Z3: RPE | AA3: Load | AB3: Dauer | AC3: RPE | AD3: Load
B4: Mo | O4: =M4*N4 -> 0 | R4: =P4*Q4 -> 0 | U4: =S4*T4 -> 0 | X4: =V4*W4 -> 0 | AA4: =Y4*Z4 -> 0 | AD4: =AB4*AC4 -> 0 | AH4: =SUM(O4:O6,R4:R6,U4:U6,X4:X6,AA4:AA6,AD4:AD6) -> 0
O5: 0 | R5: 0 | U5: 0 | X5: 0 | AA5: 0 | AD5: 0
O6: 0 | R6: 0 | U6: 0 | X6: 0 | AA6: 0 | AD6: 0
B7: Di | O7: 0 | R7: 0 | U7: 0 | X7: 0 | AA7: 0 | AD7: 0 | AH7: =SUM(O7:O9,R7:R9,U7:U9,X7:X9,AA7:AA9,AD7:AD9) -> 0
O8: 0 | R8: 0 | U8: 0 | X8: 0 | AA8: 0 | AD8: 0
O9: 0 | R9: 0 | U9: 0 | X9: 0 | AA9: 0 | AD9: 0
B10: Mi | O10: 0 | R10: 0 | U10: 0 | X10: 0 | AA10: 0 | AD10: 0 | AH10: =SUM(O10:O12,R10:R12,U10:U12,X10:X12,AA10:AA12,AD10:AD12) -> 0
O11: 0 | R11: 0 | U11: 0 | X11: 0 | AA11: 0 | AD11: 0
O12: 0 | R12: 0 | U12: 0 | X12: 0 | AA12: 0 | AD12: 0
B13: Do | O13: 0 | R13: 0 | U13: 0 | X13: 0 | AA13: 0 | AD13: 0 | AH13: =SUM(O13:O15,R13:R15,U13:U15,X13:X15,AA13:AA15,AD13:AD15) -> 0
O14: 0 | R14: 0 | U14: 0 | X14: 0 | AA14: 0 | AD14: 0
O15: 0 | R15: 0 | U15: 0 | X15: 0 | AA15: 0 | AD15: 0
B16: Fr | O16: 0 | R16: 0 | U16: 0 | X16: 0 | AA16: 0 | AD16: 0 | AH16: =SUM(O16:O18,R16:R18,U16:U18,X16:X18,AA16:AA18,AD16:AD18) -> 0
O17: 0 | R17: 0 | U17: 0 | X17: 0 | AA17: 0 | AD17: 0
O18: 0 | R18: 0 | U18: 0 | X18: 0 | AA18: 0 | AD18: 0
B19: Sa | O19: 0 | R19: 0 | U19: 0 | X19: 0 | AA19: 0 | AD19: 0 | AH19: =SUM(O19:O21,R19:R21,U19:U21,X19:X21,AA19:AA21,AD19:AD21) -> 0
O20: 0 | R20: 0 | U20: 0 | X20: 0 | AA20: 0 | AD20: 0
O21: 0 | R21: 0 | U21: 0 | X21: 0 | AA21: 0 | AD21: 0
B22: So | O22: 0 | R22: 0 | U22: 0 | X22: 0 | AA22: 0 | AD22: 0 | AH22: =SUM(O22:O24,R22:R24,U22:U24,X22:X24,AA22:AA24,AD22:AD24) -> 0
O23: 0 | R23: 0 | U23: 0 | X23: 0 | AA23: 0 | AD23: 0
O24: 0 | R24: 0 | U24: 0 | X24: 0 | AA24: 0 | AD24: 0
K25: Total | M25: =SUM(M4:M24) -> 0 | O25: =SUM(O4:O24) -> 0 | P25: =SUM(P4:P24) -> 0 | R25: =SUM(R4:R24) -> 0 | S25: =SUM(S4:S24) -> 0 | U25: =SUM(U4:U24) -> 0 | V25: =SUM(V4:V24) -> 0 | X25: =SUM(X4:X24) -> 0 | Y25: =SUM(Y4:Y24) -> 0 | AA25: =SUM(AA4:AA24) -> 0 | AB25: =SUM(AB4:AB24) -> 0 | AD25: =SUM(AD4:AD24) -> 0 | AF25: TOTAL LOAD | AH25: =SUM(AH4:AH24) -> 0
B26: avg | D26: =IF(COUNTA(D4:D24)=0,"",AVERAGE(D4:D24)) ->  | E26: =IF(COUNTA(E4:E24)=0,"",AVERAGE(E4:E24)) ->  | F26: =IF(COUNTA(F4:F24)=0,"",AVERAGE(F4:F24)) ->  | G26: =IF(COUNTA(G4:G24)=0,"",AVERAGE(G4:G24)) ->  | H26: =IF(COUNTA(H4:H24)=0,"",COUNTIF(H4:H24,"x")) ->  | K26: Zone | M26: 1 | N26: 2 | O26: 3 | P26: 1 | Q26: 2 | R26: 3 | S26: 1 | T26: 2 | U26: 3 | V26: 1 | W26: 2 | X26: 3 | Y26: 1 | Z26: 2 | AA26: 3 | AB26: 1 | AC26: 2 | AD26: 3 | AF26: Mittelwert | AH26: =AVERAGE(AH4:AH24) -> 0
K27: Einheiten pro Zone (RPE) | M27: =IF(Beanspruchungverteilung!$AT$21="x",COUNTIF(N4:N24,"<3.5"),COUNTIF(N4:N24,"<4.5")) -> 0 | N27: =COUNT(N4:N24)-(M27+O27) -> 0 | O27: =IF(Beanspruchungverteilung!$AT$21="x",COUNTIF(N4:N24,">5.5"),COUNTIF(N4:N24,">6.5")) -> 0 | P27: =IF(Beanspruchungverteilung!$AT$21="x",COUNTIF(Q4:Q24,"<3.5"),COUNTIF(Q4:Q24,"<4.5")) -> 0 | Q27: =COUNT(Q4:Q24)-(P27+R27) -> 0 | R27: =IF(Beanspruchungverteilung!$AT$21="x",COUNTIF(Q4:Q24,">5.5"),COUNTIF(Q4:Q24,">6.5")) -> 0 | S27: =IF(Beanspruchungverteilung!$AT$21="x",COUNTIF(T4:T24,"<3.5"),COUNTIF(T4:T24,"<4.5")) -> 0 | T27: =COUNT(T4:T24)-(S27+U27) -> 0 | U27: =IF(Beanspruchungverteilung!$AT$21="x",COUNTIF(T4:T24,">5.5"),COUNTIF(T4:T24,">6.5")) -> 0 | V27: =IF(Beanspruchungverteilung!$AT$21="x",COUNTIF(W4:W24,"<3.5"),COUNTIF(W4:W24,"<4.5")) -> 0 | W27: =COUNT(W4:W24)-(V27+X27) -> 0 | X27: =IF(Beanspruchungverteilung!$AT$21="x",COUNTIF(W4:W24,">5.5"),COUNTIF(W4:W24,">6.5")) -> 0 | Y27: =IF(Beanspruchungverteilung!$AT$21="x",COUNTIF(Z4:Z24,"<3.5"),COUNTIF(Z4:Z24,"<4.5")) -> 0 | Z27: =COUNT(Z4:Z24)-(Y27+AA27) -> 0 | AA27: =IF(Beanspruchungverteilung!$AT$21="x",COUNTIF(Z4:Z24,">5.5"),COUNTIF(Z4:Z24,">6.5")) -> 0 | AB27: =IF(Beanspruchungverteilung!$AT$21="x",COUNTIF(AC4:AC24,"<3.5"),COUNTIF(AC4:AC24,"<4.5")) -> 0 | AC27: =COUNT(AC4:AC24)-(AB27+AD27) -> 0 | AD27: =IF(Beanspruchungverteilung!$AT$21="x",COUNTIF(AC4:AC24,">5.5"),COUNTIF(AC4:AC24,">6.5")) -> 0 | AF27: Standardabweichung | AH27: =STDEVP(AH4:AH24) -> 0
D28: Foster's Skala | H28: RPE | K28: Zeit pro Zone (RPE) | M28: =IF(Beanspruchungverteilung!$AT$21="x",SUMIF(N4:N24,"<3.5",M4:M24),SUMIF(N4:N24,"<4.5",M4:M24)) -> 0 | N28: =IF(N27=0,0,SUM((M25)-(M28+O28))) -> 0 | O28: =IF(Beanspruchungverteilung!$AT$21="x",SUMIF(N4:N24,">5.5",M4:M24),SUMIF(N4:N24,">6.5",M4:M24)) -> 0 | P28: =IF(Beanspruchungverteilung!$AT$21="x",SUMIF(Q4:Q24,"<3.5",P4:P24),SUMIF(Q4:Q24,"<4.5",P4:P24)) -> 0 | Q28: =IF(Q27=0,0,SUM((P25)-(P28+R28))) -> 0 | R28: =IF(Beanspruchungverteilung!$AT$21="x",SUMIF(Q4:Q24,">5.5",P4:P24),SUMIF(Q4:Q24,">6.5",P4:P24)) -> 0 | S28: =IF(Beanspruchungverteilung!$AT$21="x",SUMIF(T4:T24,"<3.5",S4:S24),SUMIF(T4:T24,"<4.5",S4:S24)) -> 0 | T28: =IF(T27=0,0,SUM((S25)-(S28+U28))) -> 0 | U28: =IF(Beanspruchungverteilung!$AT$21="x",SUMIF(T4:T24,">5.5",S4:S24),SUMIF(T4:T24,">6.5",S4:S24)) -> 0 | V28: =IF(Beanspruchungverteilung!$AT$21="x",SUMIF(W4:W24,"<3.5",V4:V24),SUMIF(W4:W24,"<4.5",V4:V24)) -> 0 | W28: =IF(W27=0,0,SUM((V25)-(V28+X28))) -> 0 | X28: =IF(Beanspruchungverteilung!$AT$21="x",SUMIF(W4:W24,">5.5",V4:V24),SUMIF(W4:W24,">6.5",V4:V24)) -> 0 | Y28: =IF(Beanspruchungverteilung!$AT$21="x",SUMIF(Z4:Z24,"<3.5",Y4:Y24),SUMIF(Z4:Z24,"<4.5",Y4:Y24)) -> 0 | Z28: =IF(Z27=0,0,SUM((Y25)-(Y28+AA28))) -> 0 | AA28: =IF(Beanspruchungverteilung!$AT$21="x",SUMIF(Z4:Z24,">5.5",Y4:Y24),SUMIF(Z4:Z24,">6.5",Y4:Y24)) -> 0 | AB28: =IF(Beanspruchungverteilung!$AT$21="x",SUMIF(AC4:AC24,"<3.5",AB4:AB24),SUMIF(AC4:AC24,"<4.5",AB4:AB24)) -> 0 | AC28: =IF(AC27=0,0,SUM((AB25)-(AB28+AD28))) -> 0 | AD28: =IF(Beanspruchungverteilung!$AT$21="x",SUMIF(AC4:AC24,">5.5",AB4:AB24),SUMIF(AC4:AC24,">6.5",AB4:AB24)) -> 0
D29: Wie in Ruhe | H29: 0
D30: Sehr locker | H30: 1
D31: Locker | H31: 2 | AF31: Trainingstagen | AH31: =IF(SUM(AH4:AH24)=0,"",COUNTIF(AH4:AH24,">0")) -> 
H32: 3
D33: Etwas hart | H33: 4 | AF33: Trainingseinheiten | AH33: =IF(AH31="","",SUM(M27:AD27)) -> 
D34: Hart | H34: 5
H35: 6 | AF35: Trainingsstunden | AH35: =IF(AH31="","",SUM(M25,P25,V25,Y25,S25,AB25)/60) -> 
D36: Sehr hart | H36: 7
H37: 8 | AF37: Training Load | AH37: =IF(AH31="","",SUM(AH25)) -> 
D38: Extrem hart | H38: 9
D39: Wie mein härtestes Training | H39: 10 | AF39: Monotonie | AH39: =IF(AH31="","",(AVERAGE(AH4:AH24))/AH27) -> 
AF41: Trainingsanstrengung | AH41: =IF(AH31="","",AH37*AH39) -> 
AF43: =AJ2 -> Lauf Km | AH43: =IF(AH31="","",SUM(AJ4:AJ24)) -> 
AF45: =AK2 -> J | AH45: =IF(AH31="","",SUM(AK4:AK24)) -> 
AF47: =AL2 -> Swim Km | AH47: =IF(AH31="","",SUM(AL4:AL24)) -> 
AF49: =AM2 -> Mental Training | AH49: =IF(AH31="","",COUNTA(AM4:AM24)) -> 
AF51: =AN2 -> Regeneration | AH51: =IF(AH31="","",COUNTA(AN4:AN24)) -> 
AF53: =H2 -> Verletzung/Erkrankung | AH53: =IF(H26="","",COUNTA(H4:H24)) -> 
V134: =W134-1 -> 19 | W134: 20 | X134: 21 | Y134: 22 | Z134: 23 | AA134: 24 | AB134: 25 | AC134: =D1 -> 26
AD155: =AC134+1 -> 27 | AE155: =AD155+1 -> 28 | AF155: =AE155+1 -> 29

Sheet 27
C1: Woche | D1: =INT(MOD(INT((F1-2)/7)+0.6,52+5/28))+1 -> 27 | E1: =D1+1000 -> 1027 | F1: ='26'!F1+7 -> 2013-07-01 | G1: - | H1: =F1+6 -> 2013-07-07 | AD1: =Overview!D2 -> Vorname Name | AF1: =Overview!N2 -> 0
B2: Tag | D2: Gewicht | E2: Motiv. | F2: Schlaf | G2: Schlaf | H2: Verletzung/Erkrankung | J2: Trainingsbeschreibung | M2: ='19'!M2:O2 -> Dauerlauf | P2: ='19'!P2:R2 -> Bahn/Intervall | S2: ='19'!S2:U2 -> Sprint/Koord/Tech | V2: ='19'!V2:X2 -> Kraft | Y2: ='19'!Y2:AA2 -> Alternativ | AB2: ='19'!AB2:AD2 -> Divers | AF2: Bemerkungen | AH2: Load/Tag | AJ2: Lauf Km | AK2: J | AL2: Swim Km | AM2: Mental Training | AN2: Regeneration
D3: kg | E3: [-2….+2] | F3: 1-6 | G3: Std | H3: "x" wenn ja | M3: Dauer | N3: RPE | O3: Load | P3: Dauer | Q3: RPE | R3: Load | S3: Dauer | T3: RPE | U3: Load | V3: Dauer | W3: RPE | X3: Load | Y3: Dauer | Z3: RPE | AA3: Load | AB3: Dauer | AC3: RPE | AD3: Load
B4: Mo | O4: =M4*N4 -> 0 | R4: =P4*Q4 -> 0 | U4: =S4*T4 -> 0 | X4: =V4*W4 -> 0 | AA4: =Y4*Z4 -> 0 | AD4: =AB4*AC4 -> 0 | AH4: =SUM(O4:O6,R4:R6,U4:U6,X4:X6,AA4:AA6,AD4:AD6) -> 0
O5: 0 | R5: 0 | U5: 0 | X5: 0 | AA5: 0 | AD5: 0
O6: 0 | R6: 0 | U6: 0 | X6: 0 | AA6: 0 | AD6: 0
B7: Di | O7: 0 | R7: 0 | U7: 0 | X7: 0 | AA7: 0 | AD7: 0 | AH7: =SUM(O7:O9,R7:R9,U7:U9,X7:X9,AA7:AA9,AD7:AD9) -> 0
O8: 0 | R8: 0 | U8: 0 | X8: 0 | AA8: 0 | AD8: 0
O9: 0 | R9: 0 | U9: 0 | X9: 0 | AA9: 0 | AD9: 0
B10: Mi | O10: 0 | R10: 0 | U10: 0 | X10: 0 | AA10: 0 | AD10: 0 | AH10: =SUM(O10:O12,R10:R12,U10:U12,X10:X12,AA10:AA12,AD10:AD12) -> 0
O11: 0 | R11: 0 | U11: 0 | X11: 0 | AA11: 0 | AD11: 0
O12: 0 | R12: 0 | U12: 0 | X12: 0 | AA12: 0 | AD12: 0
B13: Do | O13: 0 | R13: 0 | U13: 0 | X13: 0 | AA13: 0 | AD13: 0 | AH13: =SUM(O13:O15,R13:R15,U13:U15,X13:X15,AA13:AA15,AD13:AD15) -> 0
O14: 0 | R14: 0 | U14: 0 | X14: 0 | AA14: 0 | AD14: 0
O15: 0 | R15: 0 | U15: 0 | X15: 0 | AA15: 0 | AD15: 0
B16: Fr | O16: 0 | R16: 0 | U16: 0 | X16: 0 | AA16: 0 | AD16: 0 | AH16: =SUM(O16:O18,R16:R18,U16:U18,X16:X18,AA16:AA18,AD16:AD18) -> 0
O17: 0 | R17: 0 | U17: 0 | X17: 0 | AA17: 0 | AD17: 0
O18: 0 | R18: 0 | U18: 0 | X18: 0 | AA18: 0 | AD18: 0
B19: Sa | O19: 0 | R19: 0 | U19: 0 | X19: 0 | AA19: 0 | AD19: 0 | AH19: =SUM(O19:O21,R19:R21,U19:U21,X19:X21,AA19:AA21,AD19:AD21) -> 0
O20: 0 | R20: 0 | U20: 0 | X20: 0 | AA20: 0 | AD20: 0
O21: 0 | R21: 0 | U21: 0 | X21: 0 | AA21: 0 | AD21: 0
B22: So | O22: 0 | R22: 0 | U22: 0 | X22: 0 | AA22: 0 | AD22: 0 | AH22: =SUM(O22:O24,R22:R24,U22:U24,X22:X24,AA22:AA24,AD22:AD24) -> 0
O23: 0 | R23: 0 | U23: 0 | X23: 0 | AA23: 0 | AD23: 0
O24: 0 | R24: 0 | U24: 0 | X24: 0 | AA24: 0 | AD24: 0
K25: Total | M25: =SUM(M4:M24) -> 0 | O25: =SUM(O4:O24) -> 0 | P25: =SUM(P4:P24) -> 0 | R25: =SUM(R4:R24) -> 0 | S25: =SUM(S4:S24) -> 0 | U25: =SUM(U4:U24) -> 0 | V25: =SUM(V4:V24) -> 0 | X25: =SUM(X4:X24) -> 0 | Y25: =SUM(Y4:Y24) -> 0 | AA25: =SUM(AA4:AA24) -> 0 | AB25: =SUM(AB4:AB24) -> 0 | AD25: =SUM(AD4:AD24) -> 0 | AF25: TOTAL LOAD | AH25: =SUM(AH4:AH24) -> 0
B26: avg | D26: =IF(COUNTA(D4:D24)=0,"",AVERAGE(D4:D24)) ->  | E26: =IF(COUNTA(E4:E24)=0,"",AVERAGE(E4:E24)) ->  | F26: =IF(COUNTA(F4:F24)=0,"",AVERAGE(F4:F24)) ->  | G26: =IF(COUNTA(G4:G24)=0,"",AVERAGE(G4:G24)) ->  | H26: =IF(COUNTA(H4:H24)=0,"",COUNTIF(H4:H24,"x")) ->  | K26: Zone | M26: 1 | N26: 2 | O26: 3 | P26: 1 | Q26: 2 | R26: 3 | S26: 1 | T26: 2 | U26: 3 | V26: 1 | W26: 2 | X26: 3 | Y26: 1 | Z26: 2 | AA26: 3 | AB26: 1 | AC26: 2 | AD26: 3 | AF26: Mittelwert | AH26: =AVERAGE(AH4:AH24) -> 0
K27: Einheiten pro Zone (RPE) | M27: =IF(Beanspruchungverteilung!$AT$21="x",COUNTIF(N4:N24,"<3.5"),COUNTIF(N4:N24,"<4.5")) -> 0 | N27: =COUNT(N4:N24)-(M27+O27) -> 0 | O27: =IF(Beanspruchungverteilung!$AT$21="x",COUNTIF(N4:N24,">5.5"),COUNTIF(N4:N24,">6.5")) -> 0 | P27: =IF(Beanspruchungverteilung!$AT$21="x",COUNTIF(Q4:Q24,"<3.5"),COUNTIF(Q4:Q24,"<4.5")) -> 0 | Q27: =COUNT(Q4:Q24)-(P27+R27) -> 0 | R27: =IF(Beanspruchungverteilung!$AT$21="x",COUNTIF(Q4:Q24,">5.5"),COUNTIF(Q4:Q24,">6.5")) -> 0 | S27: =IF(Beanspruchungverteilung!$AT$21="x",COUNTIF(T4:T24,"<3.5"),COUNTIF(T4:T24,"<4.5")) -> 0 | T27: =COUNT(T4:T24)-(S27+U27) -> 0 | U27: =IF(Beanspruchungverteilung!$AT$21="x",COUNTIF(T4:T24,">5.5"),COUNTIF(T4:T24,">6.5")) -> 0 | V27: =IF(Beanspruchungverteilung!$AT$21="x",COUNTIF(W4:W24,"<3.5"),COUNTIF(W4:W24,"<4.5")) -> 0 | W27: =COUNT(W4:W24)-(V27+X27) -> 0 | X27: =IF(Beanspruchungverteilung!$AT$21="x",COUNTIF(W4:W24,">5.5"),COUNTIF(W4:W24,">6.5")) -> 0 | Y27: =IF(Beanspruchungverteilung!$AT$21="x",COUNTIF(Z4:Z24,"<3.5"),COUNTIF(Z4:Z24,"<4.5")) -> 0 | Z27: =COUNT(Z4:Z24)-(Y27+AA27) -> 0 | AA27: =IF(Beanspruchungverteilung!$AT$21="x",COUNTIF(Z4:Z24,">5.5"),COUNTIF(Z4:Z24,">6.5")) -> 0 | AB27: =IF(Beanspruchungverteilung!$AT$21="x",COUNTIF(AC4:AC24,"<3.5"),COUNTIF(AC4:AC24,"<4.5")) -> 0 | AC27: =COUNT(AC4:AC24)-(AB27+AD27) -> 0 | AD27: =IF(Beanspruchungverteilung!$AT$21="x",COUNTIF(AC4:AC24,">5.5"),COUNTIF(AC4:AC24,">6.5")) -> 0 | AF27: Standardabweichung | AH27: =STDEVP(AH4:AH24) -> 0
D28: Foster's Skala | H28: RPE | K28: Zeit pro Zone (RPE) | M28: =IF(Beanspruchungverteilung!$AT$21="x",SUMIF(N4:N24,"<3.5",M4:M24),SUMIF(N4:N24,"<4.5",M4:M24)) -> 0 | N28: =IF(N27=0,0,SUM((M25)-(M28+O28))) -> 0 | O28: =IF(Beanspruchungverteilung!$AT$21="x",SUMIF(N4:N24,">5.5",M4:M24),SUMIF(N4:N24,">6.5",M4:M24)) -> 0 | P28: =IF(Beanspruchungverteilung!$AT$21="x",SUMIF(Q4:Q24,"<3.5",P4:P24),SUMIF(Q4:Q24,"<4.5",P4:P24)) -> 0 | Q28: =IF(Q27=0,0,SUM((P25)-(P28+R28))) -> 0 | R28: =IF(Beanspruchungverteilung!$AT$21="x",SUMIF(Q4:Q24,">5.5",P4:P24),SUMIF(Q4:Q24,">6.5",P4:P24)) -> 0 | S28: =IF(Beanspruchungverteilung!$AT$21="x",SUMIF(T4:T24,"<3.5",S4:S24),SUMIF(T4:T24,"<4.5",S4:S24)) -> 0 | T28: =IF(T27=0,0,SUM((S25)-(S28+U28))) -> 0 | U28: =IF(Beanspruchungverteilung!$AT$21="x",SUMIF(T4:T24,">5.5",S4:S24),SUMIF(T4:T24,">6.5",S4:S24)) -> 0 | V28: =IF(Beanspruchungverteilung!$AT$21="x",SUMIF(W4:W24,"<3.5",V4:V24),SUMIF(W4:W24,"<4.5",V4:V24)) -> 0 | W28: =IF(W27=0,0,SUM((V25)-(V28+X28))) -> 0 | X28: =IF(Beanspruchungverteilung!$AT$21="x",SUMIF(W4:W24,">5.5",V4:V24),SUMIF(W4:W24,">6.5",V4:V24)) -> 0 | Y28: =IF(Beanspruchungverteilung!$AT$21="x",SUMIF(Z4:Z24,"<3.5",Y4:Y24),SUMIF(Z4:Z24,"<4.5",Y4:Y24)) -> 0 | Z28: =IF(Z27=0,0,SUM((Y25)-(Y28+AA28))) -> 0 | AA28: =IF(Beanspruchungverteilung!$AT$21="x",SUMIF(Z4:Z24,">5.5",Y4:Y24),SUMIF(Z4:Z24,">6.5",Y4:Y24)) -> 0 | AB28: =IF(Beanspruchungverteilung!$AT$21="x",SUMIF(AC4:AC24,"<3.5",AB4:AB24),SUMIF(AC4:AC24,"<4.5",AB4:AB24)) -> 0 | AC28: =IF(AC27=0,0,SUM((AB25)-(AB28+AD28))) -> 0 | AD28: =IF(Beanspruchungverteilung!$AT$21="x",SUMIF(AC4:AC24,">5.5",AB4:AB24),SUMIF(AC4:AC24,">6.5",AB4:AB24)) -> 0
D29: Wie in Ruhe | H29: 0
D30: Sehr locker | H30: 1
D31: Locker | H31: 2 | AF31: Trainingstagen | AH31: =IF(SUM(AH4:AH24)=0,"",COUNTIF(AH4:AH24,">0")) -> 
H32: 3
D33: Etwas hart | H33: 4 | AF33: Trainingseinheiten | AH33: =IF(AH31="","",SUM(M27:AD27)) -> 
D34: Hart | H34: 5
H35: 6 | AF35: Trainingsstunden | AH35: =IF(AH31="","",SUM(M25,P25,V25,Y25,S25,AB25)/60) -> 
D36: Sehr hart | H36: 7
H37: 8 | AF37: Training Load | AH37: =IF(AH31="","",SUM(AH25)) -> 
D38: Extrem hart | H38: 9
D39: Wie mein härtestes Training | H39: 10 | AF39: Monotonie | AH39: =IF(AH31="","",(AVERAGE(AH4:AH24))/AH27) -> 
AF41: Trainingsanstrengung | AH41: =IF(AH31="","",AH37*AH39) -> 
AF43: =AJ2 -> Lauf Km | AH43: =IF(AH31="","",SUM(AJ4:AJ24)) -> 
AF45: =AK2 -> J | AH45: =IF(AH31="","",SUM(AK4:AK24)) -> 
AF47: =AL2 -> Swim Km | AH47: =IF(AH31="","",SUM(AL4:AL24)) -> 
AF49: =AM2 -> Mental Training | AH49: =IF(AH31="","",COUNTA(AM4:AM24)) -> 
AF51: =AN2 -> Regeneration | AH51: =IF(AH31="","",COUNTA(AN4:AN24)) -> 
AF53: =H2 -> Verletzung/Erkrankung | AH53: =IF(H26="","",COUNTA(H4:H24)) -> 
V134: =W134-1 -> 20 | W134: 21 | X134: 22 | Y134: 23 | Z134: 24 | AA134: 25 | AB134: =AC134-1 -> 26 | AC134: =D1 -> 27
AD155: =AC134+1 -> 28 | AE155: =AD155+1 -> 29 | AF155: =AE155+1 -> 30

Sheet 28
C1: Woche | D1: =INT(MOD(INT((F1-2)/7)+0.6,52+5/28))+1 -> 28 | E1: =D1+1000 -> 1028 | F1: ='27'!F1+7 -> 2013-07-08 | G1: - | H1: =F1+6 -> 2013-07-14 | AD1: =Overview!D2 -> Vorname Name | AF1: =Overview!N2 -> 0
B2: Tag | D2: Gewicht | E2: Motiv. | F2: Schlaf | G2: Schlaf | H2: Verletzung/Erkrankung | J2: Trainingsbeschreibung | M2: ='19'!M2:O2 -> Dauerlauf | P2: ='19'!P2:R2 -> Bahn/Intervall | S2: ='19'!S2:U2 -> Sprint/Koord/Tech | V2: ='19'!V2:X2 -> Kraft | Y2: ='19'!Y2:AA2 -> Alternativ | AB2: ='19'!AB2:AD2 -> Divers | AF2: Bemerkungen | AH2: Load/Tag | AJ2: Lauf Km | AK2: J | AL2: Swim Km | AM2: Mental Training | AN2: Regeneration
D3: kg | E3: [-2….+2] | F3: 1-6 | G3: Std | H3: "x" wenn ja | M3: Dauer | N3: RPE | O3: Load | P3: Dauer | Q3: RPE | R3: Load | S3: Dauer | T3: RPE | U3: Load | V3: Dauer | W3: RPE | X3: Load | Y3: Dauer | Z3: RPE | AA3: Load | AB3: Dauer | AC3: RPE | AD3: Load
B4: Mo | O4: =M4*N4 -> 0 | R4: =P4*Q4 -> 0 | U4: =S4*T4 -> 0 | X4: =V4*W4 -> 0 | AA4: =Y4*Z4 -> 0 | AD4: =AB4*AC4 -> 0 | AH4: =SUM(O4:O6,R4:R6,U4:U6,X4:X6,AA4:AA6,AD4:AD6) -> 0
O5: 0 | R5: 0 | U5: 0 | X5: 0 | AA5: 0 | AD5: 0
O6: 0 | R6: 0 | U6: 0 | X6: 0 | AA6: 0 | AD6: 0
B7: Di | O7: 0 | R7: 0 | U7: 0 | X7: 0 | AA7: 0 | AD7: 0 | AH7: =SUM(O7:O9,R7:R9,U7:U9,X7:X9,AA7:AA9,AD7:AD9) -> 0
O8: 0 | R8: 0 | U8: 0 | X8: 0 | AA8: 0 | AD8: 0
O9: 0 | R9: 0 | U9: 0 | X9: 0 | AA9: 0 | AD9: 0
B10: Mi | O10: 0 | R10: 0 | U10: 0 | X10: 0 | AA10: 0 | AD10: 0 | AH10: =SUM(O10:O12,R10:R12,U10:U12,X10:X12,AA10:AA12,AD10:AD12) -> 0
O11: 0 | R11: 0 | U11: 0 | X11: 0 | AA11: 0 | AD11: 0
O12: 0 | R12: 0 | U12: 0 | X12: 0 | AA12: 0 | AD12: 0
B13: Do | O13: 0 | R13: 0 | U13: 0 | X13: 0 | AA13: 0 | AD13: 0 | AH13: =SUM(O13:O15,R13:R15,U13:U15,X13:X15,AA13:AA15,AD13:AD15) -> 0
O14: 0 | R14: 0 | U14: 0 | X14: 0 | AA14: 0 | AD14: 0
O15: 0 | R15: 0 | U15: 0 | X15: 0 | AA15: 0 | AD15: 0
B16: Fr | O16: 0 | R16: 0 | U16: 0 | X16: 0 | AA16: 0 | AD16: 0 | AH16: =SUM(O16:O18,R16:R18,U16:U18,X16:X18,AA16:AA18,AD16:AD18) -> 0
O17: 0 | R17: 0 | U17: 0 | X17: 0 | AA17: 0 | AD17: 0
O18: 0 | R18: 0 | U18: 0 | X18: 0 | AA18: 0 | AD18: 0
B19: Sa | O19: 0 | R19: 0 | U19: 0 | X19: 0 | AA19: 0 | AD19: 0 | AH19: =SUM(O19:O21,R19:R21,U19:U21,X19:X21,AA19:AA21,AD19:AD21) -> 0
O20: 0 | R20: 0 | U20: 0 | X20: 0 | AA20: 0 | AD20: 0
O21: 0 | R21: 0 | U21: 0 | X21: 0 | AA21: 0 | AD21: 0
B22: So | O22: 0 | R22: 0 | U22: 0 | X22: 0 | AA22: 0 | AD22: 0 | AH22: =SUM(O22:O24,R22:R24,U22:U24,X22:X24,AA22:AA24,AD22:AD24) -> 0
O23: 0 | R23: 0 | U23: 0 | X23: 0 | AA23: 0 | AD23: 0
O24: 0 | R24: 0 | U24: 0 | X24: 0 | AA24: 0 | AD24: 0
K25: Total | M25: =SUM(M4:M24) -> 0 | O25: =SUM(O4:O24) -> 0 | P25: =SUM(P4:P24) -> 0 | R25: =SUM(R4:R24) -> 0 | S25: =SUM(S4:S24) -> 0 | U25: =SUM(U4:U24) -> 0 | V25: =SUM(V4:V24) -> 0 | X25: =SUM(X4:X24) -> 0 | Y25: =SUM(Y4:Y24) -> 0 | AA25: =SUM(AA4:AA24) -> 0 | AB25: =SUM(AB4:AB24) -> 0 | AD25: =SUM(AD4:AD24) -> 0 | AF25: TOTAL LOAD | AH25: =SUM(AH4:AH24) -> 0
B26: avg | D26: =IF(COUNTA(D4:D24)=0,"",AVERAGE(D4:D24)) ->  | E26: =IF(COUNTA(E4:E24)=0,"",AVERAGE(E4:E24)) ->  | F26: =IF(COUNTA(F4:F24)=0,"",AVERAGE(F4:F24)) ->  | G26: =IF(COUNTA(G4:G24)=0,"",AVERAGE(G4:G24)) ->  | H26: =IF(COUNTA(H4:H24)=0,"",COUNTIF(H4:H24,"x")) ->  | K26: Zone | M26: 1 | N26: 2 | O26: 3 | P26: 1 | Q26: 2 | R26: 3 | S26: 1 | T26: 2 | U26: 3 | V26: 1 | W26: 2 | X26: 3 | Y26: 1 | Z26: 2 | AA26: 3 | AB26: 1 | AC26: 2 | AD26: 3 | AF26: Mittelwert | AH26: =AVERAGE(AH4:AH24) -> 0
K27: Einheiten pro Zone (RPE) | M27: =IF(Beanspruchungverteilung!$AT$21="x",COUNTIF(N4:N24,"<3.5"),COUNTIF(N4:N24,"<4.5")) -> 0 | N27: =COUNT(N4:N24)-(M27+O27) -> 0 | O27: =IF(Beanspruchungverteilung!$AT$21="x",COUNTIF(N4:N24,">5.5"),COUNTIF(N4:N24,">6.5")) -> 0 | P27: =IF(Beanspruchungverteilung!$AT$21="x",COUNTIF(Q4:Q24,"<3.5"),COUNTIF(Q4:Q24,"<4.5")) -> 0 | Q27: =COUNT(Q4:Q24)-(P27+R27) -> 0 | R27: =IF(Beanspruchungverteilung!$AT$21="x",COUNTIF(Q4:Q24,">5.5"),COUNTIF(Q4:Q24,">6.5")) -> 0 | S27: =IF(Beanspruchungverteilung!$AT$21="x",COUNTIF(T4:T24,"<3.5"),COUNTIF(T4:T24,"<4.5")) -> 0 | T27: =COUNT(T4:T24)-(S27+U27) -> 0 | U27: =IF(Beanspruchungverteilung!$AT$21="x",COUNTIF(T4:T24,">5.5"),COUNTIF(T4:T24,">6.5")) -> 0 | V27: =IF(Beanspruchungverteilung!$AT$21="x",COUNTIF(W4:W24,"<3.5"),COUNTIF(W4:W24,"<4.5")) -> 0 | W27: =COUNT(W4:W24)-(V27+X27) -> 0 | X27: =IF(Beanspruchungverteilung!$AT$21="x",COUNTIF(W4:W24,">5.5"),COUNTIF(W4:W24,">6.5")) -> 0 | Y27: =IF(Beanspruchungverteilung!$AT$21="x",COUNTIF(Z4:Z24,"<3.5"),COUNTIF(Z4:Z24,"<4.5")) -> 0 | Z27: =COUNT(Z4:Z24)-(Y27+AA27) -> 0 | AA27: =IF(Beanspruchungverteilung!$AT$21="x",COUNTIF(Z4:Z24,">5.5"),COUNTIF(Z4:Z24,">6.5")) -> 0 | AB27: =IF(Beanspruchungverteilung!$AT$21="x",COUNTIF(AC4:AC24,"<3.5"),COUNTIF(AC4:AC24,"<4.5")) -> 0 | AC27: =COUNT(AC4:AC24)-(AB27+AD27) -> 0 | AD27: =IF(Beanspruchungverteilung!$AT$21="x",COUNTIF(AC4:AC24,">5.5"),COUNTIF(AC4:AC24,">6.5")) -> 0 | AF27: Standardabweichung | AH27: =STDEVP(AH4:AH24) -> 0
D28: Foster's Skala | H28: RPE | K28: Zeit pro Zone (RPE) | M28: =IF(Beanspruchungverteilung!$AT$21="x",SUMIF(N4:N24,"<3.5",M4:M24),SUMIF(N4:N24,"<4.5",M4:M24)) -> 0 | N28: =IF(N27=0,0,SUM((M25)-(M28+O28))) -> 0 | O28: =IF(Beanspruchungverteilung!$AT$21="x",SUMIF(N4:N24,">5.5",M4:M24),SUMIF(N4:N24,">6.5",M4:M24)) -> 0 | P28: =IF(Beanspruchungverteilung!$AT$21="x",SUMIF(Q4:Q24,"<3.5",P4:P24),SUMIF(Q4:Q24,"<4.5",P4:P24)) -> 0 | Q28: =IF(Q27=0,0,SUM((P25)-(P28+R28))) -> 0 | R28: =IF(Beanspruchungverteilung!$AT$21="x",SUMIF(Q4:Q24,">5.5",P4:P24),SUMIF(Q4:Q24,">6.5",P4:P24)) -> 0 | S28: =IF(Beanspruchungverteilung!$AT$21="x",SUMIF(T4:T24,"<3.5",S4:S24),SUMIF(T4:T24,"<4.5",S4:S24)) -> 0 | T28: =IF(T27=0,0,SUM((S25)-(S28+U28))) -> 0 | U28: =IF(Beanspruchungverteilung!$AT$21="x",SUMIF(T4:T24,">5.5",S4:S24),SUMIF(T4:T24,">6.5",S4:S24)) -> 0 | V28: =IF(Beanspruchungverteilung!$AT$21="x",SUMIF(W4:W24,"<3.5",V4:V24),SUMIF(W4:W24,"<4.5",V4:V24)) -> 0 | W28: =IF(W27=0,0,SUM((V25)-(V28+X28))) -> 0 | X28: =IF(Beanspruchungverteilung!$AT$21="x",SUMIF(W4:W24,">5.5",V4:V24),SUMIF(W4:W24,">6.5",V4:V24)) -> 0 | Y28: =IF(Beanspruchungverteilung!$AT$21="x",SUMIF(Z4:Z24,"<3.5",Y4:Y24),SUMIF(Z4:Z24,"<4.5",Y4:Y24)) -> 0 | Z28: =IF(Z27=0,0,SUM((Y25)-(Y28+AA28))) -> 0 | AA28: =IF(Beanspruchungverteilung!$AT$21="x",SUMIF(Z4:Z24,">5.5",Y4:Y24),SUMIF(Z4:Z24,">6.5",Y4:Y24)) -> 0 | AB28: =IF(Beanspruchungverteilung!$AT$21="x",SUMIF(AC4:AC24,"<3.5",AB4:AB24),SUMIF(AC4:AC24,"<4.5",AB4:AB24)) -> 0 | AC28: =IF(AC27=0,0,SUM((AB25)-(AB28+AD28))) -> 0 | AD28: =IF(Beanspruchungverteilung!$AT$21="x",SUMIF(AC4:AC24,">5.5",AB4:AB24),SUMIF(AC4:AC24,">6.5",AB4:AB24)) -> 0
D29: Wie in Ruhe | H29: 0
D30: Sehr locker | H30: 1
D31: Locker | H31: 2 | AF31: Trainingstagen | AH31: =IF(SUM(AH4:AH24)=0,"",COUNTIF(AH4:AH24,">0")) -> 
H32: 3
D33: Etwas hart | H33: 4 | AF33: Trainingseinheiten | AH33: =IF(AH31="","",SUM(M27:AD27)) -> 
D34: Hart | H34: 5
H35: 6 | AF35: Trainingsstunden | AH35: =IF(AH31="","",SUM(M25,P25,V25,Y25,S25,AB25)/60) -> 
D36: Sehr hart | H36: 7
H37: 8 | AF37: Training Load | AH37: =IF(AH31="","",SUM(AH25)) -> 
D38: Extrem hart | H38: 9
D39: Wie mein härtestes Training | H39: 10 | AF39: Monotonie | AH39: =IF(AH31="","",(AVERAGE(AH4:AH24))/AH27) -> 
AF41: Trainingsanstrengung | AH41: =IF(AH31="","",AH37*AH39) -> 
AF43: =AJ2 -> Lauf Km | AH43: =IF(AH31="","",SUM(AJ4:AJ24)) -> 
AF45: =AK2 -> J | AH45: =IF(AH31="","",SUM(AK4:AK24)) -> 
AF47: =AL2 -> Swim Km | AH47: =IF(AH31="","",SUM(AL4:AL24)) -> 
AF49: =AM2 -> Mental Training | AH49: =IF(AH31="","",COUNTA(AM4:AM24)) -> 
AF51: =AN2 -> Regeneration | AH51: =IF(AH31="","",COUNTA(AN4:AN24)) -> 
AF53: =H2 -> Verletzung/Erkrankung | AH53: =IF(H26="","",COUNTA(H4:H24)) -> 
V134: =W134-1 -> 21 | W134: 22 | X134: 23 | Y134: 24 | Z134: 25 | AA134: 26 | AB134: 27 | AC134: =D1 -> 28
AD155: =AC134+1 -> 29 | AE155: =AD155+1 -> 30 | AF155: =AE155+1 -> 31

Sheet 29
C1: Woche | D1: =INT(MOD(INT((F1-2)/7)+0.6,52+5/28))+1 -> 29 | E1: =D1+1000 -> 1029 | F1: ='28'!F1+7 -> 2013-07-15 | G1: - | H1: =F1+6 -> 2013-07-21 | AD1: =Overview!D2 -> Vorname Name | AF1: =Overview!N2 -> 0
B2: Tag | D2: Gewicht | E2: Motiv. | F2: Schlaf | G2: Schlaf | H2: Verletzung/Erkrankung | J2: Trainingsbeschreibung | M2: ='19'!M2:O2 -> Dauerlauf | P2: ='19'!P2:R2 -> Bahn/Intervall | S2: ='19'!S2:U2 -> Sprint/Koord/Tech | V2: ='19'!V2:X2 -> Kraft | Y2: ='19'!Y2:AA2 -> Alternativ | AB2: ='19'!AB2:AD2 -> Divers | AF2: Bemerkungen | AH2: Load/Tag | AJ2: Lauf Km | AK2: J | AL2: Swim Km | AM2: Mental Training | AN2: Regeneration
D3: kg | E3: [-2….+2] | F3: 1-6 | G3: Std | H3: "x" wenn ja | M3: Dauer | N3: RPE | O3: Load | P3: Dauer | Q3: RPE | R3: Load | S3: Dauer | T3: RPE | U3: Load | V3: Dauer | W3: RPE | X3: Load | Y3: Dauer | Z3: RPE | AA3: Load | AB3: Dauer | AC3: RPE | AD3: Load
B4: Mo | O4: =M4*N4 -> 0 | R4: =P4*Q4 -> 0 | U4: =S4*T4 -> 0 | X4: =V4*W4 -> 0 | AA4: =Y4*Z4 -> 0 | AD4: =AB4*AC4 -> 0 | AH4: =SUM(O4:O6,R4:R6,U4:U6,X4:X6,AA4:AA6,AD4:AD6) -> 0
O5: 0 | R5: 0 | U5: 0 | X5: 0 | AA5: 0 | AD5: 0
O6: 0 | R6: 0 | U6: 0 | X6: 0 | AA6: 0 | AD6: 0
B7: Di | O7: 0 | R7: 0 | U7: 0 | X7: 0 | AA7: 0 | AD7: 0 | AH7: =SUM(O7:O9,R7:R9,U7:U9,X7:X9,AA7:AA9,AD7:AD9) -> 0
O8: 0 | R8: 0 | U8: 0 | X8: 0 | AA8: 0 | AD8: 0
O9: 0 | R9: 0 | U9: 0 | X9: 0 | AA9: 0 | AD9: 0
B10: Mi | O10: 0 | R10: 0 | U10: 0 | X10: 0 | AA10: 0 | AD10: 0 | AH10: =SUM(O10:O12,R10:R12,U10:U12,X10:X12,AA10:AA12,AD10:AD12) -> 0
O11: 0 | R11: 0 | U11: 0 | X11: 0 | AA11: 0 | AD11: 0
O12: 0 | R12: 0 | U12: 0 | X12: 0 | AA12: 0 | AD12: 0
B13: Do | O13: 0 | R13: 0 | U13: 0 | X13: 0 | AA13: 0 | AD13: 0 | AH13: =SUM(O13:O15,R13:R15,U13:U15,X13:X15,AA13:AA15,AD13:AD15) -> 0
O14: 0 | R14: 0 | U14: 0 | X14: 0 | AA14: 0 | AD14: 0
O15: 0 | R15: 0 | U15: 0 | X15: 0 | AA15: 0 | AD15: 0
B16: Fr | O16: 0 | R16: 0 | U16: 0 | X16: 0 | AA16: 0 | AD16: 0 | AH16: =SUM(O16:O18,R16:R18,U16:U18,X16:X18,AA16:AA18,AD16:AD18) -> 0
O17: 0 | R17: 0 | U17: 0 | X17: 0 | AA17: 0 | AD17: 0
O18: 0 | R18: 0 | U18: 0 | X18: 0 | AA18: 0 | AD18: 0
B19: Sa | O19: 0 | R19: 0 | U19: 0 | X19: 0 | AA19: 0 | AD19: 0 | AH19: =SUM(O19:O21,R19:R21,U19:U21,X19:X21,AA19:AA21,AD19:AD21) -> 0
O20: 0 | R20: 0 | U20: 0 | X20: 0 | AA20: 0 | AD20: 0
O21: 0 | R21: 0 | U21: 0 | X21: 0 | AA21: 0 | AD21: 0
B22: So | O22: 0 | R22: 0 | U22: 0 | X22: 0 | AA22: 0 | AD22: 0 | AH22: =SUM(O22:O24,R22:R24,U22:U24,X22:X24,AA22:AA24,AD22:AD24) -> 0
O23: 0 | R23: 0 | U23: 0 | X23: 0 | AA23: 0 | AD23: 0
O24: 0 | R24: 0 | U24: 0 | X24: 0 | AA24: 0 | AD24: 0
K25: Total | M25: =SUM(M4:M24) -> 0 | O25: =SUM(O4:O24) -> 0 | P25: =SUM(P4:P24) -> 0 | R25: =SUM(R4:R24) -> 0 | S25: =SUM(S4:S24) -> 0 | U25: =SUM(U4:U24) -> 0 | V25: =SUM(V4:V24) -> 0 | X25: =SUM(X4:X24) -> 0 | Y25: =SUM(Y4:Y24) -> 0 | AA25: =SUM(AA4:AA24) -> 0 | AB25: =SUM(AB4:AB24) -> 0 | AD25: =SUM(AD4:AD24) -> 0 | AF25: TOTAL LOAD | AH25: =SUM(AH4:AH24) -> 0
B26: avg | D26: =IF(COUNTA(D4:D24)=0,"",AVERAGE(D4:D24)) ->  | E26: =IF(COUNTA(E4:E24)=0,"",AVERAGE(E4:E24)) ->  | F26: =IF(COUNTA(F4:F24)=0,"",AVERAGE(F4:F24)) ->  | G26: =IF(COUNTA(G4:G24)=0,"",AVERAGE(G4:G24)) ->  | H26: =IF(COUNTA(H4:H24)=0,"",COUNTIF(H4:H24,"x")) ->  | K26: Zone | M26: 1 | N26: 2 | O26: 3 | P26: 1 | Q26: 2 | R26: 3 | S26: 1 | T26: 2 | U26: 3 | V26: 1 | W26: 2 | X26: 3 | Y26: 1 | Z26: 2 | AA26: 3 | AB26: 1 | AC26: 2 | AD26: 3 | AF26: Mittelwert | AH26: =AVERAGE(AH4:AH24) -> 0
K27: Einheiten pro Zone (RPE) | M27: =IF(Beanspruchungverteilung!$AT$21="x",COUNTIF(N4:N24,"<3.5"),COUNTIF(N4:N24,"<4.5")) -> 0 | N27: =COUNT(N4:N24)-(M27+O27) -> 0 | O27: =IF(Beanspruchungverteilung!$AT$21="x",COUNTIF(N4:N24,">5.5"),COUNTIF(N4:N24,">6.5")) -> 0 | P27: =IF(Beanspruchungverteilung!$AT$21="x",COUNTIF(Q4:Q24,"<3.5"),COUNTIF(Q4:Q24,"<4.5")) -> 0 | Q27: =COUNT(Q4:Q24)-(P27+R27) -> 0 | R27: =IF(Beanspruchungverteilung!$AT$21="x",COUNTIF(Q4:Q24,">5.5"),COUNTIF(Q4:Q24,">6.5")) -> 0 | S27: =IF(Beanspruchungverteilung!$AT$21="x",COUNTIF(T4:T24,"<3.5"),COUNTIF(T4:T24,"<4.5")) -> 0 | T27: =COUNT(T4:T24)-(S27+U27) -> 0 | U27: =IF(Beanspruchungverteilung!$AT$21="x",COUNTIF(T4:T24,">5.5"),COUNTIF(T4:T24,">6.5")) -> 0 | V27: =IF(Beanspruchungverteilung!$AT$21="x",COUNTIF(W4:W24,"<3.5"),COUNTIF(W4:W24,"<4.5")) -> 0 | W27: =COUNT(W4:W24)-(V27+X27) -> 0 | X27: =IF(Beanspruchungverteilung!$AT$21="x",COUNTIF(W4:W24,">5.5"),COUNTIF(W4:W24,">6.5")) -> 0 | Y27: =IF(Beanspruchungverteilung!$AT$21="x",COUNTIF(Z4:Z24,"<3.5"),COUNTIF(Z4:Z24,"<4.5")) -> 0 | Z27: =COUNT(Z4:Z24)-(Y27+AA27) -> 0 | AA27: =IF(Beanspruchungverteilung!$AT$21="x",COUNTIF(Z4:Z24,">5.5"),COUNTIF(Z4:Z24,">6.5")) -> 0 | AB27: =IF(Beanspruchungverteilung!$AT$21="x",COUNTIF(AC4:AC24,"<3.5"),COUNTIF(AC4:AC24,"<4.5")) -> 0 | AC27: =COUNT(AC4:AC24)-(AB27+AD27) -> 0 | AD27: =IF(Beanspruchungverteilung!$AT$21="x",COUNTIF(AC4:AC24,">5.5"),COUNTIF(AC4:AC24,">6.5")) -> 0 | AF27: Standardabweichung | AH27: =STDEVP(AH4:AH24) -> 0
D28: Foster's Skala | H28: RPE | K28: Zeit pro Zone (RPE) | M28: =IF(Beanspruchungverteilung!$AT$21="x",SUMIF(N4:N24,"<3.5",M4:M24),SUMIF(N4:N24,"<4.5",M4:M24)) -> 0 | N28: =IF(N27=0,0,SUM((M25)-(M28+O28))) -> 0 | O28: =IF(Beanspruchungverteilung!$AT$21="x",SUMIF(N4:N24,">5.5",M4:M24),SUMIF(N4:N24,">6.5",M4:M24)) -> 0 | P28: =IF(Beanspruchungverteilung!$AT$21="x",SUMIF(Q4:Q24,"<3.5",P4:P24),SUMIF(Q4:Q24,"<4.5",P4:P24)) -> 0 | Q28: =IF(Q27=0,0,SUM((P25)-(P28+R28))) -> 0 | R28: =IF(Beanspruchungverteilung!$AT$21="x",SUMIF(Q4:Q24,">5.5",P4:P24),SUMIF(Q4:Q24,">6.5",P4:P24)) -> 0 | S28: =IF(Beanspruchungverteilung!$AT$21="x",SUMIF(T4:T24,"<3.5",S4:S24),SUMIF(T4:T24,"<4.5",S4:S24)) -> 0 | T28: =IF(T27=0,0,SUM((S25)-(S28+U28))) -> 0 | U28: =IF(Beanspruchungverteilung!$AT$21="x",SUMIF(T4:T24,">5.5",S4:S24),SUMIF(T4:T24,">6.5",S4:S24)) -> 0 | V28: =IF(Beanspruchungverteilung!$AT$21="x",SUMIF(W4:W24,"<3.5",V4:V24),SUMIF(W4:W24,"<4.5",V4:V24)) -> 0 | W28: =IF(W27=0,0,SUM((V25)-(V28+X28))) -> 0 | X28: =IF(Beanspruchungverteilung!$AT$21="x",SUMIF(W4:W24,">5.5",V4:V24),SUMIF(W4:W24,">6.5",V4:V24)) -> 0 | Y28: =IF(Beanspruchungverteilung!$AT$21="x",SUMIF(Z4:Z24,"<3.5",Y4:Y24),SUMIF(Z4:Z24,"<4.5",Y4:Y24)) -> 0 | Z28: =IF(Z27=0,0,SUM((Y25)-(Y28+AA28))) -> 0 | AA28: =IF(Beanspruchungverteilung!$AT$21="x",SUMIF(Z4:Z24,">5.5",Y4:Y24),SUMIF(Z4:Z24,">6.5",Y4:Y24)) -> 0 | AB28: =IF(Beanspruchungverteilung!$AT$21="x",SUMIF(AC4:AC24,"<3.5",AB4:AB24),SUMIF(AC4:AC24,"<4.5",AB4:AB24)) -> 0 | AC28: =IF(AC27=0,0,SUM((AB25)-(AB28+AD28))) -> 0 | AD28: =IF(Beanspruchungverteilung!$AT$21="x",SUMIF(AC4:AC24,">5.5",AB4:AB24),SUMIF(AC4:AC24,">6.5",AB4:AB24)) -> 0
D29: Wie in Ruhe | H29: 0
D30: Sehr locker | H30: 1
D31: Locker | H31: 2 | AF31: Trainingstagen | AH31: =IF(SUM(AH4:AH24)=0,"",COUNTIF(AH4:AH24,">0")) -> 
H32: 3
D33: Etwas hart | H33: 4 | AF33: Trainingseinheiten | AH33: =IF(AH31="","",SUM(M27:AD27)) -> 
D34: Hart | H34: 5
H35: 6 | AF35: Trainingsstunden | AH35: =IF(AH31="","",SUM(M25,P25,V25,Y25,S25,AB25)/60) -> 
D36: Sehr hart | H36: 7
H37: 8 | AF37: Training Load | AH37: =IF(AH31="","",SUM(AH25)) -> 
D38: Extrem hart | H38: 9
D39: Wie mein härtestes Training | H39: 10 | AF39: Monotonie | AH39: =IF(AH31="","",(AVERAGE(AH4:AH24))/AH27) -> 
AF41: Trainingsanstrengung | AH41: =IF(AH31="","",AH37*AH39) -> 
AF43: =AJ2 -> Lauf Km | AH43: =IF(AH31="","",SUM(AJ4:AJ24)) -> 
AF45: =AK2 -> J | AH45: =IF(AH31="","",SUM(AK4:AK24)) -> 
AF47: =AL2 -> Swim Km | AH47: =IF(AH31="","",SUM(AL4:AL24)) -> 
AF49: =AM2 -> Mental Training | AH49: =IF(AH31="","",COUNTA(AM4:AM24)) -> 
AF51: =AN2 -> Regeneration | AH51: =IF(AH31="","",COUNTA(AN4:AN24)) -> 
AF53: =H2 -> Verletzung/Erkrankung | AH53: =IF(H26="","",COUNTA(H4:H24)) -> 
V134: =W134-1 -> 22 | W134: 23 | X134: 24 | Y134: 25 | Z134: 26 | AA134: 27 | AB134: 28 | AC134: =D1 -> 29
AD155: =AC134+1 -> 30 | AE155: =AD155+1 -> 31 | AF155: =AE155+1 -> 32

Sheet 30
C1: Woche | D1: =INT(MOD(INT((F1-2)/7)+0.6,52+5/28))+1 -> 30 | E1: =D1+1000 -> 1030 | F1: ='29'!F1+7 -> 2013-07-22 | G1: - | H1: =F1+6 -> 2013-07-28 | AD1: =Overview!D2 -> Vorname Name | AF1: =Overview!N2 -> 0
B2: Tag | D2: Gewicht | E2: Motiv. | F2: Schlaf | G2: Schlaf | H2: Verletzung/Erkrankung | J2: Trainingsbeschreibung | M2: ='19'!M2:O2 -> Dauerlauf | P2: ='19'!P2:R2 -> Bahn/Intervall | S2: ='19'!S2:U2 -> Sprint/Koord/Tech | V2: ='19'!V2:X2 -> Kraft | Y2: ='19'!Y2:AA2 -> Alternativ | AB2: ='19'!AB2:AD2 -> Divers | AF2: Bemerkungen | AH2: Load/Tag | AJ2: Lauf Km | AK2: J | AL2: Swim Km | AM2: Mental Training | AN2: Regeneration
D3: kg | E3: [-2….+2] | F3: 1-6 | G3: Std | H3: "x" wenn ja | M3: Dauer | N3: RPE | O3: Load | P3: Dauer | Q3: RPE | R3: Load | S3: Dauer | T3: RPE | U3: Load | V3: Dauer | W3: RPE | X3: Load | Y3: Dauer | Z3: RPE | AA3: Load | AB3: Dauer | AC3: RPE | AD3: Load
B4: Mo | O4: =M4*N4 -> 0 | R4: =P4*Q4 -> 0 | U4: =S4*T4 -> 0 | X4: =V4*W4 -> 0 | AA4: =Y4*Z4 -> 0 | AD4: =AB4*AC4 -> 0 | AH4: =SUM(O4:O6,R4:R6,U4:U6,X4:X6,AA4:AA6,AD4:AD6) -> 0
O5: 0 | R5: 0 | U5: 0 | X5: 0 | AA5: 0 | AD5: 0
O6: 0 | R6: 0 | U6: 0 | X6: 0 | AA6: 0 | AD6: 0
B7: Di | O7: 0 | R7: 0 | U7: 0 | X7: 0 | AA7: 0 | AD7: 0 | AH7: =SUM(O7:O9,R7:R9,U7:U9,X7:X9,AA7:AA9,AD7:AD9) -> 0
O8: 0 | R8: 0 | U8: 0 | X8: 0 | AA8: 0 | AD8: 0
O9: 0 | R9: 0 | U9: 0 | X9: 0 | AA9: 0 | AD9: 0
B10: Mi | O10: 0 | R10: 0 | U10: 0 | X10: 0 | AA10: 0 | AD10: 0 | AH10: =SUM(O10:O12,R10:R12,U10:U12,X10:X12,AA10:AA12,AD10:AD12) -> 0
O11: 0 | R11: 0 | U11: 0 | X11: 0 | AA11: 0 | AD11: 0
O12: 0 | R12: 0 | U12: 0 | X12: 0 | AA12: 0 | AD12: 0
B13: Do | O13: 0 | R13: 0 | U13: 0 | X13: 0 | AA13: 0 | AD13: 0 | AH13: =SUM(O13:O15,R13:R15,U13:U15,X13:X15,AA13:AA15,AD13:AD15) -> 0
O14: 0 | R14: 0 | U14: 0 | X14: 0 | AA14: 0 | AD14: 0
O15: 0 | R15: 0 | U15: 0 | X15: 0 | AA15: 0 | AD15: 0
B16: Fr | O16: 0 | R16: 0 | U16: 0 | X16: 0 | AA16: 0 | AD16: 0 | AH16: =SUM(O16:O18,R16:R18,U16:U18,X16:X18,AA16:AA18,AD16:AD18) -> 0
O17: 0 | R17: 0 | U17: 0 | X17: 0 | AA17: 0 | AD17: 0
O18: 0 | R18: 0 | U18: 0 | X18: 0 | AA18: 0 | AD18: 0
B19: Sa | O19: 0 | R19: 0 | U19: 0 | X19: 0 | AA19: 0 | AD19: 0 | AH19: =SUM(O19:O21,R19:R21,U19:U21,X19:X21,AA19:AA21,AD19:AD21) -> 0
O20: 0 | R20: 0 | U20: 0 | X20: 0 | AA20: 0 | AD20: 0
O21: 0 | R21: 0 | U21: 0 | X21: 0 | AA21: 0 | AD21: 0
B22: So | O22: 0 | R22: 0 | U22: 0 | X22: 0 | AA22: 0 | AD22: 0 | AH22: =SUM(O22:O24,R22:R24,U22:U24,X22:X24,AA22:AA24,AD22:AD24) -> 0
O23: 0 | R23: 0 | U23: 0 | X23: 0 | AA23: 0 | AD23: 0
O24: 0 | R24: 0 | U24: 0 | X24: 0 | AA24: 0 | AD24: 0
K25: Total | M25: =SUM(M4:M24) -> 0 | O25: =SUM(O4:O24) -> 0 | P25: =SUM(P4:P24) -> 0 | R25: =SUM(R4:R24) -> 0 | S25: =SUM(S4:S24) -> 0 | U25: =SUM(U4:U24) -> 0 | V25: =SUM(V4:V24) -> 0 | X25: =SUM(X4:X24) -> 0 | Y25: =SUM(Y4:Y24) -> 0 | AA25: =SUM(AA4:AA24) -> 0 | AB25: =SUM(AB4:AB24) -> 0 | AD25: =SUM(AD4:AD24) -> 0 | AF25: TOTAL LOAD | AH25: =SUM(AH4:AH24) -> 0
B26: avg | D26: =IF(COUNTA(D4:D24)=0,"",AVERAGE(D4:D24)) ->  | E26: =IF(COUNTA(E4:E24)=0,"",AVERAGE(E4:E24)) ->  | F26: =IF(COUNTA(F4:F24)=0,"",AVERAGE(F4:F24)) ->  | G26: =IF(COUNTA(G4:G24)=0,"",AVERAGE(G4:G24)) ->  | H26: =IF(COUNTA(H4:H24)=0,"",COUNTIF(H4:H24,"x")) ->  | K26: Zone | M26: 1 | N26: 2 | O26: 3 | P26: 1 | Q26: 2 | R26: 3 | S26: 1 | T26: 2 | U26: 3 | V26: 1 | W26: 2 | X26: 3 | Y26: 1 | Z26: 2 | AA26: 3 | AB26: 1 | AC26: 2 | AD26: 3 | AF26: Mittelwert | AH26: =AVERAGE(AH4:AH24) -> 0
K27: Einheiten pro Zone (RPE) | M27: =IF(Beanspruchungverteilung!$AT$21="x",COUNTIF(N4:N24,"<3.5"),COUNTIF(N4:N24,"<4.5")) -> 0 | N27: =COUNT(N4:N24)-(M27+O27) -> 0 | O27: =IF(Beanspruchungverteilung!$AT$21="x",COUNTIF(N4:N24,">5.5"),COUNTIF(N4:N24,">6.5")) -> 0 | P27: =IF(Beanspruchungverteilung!$AT$21="x",COUNTIF(Q4:Q24,"<3.5"),COUNTIF(Q4:Q24,"<4.5")) -> 0 | Q27: =COUNT(Q4:Q24)-(P27+R27) -> 0 | R27: =IF(Beanspruchungverteilung!$AT$21="x",COUNTIF(Q4:Q24,">5.5"),COUNTIF(Q4:Q24,">6.5")) -> 0 | S27: =IF(Beanspruchungverteilung!$AT$21="x",COUNTIF(T4:T24,"<3.5"),COUNTIF(T4:T24,"<4.5")) -> 0 | T27: =COUNT(T4:T24)-(S27+U27) -> 0 | U27: =IF(Beanspruchungverteilung!$AT$21="x",COUNTIF(T4:T24,">5.5"),COUNTIF(T4:T24,">6.5")) -> 0 | V27: =IF(Beanspruchungverteilung!$AT$21="x",COUNTIF(W4:W24,"<3.5"),COUNTIF(W4:W24,"<4.5")) -> 0 | W27: =COUNT(W4:W24)-(V27+X27) -> 0 | X27: =IF(Beanspruchungverteilung!$AT$21="x",COUNTIF(W4:W24,">5.5"),COUNTIF(W4:W24,">6.5")) -> 0 | Y27: =IF(Beanspruchungverteilung!$AT$21="x",COUNTIF(Z4:Z24,"<3.5"),COUNTIF(Z4:Z24,"<4.5")) -> 0 | Z27: =COUNT(Z4:Z24)-(Y27+AA27) -> 0 | AA27: =IF(Beanspruchungverteilung!$AT$21="x",COUNTIF(Z4:Z24,">5.5"),COUNTIF(Z4:Z24,">6.5")) -> 0 | AB27: =IF(Beanspruchungverteilung!$AT$21="x",COUNTIF(AC4:AC24,"<3.5"),COUNTIF(AC4:AC24,"<4.5")) -> 0 | AC27: =COUNT(AC4:AC24)-(AB27+AD27) -> 0 | AD27: =IF(Beanspruchungverteilung!$AT$21="x",COUNTIF(AC4:AC24,">5.5"),COUNTIF(AC4:AC24,">6.5")) -> 0 | AF27: Standardabweichung | AH27: =STDEVP(AH4:AH24) -> 0
D28: Foster's Skala | H28: RPE | K28: Zeit pro Zone (RPE) | M28: =IF(Beanspruchungverteilung!$AT$21="x",SUMIF(N4:N24,"<3.5",M4:M24),SUMIF(N4:N24,"<4.5",M4:M24)) -> 0 | N28: =IF(N27=0,0,SUM((M25)-(M28+O28))) -> 0 | O28: =IF(Beanspruchungverteilung!$AT$21="x",SUMIF(N4:N24,">5.5",M4:M24),SUMIF(N4:N24,">6.5",M4:M24)) -> 0 | P28: =IF(Beanspruchungverteilung!$AT$21="x",SUMIF(Q4:Q24,"<3.5",P4:P24),SUMIF(Q4:Q24,"<4.5",P4:P24)) -> 0 | Q28: =IF(Q27=0,0,SUM((P25)-(P28+R28))) -> 0 | R28: =IF(Beanspruchungverteilung!$AT$21="x",SUMIF(Q4:Q24,">5.5",P4:P24),SUMIF(Q4:Q24,">6.5",P4:P24)) -> 0 | S28: =IF(Beanspruchungverteilung!$AT$21="x",SUMIF(T4:T24,"<3.5",S4:S24),SUMIF(T4:T24,"<4.5",S4:S24)) -> 0 | T28: =IF(T27=0,0,SUM((S25)-(S28+U28))) -> 0 | U28: =IF(Beanspruchungverteilung!$AT$21="x",SUMIF(T4:T24,">5.5",S4:S24),SUMIF(T4:T24,">6.5",S4:S24)) -> 0 | V28: =IF(Beanspruchungverteilung!$AT$21="x",SUMIF(W4:W24,"<3.5",V4:V24),SUMIF(W4:W24,"<4.5",V4:V24)) -> 0 | W28: =IF(W27=0,0,SUM((V25)-(V28+X28))) -> 0 | X28: =IF(Beanspruchungverteilung!$AT$21="x",SUMIF(W4:W24,">5.5",V4:V24),SUMIF(W4:W24,">6.5",V4:V24)) -> 0 | Y28: =IF(Beanspruchungverteilung!$AT$21="x",SUMIF(Z4:Z24,"<3.5",Y4:Y24),SUMIF(Z4:Z24,"<4.5",Y4:Y24)) -> 0 | Z28: =IF(Z27=0,0,SUM((Y25)-(Y28+AA28))) -> 0 | AA28: =IF(Beanspruchungverteilung!$AT$21="x",SUMIF(Z4:Z24,">5.5",Y4:Y24),SUMIF(Z4:Z24,">6.5",Y4:Y24)) -> 0 | AB28: =IF(Beanspruchungverteilung!$AT$21="x",SUMIF(AC4:AC24,"<3.5",AB4:AB24),SUMIF(AC4:AC24,"<4.5",AB4:AB24)) -> 0 | AC28: =IF(AC27=0,0,SUM((AB25)-(AB28+AD28))) -> 0 | AD28: =IF(Beanspruchungverteilung!$AT$21="x",SUMIF(AC4:AC24,">5.5",AB4:AB24),SUMIF(AC4:AC24,">6.5",AB4:AB24)) -> 0
D29: Wie in Ruhe | H29: 0
D30: Sehr locker | H30: 1
D31: Locker | H31: 2 | AF31: Trainingstagen | AH31: =IF(SUM(AH4:AH24)=0,"",COUNTIF(AH4:AH24,">0")) -> 
H32: 3
D33: Etwas hart | H33: 4 | AF33: Trainingseinheiten | AH33: =IF(AH31="","",SUM(M27:AD27)) -> 
D34: Hart | H34: 5
H35: 6 | AF35: Trainingsstunden | AH35: =IF(AH31="","",SUM(M25,P25,V25,Y25,S25,AB25)/60) -> 
D36: Sehr hart | H36: 7
H37: 8 | AF37: Training Load | AH37: =IF(AH31="","",SUM(AH25)) -> 
D38: Extrem hart | H38: 9
D39: Wie mein härtestes Training | H39: 10 | AF39: Monotonie | AH39: =IF(AH31="","",(AVERAGE(AH4:AH24))/AH27) -> 
AF41: Trainingsanstrengung | AH41: =IF(AH31="","",AH37*AH39) -> 
AF43: =AJ2 -> Lauf Km | AH43: =IF(AH31="","",SUM(AJ4:AJ24)) -> 
AF45: =AK2 -> J | AH45: =IF(AH31="","",SUM(AK4:AK24)) -> 
AF47: =AL2 -> Swim Km | AH47: =IF(AH31="","",SUM(AL4:AL24)) -> 
AF49: =AM2 -> Mental Training | AH49: =IF(AH31="","",COUNTA(AM4:AM24)) -> 
AF51: =AN2 -> Regeneration | AH51: =IF(AH31="","",COUNTA(AN4:AN24)) -> 
AF53: =H2 -> Verletzung/Erkrankung | AH53: =IF(H26="","",COUNTA(H4:H24)) -> 
V134: =W134-1 -> 23 | W134: 24 | X134: 25 | Y134: 26 | Z134: 27 | AA134: 28 | AB134: 29 | AC134: =D1 -> 30
AD155: =AC134+1 -> 31 | AE155: =AD155+1 -> 32 | AF155: =AE155+1 -> 33

Sheet 31
C1: Woche | D1: =INT(MOD(INT((F1-2)/7)+0.6,52+5/28))+1 -> 31 | E1: =D1+1000 -> 1031 | F1: ='30'!F1+7 -> 2013-07-29 | G1: - | H1: =F1+6 -> 2013-08-04 | AD1: =Overview!D2 -> Vorname Name | AF1: =Overview!N2 -> 0
B2: Tag | D2: Gewicht | E2: Motiv. | F2: Schlaf | G2: Schlaf | H2: Verletzung/Erkrankung | J2: Trainingsbeschreibung | M2: ='19'!M2:O2 -> Dauerlauf | P2: ='19'!P2:R2 -> Bahn/Intervall | S2: ='19'!S2:U2 -> Sprint/Koord/Tech | V2: ='19'!V2:X2 -> Kraft | Y2: ='19'!Y2:AA2 -> Alternativ | AB2: ='19'!AB2:AD2 -> Divers | AF2: Bemerkungen | AH2: Load/Tag | AJ2: Lauf Km | AK2: J | AL2: Swim Km | AM2: Mental Training | AN2: Regeneration
D3: kg | E3: [-2….+2] | F3: 1-6 | G3: Std | H3: "x" wenn ja | M3: Dauer | N3: RPE | O3: Load | P3: Dauer | Q3: RPE | R3: Load | S3: Dauer | T3: RPE | U3: Load | V3: Dauer | W3: RPE | X3: Load | Y3: Dauer | Z3: RPE | AA3: Load | AB3: Dauer | AC3: RPE | AD3: Load
B4: Mo | O4: =M4*N4 -> 0 | R4: =P4*Q4 -> 0 | U4: =S4*T4 -> 0 | X4: =V4*W4 -> 0 | AA4: =Y4*Z4 -> 0 | AD4: =AB4*AC4 -> 0 | AH4: =SUM(O4:O6,R4:R6,U4:U6,X4:X6,AA4:AA6,AD4:AD6) -> 0
O5: 0 | R5: 0 | U5: 0 | X5: 0 | AA5: 0 | AD5: 0
O6: 0 | R6: 0 | U6: 0 | X6: 0 | AA6: 0 | AD6: 0
B7: Di | O7: 0 | R7: 0 | U7: 0 | X7: 0 | AA7: 0 | AD7: 0 | AH7: =SUM(O7:O9,R7:R9,U7:U9,X7:X9,AA7:AA9,AD7:AD9) -> 0
O8: 0 | R8: 0 | U8: 0 | X8: 0 | AA8: 0 | AD8: 0
O9: 0 | R9: 0 | U9: 0 | X9: 0 | AA9: 0 | AD9: 0
B10: Mi | O10: 0 | R10: 0 | U10: 0 | X10: 0 | AA10: 0 | AD10: 0 | AH10: =SUM(O10:O12,R10:R12,U10:U12,X10:X12,AA10:AA12,AD10:AD12) -> 0
O11: 0 | R11: 0 | U11: 0 | X11: 0 | AA11: 0 | AD11: 0
O12: 0 | R12: 0 | U12: 0 | X12: 0 | AA12: 0 | AD12: 0
B13: Do | O13: 0 | R13: 0 | U13: 0 | X13: 0 | AA13: 0 | AD13: 0 | AH13: =SUM(O13:O15,R13:R15,U13:U15,X13:X15,AA13:AA15,AD13:AD15) -> 0
O14: 0 | R14: 0 | U14: 0 | X14: 0 | AA14: 0 | AD14: 0
O15: 0 | R15: 0 | U15: 0 | X15: 0 | AA15: 0 | AD15: 0
B16: Fr | O16: 0 | R16: 0 | U16: 0 | X16: 0 | AA16: 0 | AD16: 0 | AH16: =SUM(O16:O18,R16:R18,U16:U18,X16:X18,AA16:AA18,AD16:AD18) -> 0
O17: 0 | R17: 0 | U17: 0 | X17: 0 | AA17: 0 | AD17: 0
O18: 0 | R18: 0 | U18: 0 | X18: 0 | AA18: 0 | AD18: 0
B19: Sa | O19: 0 | R19: 0 | U19: 0 | X19: 0 | AA19: 0 | AD19: 0 | AH19: =SUM(O19:O21,R19:R21,U19:U21,X19:X21,AA19:AA21,AD19:AD21) -> 0
O20: 0 | R20: 0 | U20: 0 | X20: 0 | AA20: 0 | AD20: 0
O21: 0 | R21: 0 | U21: 0 | X21: 0 | AA21: 0 | AD21: 0
B22: So | O22: 0 | R22: 0 | U22: 0 | X22: 0 | AA22: 0 | AD22: 0 | AH22: =SUM(O22:O24,R22:R24,U22:U24,X22:X24,AA22:AA24,AD22:AD24) -> 0
O23: 0 | R23: 0 | U23: 0 | X23: 0 | AA23: 0 | AD23: 0
O24: 0 | R24: 0 | U24: 0 | X24: 0 | AA24: 0 | AD24: 0
K25: Total | M25: =SUM(M4:M24) -> 0 | O25: =SUM(O4:O24) -> 0 | P25: =SUM(P4:P24) -> 0 | R25: =SUM(R4:R24) -> 0 | S25: =SUM(S4:S24) -> 0 | U25: =SUM(U4:U24) -> 0 | V25: =SUM(V4:V24) -> 0 | X25: =SUM(X4:X24) -> 0 | Y25: =SUM(Y4:Y24) -> 0 | AA25: =SUM(AA4:AA24) -> 0 | AB25: =SUM(AB4:AB24) -> 0 | AD25: =SUM(AD4:AD24) -> 0 | AF25: TOTAL LOAD | AH25: =SUM(AH4:AH24) -> 0
B26: avg | D26: =IF(COUNTA(D4:D24)=0,"",AVERAGE(D4:D24)) ->  | E26: =IF(COUNTA(E4:E24)=0,"",AVERAGE(E4:E24)) ->  | F26: =IF(COUNTA(F4:F24)=0,"",AVERAGE(F4:F24)) ->  | G26: =IF(COUNTA(G4:G24)=0,"",AVERAGE(G4:G24)) ->  | H26: =IF(COUNTA(H4:H24)=0,"",COUNTIF(H4:H24,"x")) ->  | K26: Zone | M26: 1 | N26: 2 | O26: 3 | P26: 1 | Q26: 2 | R26: 3 | S26: 1 | T26: 2 | U26: 3 | V26: 1 | W26: 2 | X26: 3 | Y26: 1 | Z26: 2 | AA26: 3 | AB26: 1 | AC26: 2 | AD26: 3 | AF26: Mittelwert | AH26: =AVERAGE(AH4:AH24) -> 0
K27: Einheiten pro Zone (RPE) | M27: =IF(Beanspruchungverteilung!$AT$21="x",COUNTIF(N4:N24,"<3.5"),COUNTIF(N4:N24,"<4.5")) -> 0 | N27: =COUNT(N4:N24)-(M27+O27) -> 0 | O27: =IF(Beanspruchungverteilung!$AT$21="x",COUNTIF(N4:N24,">5.5"),COUNTIF(N4:N24,">6.5")) -> 0 | P27: =IF(Beanspruchungverteilung!$AT$21="x",COUNTIF(Q4:Q24,"<3.5"),COUNTIF(Q4:Q24,"<4.5")) -> 0 | Q27: =COUNT(Q4:Q24)-(P27+R27) -> 0 | R27: =IF(Beanspruchungverteilung!$AT$21="x",COUNTIF(Q4:Q24,">5.5"),COUNTIF(Q4:Q24,">6.5")) -> 0 | S27: =IF(Beanspruchungverteilung!$AT$21="x",COUNTIF(T4:T24,"<3.5"),COUNTIF(T4:T24,"<4.5")) -> 0 | T27: =COUNT(T4:T24)-(S27+U27) -> 0 | U27: =IF(Beanspruchungverteilung!$AT$21="x",COUNTIF(T4:T24,">5.5"),COUNTIF(T4:T24,">6.5")) -> 0 | V27: =IF(Beanspruchungverteilung!$AT$21="x",COUNTIF(W4:W24,"<3.5"),COUNTIF(W4:W24,"<4.5")) -> 0 | W27: =COUNT(W4:W24)-(V27+X27) -> 0 | X27: =IF(Beanspruchungverteilung!$AT$21="x",COUNTIF(W4:W24,">5.5"),COUNTIF(W4:W24,">6.5")) -> 0 | Y27: =IF(Beanspruchungverteilung!$AT$21="x",COUNTIF(Z4:Z24,"<3.5"),COUNTIF(Z4:Z24,"<4.5")) -> 0 | Z27: =COUNT(Z4:Z24)-(Y27+AA27) -> 0 | AA27: =IF(Beanspruchungverteilung!$AT$21="x",COUNTIF(Z4:Z24,">5.5"),COUNTIF(Z4:Z24,">6.5")) -> 0 | AB27: =IF(Beanspruchungverteilung!$AT$21="x",COUNTIF(AC4:AC24,"<3.5"),COUNTIF(AC4:AC24,"<4.5")) -> 0 | AC27: =COUNT(AC4:AC24)-(AB27+AD27) -> 0 | AD27: =IF(Beanspruchungverteilung!$AT$21="x",COUNTIF(AC4:AC24,">5.5"),COUNTIF(AC4:AC24,">6.5")) -> 0 | AF27: Standardabweichung | AH27: =STDEVP(AH4:AH24) -> 0
D28: Foster's Skala | H28: RPE | K28: Zeit pro Zone (RPE) | M28: =IF(Beanspruchungverteilung!$AT$21="x",SUMIF(N4:N24,"<3.5",M4:M24),SUMIF(N4:N24,"<4.5",M4:M24)) -> 0 | N28: =IF(N27=0,0,SUM((M25)-(M28+O28))) -> 0 | O28: =IF(Beanspruchungverteilung!$AT$21="x",SUMIF(N4:N24,">5.5",M4:M24),SUMIF(N4:N24,">6.5",M4:M24)) -> 0 | P28: =IF(Beanspruchungverteilung!$AT$21="x",SUMIF(Q4:Q24,"<3.5",P4:P24),SUMIF(Q4:Q24,"<4.5",P4:P24)) -> 0 | Q28: =IF(Q27=0,0,SUM((P25)-(P28+R28))) -> 0 | R28: =IF(Beanspruchungverteilung!$AT$21="x",SUMIF(Q4:Q24,">5.5",P4:P24),SUMIF(Q4:Q24,">6.5",P4:P24)) -> 0 | S28: =IF(Beanspruchungverteilung!$AT$21="x",SUMIF(T4:T24,"<3.5",S4:S24),SUMIF(T4:T24,"<4.5",S4:S24)) -> 0 | T28: =IF(T27=0,0,SUM((S25)-(S28+U28))) -> 0 | U28: =IF(Beanspruchungverteilung!$AT$21="x",SUMIF(T4:T24,">5.5",S4:S24),SUMIF(T4:T24,">6.5",S4:S24)) -> 0 | V28: =IF(Beanspruchungverteilung!$AT$21="x",SUMIF(W4:W24,"<3.5",V4:V24),SUMIF(W4:W24,"<4.5",V4:V24)) -> 0 | W28: =IF(W27=0,0,SUM((V25)-(V28+X28))) -> 0 | X28: =IF(Beanspruchungverteilung!$AT$21="x",SUMIF(W4:W24,">5.5",V4:V24),SUMIF(W4:W24,">6.5",V4:V24)) -> 0 | Y28: =IF(Beanspruchungverteilung!$AT$21="x",SUMIF(Z4:Z24,"<3.5",Y4:Y24),SUMIF(Z4:Z24,"<4.5",Y4:Y24)) -> 0 | Z28: =IF(Z27=0,0,SUM((Y25)-(Y28+AA28))) -> 0 | AA28: =IF(Beanspruchungverteilung!$AT$21="x",SUMIF(Z4:Z24,">5.5",Y4:Y24),SUMIF(Z4:Z24,">6.5",Y4:Y24)) -> 0 | AB28: =IF(Beanspruchungverteilung!$AT$21="x",SUMIF(AC4:AC24,"<3.5",AB4:AB24),SUMIF(AC4:AC24,"<4.5",AB4:AB24)) -> 0 | AC28: =IF(AC27=0,0,SUM((AB25)-(AB28+AD28))) -> 0 | AD28: =IF(Beanspruchungverteilung!$AT$21="x",SUMIF(AC4:AC24,">5.5",AB4:AB24),SUMIF(AC4:AC24,">6.5",AB4:AB24)) -> 0
D29: Wie in Ruhe | H29: 0
D30: Sehr locker | H30: 1
D31: Locker | H31: 2 | AF31: Trainingstagen | AH31: =IF(SUM(AH4:AH24)=0,"",COUNTIF(AH4:AH24,">0")) -> 
H32: 3
D33: Etwas hart | H33: 4 | AF33: Trainingseinheiten | AH33: =IF(AH31="","",SUM(M27:AD27)) -> 
D34: Hart | H34: 5
H35: 6 | AF35: Trainingsstunden | AH35: =IF(AH31="","",SUM(M25,P25,V25,Y25,S25,AB25)/60) -> 
D36: Sehr hart | H36: 7
H37: 8 | AF37: Training Load | AH37: =IF(AH31="","",SUM(AH25)) -> 
D38: Extrem hart | H38: 9
D39: Wie mein härtestes Training | H39: 10 | AF39: Monotonie | AH39: =IF(AH31="","",(AVERAGE(AH4:AH24))/AH27) -> 
AF41: Trainingsanstrengung | AH41: =IF(AH31="","",AH37*AH39) -> 
AF43: =AJ2 -> Lauf Km | AH43: =IF(AH31="","",SUM(AJ4:AJ24)) -> 
AF45: =AK2 -> J | AH45: =IF(AH31="","",SUM(AK4:AK24)) -> 
AF47: =AL2 -> Swim Km | AH47: =IF(AH31="","",SUM(AL4:AL24)) -> 
AF49: =AM2 -> Mental Training | AH49: =IF(AH31="","",COUNTA(AM4:AM24)) -> 
AF51: =AN2 -> Regeneration | AH51: =IF(AH31="","",COUNTA(AN4:AN24)) -> 
AF53: =H2 -> Verletzung/Erkrankung | AH53: =IF(H26="","",COUNTA(H4:H24)) -> 
V134: =W134-1 -> 24 | W134: 25 | X134: 26 | Y134: 27 | Z134: 28 | AA134: 29 | AB134: 30 | AC134: =D1 -> 31
AD155: =AC134+1 -> 32 | AE155: =AD155+1 -> 33 | AF155: =AE155+1 -> 34

Sheet 32
C1: Woche | D1: =INT(MOD(INT((F1-2)/7)+0.6,52+5/28))+1 -> 32 | E1: =D1+1000 -> 1032 | F1: ='31'!F1+7 -> 2013-08-05 | G1: - | H1: =F1+6 -> 2013-08-11 | AD1: =Overview!D2 -> Vorname Name | AF1: =Overview!N2 -> 0
B2: Tag | D2: Gewicht | E2: Motiv. | F2: Schlaf | G2: Schlaf | H2: Verletzung/Erkrankung | J2: Trainingsbeschreibung | M2: ='19'!M2:O2 -> Dauerlauf | P2: ='19'!P2:R2 -> Bahn/Intervall | S2: ='19'!S2:U2 -> Sprint/Koord/Tech | V2: ='19'!V2:X2 -> Kraft | Y2: ='19'!Y2:AA2 -> Alternativ | AB2: ='19'!AB2:AD2 -> Divers | AF2: Bemerkungen | AH2: Load/Tag | AJ2: Lauf Km | AK2: J | AL2: Swim Km | AM2: Mental Training | AN2: Regeneration
D3: kg | E3: [-2….+2] | F3: 1-6 | G3: Std | H3: "x" wenn ja | M3: Dauer | N3: RPE | O3: Load | P3: Dauer | Q3: RPE | R3: Load | S3: Dauer | T3: RPE | U3: Load | V3: Dauer | W3: RPE | X3: Load | Y3: Dauer | Z3: RPE | AA3: Load | AB3: Dauer | AC3: RPE | AD3: Load
B4: Mo | O4: =M4*N4 -> 0 | R4: =P4*Q4 -> 0 | U4: =S4*T4 -> 0 | X4: =V4*W4 -> 0 | AA4: =Y4*Z4 -> 0 | AD4: =AB4*AC4 -> 0 | AH4: =SUM(O4:O6,R4:R6,U4:U6,X4:X6,AA4:AA6,AD4:AD6) -> 0
O5: 0 | R5: 0 | U5: 0 | X5: 0 | AA5: 0 | AD5: 0
O6: 0 | R6: 0 | U6: 0 | X6: 0 | AA6: 0 | AD6: 0
B7: Di | O7: 0 | R7: 0 | U7: 0 | X7: 0 | AA7: 0 | AD7: 0 | AH7: =SUM(O7:O9,R7:R9,U7:U9,X7:X9,AA7:AA9,AD7:AD9) -> 0
O8: 0 | R8: 0 | U8: 0 | X8: 0 | AA8: 0 | AD8: 0
O9: 0 | R9: 0 | U9: 0 | X9: 0 | AA9: 0 | AD9: 0
B10: Mi | O10: 0 | R10: 0 | U10: 0 | X10: 0 | AA10: 0 | AD10: 0 | AH10: =SUM(O10:O12,R10:R12,U10:U12,X10:X12,AA10:AA12,AD10:AD12) -> 0
O11: 0 | R11: 0 | U11: 0 | X11: 0 | AA11: 0 | AD11: 0
O12: 0 | R12: 0 | U12: 0 | X12: 0 | AA12: 0 | AD12: 0
B13: Do | O13: 0 | R13: 0 | U13: 0 | X13: 0 | AA13: 0 | AD13: 0 | AH13: =SUM(O13:O15,R13:R15,U13:U15,X13:X15,AA13:AA15,AD13:AD15) -> 0
O14: 0 | R14: 0 | U14: 0 | X14: 0 | AA14: 0 | AD14: 0
O15: 0 | R15: 0 | U15: 0 | X15: 0 | AA15: 0 | AD15: 0
B16: Fr | O16: 0 | R16: 0 | U16: 0 | X16: 0 | AA16: 0 | AD16: 0 | AH16: =SUM(O16:O18,R16:R18,U16:U18,X16:X18,AA16:AA18,AD16:AD18) -> 0
O17: 0 | R17: 0 | U17: 0 | X17: 0 | AA17: 0 | AD17: 0
O18: 0 | R18: 0 | U18: 0 | X18: 0 | AA18: 0 | AD18: 0
B19: Sa | O19: 0 | R19: 0 | U19: 0 | X19: 0 | AA19: 0 | AD19: 0 | AH19: =SUM(O19:O21,R19:R21,U19:U21,X19:X21,AA19:AA21,AD19:AD21) -> 0
O20: 0 | R20: 0 | U20: 0 | X20: 0 | AA20: 0 | AD20: 0
O21: 0 | R21: 0 | U21: 0 | X21: 0 | AA21: 0 | AD21: 0
B22: So | O22: 0 | R22: 0 | U22: 0 | X22: 0 | AA22: 0 | AD22: 0 | AH22: =SUM(O22:O24,R22:R24,U22:U24,X22:X24,AA22:AA24,AD22:AD24) -> 0
O23: 0 | R23: 0 | U23: 0 | X23: 0 | AA23: 0 | AD23: 0
O24: 0 | R24: 0 | U24: 0 | X24: 0 | AA24: 0 | AD24: 0
K25: Total | M25: =SUM(M4:M24) -> 0 | O25: =SUM(O4:O24) -> 0 | P25: =SUM(P4:P24) -> 0 | R25: =SUM(R4:R24) -> 0 | S25: =SUM(S4:S24) -> 0 | U25: =SUM(U4:U24) -> 0 | V25: =SUM(V4:V24) -> 0 | X25: =SUM(X4:X24) -> 0 | Y25: =SUM(Y4:Y24) -> 0 | AA25: =SUM(AA4:AA24) -> 0 | AB25: =SUM(AB4:AB24) -> 0 | AD25: =SUM(AD4:AD24) -> 0 | AF25: TOTAL LOAD | AH25: =SUM(AH4:AH24) -> 0
B26: avg | D26: =IF(COUNTA(D4:D24)=0,"",AVERAGE(D4:D24)) ->  | E26: =IF(COUNTA(E4:E24)=0,"",AVERAGE(E4:E24)) ->  | F26: =IF(COUNTA(F4:F24)=0,"",AVERAGE(F4:F24)) ->  | G26: =IF(COUNTA(G4:G24)=0,"",AVERAGE(G4:G24)) ->  | H26: =IF(COUNTA(H4:H24)=0,"",COUNTIF(H4:H24,"x")) ->  | K26: Zone | M26: 1 | N26: 2 | O26: 3 | P26: 1 | Q26: 2 | R26: 3 | S26: 1 | T26: 2 | U26: 3 | V26: 1 | W26: 2 | X26: 3 | Y26: 1 | Z26: 2 | AA26: 3 | AB26: 1 | AC26: 2 | AD26: 3 | AF26: Mittelwert | AH26: =AVERAGE(AH4:AH24) -> 0
K27: Einheiten pro Zone (RPE) | M27: =IF(Beanspruchungverteilung!$AT$21="x",COUNTIF(N4:N24,"<3.5"),COUNTIF(N4:N24,"<4.5")) -> 0 | N27: =COUNT(N4:N24)-(M27+O27) -> 0 | O27: =IF(Beanspruchungverteilung!$AT$21="x",COUNTIF(N4:N24,">5.5"),COUNTIF(N4:N24,">6.5")) -> 0 | P27: =IF(Beanspruchungverteilung!$AT$21="x",COUNTIF(Q4:Q24,"<3.5"),COUNTIF(Q4:Q24,"<4.5")) -> 0 | Q27: =COUNT(Q4:Q24)-(P27+R27) -> 0 | R27: =IF(Beanspruchungverteilung!$AT$21="x",COUNTIF(Q4:Q24,">5.5"),COUNTIF(Q4:Q24,">6.5")) -> 0 | S27: =IF(Beanspruchungverteilung!$AT$21="x",COUNTIF(T4:T24,"<3.5"),COUNTIF(T4:T24,"<4.5")) -> 0 | T27: =COUNT(T4:T24)-(S27+U27) -> 0 | U27: =IF(Beanspruchungverteilung!$AT$21="x",COUNTIF(T4:T24,">5.5"),COUNTIF(T4:T24,">6.5")) -> 0 | V27: =IF(Beanspruchungverteilung!$AT$21="x",COUNTIF(W4:W24,"<3.5"),COUNTIF(W4:W24,"<4.5")) -> 0 | W27: =COUNT(W4:W24)-(V27+X27) -> 0 | X27: =IF(Beanspruchungverteilung!$AT$21="x",COUNTIF(W4:W24,">5.5"),COUNTIF(W4:W24,">6.5")) -> 0 | Y27: =IF(Beanspruchungverteilung!$AT$21="x",COUNTIF(Z4:Z24,"<3.5"),COUNTIF(Z4:Z24,"<4.5")) -> 0 | Z27: =COUNT(Z4:Z24)-(Y27+AA27) -> 0 | AA27: =IF(Beanspruchungverteilung!$AT$21="x",COUNTIF(Z4:Z24,">5.5"),COUNTIF(Z4:Z24,">6.5")) -> 0 | AB27: =IF(Beanspruchungverteilung!$AT$21="x",COUNTIF(AC4:AC24,"<3.5"),COUNTIF(AC4:AC24,"<4.5")) -> 0 | AC27: =COUNT(AC4:AC24)-(AB27+AD27) -> 0 | AD27: =IF(Beanspruchungverteilung!$AT$21="x",COUNTIF(AC4:AC24,">5.5"),COUNTIF(AC4:AC24,">6.5")) -> 0 | AF27: Standardabweichung | AH27: =STDEVP(AH4:AH24) -> 0
D28: Foster's Skala | H28: RPE | K28: Zeit pro Zone (RPE) | M28: =IF(Beanspruchungverteilung!$AT$21="x",SUMIF(N4:N24,"<3.5",M4:M24),SUMIF(N4:N24,"<4.5",M4:M24)) -> 0 | N28: =IF(N27=0,0,SUM((M25)-(M28+O28))) -> 0 | O28: =IF(Beanspruchungverteilung!$AT$21="x",SUMIF(N4:N24,">5.5",M4:M24),SUMIF(N4:N24,">6.5",M4:M24)) -> 0 | P28: =IF(Beanspruchungverteilung!$AT$21="x",SUMIF(Q4:Q24,"<3.5",P4:P24),SUMIF(Q4:Q24,"<4.5",P4:P24)) -> 0 | Q28: =IF(Q27=0,0,SUM((P25)-(P28+R28))) -> 0 | R28: =IF(Beanspruchungverteilung!$AT$21="x",SUMIF(Q4:Q24,">5.5",P4:P24),SUMIF(Q4:Q24,">6.5",P4:P24)) -> 0 | S28: =IF(Beanspruchungverteilung!$AT$21="x",SUMIF(T4:T24,"<3.5",S4:S24),SUMIF(T4:T24,"<4.5",S4:S24)) -> 0 | T28: =IF(T27=0,0,SUM((S25)-(S28+U28))) -> 0 | U28: =IF(Beanspruchungverteilung!$AT$21="x",SUMIF(T4:T24,">5.5",S4:S24),SUMIF(T4:T24,">6.5",S4:S24)) -> 0 | V28: =IF(Beanspruchungverteilung!$AT$21="x",SUMIF(W4:W24,"<3.5",V4:V24),SUMIF(W4:W24,"<4.5",V4:V24)) -> 0 | W28: =IF(W27=0,0,SUM((V25)-(V28+X28))) -> 0 | X28: =IF(Beanspruchungverteilung!$AT$21="x",SUMIF(W4:W24,">5.5",V4:V24),SUMIF(W4:W24,">6.5",V4:V24)) -> 0 | Y28: =IF(Beanspruchungverteilung!$AT$21="x",SUMIF(Z4:Z24,"<3.5",Y4:Y24),SUMIF(Z4:Z24,"<4.5",Y4:Y24)) -> 0 | Z28: =IF(Z27=0,0,SUM((Y25)-(Y28+AA28))) -> 0 | AA28: =IF(Beanspruchungverteilung!$AT$21="x",SUMIF(Z4:Z24,">5.5",Y4:Y24),SUMIF(Z4:Z24,">6.5",Y4:Y24)) -> 0 | AB28: =IF(Beanspruchungverteilung!$AT$21="x",SUMIF(AC4:AC24,"<3.5",AB4:AB24),SUMIF(AC4:AC24,"<4.5",AB4:AB24)) -> 0 | AC28: =IF(AC27=0,0,SUM((AB25)-(AB28+AD28))) -> 0 | AD28: =IF(Beanspruchungverteilung!$AT$21="x",SUMIF(AC4:AC24,">5.5",AB4:AB24),SUMIF(AC4:AC24,">6.5",AB4:AB24)) -> 0
D29: Wie in Ruhe | H29: 0
D30: Sehr locker | H30: 1
D31: Locker | H31: 2 | AF31: Trainingstagen | AH31: =IF(SUM(AH4:AH24)=0,"",COUNTIF(AH4:AH24,">0")) -> 
H32: 3
D33: Etwas hart | H33: 4 | AF33: Trainingseinheiten | AH33: =IF(AH31="","",SUM(M27:AD27)) -> 
D34: Hart | H34: 5
H35: 6 | AF35: Trainingsstunden | AH35: =IF(AH31="","",SUM(M25,P25,V25,Y25,S25,AB25)/60) -> 
D36: Sehr hart | H36: 7
H37: 8 | AF37: Training Load | AH37: =IF(AH31="","",SUM(AH25)) -> 
D38: Extrem hart | H38: 9
D39: Wie mein härtestes Training | H39: 10 | AF39: Monotonie | AH39: =IF(AH31="","",(AVERAGE(AH4:AH24))/AH27) -> 
AF41: Trainingsanstrengung | AH41: =IF(AH31="","",AH37*AH39) -> 
AF43: =AJ2 -> Lauf Km | AH43: =IF(AH31="","",SUM(AJ4:AJ24)) -> 
AF45: =AK2 -> J | AH45: =IF(AH31="","",SUM(AK4:AK24)) -> 
AF47: =AL2 -> Swim Km | AH47: =IF(AH31="","",SUM(AL4:AL24)) -> 
AF49: =AM2 -> Mental Training | AH49: =IF(AH31="","",COUNTA(AM4:AM24)) -> 
AF51: =AN2 -> Regeneration | AH51: =IF(AH31="","",COUNTA(AN4:AN24)) -> 
AF53: =H2 -> Verletzung/Erkrankung | AH53: =IF(H26="","",COUNTA(H4:H24)) -> 
V134: =W134-1 -> 25 | W134: 26 | X134: 27 | Y134: 28 | Z134: 29 | AA134: 30 | AB134: 31 | AC134: =D1 -> 32
AD155: =AC134+1 -> 33 | AE155: =AD155+1 -> 34 | AF155: =AE155+1 -> 35

Sheet 33
C1: Woche | D1: =INT(MOD(INT((F1-2)/7)+0.6,52+5/28))+1 -> 33 | E1: =D1+1000 -> 1033 | F1: ='32'!F1+7 -> 2013-08-12 | G1: - | H1: =F1+6 -> 2013-08-18 | AD1: =Overview!D2 -> Vorname Name | AF1: =Overview!N2 -> 0
B2: Tag | D2: Gewicht | E2: Motiv. | F2: Schlaf | G2: Schlaf | H2: Verletzung/Erkrankung | J2: Trainingsbeschreibung | M2: ='19'!M2:O2 -> Dauerlauf | P2: ='19'!P2:R2 -> Bahn/Intervall | S2: ='19'!S2:U2 -> Sprint/Koord/Tech | V2: ='19'!V2:X2 -> Kraft | Y2: ='19'!Y2:AA2 -> Alternativ | AB2: ='19'!AB2:AD2 -> Divers | AF2: Bemerkungen | AH2: Load/Tag | AJ2: Lauf Km | AK2: J | AL2: Swim Km | AM2: Mental Training | AN2: Regeneration
D3: kg | E3: [-2….+2] | F3: 1-6 | G3: Std | H3: "x" wenn ja | M3: Dauer | N3: RPE | O3: Load | P3: Dauer | Q3: RPE | R3: Load | S3: Dauer | T3: RPE | U3: Load | V3: Dauer | W3: RPE | X3: Load | Y3: Dauer | Z3: RPE | AA3: Load | AB3: Dauer | AC3: RPE | AD3: Load
B4: Mo | O4: =M4*N4 -> 0 | R4: =P4*Q4 -> 0 | U4: =S4*T4 -> 0 | X4: =V4*W4 -> 0 | AA4: =Y4*Z4 -> 0 | AD4: =AB4*AC4 -> 0 | AH4: =SUM(O4:O6,R4:R6,U4:U6,X4:X6,AA4:AA6,AD4:AD6) -> 0
O5: 0 | R5: 0 | U5: 0 | X5: 0 | AA5: 0 | AD5: 0
O6: 0 | R6: 0 | U6: 0 | X6: 0 | AA6: 0 | AD6: 0
B7: Di | O7: 0 | R7: 0 | U7: 0 | X7: 0 | AA7: 0 | AD7: 0 | AH7: =SUM(O7:O9,R7:R9,U7:U9,X7:X9,AA7:AA9,AD7:AD9) -> 0
O8: 0 | R8: 0 | U8: 0 | X8: 0 | AA8: 0 | AD8: 0
O9: 0 | R9: 0 | U9: 0 | X9: 0 | AA9: 0 | AD9: 0
B10: Mi | O10: 0 | R10: 0 | U10: 0 | X10: 0 | AA10: 0 | AD10: 0 | AH10: =SUM(O10:O12,R10:R12,U10:U12,X10:X12,AA10:AA12,AD10:AD12) -> 0
O11: 0 | R11: 0 | U11: 0 | X11: 0 | AA11: 0 | AD11: 0
O12: 0 | R12: 0 | U12: 0 | X12: 0 | AA12: 0 | AD12: 0
B13: Do | O13: 0 | R13: 0 | U13: 0 | X13: 0 | AA13: 0 | AD13: 0 | AH13: =SUM(O13:O15,R13:R15,U13:U15,X13:X15,AA13:AA15,AD13:AD15) -> 0
O14: 0 | R14: 0 | U14: 0 | X14: 0 | AA14: 0 | AD14: 0
O15: 0 | R15: 0 | U15: 0 | X15: 0 | AA15: 0 | AD15: 0
B16: Fr | O16: 0 | R16: 0 | U16: 0 | X16: 0 | AA16: 0 | AD16: 0 | AH16: =SUM(O16:O18,R16:R18,U16:U18,X16:X18,AA16:AA18,AD16:AD18) -> 0
O17: 0 | R17: 0 | U17: 0 | X17: 0 | AA17: 0 | AD17: 0
O18: 0 | R18: 0 | U18: 0 | X18: 0 | AA18: 0 | AD18: 0
B19: Sa | O19: 0 | R19: 0 | U19: 0 | X19: 0 | AA19: 0 | AD19: 0 | AH19: =SUM(O19:O21,R19:R21,U19:U21,X19:X21,AA19:AA21,AD19:AD21) -> 0
O20: 0 | R20: 0 | U20: 0 | X20: 0 | AA20: 0 | AD20: 0
O21: 0 | R21: 0 | U21: 0 | X21: 0 | AA21: 0 | AD21: 0
B22: So | O22: 0 | R22: 0 | U22: 0 | X22: 0 | AA22: 0 | AD22: 0 | AH22: =SUM(O22:O24,R22:R24,U22:U24,X22:X24,AA22:AA24,AD22:AD24) -> 0
O23: 0 | R23: 0 | U23: 0 | X23: 0 | AA23: 0 | AD23: 0
O24: 0 | R24: 0 | U24: 0 | X24: 0 | AA24: 0 | AD24: 0
K25: Total | M25: =SUM(M4:M24) -> 0 | O25: =SUM(O4:O24) -> 0 | P25: =SUM(P4:P24) -> 0 | R25: =SUM(R4:R24) -> 0 | S25: =SUM(S4:S24) -> 0 | U25: =SUM(U4:U24) -> 0 | V25: =SUM(V4:V24) -> 0 | X25: =SUM(X4:X24) -> 0 | Y25: =SUM(Y4:Y24) -> 0 | AA25: =SUM(AA4:AA24) -> 0 | AB25: =SUM(AB4:AB24) -> 0 | AD25: =SUM(AD4:AD24) -> 0 | AF25: TOTAL LOAD | AH25: =SUM(AH4:AH24) -> 0
B26: avg | D26: =IF(COUNTA(D4:D24)=0,"",AVERAGE(D4:D24)) ->  | E26: =IF(COUNTA(E4:E24)=0,"",AVERAGE(E4:E24)) ->  | F26: =IF(COUNTA(F4:F24)=0,"",AVERAGE(F4:F24)) ->  | G26: =IF(COUNTA(G4:G24)=0,"",AVERAGE(G4:G24)) ->  | H26: =IF(COUNTA(H4:H24)=0,"",COUNTIF(H4:H24,"x")) ->  | K26: Zone | M26: 1 | N26: 2 | O26: 3 | P26: 1 | Q26: 2 | R26: 3 | S26: 1 | T26: 2 | U26: 3 | V26: 1 | W26: 2 | X26: 3 | Y26: 1 | Z26: 2 | AA26: 3 | AB26: 1 | AC26: 2 | AD26: 3 | AF26: Mittelwert | AH26: =AVERAGE(AH4:AH24) -> 0
K27: Einheiten pro Zone (RPE) | M27: =IF(Beanspruchungverteilung!$AT$21="x",COUNTIF(N4:N24,"<3.5"),COUNTIF(N4:N24,"<4.5")) -> 0 | N27: =COUNT(N4:N24)-(M27+O27) -> 0 | O27: =IF(Beanspruchungverteilung!$AT$21="x",COUNTIF(N4:N24,">5.5"),COUNTIF(N4:N24,">6.5")) -> 0 | P27: =IF(Beanspruchungverteilung!$AT$21="x",COUNTIF(Q4:Q24,"<3.5"),COUNTIF(Q4:Q24,"<4.5")) -> 0 | Q27: =COUNT(Q4:Q24)-(P27+R27) -> 0 | R27: =IF(Beanspruchungverteilung!$AT$21="x",COUNTIF(Q4:Q24,">5.5"),COUNTIF(Q4:Q24,">6.5")) -> 0 | S27: =IF(Beanspruchungverteilung!$AT$21="x",COUNTIF(T4:T24,"<3.5"),COUNTIF(T4:T24,"<4.5")) -> 0 | T27: =COUNT(T4:T24)-(S27+U27) -> 0 | U27: =IF(Beanspruchungverteilung!$AT$21="x",COUNTIF(T4:T24,">5.5"),COUNTIF(T4:T24,">6.5")) -> 0 | V27: =IF(Beanspruchungverteilung!$AT$21="x",COUNTIF(W4:W24,"<3.5"),COUNTIF(W4:W24,"<4.5")) -> 0 | W27: =COUNT(W4:W24)-(V27+X27) -> 0 | X27: =IF(Beanspruchungverteilung!$AT$21="x",COUNTIF(W4:W24,">5.5"),COUNTIF(W4:W24,">6.5")) -> 0 | Y27: =IF(Beanspruchungverteilung!$AT$21="x",COUNTIF(Z4:Z24,"<3.5"),COUNTIF(Z4:Z24,"<4.5")) -> 0 | Z27: =COUNT(Z4:Z24)-(Y27+AA27) -> 0 | AA27: =IF(Beanspruchungverteilung!$AT$21="x",COUNTIF(Z4:Z24,">5.5"),COUNTIF(Z4:Z24,">6.5")) -> 0 | AB27: =IF(Beanspruchungverteilung!$AT$21="x",COUNTIF(AC4:AC24,"<3.5"),COUNTIF(AC4:AC24,"<4.5")) -> 0 | AC27: =COUNT(AC4:AC24)-(AB27+AD27) -> 0 | AD27: =IF(Beanspruchungverteilung!$AT$21="x",COUNTIF(AC4:AC24,">5.5"),COUNTIF(AC4:AC24,">6.5")) -> 0 | AF27: Standardabweichung | AH27: =STDEVP(AH4:AH24) -> 0
D28: Foster's Skala | H28: RPE | K28: Zeit pro Zone (RPE) | M28: =IF(Beanspruchungverteilung!$AT$21="x",SUMIF(N4:N24,"<3.5",M4:M24),SUMIF(N4:N24,"<4.5",M4:M24)) -> 0 | N28: =IF(N27=0,0,SUM((M25)-(M28+O28))) -> 0 | O28: =IF(Beanspruchungverteilung!$AT$21="x",SUMIF(N4:N24,">5.5",M4:M24),SUMIF(N4:N24,">6.5",M4:M24)) -> 0 | P28: =IF(Beanspruchungverteilung!$AT$21="x",SUMIF(Q4:Q24,"<3.5",P4:P24),SUMIF(Q4:Q24,"<4.5",P4:P24)) -> 0 | Q28: =IF(Q27=0,0,SUM((P25)-(P28+R28))) -> 0 | R28: =IF(Beanspruchungverteilung!$AT$21="x",SUMIF(Q4:Q24,">5.5",P4:P24),SUMIF(Q4:Q24,">6.5",P4:P24)) -> 0 | S28: =IF(Beanspruchungverteilung!$AT$21="x",SUMIF(T4:T24,"<3.5",S4:S24),SUMIF(T4:T24,"<4.5",S4:S24)) -> 0 | T28: =IF(T27=0,0,SUM((S25)-(S28+U28))) -> 0 | U28: =IF(Beanspruchungverteilung!$AT$21="x",SUMIF(T4:T24,">5.5",S4:S24),SUMIF(T4:T24,">6.5",S4:S24)) -> 0 | V28: =IF(Beanspruchungverteilung!$AT$21="x",SUMIF(W4:W24,"<3.5",V4:V24),SUMIF(W4:W24,"<4.5",V4:V24)) -> 0 | W28: =IF(W27=0,0,SUM((V25)-(V28+X28))) -> 0 | X28: =IF(Beanspruchungverteilung!$AT$21="x",SUMIF(W4:W24,">5.5",V4:V24),SUMIF(W4:W24,">6.5",V4:V24)) -> 0 | Y28: =IF(Beanspruchungverteilung!$AT$21="x",SUMIF(Z4:Z24,"<3.5",Y4:Y24),SUMIF(Z4:Z24,"<4.5",Y4:Y24)) -> 0 | Z28: =IF(Z27=0,0,SUM((Y25)-(Y28+AA28))) -> 0 | AA28: =IF(Beanspruchungverteilung!$AT$21="x",SUMIF(Z4:Z24,">5.5",Y4:Y24),SUMIF(Z4:Z24,">6.5",Y4:Y24)) -> 0 | AB28: =IF(Beanspruchungverteilung!$AT$21="x",SUMIF(AC4:AC24,"<3.5",AB4:AB24),SUMIF(AC4:AC24,"<4.5",AB4:AB24)) -> 0 | AC28: =IF(AC27=0,0,SUM((AB25)-(AB28+AD28))) -> 0 | AD28: =IF(Beanspruchungverteilung!$AT$21="x",SUMIF(AC4:AC24,">5.5",AB4:AB24),SUMIF(AC4:AC24,">6.5",AB4:AB24)) -> 0
D29: Wie in Ruhe | H29: 0
D30: Sehr locker | H30: 1
D31: Locker | H31: 2 | AF31: Trainingstagen | AH31: =IF(SUM(AH4:AH24)=0,"",COUNTIF(AH4:AH24,">0")) -> 
H32: 3
D33: Etwas hart | H33: 4 | AF33: Trainingseinheiten | AH33: =IF(AH31="","",SUM(M27:AD27)) -> 
D34: Hart | H34: 5
H35: 6 | AF35: Trainingsstunden | AH35: =IF(AH31="","",SUM(M25,P25,V25,Y25,S25,AB25)/60) -> 
D36: Sehr hart | H36: 7
H37: 8 | AF37: Training Load | AH37: =IF(AH31="","",SUM(AH25)) -> 
D38: Extrem hart | H38: 9
D39: Wie mein härtestes Training | H39: 10 | AF39: Monotonie | AH39: =IF(AH31="","",(AVERAGE(AH4:AH24))/AH27) -> 
AF41: Trainingsanstrengung | AH41: =IF(AH31="","",AH37*AH39) -> 
AF43: =AJ2 -> Lauf Km | AH43: =IF(AH31="","",SUM(AJ4:AJ24)) -> 
AF45: =AK2 -> J | AH45: =IF(AH31="","",SUM(AK4:AK24)) -> 
AF47: =AL2 -> Swim Km | AH47: =IF(AH31="","",SUM(AL4:AL24)) -> 
AF49: =AM2 -> Mental Training | AH49: =IF(AH31="","",COUNTA(AM4:AM24)) -> 
AF51: =AN2 -> Regeneration | AH51: =IF(AH31="","",COUNTA(AN4:AN24)) -> 
AF53: =H2 -> Verletzung/Erkrankung | AH53: =IF(H26="","",COUNTA(H4:H24)) -> 
V134: =W134-1 -> 26 | W134: 27 | X134: 28 | Y134: 29 | Z134: 30 | AA134: 31 | AB134: 32 | AC134: =D1 -> 33
AD155: =AC134+1 -> 34 | AE155: =AD155+1 -> 35 | AF155: =AE155+1 -> 36

Sheet 34
C1: Woche | D1: =INT(MOD(INT((F1-2)/7)+0.6,52+5/28))+1 -> 34 | E1: =D1+1000 -> 1034 | F1: ='33'!F1+7 -> 2013-08-19 | G1: - | H1: =F1+6 -> 2013-08-25 | AD1: =Overview!D2 -> Vorname Name | AF1: =Overview!N2 -> 0
B2: Tag | D2: Gewicht | E2: Motiv. | F2: Schlaf | G2: Schlaf | H2: Verletzung/Erkrankung | J2: Trainingsbeschreibung | M2: ='19'!M2:O2 -> Dauerlauf | P2: ='19'!P2:R2 -> Bahn/Intervall | S2: ='19'!S2:U2 -> Sprint/Koord/Tech | V2: ='19'!V2:X2 -> Kraft | Y2: ='19'!Y2:AA2 -> Alternativ | AB2: ='19'!AB2:AD2 -> Divers | AF2: Bemerkungen | AH2: Load/Tag | AJ2: Lauf Km | AK2: J | AL2: Swim Km | AM2: Mental Training | AN2: Regeneration
D3: kg | E3: [-2….+2] | F3: 1-6 | G3: Std | H3: "x" wenn ja | M3: Dauer | N3: RPE | O3: Load | P3: Dauer | Q3: RPE | R3: Load | S3: Dauer | T3: RPE | U3: Load | V3: Dauer | W3: RPE | X3: Load | Y3: Dauer | Z3: RPE | AA3: Load | AB3: Dauer | AC3: RPE | AD3: Load
B4: Mo | O4: =M4*N4 -> 0 | R4: =P4*Q4 -> 0 | U4: =S4*T4 -> 0 | X4: =V4*W4 -> 0 | AA4: =Y4*Z4 -> 0 | AD4: =AB4*AC4 -> 0 | AH4: =SUM(O4:O6,R4:R6,U4:U6,X4:X6,AA4:AA6,AD4:AD6) -> 0
O5: 0 | R5: 0 | U5: 0 | X5: 0 | AA5: 0 | AD5: 0
O6: 0 | R6: 0 | U6: 0 | X6: 0 | AA6: 0 | AD6: 0
B7: Di | O7: 0 | R7: 0 | U7: 0 | X7: 0 | AA7: 0 | AD7: 0 | AH7: =SUM(O7:O9,R7:R9,U7:U9,X7:X9,AA7:AA9,AD7:AD9) -> 0
O8: 0 | R8: 0 | U8: 0 | X8: 0 | AA8: 0 | AD8: 0
O9: 0 | R9: 0 | U9: 0 | X9: 0 | AA9: 0 | AD9: 0
B10: Mi | O10: 0 | R10: 0 | U10: 0 | X10: 0 | AA10: 0 | AD10: 0 | AH10: =SUM(O10:O12,R10:R12,U10:U12,X10:X12,AA10:AA12,AD10:AD12) -> 0
O11: 0 | R11: 0 | U11: 0 | X11: 0 | AA11: 0 | AD11: 0
O12: 0 | R12: 0 | U12: 0 | X12: 0 | AA12: 0 | AD12: 0
B13: Do | O13: 0 | R13: 0 | U13: 0 | X13: 0 | AA13: 0 | AD13: 0 | AH13: =SUM(O13:O15,R13:R15,U13:U15,X13:X15,AA13:AA15,AD13:AD15) -> 0
O14: 0 | R14: 0 | U14: 0 | X14: 0 | AA14: 0 | AD14: 0
O15: 0 | R15: 0 | U15: 0 | X15: 0 | AA15: 0 | AD15: 0
B16: Fr | O16: 0 | R16: 0 | U16: 0 | X16: 0 | AA16: 0 | AD16: 0 | AH16: =SUM(O16:O18,R16:R18,U16:U18,X16:X18,AA16:AA18,AD16:AD18) -> 0
O17: 0 | R17: 0 | U17: 0 | X17: 0 | AA17: 0 | AD17: 0
O18: 0 | R18: 0 | U18: 0 | X18: 0 | AA18: 0 | AD18: 0
B19: Sa | O19: 0 | R19: 0 | U19: 0 | X19: 0 | AA19: 0 | AD19: 0 | AH19: =SUM(O19:O21,R19:R21,U19:U21,X19:X21,AA19:AA21,AD19:AD21) -> 0
O20: 0 | R20: 0 | U20: 0 | X20: 0 | AA20: 0 | AD20: 0
O21: 0 | R21: 0 | U21: 0 | X21: 0 | AA21: 0 | AD21: 0
B22: So | O22: 0 | R22: 0 | U22: 0 | X22: 0 | AA22: 0 | AD22: 0 | AH22: =SUM(O22:O24,R22:R24,U22:U24,X22:X24,AA22:AA24,AD22:AD24) -> 0
O23: 0 | R23: 0 | U23: 0 | X23: 0 | AA23: 0 | AD23: 0
O24: 0 | R24: 0 | U24: 0 | X24: 0 | AA24: 0 | AD24: 0
K25: Total | M25: =SUM(M4:M24) -> 0 | O25: =SUM(O4:O24) -> 0 | P25: =SUM(P4:P24) -> 0 | R25: =SUM(R4:R24) -> 0 | S25: =SUM(S4:S24) -> 0 | U25: =SUM(U4:U24) -> 0 | V25: =SUM(V4:V24) -> 0 | X25: =SUM(X4:X24) -> 0 | Y25: =SUM(Y4:Y24) -> 0 | AA25: =SUM(AA4:AA24) -> 0 | AB25: =SUM(AB4:AB24) -> 0 | AD25: =SUM(AD4:AD24) -> 0 | AF25: TOTAL LOAD | AH25: =SUM(AH4:AH24) -> 0
B26: avg | D26: =IF(COUNTA(D4:D24)=0,"",AVERAGE(D4:D24)) ->  | E26: =IF(COUNTA(E4:E24)=0,"",AVERAGE(E4:E24)) ->  | F26: =IF(COUNTA(F4:F24)=0,"",AVERAGE(F4:F24)) ->  | G26: =IF(COUNTA(G4:G24)=0,"",AVERAGE(G4:G24)) ->  | H26: =IF(COUNTA(H4:H24)=0,"",COUNTIF(H4:H24,"x")) ->  | K26: Zone | M26: 1 | N26: 2 | O26: 3 | P26: 1 | Q26: 2 | R26: 3 | S26: 1 | T26: 2 | U26: 3 | V26: 1 | W26: 2 | X26: 3 | Y26: 1 | Z26: 2 | AA26: 3 | AB26: 1 | AC26: 2 | AD26: 3 | AF26: Mittelwert | AH26: =AVERAGE(AH4:AH24) -> 0
K27: Einheiten pro Zone (RPE) | M27: =IF(Beanspruchungverteilung!$AT$21="x",COUNTIF(N4:N24,"<3.5"),COUNTIF(N4:N24,"<4.5")) -> 0 | N27: =COUNT(N4:N24)-(M27+O27) -> 0 | O27: =IF(Beanspruchungverteilung!$AT$21="x",COUNTIF(N4:N24,">5.5"),COUNTIF(N4:N24,">6.5")) -> 0 | P27: =IF(Beanspruchungverteilung!$AT$21="x",COUNTIF(Q4:Q24,"<3.5"),COUNTIF(Q4:Q24,"<4.5")) -> 0 | Q27: =COUNT(Q4:Q24)-(P27+R27) -> 0 | R27: =IF(Beanspruchungverteilung!$AT$21="x",COUNTIF(Q4:Q24,">5.5"),COUNTIF(Q4:Q24,">6.5")) -> 0 | S27: =IF(Beanspruchungverteilung!$AT$21="x",COUNTIF(T4:T24,"<3.5"),COUNTIF(T4:T24,"<4.5")) -> 0 | T27: =COUNT(T4:T24)-(S27+U27) -> 0 | U27: =IF(Beanspruchungverteilung!$AT$21="x",COUNTIF(T4:T24,">5.5"),COUNTIF(T4:T24,">6.5")) -> 0 | V27: =IF(Beanspruchungverteilung!$AT$21="x",COUNTIF(W4:W24,"<3.5"),COUNTIF(W4:W24,"<4.5")) -> 0 | W27: =COUNT(W4:W24)-(V27+X27) -> 0 | X27: =IF(Beanspruchungverteilung!$AT$21="x",COUNTIF(W4:W24,">5.5"),COUNTIF(W4:W24,">6.5")) -> 0 | Y27: =IF(Beanspruchungverteilung!$AT$21="x",COUNTIF(Z4:Z24,"<3.5"),COUNTIF(Z4:Z24,"<4.5")) -> 0 | Z27: =COUNT(Z4:Z24)-(Y27+AA27) -> 0 | AA27: =IF(Beanspruchungverteilung!$AT$21="x",COUNTIF(Z4:Z24,">5.5"),COUNTIF(Z4:Z24,">6.5")) -> 0 | AB27: =IF(Beanspruchungverteilung!$AT$21="x",COUNTIF(AC4:AC24,"<3.5"),COUNTIF(AC4:AC24,"<4.5")) -> 0 | AC27: =COUNT(AC4:AC24)-(AB27+AD27) -> 0 | AD27: =IF(Beanspruchungverteilung!$AT$21="x",COUNTIF(AC4:AC24,">5.5"),COUNTIF(AC4:AC24,">6.5")) -> 0 | AF27: Standardabweichung | AH27: =STDEVP(AH4:AH24) -> 0
D28: Foster's Skala | H28: RPE | K28: Zeit pro Zone (RPE) | M28: =IF(Beanspruchungverteilung!$AT$21="x",SUMIF(N4:N24,"<3.5",M4:M24),SUMIF(N4:N24,"<4.5",M4:M24)) -> 0 | N28: =IF(N27=0,0,SUM((M25)-(M28+O28))) -> 0 | O28: =IF(Beanspruchungverteilung!$AT$21="x",SUMIF(N4:N24,">5.5",M4:M24),SUMIF(N4:N24,">6.5",M4:M24)) -> 0 | P28: =IF(Beanspruchungverteilung!$AT$21="x",SUMIF(Q4:Q24,"<3.5",P4:P24),SUMIF(Q4:Q24,"<4.5",P4:P24)) -> 0 | Q28: =IF(Q27=0,0,SUM((P25)-(P28+R28))) -> 0 | R28: =IF(Beanspruchungverteilung!$AT$21="x",SUMIF(Q4:Q24,">5.5",P4:P24),SUMIF(Q4:Q24,">6.5",P4:P24)) -> 0 | S28: =IF(Beanspruchungverteilung!$AT$21="x",SUMIF(T4:T24,"<3.5",S4:S24),SUMIF(T4:T24,"<4.5",S4:S24)) -> 0 | T28: =IF(T27=0,0,SUM((S25)-(S28+U28))) -> 0 | U28: =IF(Beanspruchungverteilung!$AT$21="x",SUMIF(T4:T24,">5.5",S4:S24),SUMIF(T4:T24,">6.5",S4:S24)) -> 0 | V28: =IF(Beanspruchungverteilung!$AT$21="x",SUMIF(W4:W24,"<3.5",V4:V24),SUMIF(W4:W24,"<4.5",V4:V24)) -> 0 | W28: =IF(W27=0,0,SUM((V25)-(V28+X28))) -> 0 | X28: =IF(Beanspruchungverteilung!$AT$21="x",SUMIF(W4:W24,">5.5",V4:V24),SUMIF(W4:W24,">6.5",V4:V24)) -> 0 | Y28: =IF(Beanspruchungverteilung!$AT$21="x",SUMIF(Z4:Z24,"<3.5",Y4:Y24),SUMIF(Z4:Z24,"<4.5",Y4:Y24)) -> 0 | Z28: =IF(Z27=0,0,SUM((Y25)-(Y28+AA28))) -> 0 | AA28: =IF(Beanspruchungverteilung!$AT$21="x",SUMIF(Z4:Z24,">5.5",Y4:Y24),SUMIF(Z4:Z24,">6.5",Y4:Y24)) -> 0 | AB28: =IF(Beanspruchungverteilung!$AT$21="x",SUMIF(AC4:AC24,"<3.5",AB4:AB24),SUMIF(AC4:AC24,"<4.5",AB4:AB24)) -> 0 | AC28: =IF(AC27=0,0,SUM((AB25)-(AB28+AD28))) -> 0 | AD28: =IF(Beanspruchungverteilung!$AT$21="x",SUMIF(AC4:AC24,">5.5",AB4:AB24),SUMIF(AC4:AC24,">6.5",AB4:AB24)) -> 0
D29: Wie in Ruhe | H29: 0
D30: Sehr locker | H30: 1
D31: Locker | H31: 2 | AF31: Trainingstagen | AH31: =IF(SUM(AH4:AH24)=0,"",COUNTIF(AH4:AH24,">0")) -> 
H32: 3
D33: Etwas hart | H33: 4 | AF33: Trainingseinheiten | AH33: =IF(AH31="","",SUM(M27:AD27)) -> 
D34: Hart | H34: 5
H35: 6 | AF35: Trainingsstunden | AH35: =IF(AH31="","",SUM(M25,P25,V25,Y25,S25,AB25)/60) -> 
D36: Sehr hart | H36: 7
H37: 8 | AF37: Training Load | AH37: =IF(AH31="","",SUM(AH25)) -> 
D38: Extrem hart | H38: 9
D39: Wie mein härtestes Training | H39: 10 | AF39: Monotonie | AH39: =IF(AH31="","",(AVERAGE(AH4:AH24))/AH27) -> 
AF41: Trainingsanstrengung | AH41: =IF(AH31="","",AH37*AH39) -> 
AF43: =AJ2 -> Lauf Km | AH43: =IF(AH31="","",SUM(AJ4:AJ24)) -> 
AF45: =AK2 -> J | AH45: =IF(AH31="","",SUM(AK4:AK24)) -> 
AF47: =AL2 -> Swim Km | AH47: =IF(AH31="","",SUM(AL4:AL24)) -> 
AF49: =AM2 -> Mental Training | AH49: =IF(AH31="","",COUNTA(AM4:AM24)) -> 
AF51: =AN2 -> Regeneration | AH51: =IF(AH31="","",COUNTA(AN4:AN24)) -> 
AF53: =H2 -> Verletzung/Erkrankung | AH53: =IF(H26="","",COUNTA(H4:H24)) -> 
V134: =W134-1 -> 27 | W134: 28 | X134: 29 | Y134: 30 | Z134: 31 | AA134: 32 | AB134: 33 | AC134: =D1 -> 34
AD155: =AC134+1 -> 35 | AE155: =AD155+1 -> 36 | AF155: =AE155+1 -> 37

Sheet 35
C1: Woche | D1: =INT(MOD(INT((F1-2)/7)+0.6,52+5/28))+1 -> 35 | E1: =D1+1000 -> 1035 | F1: ='34'!F1+7 -> 2013-08-26 | G1: - | H1: =F1+6 -> 2013-09-01 | AD1: =Overview!D2 -> Vorname Name | AF1: =Overview!N2 -> 0
B2: Tag | D2: Gewicht | E2: Motiv. | F2: Schlaf | G2: Schlaf | H2: Verletzung/Erkrankung | J2: Trainingsbeschreibung | M2: ='19'!M2:O2 -> Dauerlauf | P2: ='19'!P2:R2 -> Bahn/Intervall | S2: ='19'!S2:U2 -> Sprint/Koord/Tech | V2: ='19'!V2:X2 -> Kraft | Y2: ='19'!Y2:AA2 -> Alternativ | AB2: ='19'!AB2:AD2 -> Divers | AF2: Bemerkungen | AH2: Load/Tag | AJ2: Lauf Km | AK2: J | AL2: Swim Km | AM2: Mental Training | AN2: Regeneration
D3: kg | E3: [-2….+2] | F3: 1-6 | G3: Std | H3: "x" wenn ja | M3: Dauer | N3: RPE | O3: Load | P3: Dauer | Q3: RPE | R3: Load | S3: Dauer | T3: RPE | U3: Load | V3: Dauer | W3: RPE | X3: Load | Y3: Dauer | Z3: RPE | AA3: Load | AB3: Dauer | AC3: RPE | AD3: Load
B4: Mo | O4: =M4*N4 -> 0 | R4: =P4*Q4 -> 0 | U4: =S4*T4 -> 0 | X4: =V4*W4 -> 0 | AA4: =Y4*Z4 -> 0 | AD4: =AB4*AC4 -> 0 | AH4: =SUM(O4:O6,R4:R6,U4:U6,X4:X6,AA4:AA6,AD4:AD6) -> 0
O5: 0 | R5: 0 | U5: 0 | X5: 0 | AA5: 0 | AD5: 0
O6: 0 | R6: 0 | U6: 0 | X6: 0 | AA6: 0 | AD6: 0
B7: Di | O7: 0 | R7: 0 | U7: 0 | X7: 0 | AA7: 0 | AD7: 0 | AH7: =SUM(O7:O9,R7:R9,U7:U9,X7:X9,AA7:AA9,AD7:AD9) -> 0
O8: 0 | R8: 0 | U8: 0 | X8: 0 | AA8: 0 | AD8: 0
O9: 0 | R9: 0 | U9: 0 | X9: 0 | AA9: 0 | AD9: 0
B10: Mi | O10: 0 | R10: 0 | U10: 0 | X10: 0 | AA10: 0 | AD10: 0 | AH10: =SUM(O10:O12,R10:R12,U10:U12,X10:X12,AA10:AA12,AD10:AD12) -> 0
O11: 0 | R11: 0 | U11: 0 | X11: 0 | AA11: 0 | AD11: 0
O12: 0 | R12: 0 | U12: 0 | X12: 0 | AA12: 0 | AD12: 0
B13: Do | O13: 0 | R13: 0 | U13: 0 | X13: 0 | AA13: 0 | AD13: 0 | AH13: =SUM(O13:O15,R13:R15,U13:U15,X13:X15,AA13:AA15,AD13:AD15) -> 0
O14: 0 | R14: 0 | U14: 0 | X14: 0 | AA14: 0 | AD14: 0
O15: 0 | R15: 0 | U15: 0 | X15: 0 | AA15: 0 | AD15: 0
B16: Fr | O16: 0 | R16: 0 | U16: 0 | X16: 0 | AA16: 0 | AD16: 0 | AH16: =SUM(O16:O18,R16:R18,U16:U18,X16:X18,AA16:AA18,AD16:AD18) -> 0
O17: 0 | R17: 0 | U17: 0 | X17: 0 | AA17: 0 | AD17: 0
O18: 0 | R18: 0 | U18: 0 | X18: 0 | AA18: 0 | AD18: 0
B19: Sa | O19: 0 | R19: 0 | U19: 0 | X19: 0 | AA19: 0 | AD19: 0 | AH19: =SUM(O19:O21,R19:R21,U19:U21,X19:X21,AA19:AA21,AD19:AD21) -> 0
O20: 0 | R20: 0 | U20: 0 | X20: 0 | AA20: 0 | AD20: 0
O21: 0 | R21: 0 | U21: 0 | X21: 0 | AA21: 0 | AD21: 0
B22: So | O22: 0 | R22: 0 | U22: 0 | X22: 0 | AA22: 0 | AD22: 0 | AH22: =SUM(O22:O24,R22:R24,U22:U24,X22:X24,AA22:AA24,AD22:AD24) -> 0
O23: 0 | R23: 0 | U23: 0 | X23: 0 | AA23: 0 | AD23: 0
O24: 0 | R24: 0 | U24: 0 | X24: 0 | AA24: 0 | AD24: 0
K25: Total | M25: =SUM(M4:M24) -> 0 | O25: =SUM(O4:O24) -> 0 | P25: =SUM(P4:P24) -> 0 | R25: =SUM(R4:R24) -> 0 | S25: =SUM(S4:S24) -> 0 | U25: =SUM(U4:U24) -> 0 | V25: =SUM(V4:V24) -> 0 | X25: =SUM(X4:X24) -> 0 | Y25: =SUM(Y4:Y24) -> 0 | AA25: =SUM(AA4:AA24) -> 0 | AB25: =SUM(AB4:AB24) -> 0 | AD25: =SUM(AD4:AD24) -> 0 | AF25: TOTAL LOAD | AH25: =SUM(AH4:AH24) -> 0
B26: avg | D26: =IF(COUNTA(D4:D24)=0,"",AVERAGE(D4:D24)) ->  | E26: =IF(COUNTA(E4:E24)=0,"",AVERAGE(E4:E24)) ->  | F26: =IF(COUNTA(F4:F24)=0,"",AVERAGE(F4:F24)) ->  | G26: =IF(COUNTA(G4:G24)=0,"",AVERAGE(G4:G24)) ->  | H26: =IF(COUNTA(H4:H24)=0,"",COUNTIF(H4:H24,"x")) ->  | K26: Zone | M26: 1 | N26: 2 | O26: 3 | P26: 1 | Q26: 2 | R26: 3 | S26: 1 | T26: 2 | U26: 3 | V26: 1 | W26: 2 | X26: 3 | Y26: 1 | Z26: 2 | AA26: 3 | AB26: 1 | AC26: 2 | AD26: 3 | AF26: Mittelwert | AH26: =AVERAGE(AH4:AH24) -> 0
K27: Einheiten pro Zone (RPE) | M27: =IF(Beanspruchungverteilung!$AT$21="x",COUNTIF(N4:N24,"<3.5"),COUNTIF(N4:N24,"<4.5")) -> 0 | N27: =COUNT(N4:N24)-(M27+O27) -> 0 | O27: =IF(Beanspruchungverteilung!$AT$21="x",COUNTIF(N4:N24,">5.5"),COUNTIF(N4:N24,">6.5")) -> 0 | P27: =IF(Beanspruchungverteilung!$AT$21="x",COUNTIF(Q4:Q24,"<3.5"),COUNTIF(Q4:Q24,"<4.5")) -> 0 | Q27: =COUNT(Q4:Q24)-(P27+R27) -> 0 | R27: =IF(Beanspruchungverteilung!$AT$21="x",COUNTIF(Q4:Q24,">5.5"),COUNTIF(Q4:Q24,">6.5")) -> 0 | S27: =IF(Beanspruchungverteilung!$AT$21="x",COUNTIF(T4:T24,"<3.5"),COUNTIF(T4:T24,"<4.5")) -> 0 | T27: =COUNT(T4:T24)-(S27+U27) -> 0 | U27: =IF(Beanspruchungverteilung!$AT$21="x",COUNTIF(T4:T24,">5.5"),COUNTIF(T4:T24,">6.5")) -> 0 | V27: =IF(Beanspruchungverteilung!$AT$21="x",COUNTIF(W4:W24,"<3.5"),COUNTIF(W4:W24,"<4.5")) -> 0 | W27: =COUNT(W4:W24)-(V27+X27) -> 0 | X27: =IF(Beanspruchungverteilung!$AT$21="x",COUNTIF(W4:W24,">5.5"),COUNTIF(W4:W24,">6.5")) -> 0 | Y27: =IF(Beanspruchungverteilung!$AT$21="x",COUNTIF(Z4:Z24,"<3.5"),COUNTIF(Z4:Z24,"<4.5")) -> 0 | Z27: =COUNT(Z4:Z24)-(Y27+AA27) -> 0 | AA27: =IF(Beanspruchungverteilung!$AT$21="x",COUNTIF(Z4:Z24,">5.5"),COUNTIF(Z4:Z24,">6.5")) -> 0 | AB27: =IF(Beanspruchungverteilung!$AT$21="x",COUNTIF(AC4:AC24,"<3.5"),COUNTIF(AC4:AC24,"<4.5")) -> 0 | AC27: =COUNT(AC4:AC24)-(AB27+AD27) -> 0 | AD27: =IF(Beanspruchungverteilung!$AT$21="x",COUNTIF(AC4:AC24,">5.5"),COUNTIF(AC4:AC24,">6.5")) -> 0 | AF27: Standardabweichung | AH27: =STDEVP(AH4:AH24) -> 0
D28: Foster's Skala | H28: RPE | K28: Zeit pro Zone (RPE) | M28: =IF(Beanspruchungverteilung!$AT$21="x",SUMIF(N4:N24,"<3.5",M4:M24),SUMIF(N4:N24,"<4.5",M4:M24)) -> 0 | N28: =IF(N27=0,0,SUM((M25)-(M28+O28))) -> 0 | O28: =IF(Beanspruchungverteilung!$AT$21="x",SUMIF(N4:N24,">5.5",M4:M24),SUMIF(N4:N24,">6.5",M4:M24)) -> 0 | P28: =IF(Beanspruchungverteilung!$AT$21="x",SUMIF(Q4:Q24,"<3.5",P4:P24),SUMIF(Q4:Q24,"<4.5",P4:P24)) -> 0 | Q28: =IF(Q27=0,0,SUM((P25)-(P28+R28))) -> 0 | R28: =IF(Beanspruchungverteilung!$AT$21="x",SUMIF(Q4:Q24,">5.5",P4:P24),SUMIF(Q4:Q24,">6.5",P4:P24)) -> 0 | S28: =IF(Beanspruchungverteilung!$AT$21="x",SUMIF(T4:T24,"<3.5",S4:S24),SUMIF(T4:T24,"<4.5",S4:S24)) -> 0 | T28: =IF(T27=0,0,SUM((S25)-(S28+U28))) -> 0 | U28: =IF(Beanspruchungverteilung!$AT$21="x",SUMIF(T4:T24,">5.5",S4:S24),SUMIF(T4:T24,">6.5",S4:S24)) -> 0 | V28: =IF(Beanspruchungverteilung!$AT$21="x",SUMIF(W4:W24,"<3.5",V4:V24),SUMIF(W4:W24,"<4.5",V4:V24)) -> 0 | W28: =IF(W27=0,0,SUM((V25)-(V28+X28))) -> 0 | X28: =IF(Beanspruchungverteilung!$AT$21="x",SUMIF(W4:W24,">5.5",V4:V24),SUMIF(W4:W24,">6.5",V4:V24)) -> 0 | Y28: =IF(Beanspruchungverteilung!$AT$21="x",SUMIF(Z4:Z24,"<3.5",Y4:Y24),SUMIF(Z4:Z24,"<4.5",Y4:Y24)) -> 0 | Z28: =IF(Z27=0,0,SUM((Y25)-(Y28+AA28))) -> 0 | AA28: =IF(Beanspruchungverteilung!$AT$21="x",SUMIF(Z4:Z24,">5.5",Y4:Y24),SUMIF(Z4:Z24,">6.5",Y4:Y24)) -> 0 | AB28: =IF(Beanspruchungverteilung!$AT$21="x",SUMIF(AC4:AC24,"<3.5",AB4:AB24),SUMIF(AC4:AC24,"<4.5",AB4:AB24)) -> 0 | AC28: =IF(AC27=0,0,SUM((AB25)-(AB28+AD28))) -> 0 | AD28: =IF(Beanspruchungverteilung!$AT$21="x",SUMIF(AC4:AC24,">5.5",AB4:AB24),SUMIF(AC4:AC24,">6.5",AB4:AB24)) -> 0
D29: Wie in Ruhe | H29: 0
D30: Sehr locker | H30: 1
D31: Locker | H31: 2 | AF31: Trainingstagen | AH31: =IF(SUM(AH4:AH24)=0,"",COUNTIF(AH4:AH24,">0")) -> 
H32: 3
D33: Etwas hart | H33: 4 | AF33: Trainingseinheiten | AH33: =IF(AH31="","",SUM(M27:AD27)) -> 
D34: Hart | H34: 5
H35: 6 | AF35: Trainingsstunden | AH35: =IF(AH31="","",SUM(M25,P25,V25,Y25,S25,AB25)/60) -> 
D36: Sehr hart | H36: 7
H37: 8 | AF37: Training Load | AH37: =IF(AH31="","",SUM(AH25)) -> 
D38: Extrem hart | H38: 9
D39: Wie mein härtestes Training | H39: 10 | AF39: Monotonie | AH39: =IF(AH31="","",(AVERAGE(AH4:AH24))/AH27) -> 
AF41: Trainingsanstrengung | AH41: =IF(AH31="","",AH37*AH39) -> 
AF43: =AJ2 -> Lauf Km | AH43: =IF(AH31="","",SUM(AJ4:AJ24)) -> 
AF45: =AK2 -> J | AH45: =IF(AH31="","",SUM(AK4:AK24)) -> 
AF47: =AL2 -> Swim Km | AH47: =IF(AH31="","",SUM(AL4:AL24)) -> 
AF49: =AM2 -> Mental Training | AH49: =IF(AH31="","",COUNTA(AM4:AM24)) -> 
AF51: =AN2 -> Regeneration | AH51: =IF(AH31="","",COUNTA(AN4:AN24)) -> 
AF53: =H2 -> Verletzung/Erkrankung | AH53: =IF(H26="","",COUNTA(H4:H24)) -> 
V134: =W134-1 -> 28 | W134: 29 | X134: 30 | Y134: 31 | Z134: 32 | AA134: 33 | AB134: 34 | AC134: =D1 -> 35
AD155: =AC134+1 -> 36 | AE155: =AD155+1 -> 37 | AF155: =AE155+1 -> 38

Sheet 36
C1: Woche | D1: =INT(MOD(INT((F1-2)/7)+0.6,52+5/28))+1 -> 36 | E1: =D1+1000 -> 1036 | F1: ='35'!F1+7 -> 2013-09-02 | G1: - | H1: =F1+6 -> 2013-09-08 | AD1: =Overview!D2 -> Vorname Name | AF1: =Overview!N2 -> 0
B2: Tag | D2: Gewicht | E2: Motiv. | F2: Schlaf | G2: Schlaf | H2: Verletzung/Erkrankung | J2: Trainingsbeschreibung | M2: ='19'!M2:O2 -> Dauerlauf | P2: ='19'!P2:R2 -> Bahn/Intervall | S2: ='19'!S2:U2 -> Sprint/Koord/Tech | V2: ='19'!V2:X2 -> Kraft | Y2: ='19'!Y2:AA2 -> Alternativ | AB2: ='19'!AB2:AD2 -> Divers | AF2: Bemerkungen | AH2: Load/Tag | AJ2: Lauf Km | AK2: J | AL2: Swim Km | AM2: Mental Training | AN2: Regeneration
D3: kg | E3: [-2….+2] | F3: 1-6 | G3: Std | H3: "x" wenn ja | M3: Dauer | N3: RPE | O3: Load | P3: Dauer | Q3: RPE | R3: Load | S3: Dauer | T3: RPE | U3: Load | V3: Dauer | W3: RPE | X3: Load | Y3: Dauer | Z3: RPE | AA3: Load | AB3: Dauer | AC3: RPE | AD3: Load
B4: Mo | O4: =M4*N4 -> 0 | R4: =P4*Q4 -> 0 | U4: =S4*T4 -> 0 | X4: =V4*W4 -> 0 | AA4: =Y4*Z4 -> 0 | AD4: =AB4*AC4 -> 0 | AH4: =SUM(O4:O6,R4:R6,U4:U6,X4:X6,AA4:AA6,AD4:AD6) -> 0
O5: 0 | R5: 0 | U5: 0 | X5: 0 | AA5: 0 | AD5: 0
O6: 0 | R6: 0 | U6: 0 | X6: 0 | AA6: 0 | AD6: 0
B7: Di | O7: 0 | R7: 0 | U7: 0 | X7: 0 | AA7: 0 | AD7: 0 | AH7: =SUM(O7:O9,R7:R9,U7:U9,X7:X9,AA7:AA9,AD7:AD9) -> 0
O8: 0 | R8: 0 | U8: 0 | X8: 0 | AA8: 0 | AD8: 0
O9: 0 | R9: 0 | U9: 0 | X9: 0 | AA9: 0 | AD9: 0
B10: Mi | O10: 0 | R10: 0 | U10: 0 | X10: 0 | AA10: 0 | AD10: 0 | AH10: =SUM(O10:O12,R10:R12,U10:U12,X10:X12,AA10:AA12,AD10:AD12) -> 0
O11: 0 | R11: 0 | U11: 0 | X11: 0 | AA11: 0 | AD11: 0
O12: 0 | R12: 0 | U12: 0 | X12: 0 | AA12: 0 | AD12: 0
B13: Do | O13: 0 | R13: 0 | U13: 0 | X13: 0 | AA13: 0 | AD13: 0 | AH13: =SUM(O13:O15,R13:R15,U13:U15,X13:X15,AA13:AA15,AD13:AD15) -> 0
O14: 0 | R14: 0 | U14: 0 | X14: 0 | AA14: 0 | AD14: 0
O15: 0 | R15: 0 | U15: 0 | X15: 0 | AA15: 0 | AD15: 0
B16: Fr | O16: 0 | R16: 0 | U16: 0 | X16: 0 | AA16: 0 | AD16: 0 | AH16: =SUM(O16:O18,R16:R18,U16:U18,X16:X18,AA16:AA18,AD16:AD18) -> 0
O17: 0 | R17: 0 | U17: 0 | X17: 0 | AA17: 0 | AD17: 0
O18: 0 | R18: 0 | U18: 0 | X18: 0 | AA18: 0 | AD18: 0
B19: Sa | O19: 0 | R19: 0 | U19: 0 | X19: 0 | AA19: 0 | AD19: 0 | AH19: =SUM(O19:O21,R19:R21,U19:U21,X19:X21,AA19:AA21,AD19:AD21) -> 0
O20: 0 | R20: 0 | U20: 0 | X20: 0 | AA20: 0 | AD20: 0
O21: 0 | R21: 0 | U21: 0 | X21: 0 | AA21: 0 | AD21: 0
B22: So | O22: 0 | R22: 0 | U22: 0 | X22: 0 | AA22: 0 | AD22: 0 | AH22: =SUM(O22:O24,R22:R24,U22:U24,X22:X24,AA22:AA24,AD22:AD24) -> 0
O23: 0 | R23: 0 | U23: 0 | X23: 0 | AA23: 0 | AD23: 0
O24: 0 | R24: 0 | U24: 0 | X24: 0 | AA24: 0 | AD24: 0
K25: Total | M25: =SUM(M4:M24) -> 0 | O25: =SUM(O4:O24) -> 0 | P25: =SUM(P4:P24) -> 0 | R25: =SUM(R4:R24) -> 0 | S25: =SUM(S4:S24) -> 0 | U25: =SUM(U4:U24) -> 0 | V25: =SUM(V4:V24) -> 0 | X25: =SUM(X4:X24) -> 0 | Y25: =SUM(Y4:Y24) -> 0 | AA25: =SUM(AA4:AA24) -> 0 | AB25: =SUM(AB4:AB24) -> 0 | AD25: =SUM(AD4:AD24) -> 0 | AF25: TOTAL LOAD | AH25: =SUM(AH4:AH24) -> 0
B26: avg | D26: =IF(COUNTA(D4:D24)=0,"",AVERAGE(D4:D24)) ->  | E26: =IF(COUNTA(E4:E24)=0,"",AVERAGE(E4:E24)) ->  | F26: =IF(COUNTA(F4:F24)=0,"",AVERAGE(F4:F24)) ->  | G26: =IF(COUNTA(G4:G24)=0,"",AVERAGE(G4:G24)) ->  | H26: =IF(COUNTA(H4:H24)=0,"",COUNTIF(H4:H24,"x")) ->  | K26: Zone | M26: 1 | N26: 2 | O26: 3 | P26: 1 | Q26: 2 | R26: 3 | S26: 1 | T26: 2 | U26: 3 | V26: 1 | W26: 2 | X26: 3 | Y26: 1 | Z26: 2 | AA26: 3 | AB26: 1 | AC26: 2 | AD26: 3 | AF26: Mittelwert | AH26: =AVERAGE(AH4:AH24) -> 0
K27: Einheiten pro Zone (RPE) | M27: =IF(Beanspruchungverteilung!$AT$21="x",COUNTIF(N4:N24,"<3.5"),COUNTIF(N4:N24,"<4.5")) -> 0 | N27: =COUNT(N4:N24)-(M27+O27) -> 0 | O27: =IF(Beanspruchungverteilung!$AT$21="x",COUNTIF(N4:N24,">5.5"),COUNTIF(N4:N24,">6.5")) -> 0 | P27: =IF(Beanspruchungverteilung!$AT$21="x",COUNTIF(Q4:Q24,"<3.5"),COUNTIF(Q4:Q24,"<4.5")) -> 0 | Q27: =COUNT(Q4:Q24)-(P27+R27) -> 0 | R27: =IF(Beanspruchungverteilung!$AT$21="x",COUNTIF(Q4:Q24,">5.5"),COUNTIF(Q4:Q24,">6.5")) -> 0 | S27: =IF(Beanspruchungverteilung!$AT$21="x",COUNTIF(T4:T24,"<3.5"),COUNTIF(T4:T24,"<4.5")) -> 0 | T27: =COUNT(T4:T24)-(S27+U27) -> 0 | U27: =IF(Beanspruchungverteilung!$AT$21="x",COUNTIF(T4:T24,">5.5"),COUNTIF(T4:T24,">6.5")) -> 0 | V27: =IF(Beanspruchungverteilung!$AT$21="x",COUNTIF(W4:W24,"<3.5"),COUNTIF(W4:W24,"<4.5")) -> 0 | W27: =COUNT(W4:W24)-(V27+X27) -> 0 | X27: =IF(Beanspruchungverteilung!$AT$21="x",COUNTIF(W4:W24,">5.5"),COUNTIF(W4:W24,">6.5")) -> 0 | Y27: =IF(Beanspruchungverteilung!$AT$21="x",COUNTIF(Z4:Z24,"<3.5"),COUNTIF(Z4:Z24,"<4.5")) -> 0 | Z27: =COUNT(Z4:Z24)-(Y27+AA27) -> 0 | AA27: =IF(Beanspruchungverteilung!$AT$21="x",COUNTIF(Z4:Z24,">5.5"),COUNTIF(Z4:Z24,">6.5")) -> 0 | AB27: =IF(Beanspruchungverteilung!$AT$21="x",COUNTIF(AC4:AC24,"<3.5"),COUNTIF(AC4:AC24,"<4.5")) -> 0 | AC27: =COUNT(AC4:AC24)-(AB27+AD27) -> 0 | AD27: =IF(Beanspruchungverteilung!$AT$21="x",COUNTIF(AC4:AC24,">5.5"),COUNTIF(AC4:AC24,">6.5")) -> 0 | AF27: Standardabweichung | AH27: =STDEVP(AH4:AH24) -> 0
D28: Foster's Skala | H28: RPE | K28: Zeit pro Zone (RPE) | M28: =IF(Beanspruchungverteilung!$AT$21="x",SUMIF(N4:N24,"<3.5",M4:M24),SUMIF(N4:N24,"<4.5",M4:M24)) -> 0 | N28: =IF(N27=0,0,SUM((M25)-(M28+O28))) -> 0 | O28: =IF(Beanspruchungverteilung!$AT$21="x",SUMIF(N4:N24,">5.5",M4:M24),SUMIF(N4:N24,">6.5",M4:M24)) -> 0 | P28: =IF(Beanspruchungverteilung!$AT$21="x",SUMIF(Q4:Q24,"<3.5",P4:P24),SUMIF(Q4:Q24,"<4.5",P4:P24)) -> 0 | Q28: =IF(Q27=0,0,SUM((P25)-(P28+R28))) -> 0 | R28: =IF(Beanspruchungverteilung!$AT$21="x",SUMIF(Q4:Q24,">5.5",P4:P24),SUMIF(Q4:Q24,">6.5",P4:P24)) -> 0 | S28: =IF(Beanspruchungverteilung!$AT$21="x",SUMIF(T4:T24,"<3.5",S4:S24),SUMIF(T4:T24,"<4.5",S4:S24)) -> 0 | T28: =IF(T27=0,0,SUM((S25)-(S28+U28))) -> 0 | U28: =IF(Beanspruchungverteilung!$AT$21="x",SUMIF(T4:T24,">5.5",S4:S24),SUMIF(T4:T24,">6.5",S4:S24)) -> 0 | V28: =IF(Beanspruchungverteilung!$AT$21="x",SUMIF(W4:W24,"<3.5",V4:V24),SUMIF(W4:W24,"<4.5",V4:V24)) -> 0 | W28: =IF(W27=0,0,SUM((V25)-(V28+X28))) -> 0 | X28: =IF(Beanspruchungverteilung!$AT$21="x",SUMIF(W4:W24,">5.5",V4:V24),SUMIF(W4:W24,">6.5",V4:V24)) -> 0 | Y28: =IF(Beanspruchungverteilung!$AT$21="x",SUMIF(Z4:Z24,"<3.5",Y4:Y24),SUMIF(Z4:Z24,"<4.5",Y4:Y24)) -> 0 | Z28: =IF(Z27=0,0,SUM((Y25)-(Y28+AA28))) -> 0 | AA28: =IF(Beanspruchungverteilung!$AT$21="x",SUMIF(Z4:Z24,">5.5",Y4:Y24),SUMIF(Z4:Z24,">6.5",Y4:Y24)) -> 0 | AB28: =IF(Beanspruchungverteilung!$AT$21="x",SUMIF(AC4:AC24,"<3.5",AB4:AB24),SUMIF(AC4:AC24,"<4.5",AB4:AB24)) -> 0 | AC28: =IF(AC27=0,0,SUM((AB25)-(AB28+AD28))) -> 0 | AD28: =IF(Beanspruchungverteilung!$AT$21="x",SUMIF(AC4:AC24,">5.5",AB4:AB24),SUMIF(AC4:AC24,">6.5",AB4:AB24)) -> 0
D29: Wie in Ruhe | H29: 0
D30: Sehr locker | H30: 1
D31: Locker | H31: 2 | AF31: Trainingstagen | AH31: =IF(SUM(AH4:AH24)=0,"",COUNTIF(AH4:AH24,">0")) -> 
H32: 3
D33: Etwas hart | H33: 4 | AF33: Trainingseinheiten | AH33: =IF(AH31="","",SUM(M27:AD27)) -> 
D34: Hart | H34: 5
H35: 6 | AF35: Trainingsstunden | AH35: =IF(AH31="","",SUM(M25,P25,V25,Y25,S25,AB25)/60) -> 
D36: Sehr hart | H36: 7
H37: 8 | AF37: Training Load | AH37: =IF(AH31="","",SUM(AH25)) -> 
D38: Extrem hart | H38: 9
D39: Wie mein härtestes Training | H39: 10 | AF39: Monotonie | AH39: =IF(AH31="","",(AVERAGE(AH4:AH24))/AH27) -> 
AF41: Trainingsanstrengung | AH41: =IF(AH31="","",AH37*AH39) -> 
AF43: =AJ2 -> Lauf Km | AH43: =IF(AH31="","",SUM(AJ4:AJ24)) -> 
AF45: =AK2 -> J | AH45: =IF(AH31="","",SUM(AK4:AK24)) -> 
AF47: =AL2 -> Swim Km | AH47: =IF(AH31="","",SUM(AL4:AL24)) -> 
AF49: =AM2 -> Mental Training | AH49: =IF(AH31="","",COUNTA(AM4:AM24)) -> 
AF51: =AN2 -> Regeneration | AH51: =IF(AH31="","",COUNTA(AN4:AN24)) -> 
AF53: =H2 -> Verletzung/Erkrankung | AH53: =IF(H26="","",COUNTA(H4:H24)) -> 
V134: =W134-1 -> 29 | W134: 30 | X134: 31 | Y134: 32 | Z134: 33 | AA134: 34 | AB134: 35 | AC134: =D1 -> 36
AD155: =AC134+1 -> 37 | AE155: =AD155+1 -> 38 | AF155: =AE155+1 -> 39

Sheet 37
C1: Woche | D1: =INT(MOD(INT((F1-2)/7)+0.6,52+5/28))+1 -> 37 | E1: =D1+1000 -> 1037 | F1: ='36'!F1+7 -> 2013-09-09 | G1: - | H1: =F1+6 -> 2013-09-15 | AD1: =Overview!D2 -> Vorname Name | AF1: =Overview!N2 -> 0
B2: Tag | D2: Gewicht | E2: Motiv. | F2: Schlaf | G2: Schlaf | H2: Verletzung/Erkrankung | J2: Trainingsbeschreibung | M2: ='19'!M2:O2 -> Dauerlauf | P2: ='19'!P2:R2 -> Bahn/Intervall | S2: ='19'!S2:U2 -> Sprint/Koord/Tech | V2: ='19'!V2:X2 -> Kraft | Y2: ='19'!Y2:AA2 -> Alternativ | AB2: ='19'!AB2:AD2 -> Divers | AF2: Bemerkungen | AH2: Load/Tag | AJ2: Lauf Km | AK2: J | AL2: Swim Km | AM2: Mental Training | AN2: Regeneration
D3: kg | E3: [-2….+2] | F3: 1-6 | G3: Std | H3: "x" wenn ja | M3: Dauer | N3: RPE | O3: Load | P3: Dauer | Q3: RPE | R3: Load | S3: Dauer | T3: RPE | U3: Load | V3: Dauer | W3: RPE | X3: Load | Y3: Dauer | Z3: RPE | AA3: Load | AB3: Dauer | AC3: RPE | AD3: Load
B4: Mo | O4: =M4*N4 -> 0 | R4: =P4*Q4 -> 0 | U4: =S4*T4 -> 0 | X4: =V4*W4 -> 0 | AA4: =Y4*Z4 -> 0 | AD4: =AB4*AC4 -> 0 | AH4: =SUM(O4:O6,R4:R6,U4:U6,X4:X6,AA4:AA6,AD4:AD6) -> 0
O5: 0 | R5: 0 | U5: 0 | X5: 0 | AA5: 0 | AD5: 0
O6: 0 | R6: 0 | U6: 0 | X6: 0 | AA6: 0 | AD6: 0
B7: Di | O7: 0 | R7: 0 | U7: 0 | X7: 0 | AA7: 0 | AD7: 0 | AH7: =SUM(O7:O9,R7:R9,U7:U9,X7:X9,AA7:AA9,AD7:AD9) -> 0
O8: 0 | R8: 0 | U8: 0 | X8: 0 | AA8: 0 | AD8: 0
O9: 0 | R9: 0 | U9: 0 | X9: 0 | AA9: 0 | AD9: 0
B10: Mi | O10: 0 | R10: 0 | U10: 0 | X10: 0 | AA10: 0 | AD10: 0 | AH10: =SUM(O10:O12,R10:R12,U10:U12,X10:X12,AA10:AA12,AD10:AD12) -> 0
O11: 0 | R11: 0 | U11: 0 | X11: 0 | AA11: 0 | AD11: 0
O12: 0 | R12: 0 | U12: 0 | X12: 0 | AA12: 0 | AD12: 0
B13: Do | O13: 0 | R13: 0 | U13: 0 | X13: 0 | AA13: 0 | AD13: 0 | AH13: =SUM(O13:O15,R13:R15,U13:U15,X13:X15,AA13:AA15,AD13:AD15) -> 0
O14: 0 | R14: 0 | U14: 0 | X14: 0 | AA14: 0 | AD14: 0
O15: 0 | R15: 0 | U15: 0 | X15: 0 | AA15: 0 | AD15: 0
B16: Fr | O16: 0 | R16: 0 | U16: 0 | X16: 0 | AA16: 0 | AD16: 0 | AH16: =SUM(O16:O18,R16:R18,U16:U18,X16:X18,AA16:AA18,AD16:AD18) -> 0
O17: 0 | R17: 0 | U17: 0 | X17: 0 | AA17: 0 | AD17: 0
O18: 0 | R18: 0 | U18: 0 | X18: 0 | AA18: 0 | AD18: 0
B19: Sa | O19: 0 | R19: 0 | U19: 0 | X19: 0 | AA19: 0 | AD19: 0 | AH19: =SUM(O19:O21,R19:R21,U19:U21,X19:X21,AA19:AA21,AD19:AD21) -> 0
O20: 0 | R20: 0 | U20: 0 | X20: 0 | AA20: 0 | AD20: 0
O21: 0 | R21: 0 | U21: 0 | X21: 0 | AA21: 0 | AD21: 0
B22: So | O22: 0 | R22: 0 | U22: 0 | X22: 0 | AA22: 0 | AD22: 0 | AH22: =SUM(O22:O24,R22:R24,U22:U24,X22:X24,AA22:AA24,AD22:AD24) -> 0
O23: 0 | R23: 0 | U23: 0 | X23: 0 | AA23: 0 | AD23: 0
O24: 0 | R24: 0 | U24: 0 | X24: 0 | AA24: 0 | AD24: 0
K25: Total | M25: =SUM(M4:M24) -> 0 | O25: =SUM(O4:O24) -> 0 | P25: =SUM(P4:P24) -> 0 | R25: =SUM(R4:R24) -> 0 | S25: =SUM(S4:S24) -> 0 | U25: =SUM(U4:U24) -> 0 | V25: =SUM(V4:V24) -> 0 | X25: =SUM(X4:X24) -> 0 | Y25: =SUM(Y4:Y24) -> 0 | AA25: =SUM(AA4:AA24) -> 0 | AB25: =SUM(AB4:AB24) -> 0 | AD25: =SUM(AD4:AD24) -> 0 | AF25: TOTAL LOAD | AH25: =SUM(AH4:AH24) -> 0
B26: avg | D26: =IF(COUNTA(D4:D24)=0,"",AVERAGE(D4:D24)) ->  | E26: =IF(COUNTA(E4:E24)=0,"",AVERAGE(E4:E24)) ->  | F26: =IF(COUNTA(F4:F24)=0,"",AVERAGE(F4:F24)) ->  | G26: =IF(COUNTA(G4:G24)=0,"",AVERAGE(G4:G24)) ->  | H26: =IF(COUNTA(H4:H24)=0,"",COUNTIF(H4:H24,"x")) ->  | K26: Zone | M26: 1 | N26: 2 | O26: 3 | P26: 1 | Q26: 2 | R26: 3 | S26: 1 | T26: 2 | U26: 3 | V26: 1 | W26: 2 | X26: 3 | Y26: 1 | Z26: 2 | AA26: 3 | AB26: 1 | AC26: 2 | AD26: 3 | AF26: Mittelwert | AH26: =AVERAGE(AH4:AH24) -> 0
K27: Einheiten pro Zone (RPE) | M27: =IF(Beanspruchungverteilung!$AT$21="x",COUNTIF(N4:N24,"<3.5"),COUNTIF(N4:N24,"<4.5")) -> 0 | N27: =COUNT(N4:N24)-(M27+O27) -> 0 | O27: =IF(Beanspruchungverteilung!$AT$21="x",COUNTIF(N4:N24,">5.5"),COUNTIF(N4:N24,">6.5")) -> 0 | P27: =IF(Beanspruchungverteilung!$AT$21="x",COUNTIF(Q4:Q24,"<3.5"),COUNTIF(Q4:Q24,"<4.5")) -> 0 | Q27: =COUNT(Q4:Q24)-(P27+R27) -> 0 | R27: =IF(Beanspruchungverteilung!$AT$21="x",COUNTIF(Q4:Q24,">5.5"),COUNTIF(Q4:Q24,">6.5")) -> 0 | S27: =IF(Beanspruchungverteilung!$AT$21="x",COUNTIF(T4:T24,"<3.5"),COUNTIF(T4:T24,"<4.5")) -> 0 | T27: =COUNT(T4:T24)-(S27+U27) -> 0 | U27: =IF(Beanspruchungverteilung!$AT$21="x",COUNTIF(T4:T24,">5.5"),COUNTIF(T4:T24,">6.5")) -> 0 | V27: =IF(Beanspruchungverteilung!$AT$21="x",COUNTIF(W4:W24,"<3.5"),COUNTIF(W4:W24,"<4.5")) -> 0 | W27: =COUNT(W4:W24)-(V27+X27) -> 0 | X27: =IF(Beanspruchungverteilung!$AT$21="x",COUNTIF(W4:W24,">5.5"),COUNTIF(W4:W24,">6.5")) -> 0 | Y27: =IF(Beanspruchungverteilung!$AT$21="x",COUNTIF(Z4:Z24,"<3.5"),COUNTIF(Z4:Z24,"<4.5")) -> 0 | Z27: =COUNT(Z4:Z24)-(Y27+AA27) -> 0 | AA27: =IF(Beanspruchungverteilung!$AT$21="x",COUNTIF(Z4:Z24,">5.5"),COUNTIF(Z4:Z24,">6.5")) -> 0 | AB27: =IF(Beanspruchungverteilung!$AT$21="x",COUNTIF(AC4:AC24,"<3.5"),COUNTIF(AC4:AC24,"<4.5")) -> 0 | AC27: =COUNT(AC4:AC24)-(AB27+AD27) -> 0 | AD27: =IF(Beanspruchungverteilung!$AT$21="x",COUNTIF(AC4:AC24,">5.5"),COUNTIF(AC4:AC24,">6.5")) -> 0 | AF27: Standardabweichung | AH27: =STDEVP(AH4:AH24) -> 0
D28: Foster's Skala | H28: RPE | K28: Zeit pro Zone (RPE) | M28: =IF(Beanspruchungverteilung!$AT$21="x",SUMIF(N4:N24,"<3.5",M4:M24),SUMIF(N4:N24,"<4.5",M4:M24)) -> 0 | N28: =IF(N27=0,0,SUM((M25)-(M28+O28))) -> 0 | O28: =IF(Beanspruchungverteilung!$AT$21="x",SUMIF(N4:N24,">5.5",M4:M24),SUMIF(N4:N24,">6.5",M4:M24)) -> 0 | P28: =IF(Beanspruchungverteilung!$AT$21="x",SUMIF(Q4:Q24,"<3.5",P4:P24),SUMIF(Q4:Q24,"<4.5",P4:P24)) -> 0 | Q28: =IF(Q27=0,0,SUM((P25)-(P28+R28))) -> 0 | R28: =IF(Beanspruchungverteilung!$AT$21="x",SUMIF(Q4:Q24,">5.5",P4:P24),SUMIF(Q4:Q24,">6.5",P4:P24)) -> 0 | S28: =IF(Beanspruchungverteilung!$AT$21="x",SUMIF(T4:T24,"<3.5",S4:S24),SUMIF(T4:T24,"<4.5",S4:S24)) -> 0 | T28: =IF(T27=0,0,SUM((S25)-(S28+U28))) -> 0 | U28: =IF(Beanspruchungverteilung!$AT$21="x",SUMIF(T4:T24,">5.5",S4:S24),SUMIF(T4:T24,">6.5",S4:S24)) -> 0 | V28: =IF(Beanspruchungverteilung!$AT$21="x",SUMIF(W4:W24,"<3.5",V4:V24),SUMIF(W4:W24,"<4.5",V4:V24)) -> 0 | W28: =IF(W27=0,0,SUM((V25)-(V28+X28))) -> 0 | X28: =IF(Beanspruchungverteilung!$AT$21="x",SUMIF(W4:W24,">5.5",V4:V24),SUMIF(W4:W24,">6.5",V4:V24)) -> 0 | Y28: =IF(Beanspruchungverteilung!$AT$21="x",SUMIF(Z4:Z24,"<3.5",Y4:Y24),SUMIF(Z4:Z24,"<4.5",Y4:Y24)) -> 0 | Z28: =IF(Z27=0,0,SUM((Y25)-(Y28+AA28))) -> 0 | AA28: =IF(Beanspruchungverteilung!$AT$21="x",SUMIF(Z4:Z24,">5.5",Y4:Y24),SUMIF(Z4:Z24,">6.5",Y4:Y24)) -> 0 | AB28: =IF(Beanspruchungverteilung!$AT$21="x",SUMIF(AC4:AC24,"<3.5",AB4:AB24),SUMIF(AC4:AC24,"<4.5",AB4:AB24)) -> 0 | AC28: =IF(AC27=0,0,SUM((AB25)-(AB28+AD28))) -> 0 | AD28: =IF(Beanspruchungverteilung!$AT$21="x",SUMIF(AC4:AC24,">5.5",AB4:AB24),SUMIF(AC4:AC24,">6.5",AB4:AB24)) -> 0
D29: Wie in Ruhe | H29: 0
D30: Sehr locker | H30: 1
D31: Locker | H31: 2 | AF31: Trainingstagen | AH31: =IF(SUM(AH4:AH24)=0,"",COUNTIF(AH4:AH24,">0")) -> 
H32: 3
D33: Etwas hart | H33: 4 | AF33: Trainingseinheiten | AH33: =IF(AH31="","",SUM(M27:AD27)) -> 
D34: Hart | H34: 5
H35: 6 | AF35: Trainingsstunden | AH35: =IF(AH31="","",SUM(M25,P25,V25,Y25,S25,AB25)/60) -> 
D36: Sehr hart | H36: 7
H37: 8 | AF37: Training Load | AH37: =IF(AH31="","",SUM(AH25)) -> 
D38: Extrem hart | H38: 9
D39: Wie mein härtestes Training | H39: 10 | AF39: Monotonie | AH39: =IF(AH31="","",(AVERAGE(AH4:AH24))/AH27) -> 
AF41: Trainingsanstrengung | AH41: =IF(AH31="","",AH37*AH39) -> 
AF43: =AJ2 -> Lauf Km | AH43: =IF(AH31="","",SUM(AJ4:AJ24)) -> 
AF45: =AK2 -> J | AH45: =IF(AH31="","",SUM(AK4:AK24)) -> 
AF47: =AL2 -> Swim Km | AH47: =IF(AH31="","",SUM(AL4:AL24)) -> 
AF49: =AM2 -> Mental Training | AH49: =IF(AH31="","",COUNTA(AM4:AM24)) -> 
AF51: =AN2 -> Regeneration | AH51: =IF(AH31="","",COUNTA(AN4:AN24)) -> 
AF53: =H2 -> Verletzung/Erkrankung | AH53: =IF(H26="","",COUNTA(H4:H24)) -> 
V134: =W134-1 -> 30 | W134: 31 | X134: 32 | Y134: 33 | Z134: 34 | AA134: 35 | AB134: 36 | AC134: =D1 -> 37
AD155: =AC134+1 -> 38 | AE155: =AD155+1 -> 39 | AF155: =AE155+1 -> 40

Sheet 38
C1: Woche | D1: =INT(MOD(INT((F1-2)/7)+0.6,52+5/28))+1 -> 38 | E1: =D1+1000 -> 1038 | F1: ='37'!F1+7 -> 2013-09-16 | G1: - | H1: =F1+6 -> 2013-09-22 | AD1: =Overview!D2 -> Vorname Name | AF1: =Overview!N2 -> 0
B2: Tag | D2: Gewicht | E2: Motiv. | F2: Schlaf | G2: Schlaf | H2: Verletzung/Erkrankung | J2: Trainingsbeschreibung | M2: ='19'!M2:O2 -> Dauerlauf | P2: ='19'!P2:R2 -> Bahn/Intervall | S2: ='19'!S2:U2 -> Sprint/Koord/Tech | V2: ='19'!V2:X2 -> Kraft | Y2: ='19'!Y2:AA2 -> Alternativ | AB2: ='19'!AB2:AD2 -> Divers | AF2: Bemerkungen | AH2: Load/Tag | AJ2: Lauf Km | AK2: J | AL2: Swim Km | AM2: Mental Training | AN2: Regeneration
D3: kg | E3: [-2….+2] | F3: 1-6 | G3: Std | H3: "x" wenn ja | M3: Dauer | N3: RPE | O3: Load | P3: Dauer | Q3: RPE | R3: Load | S3: Dauer | T3: RPE | U3: Load | V3: Dauer | W3: RPE | X3: Load | Y3: Dauer | Z3: RPE | AA3: Load | AB3: Dauer | AC3: RPE | AD3: Load
B4: Mo | O4: =M4*N4 -> 0 | R4: =P4*Q4 -> 0 | U4: =S4*T4 -> 0 | X4: =V4*W4 -> 0 | AA4: =Y4*Z4 -> 0 | AD4: =AB4*AC4 -> 0 | AH4: =SUM(O4:O6,R4:R6,U4:U6,X4:X6,AA4:AA6,AD4:AD6) -> 0
O5: 0 | R5: 0 | U5: 0 | X5: 0 | AA5: 0 | AD5: 0
O6: 0 | R6: 0 | U6: 0 | X6: 0 | AA6: 0 | AD6: 0
B7: Di | O7: 0 | R7: 0 | U7: 0 | X7: 0 | AA7: 0 | AD7: 0 | AH7: =SUM(O7:O9,R7:R9,U7:U9,X7:X9,AA7:AA9,AD7:AD9) -> 0
O8: 0 | R8: 0 | U8: 0 | X8: 0 | AA8: 0 | AD8: 0
O9: 0 | R9: 0 | U9: 0 | X9: 0 | AA9: 0 | AD9: 0
B10: Mi | O10: 0 | R10: 0 | U10: 0 | X10: 0 | AA10: 0 | AD10: 0 | AH10: =SUM(O10:O12,R10:R12,U10:U12,X10:X12,AA10:AA12,AD10:AD12) -> 0
O11: 0 | R11: 0 | U11: 0 | X11: 0 | AA11: 0 | AD11: 0
O12: 0 | R12: 0 | U12: 0 | X12: 0 | AA12: 0 | AD12: 0
B13: Do | O13: 0 | R13: 0 | U13: 0 | X13: 0 | AA13: 0 | AD13: 0 | AH13: =SUM(O13:O15,R13:R15,U13:U15,X13:X15,AA13:AA15,AD13:AD15) -> 0
O14: 0 | R14: 0 | U14: 0 | X14: 0 | AA14: 0 | AD14: 0
O15: 0 | R15: 0 | U15: 0 | X15: 0 | AA15: 0 | AD15: 0
B16: Fr | O16: 0 | R16: 0 | U16: 0 | X16: 0 | AA16: 0 | AD16: 0 | AH16: =SUM(O16:O18,R16:R18,U16:U18,X16:X18,AA16:AA18,AD16:AD18) -> 0
O17: 0 | R17: 0 | U17: 0 | X17: 0 | AA17: 0 | AD17: 0
O18: 0 | R18: 0 | U18: 0 | X18: 0 | AA18: 0 | AD18: 0
B19: Sa | O19: 0 | R19: 0 | U19: 0 | X19: 0 | AA19: 0 | AD19: 0 | AH19: =SUM(O19:O21,R19:R21,U19:U21,X19:X21,AA19:AA21,AD19:AD21) -> 0
O20: 0 | R20: 0 | U20: 0 | X20: 0 | AA20: 0 | AD20: 0
O21: 0 | R21: 0 | U21: 0 | X21: 0 | AA21: 0 | AD21: 0
B22: So | O22: 0 | R22: 0 | U22: 0 | X22: 0 | AA22: 0 | AD22: 0 | AH22: =SUM(O22:O24,R22:R24,U22:U24,X22:X24,AA22:AA24,AD22:AD24) -> 0
O23: 0 | R23: 0 | U23: 0 | X23: 0 | AA23: 0 | AD23: 0
O24: 0 | R24: 0 | U24: 0 | X24: 0 | AA24: 0 | AD24: 0
K25: Total | M25: =SUM(M4:M24) -> 0 | O25: =SUM(O4:O24) -> 0 | P25: =SUM(P4:P24) -> 0 | R25: =SUM(R4:R24) -> 0 | S25: =SUM(S4:S24) -> 0 | U25: =SUM(U4:U24) -> 0 | V25: =SUM(V4:V24) -> 0 | X25: =SUM(X4:X24) -> 0 | Y25: =SUM(Y4:Y24) -> 0 | AA25: =SUM(AA4:AA24) -> 0 | AB25: =SUM(AB4:AB24) -> 0 | AD25: =SUM(AD4:AD24) -> 0 | AF25: TOTAL LOAD | AH25: =SUM(AH4:AH24) -> 0
B26: avg | D26: =IF(COUNTA(D4:D24)=0,"",AVERAGE(D4:D24)) ->  | E26: =IF(COUNTA(E4:E24)=0,"",AVERAGE(E4:E24)) ->  | F26: =IF(COUNTA(F4:F24)=0,"",AVERAGE(F4:F24)) ->  | G26: =IF(COUNTA(G4:G24)=0,"",AVERAGE(G4:G24)) ->  | H26: =IF(COUNTA(H4:H24)=0,"",COUNTIF(H4:H24,"x")) ->  | K26: Zone | M26: 1 | N26: 2 | O26: 3 | P26: 1 | Q26: 2 | R26: 3 | S26: 1 | T26: 2 | U26: 3 | V26: 1 | W26: 2 | X26: 3 | Y26: 1 | Z26: 2 | AA26: 3 | AB26: 1 | AC26: 2 | AD26: 3 | AF26: Mittelwert | AH26: =AVERAGE(AH4:AH24) -> 0
K27: Einheiten pro Zone (RPE) | M27: =IF(Beanspruchungverteilung!$AT$21="x",COUNTIF(N4:N24,"<3.5"),COUNTIF(N4:N24,"<4.5")) -> 0 | N27: =COUNT(N4:N24)-(M27+O27) -> 0 | O27: =IF(Beanspruchungverteilung!$AT$21="x",COUNTIF(N4:N24,">5.5"),COUNTIF(N4:N24,">6.5")) -> 0 | P27: =IF(Beanspruchungverteilung!$AT$21="x",COUNTIF(Q4:Q24,"<3.5"),COUNTIF(Q4:Q24,"<4.5")) -> 0 | Q27: =COUNT(Q4:Q24)-(P27+R27) -> 0 | R27: =IF(Beanspruchungverteilung!$AT$21="x",COUNTIF(Q4:Q24,">5.5"),COUNTIF(Q4:Q24,">6.5")) -> 0 | S27: =IF(Beanspruchungverteilung!$AT$21="x",COUNTIF(T4:T24,"<3.5"),COUNTIF(T4:T24,"<4.5")) -> 0 | T27: =COUNT(T4:T24)-(S27+U27) -> 0 | U27: =IF(Beanspruchungverteilung!$AT$21="x",COUNTIF(T4:T24,">5.5"),COUNTIF(T4:T24,">6.5")) -> 0 | V27: =IF(Beanspruchungverteilung!$AT$21="x",COUNTIF(W4:W24,"<3.5"),COUNTIF(W4:W24,"<4.5")) -> 0 | W27: =COUNT(W4:W24)-(V27+X27) -> 0 | X27: =IF(Beanspruchungverteilung!$AT$21="x",COUNTIF(W4:W24,">5.5"),COUNTIF(W4:W24,">6.5")) -> 0 | Y27: =IF(Beanspruchungverteilung!$AT$21="x",COUNTIF(Z4:Z24,"<3.5"),COUNTIF(Z4:Z24,"<4.5")) -> 0 | Z27: =COUNT(Z4:Z24)-(Y27+AA27) -> 0 | AA27: =IF(Beanspruchungverteilung!$AT$21="x",COUNTIF(Z4:Z24,">5.5"),COUNTIF(Z4:Z24,">6.5")) -> 0 | AB27: =IF(Beanspruchungverteilung!$AT$21="x",COUNTIF(AC4:AC24,"<3.5"),COUNTIF(AC4:AC24,"<4.5")) -> 0 | AC27: =COUNT(AC4:AC24)-(AB27+AD27) -> 0 | AD27: =IF(Beanspruchungverteilung!$AT$21="x",COUNTIF(AC4:AC24,">5.5"),COUNTIF(AC4:AC24,">6.5")) -> 0 | AF27: Standardabweichung | AH27: =STDEVP(AH4:AH24) -> 0
D28: Foster's Skala | H28: RPE | K28: Zeit pro Zone (RPE) | M28: =IF(Beanspruchungverteilung!$AT$21="x",SUMIF(N4:N24,"<3.5",M4:M24),SUMIF(N4:N24,"<4.5",M4:M24)) -> 0 | N28: =IF(N27=0,0,SUM((M25)-(M28+O28))) -> 0 | O28: =IF(Beanspruchungverteilung!$AT$21="x",SUMIF(N4:N24,">5.5",M4:M24),SUMIF(N4:N24,">6.5",M4:M24)) -> 0 | P28: =IF(Beanspruchungverteilung!$AT$21="x",SUMIF(Q4:Q24,"<3.5",P4:P24),SUMIF(Q4:Q24,"<4.5",P4:P24)) -> 0 | Q28: =IF(Q27=0,0,SUM((P25)-(P28+R28))) -> 0 | R28: =IF(Beanspruchungverteilung!$AT$21="x",SUMIF(Q4:Q24,">5.5",P4:P24),SUMIF(Q4:Q24,">6.5",P4:P24)) -> 0 | S28: =IF(Beanspruchungverteilung!$AT$21="x",SUMIF(T4:T24,"<3.5",S4:S24),SUMIF(T4:T24,"<4.5",S4:S24)) -> 0 | T28: =IF(T27=0,0,SUM((S25)-(S28+U28))) -> 0 | U28: =IF(Beanspruchungverteilung!$AT$21="x",SUMIF(T4:T24,">5.5",S4:S24),SUMIF(T4:T24,">6.5",S4:S24)) -> 0 | V28: =IF(Beanspruchungverteilung!$AT$21="x",SUMIF(W4:W24,"<3.5",V4:V24),SUMIF(W4:W24,"<4.5",V4:V24)) -> 0 | W28: =IF(W27=0,0,SUM((V25)-(V28+X28))) -> 0 | X28: =IF(Beanspruchungverteilung!$AT$21="x",SUMIF(W4:W24,">5.5",V4:V24),SUMIF(W4:W24,">6.5",V4:V24)) -> 0 | Y28: =IF(Beanspruchungverteilung!$AT$21="x",SUMIF(Z4:Z24,"<3.5",Y4:Y24),SUMIF(Z4:Z24,"<4.5",Y4:Y24)) -> 0 | Z28: =IF(Z27=0,0,SUM((Y25)-(Y28+AA28))) -> 0 | AA28: =IF(Beanspruchungverteilung!$AT$21="x",SUMIF(Z4:Z24,">5.5",Y4:Y24),SUMIF(Z4:Z24,">6.5",Y4:Y24)) -> 0 | AB28: =IF(Beanspruchungverteilung!$AT$21="x",SUMIF(AC4:AC24,"<3.5",AB4:AB24),SUMIF(AC4:AC24,"<4.5",AB4:AB24)) -> 0 | AC28: =IF(AC27=0,0,SUM((AB25)-(AB28+AD28))) -> 0 | AD28: =IF(Beanspruchungverteilung!$AT$21="x",SUMIF(AC4:AC24,">5.5",AB4:AB24),SUMIF(AC4:AC24,">6.5",AB4:AB24)) -> 0
D29: Wie in Ruhe | H29: 0
D30: Sehr locker | H30: 1
D31: Locker | H31: 2 | AF31: Trainingstagen | AH31: =IF(SUM(AH4:AH24)=0,"",COUNTIF(AH4:AH24,">0")) -> 
H32: 3
D33: Etwas hart | H33: 4 | AF33: Trainingseinheiten | AH33: =IF(AH31="","",SUM(M27:AD27)) -> 
D34: Hart | H34: 5
H35: 6 | AF35: Trainingsstunden | AH35: =IF(AH31="","",SUM(M25,P25,V25,Y25,S25,AB25)/60) -> 
D36: Sehr hart | H36: 7
H37: 8 | AF37: Training Load | AH37: =IF(AH31="","",SUM(AH25)) -> 
D38: Extrem hart | H38: 9
D39: Wie mein härtestes Training | H39: 10 | AF39: Monotonie | AH39: =IF(AH31="","",(AVERAGE(AH4:AH24))/AH27) -> 
AF41: Trainingsanstrengung | AH41: =IF(AH31="","",AH37*AH39) -> 
AF43: =AJ2 -> Lauf Km | AH43: =IF(AH31="","",SUM(AJ4:AJ24)) -> 
AF45: =AK2 -> J | AH45: =IF(AH31="","",SUM(AK4:AK24)) -> 
AF47: =AL2 -> Swim Km | AH47: =IF(AH31="","",SUM(AL4:AL24)) -> 
AF49: =AM2 -> Mental Training | AH49: =IF(AH31="","",COUNTA(AM4:AM24)) -> 
AF51: =AN2 -> Regeneration | AH51: =IF(AH31="","",COUNTA(AN4:AN24)) -> 
AF53: =H2 -> Verletzung/Erkrankung | AH53: =IF(H26="","",COUNTA(H4:H24)) -> 
V134: =W134-1 -> 31 | W134: 32 | X134: 33 | Y134: 34 | Z134: 35 | AA134: 36 | AB134: 37 | AC134: =D1 -> 38
AD155: =AC134+1 -> 39 | AE155: =AD155+1 -> 40 | AF155: =AE155+1 -> 41

Sheet 39
C1: Woche | D1: =INT(MOD(INT((F1-2)/7)+0.6,52+5/28))+1 -> 39 | E1: =D1+1000 -> 1039 | F1: ='38'!F1+7 -> 2013-09-23 | G1: - | H1: =F1+6 -> 2013-09-29 | AD1: =Overview!D2 -> Vorname Name | AF1: =Overview!N2 -> 0
B2: Tag | D2: Gewicht | E2: Motiv. | F2: Schlaf | G2: Schlaf | H2: Verletzung/Erkrankung | J2: Trainingsbeschreibung | M2: ='19'!M2:O2 -> Dauerlauf | P2: ='19'!P2:R2 -> Bahn/Intervall | S2: ='19'!S2:U2 -> Sprint/Koord/Tech | V2: ='19'!V2:X2 -> Kraft | Y2: ='19'!Y2:AA2 -> Alternativ | AB2: ='19'!AB2:AD2 -> Divers | AF2: Bemerkungen | AH2: Load/Tag | AJ2: Lauf Km | AK2: J | AL2: Swim Km | AM2: Mental Training | AN2: Regeneration
D3: kg | E3: [-2….+2] | F3: 1-6 | G3: Std | H3: "x" wenn ja | M3: Dauer | N3: RPE | O3: Load | P3: Dauer | Q3: RPE | R3: Load | S3: Dauer | T3: RPE | U3: Load | V3: Dauer | W3: RPE | X3: Load | Y3: Dauer | Z3: RPE | AA3: Load | AB3: Dauer | AC3: RPE | AD3: Load
B4: Mo | O4: =M4*N4 -> 0 | R4: =P4*Q4 -> 0 | U4: =S4*T4 -> 0 | X4: =V4*W4 -> 0 | AA4: =Y4*Z4 -> 0 | AD4: =AB4*AC4 -> 0 | AH4: =SUM(O4:O6,R4:R6,U4:U6,X4:X6,AA4:AA6,AD4:AD6) -> 0
O5: 0 | R5: 0 | U5: 0 | X5: 0 | AA5: 0 | AD5: 0
O6: 0 | R6: 0 | U6: 0 | X6: 0 | AA6: 0 | AD6: 0
B7: Di | O7: 0 | R7: 0 | U7: 0 | X7: 0 | AA7: 0 | AD7: 0 | AH7: =SUM(O7:O9,R7:R9,U7:U9,X7:X9,AA7:AA9,AD7:AD9) -> 0
O8: 0 | R8: 0 | U8: 0 | X8: 0 | AA8: 0 | AD8: 0
O9: 0 | R9: 0 | U9: 0 | X9: 0 | AA9: 0 | AD9: 0
B10: Mi | O10: 0 | R10: 0 | U10: 0 | X10: 0 | AA10: 0 | AD10: 0 | AH10: =SUM(O10:O12,R10:R12,U10:U12,X10:X12,AA10:AA12,AD10:AD12) -> 0
O11: 0 | R11: 0 | U11: 0 | X11: 0 | AA11: 0 | AD11: 0
O12: 0 | R12: 0 | U12: 0 | X12: 0 | AA12: 0 | AD12: 0
B13: Do | O13: 0 | R13: 0 | U13: 0 | X13: 0 | AA13: 0 | AD13: 0 | AH13: =SUM(O13:O15,R13:R15,U13:U15,X13:X15,AA13:AA15,AD13:AD15) -> 0
O14: 0 | R14: 0 | U14: 0 | X14: 0 | AA14: 0 | AD14: 0
O15: 0 | R15: 0 | U15: 0 | X15: 0 | AA15: 0 | AD15: 0
B16: Fr | O16: 0 | R16: 0 | U16: 0 | X16: 0 | AA16: 0 | AD16: 0 | AH16: =SUM(O16:O18,R16:R18,U16:U18,X16:X18,AA16:AA18,AD16:AD18) -> 0
O17: 0 | R17: 0 | U17: 0 | X17: 0 | AA17: 0 | AD17: 0
O18: 0 | R18: 0 | U18: 0 | X18: 0 | AA18: 0 | AD18: 0
B19: Sa | O19: 0 | R19: 0 | U19: 0 | X19: 0 | AA19: 0 | AD19: 0 | AH19: =SUM(O19:O21,R19:R21,U19:U21,X19:X21,AA19:AA21,AD19:AD21) -> 0
O20: 0 | R20: 0 | U20: 0 | X20: 0 | AA20: 0 | AD20: 0
O21: 0 | R21: 0 | U21: 0 | X21: 0 | AA21: 0 | AD21: 0
B22: So | O22: 0 | R22: 0 | U22: 0 | X22: 0 | AA22: 0 | AD22: 0 | AH22: =SUM(O22:O24,R22:R24,U22:U24,X22:X24,AA22:AA24,AD22:AD24) -> 0
O23: 0 | R23: 0 | U23: 0 | X23: 0 | AA23: 0 | AD23: 0
O24: 0 | R24: 0 | U24: 0 | X24: 0 | AA24: 0 | AD24: 0
K25: Total | M25: =SUM(M4:M24) -> 0 | O25: =SUM(O4:O24) -> 0 | P25: =SUM(P4:P24) -> 0 | R25: =SUM(R4:R24) -> 0 | S25: =SUM(S4:S24) -> 0 | U25: =SUM(U4:U24) -> 0 | V25: =SUM(V4:V24) -> 0 | X25: =SUM(X4:X24) -> 0 | Y25: =SUM(Y4:Y24) -> 0 | AA25: =SUM(AA4:AA24) -> 0 | AB25: =SUM(AB4:AB24) -> 0 | AD25: =SUM(AD4:AD24) -> 0 | AF25: TOTAL LOAD | AH25: =SUM(AH4:AH24) -> 0
B26: avg | D26: =IF(COUNTA(D4:D24)=0,"",AVERAGE(D4:D24)) ->  | E26: =IF(COUNTA(E4:E24)=0,"",AVERAGE(E4:E24)) ->  | F26: =IF(COUNTA(F4:F24)=0,"",AVERAGE(F4:F24)) ->  | G26: =IF(COUNTA(G4:G24)=0,"",AVERAGE(G4:G24)) ->  | H26: =IF(COUNTA(H4:H24)=0,"",COUNTIF(H4:H24,"x")) ->  | K26: Zone | M26: 1 | N26: 2 | O26: 3 | P26: 1 | Q26: 2 | R26: 3 | S26: 1 | T26: 2 | U26: 3 | V26: 1 | W26: 2 | X26: 3 | Y26: 1 | Z26: 2 | AA26: 3 | AB26: 1 | AC26: 2 | AD26: 3 | AF26: Mittelwert | AH26: =AVERAGE(AH4:AH24) -> 0
K27: Einheiten pro Zone (RPE) | M27: =IF(Beanspruchungverteilung!$AT$21="x",COUNTIF(N4:N24,"<3.5"),COUNTIF(N4:N24,"<4.5")) -> 0 | N27: =COUNT(N4:N24)-(M27+O27) -> 0 | O27: =IF(Beanspruchungverteilung!$AT$21="x",COUNTIF(N4:N24,">5.5"),COUNTIF(N4:N24,">6.5")) -> 0 | P27: =IF(Beanspruchungverteilung!$AT$21="x",COUNTIF(Q4:Q24,"<3.5"),COUNTIF(Q4:Q24,"<4.5")) -> 0 | Q27: =COUNT(Q4:Q24)-(P27+R27) -> 0 | R27: =IF(Beanspruchungverteilung!$AT$21="x",COUNTIF(Q4:Q24,">5.5"),COUNTIF(Q4:Q24,">6.5")) -> 0 | S27: =IF(Beanspruchungverteilung!$AT$21="x",COUNTIF(T4:T24,"<3.5"),COUNTIF(T4:T24,"<4.5")) -> 0 | T27: =COUNT(T4:T24)-(S27+U27) -> 0 | U27: =IF(Beanspruchungverteilung!$AT$21="x",COUNTIF(T4:T24,">5.5"),COUNTIF(T4:T24,">6.5")) -> 0 | V27: =IF(Beanspruchungverteilung!$AT$21="x",COUNTIF(W4:W24,"<3.5"),COUNTIF(W4:W24,"<4.5")) -> 0 | W27: =COUNT(W4:W24)-(V27+X27) -> 0 | X27: =IF(Beanspruchungverteilung!$AT$21="x",COUNTIF(W4:W24,">5.5"),COUNTIF(W4:W24,">6.5")) -> 0 | Y27: =IF(Beanspruchungverteilung!$AT$21="x",COUNTIF(Z4:Z24,"<3.5"),COUNTIF(Z4:Z24,"<4.5")) -> 0 | Z27: =COUNT(Z4:Z24)-(Y27+AA27) -> 0 | AA27: =IF(Beanspruchungverteilung!$AT$21="x",COUNTIF(Z4:Z24,">5.5"),COUNTIF(Z4:Z24,">6.5")) -> 0 | AB27: =IF(Beanspruchungverteilung!$AT$21="x",COUNTIF(AC4:AC24,"<3.5"),COUNTIF(AC4:AC24,"<4.5")) -> 0 | AC27: =COUNT(AC4:AC24)-(AB27+AD27) -> 0 | AD27: =IF(Beanspruchungverteilung!$AT$21="x",COUNTIF(AC4:AC24,">5.5"),COUNTIF(AC4:AC24,">6.5")) -> 0 | AF27: Standardabweichung | AH27: =STDEVP(AH4:AH24) -> 0
D28: Foster's Skala | H28: RPE | K28: Zeit pro Zone (RPE) | M28: =IF(Beanspruchungverteilung!$AT$21="x",SUMIF(N4:N24,"<3.5",M4:M24),SUMIF(N4:N24,"<4.5",M4:M24)) -> 0 | N28: =IF(N27=0,0,SUM((M25)-(M28+O28))) -> 0 | O28: =IF(Beanspruchungverteilung!$AT$21="x",SUMIF(N4:N24,">5.5",M4:M24),SUMIF(N4:N24,">6.5",M4:M24)) -> 0 | P28: =IF(Beanspruchungverteilung!$AT$21="x",SUMIF(Q4:Q24,"<3.5",P4:P24),SUMIF(Q4:Q24,"<4.5",P4:P24)) -> 0 | Q28: =IF(Q27=0,0,SUM((P25)-(P28+R28))) -> 0 | R28: =IF(Beanspruchungverteilung!$AT$21="x",SUMIF(Q4:Q24,">5.5",P4:P24),SUMIF(Q4:Q24,">6.5",P4:P24)) -> 0 | S28: =IF(Beanspruchungverteilung!$AT$21="x",SUMIF(T4:T24,"<3.5",S4:S24),SUMIF(T4:T24,"<4.5",S4:S24)) -> 0 | T28: =IF(T27=0,0,SUM((S25)-(S28+U28))) -> 0 | U28: =IF(Beanspruchungverteilung!$AT$21="x",SUMIF(T4:T24,">5.5",S4:S24),SUMIF(T4:T24,">6.5",S4:S24)) -> 0 | V28: =IF(Beanspruchungverteilung!$AT$21="x",SUMIF(W4:W24,"<3.5",V4:V24),SUMIF(W4:W24,"<4.5",V4:V24)) -> 0 | W28: =IF(W27=0,0,SUM((V25)-(V28+X28))) -> 0 | X28: =IF(Beanspruchungverteilung!$AT$21="x",SUMIF(W4:W24,">5.5",V4:V24),SUMIF(W4:W24,">6.5",V4:V24)) -> 0 | Y28: =IF(Beanspruchungverteilung!$AT$21="x",SUMIF(Z4:Z24,"<3.5",Y4:Y24),SUMIF(Z4:Z24,"<4.5",Y4:Y24)) -> 0 | Z28: =IF(Z27=0,0,SUM((Y25)-(Y28+AA28))) -> 0 | AA28: =IF(Beanspruchungverteilung!$AT$21="x",SUMIF(Z4:Z24,">5.5",Y4:Y24),SUMIF(Z4:Z24,">6.5",Y4:Y24)) -> 0 | AB28: =IF(Beanspruchungverteilung!$AT$21="x",SUMIF(AC4:AC24,"<3.5",AB4:AB24),SUMIF(AC4:AC24,"<4.5",AB4:AB24)) -> 0 | AC28: =IF(AC27=0,0,SUM((AB25)-(AB28+AD28))) -> 0 | AD28: =IF(Beanspruchungverteilung!$AT$21="x",SUMIF(AC4:AC24,">5.5",AB4:AB24),SUMIF(AC4:AC24,">6.5",AB4:AB24)) -> 0
D29: Wie in Ruhe | H29: 0
D30: Sehr locker | H30: 1
D31: Locker | H31: 2 | AF31: Trainingstagen | AH31: =IF(SUM(AH4:AH24)=0,"",COUNTIF(AH4:AH24,">0")) -> 
H32: 3
D33: Etwas hart | H33: 4 | AF33: Trainingseinheiten | AH33: =IF(AH31="","",SUM(M27:AD27)) -> 
D34: Hart | H34: 5
H35: 6 | AF35: Trainingsstunden | AH35: =IF(AH31="","",SUM(M25,P25,V25,Y25,S25,AB25)/60) -> 
D36: Sehr hart | H36: 7
H37: 8 | AF37: Training Load | AH37: =IF(AH31="","",SUM(AH25)) -> 
D38: Extrem hart | H38: 9
D39: Wie mein härtestes Training | H39: 10 | AF39: Monotonie | AH39: =IF(AH31="","",(AVERAGE(AH4:AH24))/AH27) -> 
AF41: Trainingsanstrengung | AH41: =IF(AH31="","",AH37*AH39) -> 
AF43: =AJ2 -> Lauf Km | AH43: =IF(AH31="","",SUM(AJ4:AJ24)) -> 
AF45: =AK2 -> J | AH45: =IF(AH31="","",SUM(AK4:AK24)) -> 
AF47: =AL2 -> Swim Km | AH47: =IF(AH31="","",SUM(AL4:AL24)) -> 
AF49: =AM2 -> Mental Training | AH49: =IF(AH31="","",COUNTA(AM4:AM24)) -> 
AF51: =AN2 -> Regeneration | AH51: =IF(AH31="","",COUNTA(AN4:AN24)) -> 
AF53: =H2 -> Verletzung/Erkrankung | AH53: =IF(H26="","",COUNTA(H4:H24)) -> 
V134: =W134-1 -> 32 | W134: 33 | X134: 34 | Y134: 35 | Z134: 36 | AA134: 37 | AB134: 38 | AC134: =D1 -> 39
AD155: =AC134+1 -> 40 | AE155: =AD155+1 -> 41 | AF155: =AE155+1 -> 42

Sheet 40
C1: Woche | D1: =INT(MOD(INT((F1-2)/7)+0.6,52+5/28))+1 -> 40 | E1: =D1+1000 -> 1040 | F1: ='39'!F1+7 -> 2013-09-30 | G1: - | H1: =F1+6 -> 2013-10-06 | AD1: =Overview!D2 -> Vorname Name | AF1: =Overview!N2 -> 0
B2: Tag | D2: Gewicht | E2: Motiv. | F2: Schlaf | G2: Schlaf | H2: Verletzung/Erkrankung | J2: Trainingsbeschreibung | M2: ='19'!M2:O2 -> Dauerlauf | P2: ='19'!P2:R2 -> Bahn/Intervall | S2: ='19'!S2:U2 -> Sprint/Koord/Tech | V2: ='19'!V2:X2 -> Kraft | Y2: ='19'!Y2:AA2 -> Alternativ | AB2: ='19'!AB2:AD2 -> Divers | AF2: Bemerkungen | AH2: Load/Tag | AJ2: Lauf Km | AK2: J | AL2: Swim Km | AM2: Mental Training | AN2: Regeneration
D3: kg | E3: [-2….+2] | F3: 1-6 | G3: Std | H3: "x" wenn ja | M3: Dauer | N3: RPE | O3: Load | P3: Dauer | Q3: RPE | R3: Load | S3: Dauer | T3: RPE | U3: Load | V3: Dauer | W3: RPE | X3: Load | Y3: Dauer | Z3: RPE | AA3: Load | AB3: Dauer | AC3: RPE | AD3: Load
B4: Mo | O4: =M4*N4 -> 0 | R4: =P4*Q4 -> 0 | U4: =S4*T4 -> 0 | X4: =V4*W4 -> 0 | AA4: =Y4*Z4 -> 0 | AD4: =AB4*AC4 -> 0 | AH4: =SUM(O4:O6,R4:R6,U4:U6,X4:X6,AA4:AA6,AD4:AD6) -> 0
O5: 0 | R5: 0 | U5: 0 | X5: 0 | AA5: 0 | AD5: 0
O6: 0 | R6: 0 | U6: 0 | X6: 0 | AA6: 0 | AD6: 0
B7: Di | O7: 0 | R7: 0 | U7: 0 | X7: 0 | AA7: 0 | AD7: 0 | AH7: =SUM(O7:O9,R7:R9,U7:U9,X7:X9,AA7:AA9,AD7:AD9) -> 0
O8: 0 | R8: 0 | U8: 0 | X8: 0 | AA8: 0 | AD8: 0
O9: 0 | R9: 0 | U9: 0 | X9: 0 | AA9: 0 | AD9: 0
B10: Mi | O10: 0 | R10: 0 | U10: 0 | X10: 0 | AA10: 0 | AD10: 0 | AH10: =SUM(O10:O12,R10:R12,U10:U12,X10:X12,AA10:AA12,AD10:AD12) -> 0
O11: 0 | R11: 0 | U11: 0 | X11: 0 | AA11: 0 | AD11: 0
O12: 0 | R12: 0 | U12: 0 | X12: 0 | AA12: 0 | AD12: 0
B13: Do | O13: 0 | R13: 0 | U13: 0 | X13: 0 | AA13: 0 | AD13: 0 | AH13: =SUM(O13:O15,R13:R15,U13:U15,X13:X15,AA13:AA15,AD13:AD15) -> 0
O14: 0 | R14: 0 | U14: 0 | X14: 0 | AA14: 0 | AD14: 0
O15: 0 | R15: 0 | U15: 0 | X15: 0 | AA15: 0 | AD15: 0
B16: Fr | O16: 0 | R16: 0 | U16: 0 | X16: 0 | AA16: 0 | AD16: 0 | AH16: =SUM(O16:O18,R16:R18,U16:U18,X16:X18,AA16:AA18,AD16:AD18) -> 0
O17: 0 | R17: 0 | U17: 0 | X17: 0 | AA17: 0 | AD17: 0
O18: 0 | R18: 0 | U18: 0 | X18: 0 | AA18: 0 | AD18: 0
B19: Sa | O19: 0 | R19: 0 | U19: 0 | X19: 0 | AA19: 0 | AD19: 0 | AH19: =SUM(O19:O21,R19:R21,U19:U21,X19:X21,AA19:AA21,AD19:AD21) -> 0
O20: 0 | R20: 0 | U20: 0 | X20: 0 | AA20: 0 | AD20: 0
O21: 0 | R21: 0 | U21: 0 | X21: 0 | AA21: 0 | AD21: 0
B22: So | O22: 0 | R22: 0 | U22: 0 | X22: 0 | AA22: 0 | AD22: 0 | AH22: =SUM(O22:O24,R22:R24,U22:U24,X22:X24,AA22:AA24,AD22:AD24) -> 0
O23: 0 | R23: 0 | U23: 0 | X23: 0 | AA23: 0 | AD23: 0
O24: 0 | R24: 0 | U24: 0 | X24: 0 | AA24: 0 | AD24: 0
K25: Total | M25: =SUM(M4:M24) -> 0 | O25: =SUM(O4:O24) -> 0 | P25: =SUM(P4:P24) -> 0 | R25: =SUM(R4:R24) -> 0 | S25: =SUM(S4:S24) -> 0 | U25: =SUM(U4:U24) -> 0 | V25: =SUM(V4:V24) -> 0 | X25: =SUM(X4:X24) -> 0 | Y25: =SUM(Y4:Y24) -> 0 | AA25: =SUM(AA4:AA24) -> 0 | AB25: =SUM(AB4:AB24) -> 0 | AD25: =SUM(AD4:AD24) -> 0 | AF25: TOTAL LOAD | AH25: =SUM(AH4:AH24) -> 0
B26: avg | D26: =IF(COUNTA(D4:D24)=0,"",AVERAGE(D4:D24)) ->  | E26: =IF(COUNTA(E4:E24)=0,"",AVERAGE(E4:E24)) ->  | F26: =IF(COUNTA(F4:F24)=0,"",AVERAGE(F4:F24)) ->  | G26: =IF(COUNTA(G4:G24)=0,"",AVERAGE(G4:G24)) ->  | H26: =IF(COUNTA(H4:H24)=0,"",COUNTIF(H4:H24,"x")) ->  | K26: Zone | M26: 1 | N26: 2 | O26: 3 | P26: 1 | Q26: 2 | R26: 3 | S26: 1 | T26: 2 | U26: 3 | V26: 1 | W26: 2 | X26: 3 | Y26: 1 | Z26: 2 | AA26: 3 | AB26: 1 | AC26: 2 | AD26: 3 | AF26: Mittelwert | AH26: =AVERAGE(AH4:AH24) -> 0
K27: Einheiten pro Zone (RPE) | M27: =IF(Beanspruchungverteilung!$AT$21="x",COUNTIF(N4:N24,"<3.5"),COUNTIF(N4:N24,"<4.5")) -> 0 | N27: =COUNT(N4:N24)-(M27+O27) -> 0 | O27: =IF(Beanspruchungverteilung!$AT$21="x",COUNTIF(N4:N24,">5.5"),COUNTIF(N4:N24,">6.5")) -> 0 | P27: =IF(Beanspruchungverteilung!$AT$21="x",COUNTIF(Q4:Q24,"<3.5"),COUNTIF(Q4:Q24,"<4.5")) -> 0 | Q27: =COUNT(Q4:Q24)-(P27+R27) -> 0 | R27: =IF(Beanspruchungverteilung!$AT$21="x",COUNTIF(Q4:Q24,">5.5"),COUNTIF(Q4:Q24,">6.5")) -> 0 | S27: =IF(Beanspruchungverteilung!$AT$21="x",COUNTIF(T4:T24,"<3.5"),COUNTIF(T4:T24,"<4.5")) -> 0 | T27: =COUNT(T4:T24)-(S27+U27) -> 0 | U27: =IF(Beanspruchungverteilung!$AT$21="x",COUNTIF(T4:T24,">5.5"),COUNTIF(T4:T24,">6.5")) -> 0 | V27: =IF(Beanspruchungverteilung!$AT$21="x",COUNTIF(W4:W24,"<3.5"),COUNTIF(W4:W24,"<4.5")) -> 0 | W27: =COUNT(W4:W24)-(V27+X27) -> 0 | X27: =IF(Beanspruchungverteilung!$AT$21="x",COUNTIF(W4:W24,">5.5"),COUNTIF(W4:W24,">6.5")) -> 0 | Y27: =IF(Beanspruchungverteilung!$AT$21="x",COUNTIF(Z4:Z24,"<3.5"),COUNTIF(Z4:Z24,"<4.5")) -> 0 | Z27: =COUNT(Z4:Z24)-(Y27+AA27) -> 0 | AA27: =IF(Beanspruchungverteilung!$AT$21="x",COUNTIF(Z4:Z24,">5.5"),COUNTIF(Z4:Z24,">6.5")) -> 0 | AB27: =IF(Beanspruchungverteilung!$AT$21="x",COUNTIF(AC4:AC24,"<3.5"),COUNTIF(AC4:AC24,"<4.5")) -> 0 | AC27: =COUNT(AC4:AC24)-(AB27+AD27) -> 0 | AD27: =IF(Beanspruchungverteilung!$AT$21="x",COUNTIF(AC4:AC24,">5.5"),COUNTIF(AC4:AC24,">6.5")) -> 0 | AF27: Standardabweichung | AH27: =STDEVP(AH4:AH24) -> 0
D28: Foster's Skala | H28: RPE | K28: Zeit pro Zone (RPE) | M28: =IF(Beanspruchungverteilung!$AT$21="x",SUMIF(N4:N24,"<3.5",M4:M24),SUMIF(N4:N24,"<4.5",M4:M24)) -> 0 | N28: =IF(N27=0,0,SUM((M25)-(M28+O28))) -> 0 | O28: =IF(Beanspruchungverteilung!$AT$21="x",SUMIF(N4:N24,">5.5",M4:M24),SUMIF(N4:N24,">6.5",M4:M24)) -> 0 | P28: =IF(Beanspruchungverteilung!$AT$21="x",SUMIF(Q4:Q24,"<3.5",P4:P24),SUMIF(Q4:Q24,"<4.5",P4:P24)) -> 0 | Q28: =IF(Q27=0,0,SUM((P25)-(P28+R28))) -> 0 | R28: =IF(Beanspruchungverteilung!$AT$21="x",SUMIF(Q4:Q24,">5.5",P4:P24),SUMIF(Q4:Q24,">6.5",P4:P24)) -> 0 | S28: =IF(Beanspruchungverteilung!$AT$21="x",SUMIF(T4:T24,"<3.5",S4:S24),SUMIF(T4:T24,"<4.5",S4:S24)) -> 0 | T28: =IF(T27=0,0,SUM((S25)-(S28+U28))) -> 0 | U28: =IF(Beanspruchungverteilung!$AT$21="x",SUMIF(T4:T24,">5.5",S4:S24),SUMIF(T4:T24,">6.5",S4:S24)) -> 0 | V28: =IF(Beanspruchungverteilung!$AT$21="x",SUMIF(W4:W24,"<3.5",V4:V24),SUMIF(W4:W24,"<4.5",V4:V24)) -> 0 | W28: =IF(W27=0,0,SUM((V25)-(V28+X28))) -> 0 | X28: =IF(Beanspruchungverteilung!$AT$21="x",SUMIF(W4:W24,">5.5",V4:V24),SUMIF(W4:W24,">6.5",V4:V24)) -> 0 | Y28: =IF(Beanspruchungverteilung!$AT$21="x",SUMIF(Z4:Z24,"<3.5",Y4:Y24),SUMIF(Z4:Z24,"<4.5",Y4:Y24)) -> 0 | Z28: =IF(Z27=0,0,SUM((Y25)-(Y28+AA28))) -> 0 | AA28: =IF(Beanspruchungverteilung!$AT$21="x",SUMIF(Z4:Z24,">5.5",Y4:Y24),SUMIF(Z4:Z24,">6.5",Y4:Y24)) -> 0 | AB28: =IF(Beanspruchungverteilung!$AT$21="x",SUMIF(AC4:AC24,"<3.5",AB4:AB24),SUMIF(AC4:AC24,"<4.5",AB4:AB24)) -> 0 | AC28: =IF(AC27=0,0,SUM((AB25)-(AB28+AD28))) -> 0 | AD28: =IF(Beanspruchungverteilung!$AT$21="x",SUMIF(AC4:AC24,">5.5",AB4:AB24),SUMIF(AC4:AC24,">6.5",AB4:AB24)) -> 0
D29: Wie in Ruhe | H29: 0
D30: Sehr locker | H30: 1
D31: Locker | H31: 2 | AF31: Trainingstagen | AH31: =IF(SUM(AH4:AH24)=0,"",COUNTIF(AH4:AH24,">0")) -> 
H32: 3
D33: Etwas hart | H33: 4 | AF33: Trainingseinheiten | AH33: =IF(AH31="","",SUM(M27:AD27)) -> 
D34: Hart | H34: 5
H35: 6 | AF35: Trainingsstunden | AH35: =IF(AH31="","",SUM(M25,P25,V25,Y25,S25,AB25)/60) -> 
D36: Sehr hart | H36: 7
H37: 8 | AF37: Training Load | AH37: =IF(AH31="","",SUM(AH25)) -> 
D38: Extrem hart | H38: 9
D39: Wie mein härtestes Training | H39: 10 | AF39: Monotonie | AH39: =IF(AH31="","",(AVERAGE(AH4:AH24))/AH27) -> 
AF41: Trainingsanstrengung | AH41: =IF(AH31="","",AH37*AH39) -> 
AF43: =AJ2 -> Lauf Km | AH43: =IF(AH31="","",SUM(AJ4:AJ24)) -> 
AF45: =AK2 -> J | AH45: =IF(AH31="","",SUM(AK4:AK24)) -> 
AF47: =AL2 -> Swim Km | AH47: =IF(AH31="","",SUM(AL4:AL24)) -> 
AF49: =AM2 -> Mental Training | AH49: =IF(AH31="","",COUNTA(AM4:AM24)) -> 
AF51: =AN2 -> Regeneration | AH51: =IF(AH31="","",COUNTA(AN4:AN24)) -> 
AF53: =H2 -> Verletzung/Erkrankung | AH53: =IF(H26="","",COUNTA(H4:H24)) -> 
V134: =W134-1 -> 33 | W134: 34 | X134: 35 | Y134: 36 | Z134: 37 | AA134: 38 | AB134: 39 | AC134: =D1 -> 40
AD155: =AC134+1 -> 41 | AE155: =AD155+1 -> 42 | AF155: =AE155+1 -> 43

Sheet 41
C1: Woche | D1: =INT(MOD(INT((F1-2)/7)+0.6,52+5/28))+1 -> 41 | E1: =D1+1000 -> 1041 | F1: ='40'!F1+7 -> 2013-10-07 | G1: - | H1: =F1+6 -> 2013-10-13 | AD1: =Overview!D2 -> Vorname Name | AF1: =Overview!N2 -> 0
B2: Tag | D2: Gewicht | E2: Motiv. | F2: Schlaf | G2: Schlaf | H2: Verletzung/Erkrankung | J2: Trainingsbeschreibung | M2: ='19'!M2:O2 -> Dauerlauf | P2: ='19'!P2:R2 -> Bahn/Intervall | S2: ='19'!S2:U2 -> Sprint/Koord/Tech | V2: ='19'!V2:X2 -> Kraft | Y2: ='19'!Y2:AA2 -> Alternativ | AB2: ='19'!AB2:AD2 -> Divers | AF2: Bemerkungen | AH2: Load/Tag | AJ2: Lauf Km | AK2: J | AL2: Swim Km | AM2: Mental Training | AN2: Regeneration
D3: kg | E3: [-2….+2] | F3: 1-6 | G3: Std | H3: "x" wenn ja | M3: Dauer | N3: RPE | O3: Load | P3: Dauer | Q3: RPE | R3: Load | S3: Dauer | T3: RPE | U3: Load | V3: Dauer | W3: RPE | X3: Load | Y3: Dauer | Z3: RPE | AA3: Load | AB3: Dauer | AC3: RPE | AD3: Load
B4: Mo | O4: =M4*N4 -> 0 | R4: =P4*Q4 -> 0 | U4: =S4*T4 -> 0 | X4: =V4*W4 -> 0 | AA4: =Y4*Z4 -> 0 | AD4: =AB4*AC4 -> 0 | AH4: =SUM(O4:O6,R4:R6,U4:U6,X4:X6,AA4:AA6,AD4:AD6) -> 0
O5: 0 | R5: 0 | U5: 0 | X5: 0 | AA5: 0 | AD5: 0
O6: 0 | R6: 0 | U6: 0 | X6: 0 | AA6: 0 | AD6: 0
B7: Di | O7: 0 | R7: 0 | U7: 0 | X7: 0 | AA7: 0 | AD7: 0 | AH7: =SUM(O7:O9,R7:R9,U7:U9,X7:X9,AA7:AA9,AD7:AD9) -> 0
O8: 0 | R8: 0 | U8: 0 | X8: 0 | AA8: 0 | AD8: 0
O9: 0 | R9: 0 | U9: 0 | X9: 0 | AA9: 0 | AD9: 0
B10: Mi | O10: 0 | R10: 0 | U10: 0 | X10: 0 | AA10: 0 | AD10: 0 | AH10: =SUM(O10:O12,R10:R12,U10:U12,X10:X12,AA10:AA12,AD10:AD12) -> 0
O11: 0 | R11: 0 | U11: 0 | X11: 0 | AA11: 0 | AD11: 0
O12: 0 | R12: 0 | U12: 0 | X12: 0 | AA12: 0 | AD12: 0
B13: Do | O13: 0 | R13: 0 | U13: 0 | X13: 0 | AA13: 0 | AD13: 0 | AH13: =SUM(O13:O15,R13:R15,U13:U15,X13:X15,AA13:AA15,AD13:AD15) -> 0
O14: 0 | R14: 0 | U14: 0 | X14: 0 | AA14: 0 | AD14: 0
O15: 0 | R15: 0 | U15: 0 | X15: 0 | AA15: 0 | AD15: 0
B16: Fr | O16: 0 | R16: 0 | U16: 0 | X16: 0 | AA16: 0 | AD16: 0 | AH16: =SUM(O16:O18,R16:R18,U16:U18,X16:X18,AA16:AA18,AD16:AD18) -> 0
O17: 0 | R17: 0 | U17: 0 | X17: 0 | AA17: 0 | AD17: 0
O18: 0 | R18: 0 | U18: 0 | X18: 0 | AA18: 0 | AD18: 0
B19: Sa | O19: 0 | R19: 0 | U19: 0 | X19: 0 | AA19: 0 | AD19: 0 | AH19: =SUM(O19:O21,R19:R21,U19:U21,X19:X21,AA19:AA21,AD19:AD21) -> 0
O20: 0 | R20: 0 | U20: 0 | X20: 0 | AA20: 0 | AD20: 0
O21: 0 | R21: 0 | U21: 0 | X21: 0 | AA21: 0 | AD21: 0
B22: So | O22: 0 | R22: 0 | U22: 0 | X22: 0 | AA22: 0 | AD22: 0 | AH22: =SUM(O22:O24,R22:R24,U22:U24,X22:X24,AA22:AA24,AD22:AD24) -> 0
O23: 0 | R23: 0 | U23: 0 | X23: 0 | AA23: 0 | AD23: 0
O24: 0 | R24: 0 | U24: 0 | X24: 0 | AA24: 0 | AD24: 0
K25: Total | M25: =SUM(M4:M24) -> 0 | O25: =SUM(O4:O24) -> 0 | P25: =SUM(P4:P24) -> 0 | R25: =SUM(R4:R24) -> 0 | S25: =SUM(S4:S24) -> 0 | U25: =SUM(U4:U24) -> 0 | V25: =SUM(V4:V24) -> 0 | X25: =SUM(X4:X24) -> 0 | Y25: =SUM(Y4:Y24) -> 0 | AA25: =SUM(AA4:AA24) -> 0 | AB25: =SUM(AB4:AB24) -> 0 | AD25: =SUM(AD4:AD24) -> 0 | AF25: TOTAL LOAD | AH25: =SUM(AH4:AH24) -> 0
B26: avg | D26: =IF(COUNTA(D4:D24)=0,"",AVERAGE(D4:D24)) ->  | E26: =IF(COUNTA(E4:E24)=0,"",AVERAGE(E4:E24)) ->  | F26: =IF(COUNTA(F4:F24)=0,"",AVERAGE(F4:F24)) ->  | G26: =IF(COUNTA(G4:G24)=0,"",AVERAGE(G4:G24)) ->  | H26: =IF(COUNTA(H4:H24)=0,"",COUNTIF(H4:H24,"x")) ->  | K26: Zone | M26: 1 | N26: 2 | O26: 3 | P26: 1 | Q26: 2 | R26: 3 | S26: 1 | T26: 2 | U26: 3 | V26: 1 | W26: 2 | X26: 3 | Y26: 1 | Z26: 2 | AA26: 3 | AB26: 1 | AC26: 2 | AD26: 3 | AF26: Mittelwert | AH26: =AVERAGE(AH4:AH24) -> 0
K27: Einheiten pro Zone (RPE) | M27: =IF(Beanspruchungverteilung!$AT$21="x",COUNTIF(N4:N24,"<3.5"),COUNTIF(N4:N24,"<4.5")) -> 0 | N27: =COUNT(N4:N24)-(M27+O27) -> 0 | O27: =IF(Beanspruchungverteilung!$AT$21="x",COUNTIF(N4:N24,">5.5"),COUNTIF(N4:N24,">6.5")) -> 0 | P27: =IF(Beanspruchungverteilung!$AT$21="x",COUNTIF(Q4:Q24,"<3.5"),COUNTIF(Q4:Q24,"<4.5")) -> 0 | Q27: =COUNT(Q4:Q24)-(P27+R27) -> 0 | R27: =IF(Beanspruchungverteilung!$AT$21="x",COUNTIF(Q4:Q24,">5.5"),COUNTIF(Q4:Q24,">6.5")) -> 0 | S27: =IF(Beanspruchungverteilung!$AT$21="x",COUNTIF(T4:T24,"<3.5"),COUNTIF(T4:T24,"<4.5")) -> 0 | T27: =COUNT(T4:T24)-(S27+U27) -> 0 | U27: =IF(Beanspruchungverteilung!$AT$21="x",COUNTIF(T4:T24,">5.5"),COUNTIF(T4:T24,">6.5")) -> 0 | V27: =IF(Beanspruchungverteilung!$AT$21="x",COUNTIF(W4:W24,"<3.5"),COUNTIF(W4:W24,"<4.5")) -> 0 | W27: =COUNT(W4:W24)-(V27+X27) -> 0 | X27: =IF(Beanspruchungverteilung!$AT$21="x",COUNTIF(W4:W24,">5.5"),COUNTIF(W4:W24,">6.5")) -> 0 | Y27: =IF(Beanspruchungverteilung!$AT$21="x",COUNTIF(Z4:Z24,"<3.5"),COUNTIF(Z4:Z24,"<4.5")) -> 0 | Z27: =COUNT(Z4:Z24)-(Y27+AA27) -> 0 | AA27: =IF(Beanspruchungverteilung!$AT$21="x",COUNTIF(Z4:Z24,">5.5"),COUNTIF(Z4:Z24,">6.5")) -> 0 | AB27: =IF(Beanspruchungverteilung!$AT$21="x",COUNTIF(AC4:AC24,"<3.5"),COUNTIF(AC4:AC24,"<4.5")) -> 0 | AC27: =COUNT(AC4:AC24)-(AB27+AD27) -> 0 | AD27: =IF(Beanspruchungverteilung!$AT$21="x",COUNTIF(AC4:AC24,">5.5"),COUNTIF(AC4:AC24,">6.5")) -> 0 | AF27: Standardabweichung | AH27: =STDEVP(AH4:AH24) -> 0
D28: Foster's Skala | H28: RPE | K28: Zeit pro Zone (RPE) | M28: =IF(Beanspruchungverteilung!$AT$21="x",SUMIF(N4:N24,"<3.5",M4:M24),SUMIF(N4:N24,"<4.5",M4:M24)) -> 0 | N28: =IF(N27=0,0,SUM((M25)-(M28+O28))) -> 0 | O28: =IF(Beanspruchungverteilung!$AT$21="x",SUMIF(N4:N24,">5.5",M4:M24),SUMIF(N4:N24,">6.5",M4:M24)) -> 0 | P28: =IF(Beanspruchungverteilung!$AT$21="x",SUMIF(Q4:Q24,"<3.5",P4:P24),SUMIF(Q4:Q24,"<4.5",P4:P24)) -> 0 | Q28: =IF(Q27=0,0,SUM((P25)-(P28+R28))) -> 0 | R28: =IF(Beanspruchungverteilung!$AT$21="x",SUMIF(Q4:Q24,">5.5",P4:P24),SUMIF(Q4:Q24,">6.5",P4:P24)) -> 0 | S28: =IF(Beanspruchungverteilung!$AT$21="x",SUMIF(T4:T24,"<3.5",S4:S24),SUMIF(T4:T24,"<4.5",S4:S24)) -> 0 | T28: =IF(T27=0,0,SUM((S25)-(S28+U28))) -> 0 | U28: =IF(Beanspruchungverteilung!$AT$21="x",SUMIF(T4:T24,">5.5",S4:S24),SUMIF(T4:T24,">6.5",S4:S24)) -> 0 | V28: =IF(Beanspruchungverteilung!$AT$21="x",SUMIF(W4:W24,"<3.5",V4:V24),SUMIF(W4:W24,"<4.5",V4:V24)) -> 0 | W28: =IF(W27=0,0,SUM((V25)-(V28+X28))) -> 0 | X28: =IF(Beanspruchungverteilung!$AT$21="x",SUMIF(W4:W24,">5.5",V4:V24),SUMIF(W4:W24,">6.5",V4:V24)) -> 0 | Y28: =IF(Beanspruchungverteilung!$AT$21="x",SUMIF(Z4:Z24,"<3.5",Y4:Y24),SUMIF(Z4:Z24,"<4.5",Y4:Y24)) -> 0 | Z28: =IF(Z27=0,0,SUM((Y25)-(Y28+AA28))) -> 0 | AA28: =IF(Beanspruchungverteilung!$AT$21="x",SUMIF(Z4:Z24,">5.5",Y4:Y24),SUMIF(Z4:Z24,">6.5",Y4:Y24)) -> 0 | AB28: =IF(Beanspruchungverteilung!$AT$21="x",SUMIF(AC4:AC24,"<3.5",AB4:AB24),SUMIF(AC4:AC24,"<4.5",AB4:AB24)) -> 0 | AC28: =IF(AC27=0,0,SUM((AB25)-(AB28+AD28))) -> 0 | AD28: =IF(Beanspruchungverteilung!$AT$21="x",SUMIF(AC4:AC24,">5.5",AB4:AB24),SUMIF(AC4:AC24,">6.5",AB4:AB24)) -> 0
D29: Wie in Ruhe | H29: 0
D30: Sehr locker | H30: 1
D31: Locker | H31: 2 | AF31: Trainingstagen | AH31: =IF(SUM(AH4:AH24)=0,"",COUNTIF(AH4:AH24,">0")) -> 
H32: 3
D33: Etwas hart | H33: 4 | AF33: Trainingseinheiten | AH33: =IF(AH31="","",SUM(M27:AD27)) -> 
D34: Hart | H34: 5
H35: 6 | AF35: Trainingsstunden | AH35: =IF(AH31="","",SUM(M25,P25,V25,Y25,S25,AB25)/60) -> 
D36: Sehr hart | H36: 7
H37: 8 | AF37: Training Load | AH37: =IF(AH31="","",SUM(AH25)) -> 
D38: Extrem hart | H38: 9
D39: Wie mein härtestes Training | H39: 10 | AF39: Monotonie | AH39: =IF(AH31="","",(AVERAGE(AH4:AH24))/AH27) -> 
AF41: Trainingsanstrengung | AH41: =IF(AH31="","",AH37*AH39) -> 
AF43: =AJ2 -> Lauf Km | AH43: =IF(AH31="","",SUM(AJ4:AJ24)) -> 
AF45: =AK2 -> J | AH45: =IF(AH31="","",SUM(AK4:AK24)) -> 
AF47: =AL2 -> Swim Km | AH47: =IF(AH31="","",SUM(AL4:AL24)) -> 
AF49: =AM2 -> Mental Training | AH49: =IF(AH31="","",COUNTA(AM4:AM24)) -> 
AF51: =AN2 -> Regeneration | AH51: =IF(AH31="","",COUNTA(AN4:AN24)) -> 
AF53: =H2 -> Verletzung/Erkrankung | AH53: =IF(H26="","",COUNTA(H4:H24)) -> 
V134: =W134-1 -> 34 | W134: 35 | X134: 36 | Y134: 37 | Z134: 38 | AA134: 39 | AB134: 40 | AC134: =D1 -> 41
AD155: =AC134+1 -> 42 | AE155: =AD155+1 -> 43 | AF155: =AE155+1 -> 44

Sheet 42
C1: Woche | D1: =INT(MOD(INT((F1-2)/7)+0.6,52+5/28))+1 -> 42 | E1: =D1+1000 -> 1042 | F1: ='41'!F1+7 -> 2013-10-14 | G1: - | H1: =F1+6 -> 2013-10-20 | AD1: =Overview!D2 -> Vorname Name | AF1: =Overview!N2 -> 0
B2: Tag | D2: Gewicht | E2: Motiv. | F2: Schlaf | G2: Schlaf | H2: Verletzung/Erkrankung | J2: Trainingsbeschreibung | M2: ='19'!M2:O2 -> Dauerlauf | P2: ='19'!P2:R2 -> Bahn/Intervall | S2: ='19'!S2:U2 -> Sprint/Koord/Tech | V2: ='19'!V2:X2 -> Kraft | Y2: ='19'!Y2:AA2 -> Alternativ | AB2: ='19'!AB2:AD2 -> Divers | AF2: Bemerkungen | AH2: Load/Tag | AJ2: Lauf Km | AK2: J | AL2: Swim Km | AM2: Mental Training | AN2: Regeneration
D3: kg | E3: [-2….+2] | F3: 1-6 | G3: Std | H3: "x" wenn ja | M3: Dauer | N3: RPE | O3: Load | P3: Dauer | Q3: RPE | R3: Load | S3: Dauer | T3: RPE | U3: Load | V3: Dauer | W3: RPE | X3: Load | Y3: Dauer | Z3: RPE | AA3: Load | AB3: Dauer | AC3: RPE | AD3: Load
B4: Mo | O4: =M4*N4 -> 0 | R4: =P4*Q4 -> 0 | U4: =S4*T4 -> 0 | X4: =V4*W4 -> 0 | AA4: =Y4*Z4 -> 0 | AD4: =AB4*AC4 -> 0 | AH4: =SUM(O4:O6,R4:R6,U4:U6,X4:X6,AA4:AA6,AD4:AD6) -> 0
O5: 0 | R5: 0 | U5: 0 | X5: 0 | AA5: 0 | AD5: 0
O6: 0 | R6: 0 | U6: 0 | X6: 0 | AA6: 0 | AD6: 0
B7: Di | O7: 0 | R7: 0 | U7: 0 | X7: 0 | AA7: 0 | AD7: 0 | AH7: =SUM(O7:O9,R7:R9,U7:U9,X7:X9,AA7:AA9,AD7:AD9) -> 0
O8: 0 | R8: 0 | U8: 0 | X8: 0 | AA8: 0 | AD8: 0
O9: 0 | R9: 0 | U9: 0 | X9: 0 | AA9: 0 | AD9: 0
B10: Mi | O10: 0 | R10: 0 | U10: 0 | X10: 0 | AA10: 0 | AD10: 0 | AH10: =SUM(O10:O12,R10:R12,U10:U12,X10:X12,AA10:AA12,AD10:AD12) -> 0
O11: 0 | R11: 0 | U11: 0 | X11: 0 | AA11: 0 | AD11: 0
O12: 0 | R12: 0 | U12: 0 | X12: 0 | AA12: 0 | AD12: 0
B13: Do | O13: 0 | R13: 0 | U13: 0 | X13: 0 | AA13: 0 | AD13: 0 | AH13: =SUM(O13:O15,R13:R15,U13:U15,X13:X15,AA13:AA15,AD13:AD15) -> 0
O14: 0 | R14: 0 | U14: 0 | X14: 0 | AA14: 0 | AD14: 0
O15: 0 | R15: 0 | U15: 0 | X15: 0 | AA15: 0 | AD15: 0
B16: Fr | O16: 0 | R16: 0 | U16: 0 | X16: 0 | AA16: 0 | AD16: 0 | AH16: =SUM(O16:O18,R16:R18,U16:U18,X16:X18,AA16:AA18,AD16:AD18) -> 0
O17: 0 | R17: 0 | U17: 0 | X17: 0 | AA17: 0 | AD17: 0
O18: 0 | R18: 0 | U18: 0 | X18: 0 | AA18: 0 | AD18: 0
B19: Sa | O19: 0 | R19: 0 | U19: 0 | X19: 0 | AA19: 0 | AD19: 0 | AH19: =SUM(O19:O21,R19:R21,U19:U21,X19:X21,AA19:AA21,AD19:AD21) -> 0
O20: 0 | R20: 0 | U20: 0 | X20: 0 | AA20: 0 | AD20: 0
O21: 0 | R21: 0 | U21: 0 | X21: 0 | AA21: 0 | AD21: 0
B22: So | O22: 0 | R22: 0 | U22: 0 | X22: 0 | AA22: 0 | AD22: 0 | AH22: =SUM(O22:O24,R22:R24,U22:U24,X22:X24,AA22:AA24,AD22:AD24) -> 0
O23: 0 | R23: 0 | U23: 0 | X23: 0 | AA23: 0 | AD23: 0
O24: 0 | R24: 0 | U24: 0 | X24: 0 | AA24: 0 | AD24: 0
K25: Total | M25: =SUM(M4:M24) -> 0 | O25: =SUM(O4:O24) -> 0 | P25: =SUM(P4:P24) -> 0 | R25: =SUM(R4:R24) -> 0 | S25: =SUM(S4:S24) -> 0 | U25: =SUM(U4:U24) -> 0 | V25: =SUM(V4:V24) -> 0 | X25: =SUM(X4:X24) -> 0 | Y25: =SUM(Y4:Y24) -> 0 | AA25: =SUM(AA4:AA24) -> 0 | AB25: =SUM(AB4:AB24) -> 0 | AD25: =SUM(AD4:AD24) -> 0 | AF25: TOTAL LOAD | AH25: =SUM(AH4:AH24) -> 0
B26: avg | D26: =IF(COUNTA(D4:D24)=0,"",AVERAGE(D4:D24)) ->  | E26: =IF(COUNTA(E4:E24)=0,"",AVERAGE(E4:E24)) ->  | F26: =IF(COUNTA(F4:F24)=0,"",AVERAGE(F4:F24)) ->  | G26: =IF(COUNTA(G4:G24)=0,"",AVERAGE(G4:G24)) ->  | H26: =IF(COUNTA(H4:H24)=0,"",COUNTIF(H4:H24,"x")) ->  | K26: Zone | M26: 1 | N26: 2 | O26: 3 | P26: 1 | Q26: 2 | R26: 3 | S26: 1 | T26: 2 | U26: 3 | V26: 1 | W26: 2 | X26: 3 | Y26: 1 | Z26: 2 | AA26: 3 | AB26: 1 | AC26: 2 | AD26: 3 | AF26: Mittelwert | AH26: =AVERAGE(AH4:AH24) -> 0
K27: Einheiten pro Zone (RPE) | M27: =IF(Beanspruchungverteilung!$AT$21="x",COUNTIF(N4:N24,"<3.5"),COUNTIF(N4:N24,"<4.5")) -> 0 | N27: =COUNT(N4:N24)-(M27+O27) -> 0 | O27: =IF(Beanspruchungverteilung!$AT$21="x",COUNTIF(N4:N24,">5.5"),COUNTIF(N4:N24,">6.5")) -> 0 | P27: =IF(Beanspruchungverteilung!$AT$21="x",COUNTIF(Q4:Q24,"<3.5"),COUNTIF(Q4:Q24,"<4.5")) -> 0 | Q27: =COUNT(Q4:Q24)-(P27+R27) -> 0 | R27: =IF(Beanspruchungverteilung!$AT$21="x",COUNTIF(Q4:Q24,">5.5"),COUNTIF(Q4:Q24,">6.5")) -> 0 | S27: =IF(Beanspruchungverteilung!$AT$21="x",COUNTIF(T4:T24,"<3.5"),COUNTIF(T4:T24,"<4.5")) -> 0 | T27: =COUNT(T4:T24)-(S27+U27) -> 0 | U27: =IF(Beanspruchungverteilung!$AT$21="x",COUNTIF(T4:T24,">5.5"),COUNTIF(T4:T24,">6.5")) -> 0 | V27: =IF(Beanspruchungverteilung!$AT$21="x",COUNTIF(W4:W24,"<3.5"),COUNTIF(W4:W24,"<4.5")) -> 0 | W27: =COUNT(W4:W24)-(V27+X27) -> 0 | X27: =IF(Beanspruchungverteilung!$AT$21="x",COUNTIF(W4:W24,">5.5"),COUNTIF(W4:W24,">6.5")) -> 0 | Y27: =IF(Beanspruchungverteilung!$AT$21="x",COUNTIF(Z4:Z24,"<3.5"),COUNTIF(Z4:Z24,"<4.5")) -> 0 | Z27: =COUNT(Z4:Z24)-(Y27+AA27) -> 0 | AA27: =IF(Beanspruchungverteilung!$AT$21="x",COUNTIF(Z4:Z24,">5.5"),COUNTIF(Z4:Z24,">6.5")) -> 0 | AB27: =IF(Beanspruchungverteilung!$AT$21="x",COUNTIF(AC4:AC24,"<3.5"),COUNTIF(AC4:AC24,"<4.5")) -> 0 | AC27: =COUNT(AC4:AC24)-(AB27+AD27) -> 0 | AD27: =IF(Beanspruchungverteilung!$AT$21="x",COUNTIF(AC4:AC24,">5.5"),COUNTIF(AC4:AC24,">6.5")) -> 0 | AF27: Standardabweichung | AH27: =STDEVP(AH4:AH24) -> 0
D28: Foster's Skala | H28: RPE | K28: Zeit pro Zone (RPE) | M28: =IF(Beanspruchungverteilung!$AT$21="x",SUMIF(N4:N24,"<3.5",M4:M24),SUMIF(N4:N24,"<4.5",M4:M24)) -> 0 | N28: =IF(N27=0,0,SUM((M25)-(M28+O28))) -> 0 | O28: =IF(Beanspruchungverteilung!$AT$21="x",SUMIF(N4:N24,">5.5",M4:M24),SUMIF(N4:N24,">6.5",M4:M24)) -> 0 | P28: =IF(Beanspruchungverteilung!$AT$21="x",SUMIF(Q4:Q24,"<3.5",P4:P24),SUMIF(Q4:Q24,"<4.5",P4:P24)) -> 0 | Q28: =IF(Q27=0,0,SUM((P25)-(P28+R28))) -> 0 | R28: =IF(Beanspruchungverteilung!$AT$21="x",SUMIF(Q4:Q24,">5.5",P4:P24),SUMIF(Q4:Q24,">6.5",P4:P24)) -> 0 | S28: =IF(Beanspruchungverteilung!$AT$21="x",SUMIF(T4:T24,"<3.5",S4:S24),SUMIF(T4:T24,"<4.5",S4:S24)) -> 0 | T28: =IF(T27=0,0,SUM((S25)-(S28+U28))) -> 0 | U28: =IF(Beanspruchungverteilung!$AT$21="x",SUMIF(T4:T24,">5.5",S4:S24),SUMIF(T4:T24,">6.5",S4:S24)) -> 0 | V28: =IF(Beanspruchungverteilung!$AT$21="x",SUMIF(W4:W24,"<3.5",V4:V24),SUMIF(W4:W24,"<4.5",V4:V24)) -> 0 | W28: =IF(W27=0,0,SUM((V25)-(V28+X28))) -> 0 | X28: =IF(Beanspruchungverteilung!$AT$21="x",SUMIF(W4:W24,">5.5",V4:V24),SUMIF(W4:W24,">6.5",V4:V24)) -> 0 | Y28: =IF(Beanspruchungverteilung!$AT$21="x",SUMIF(Z4:Z24,"<3.5",Y4:Y24),SUMIF(Z4:Z24,"<4.5",Y4:Y24)) -> 0 | Z28: =IF(Z27=0,0,SUM((Y25)-(Y28+AA28))) -> 0 | AA28: =IF(Beanspruchungverteilung!$AT$21="x",SUMIF(Z4:Z24,">5.5",Y4:Y24),SUMIF(Z4:Z24,">6.5",Y4:Y24)) -> 0 | AB28: =IF(Beanspruchungverteilung!$AT$21="x",SUMIF(AC4:AC24,"<3.5",AB4:AB24),SUMIF(AC4:AC24,"<4.5",AB4:AB24)) -> 0 | AC28: =IF(AC27=0,0,SUM((AB25)-(AB28+AD28))) -> 0 | AD28: =IF(Beanspruchungverteilung!$AT$21="x",SUMIF(AC4:AC24,">5.5",AB4:AB24),SUMIF(AC4:AC24,">6.5",AB4:AB24)) -> 0
D29: Wie in Ruhe | H29: 0
D30: Sehr locker | H30: 1
D31: Locker | H31: 2 | AF31: Trainingstagen | AH31: =IF(SUM(AH4:AH24)=0,"",COUNTIF(AH4:AH24,">0")) -> 
H32: 3
D33: Etwas hart | H33: 4 | AF33: Trainingseinheiten | AH33: =IF(AH31="","",SUM(M27:AD27)) -> 
D34: Hart | H34: 5
H35: 6 | AF35: Trainingsstunden | AH35: =IF(AH31="","",SUM(M25,P25,V25,Y25,S25,AB25)/60) -> 
D36: Sehr hart | H36: 7
H37: 8 | AF37: Training Load | AH37: =IF(AH31="","",SUM(AH25)) -> 
D38: Extrem hart | H38: 9
D39: Wie mein härtestes Training | H39: 10 | AF39: Monotonie | AH39: =IF(AH31="","",(AVERAGE(AH4:AH24))/AH27) -> 
AF41: Trainingsanstrengung | AH41: =IF(AH31="","",AH37*AH39) -> 
AF43: =AJ2 -> Lauf Km | AH43: =IF(AH31="","",SUM(AJ4:AJ24)) -> 
AF45: =AK2 -> J | AH45: =IF(AH31="","",SUM(AK4:AK24)) -> 
AF47: =AL2 -> Swim Km | AH47: =IF(AH31="","",SUM(AL4:AL24)) -> 
AF49: =AM2 -> Mental Training | AH49: =IF(AH31="","",COUNTA(AM4:AM24)) -> 
AF51: =AN2 -> Regeneration | AH51: =IF(AH31="","",COUNTA(AN4:AN24)) -> 
AF53: =H2 -> Verletzung/Erkrankung | AH53: =IF(H26="","",COUNTA(H4:H24)) -> 
V134: =W134-1 -> 35 | W134: 36 | X134: 37 | Y134: 38 | Z134: 39 | AA134: 40 | AB134: 41 | AC134: =D1 -> 42
AD155: =AC134+1 -> 43 | AE155: =AD155+1 -> 44 | AF155: =AE155+1 -> 45

Sheet 43
C1: Woche | D1: =INT(MOD(INT((F1-2)/7)+0.6,52+5/28))+1 -> 43 | E1: =D1+1000 -> 1043 | F1: ='42'!F1+7 -> 2013-10-21 | G1: - | H1: =F1+6 -> 2013-10-27 | AD1: =Overview!D2 -> Vorname Name | AF1: =Overview!N2 -> 0
B2: Tag | D2: Gewicht | E2: Motiv. | F2: Schlaf | G2: Schlaf | H2: Verletzung/Erkrankung | J2: Trainingsbeschreibung | M2: ='19'!M2:O2 -> Dauerlauf | P2: ='19'!P2:R2 -> Bahn/Intervall | S2: ='19'!S2:U2 -> Sprint/Koord/Tech | V2: ='19'!V2:X2 -> Kraft | Y2: ='19'!Y2:AA2 -> Alternativ | AB2: ='19'!AB2:AD2 -> Divers | AF2: Bemerkungen | AH2: Load/Tag | AJ2: Lauf Km | AK2: J | AL2: Swim Km | AM2: Mental Training | AN2: Regeneration
D3: kg | E3: [-2….+2] | F3: 1-6 | G3: Std | H3: "x" wenn ja | M3: Dauer | N3: RPE | O3: Load | P3: Dauer | Q3: RPE | R3: Load | S3: Dauer | T3: RPE | U3: Load | V3: Dauer | W3: RPE | X3: Load | Y3: Dauer | Z3: RPE | AA3: Load | AB3: Dauer | AC3: RPE | AD3: Load
B4: Mo | O4: =M4*N4 -> 0 | R4: =P4*Q4 -> 0 | U4: =S4*T4 -> 0 | X4: =V4*W4 -> 0 | AA4: =Y4*Z4 -> 0 | AD4: =AB4*AC4 -> 0 | AH4: =SUM(O4:O6,R4:R6,U4:U6,X4:X6,AA4:AA6,AD4:AD6) -> 0
O5: 0 | R5: 0 | U5: 0 | X5: 0 | AA5: 0 | AD5: 0
O6: 0 | R6: 0 | U6: 0 | X6: 0 | AA6: 0 | AD6: 0
B7: Di | O7: 0 | R7: 0 | U7: 0 | X7: 0 | AA7: 0 | AD7: 0 | AH7: =SUM(O7:O9,R7:R9,U7:U9,X7:X9,AA7:AA9,AD7:AD9) -> 0
O8: 0 | R8: 0 | U8: 0 | X8: 0 | AA8: 0 | AD8: 0
O9: 0 | R9: 0 | U9: 0 | X9: 0 | AA9: 0 | AD9: 0
B10: Mi | O10: 0 | R10: 0 | U10: 0 | X10: 0 | AA10: 0 | AD10: 0 | AH10: =SUM(O10:O12,R10:R12,U10:U12,X10:X12,AA10:AA12,AD10:AD12) -> 0
O11: 0 | R11: 0 | U11: 0 | X11: 0 | AA11: 0 | AD11: 0
O12: 0 | R12: 0 | U12: 0 | X12: 0 | AA12: 0 | AD12: 0
B13: Do | O13: 0 | R13: 0 | U13: 0 | X13: 0 | AA13: 0 | AD13: 0 | AH13: =SUM(O13:O15,R13:R15,U13:U15,X13:X15,AA13:AA15,AD13:AD15) -> 0
O14: 0 | R14: 0 | U14: 0 | X14: 0 | AA14: 0 | AD14: 0
O15: 0 | R15: 0 | U15: 0 | X15: 0 | AA15: 0 | AD15: 0
B16: Fr | O16: 0 | R16: 0 | U16: 0 | X16: 0 | AA16: 0 | AD16: 0 | AH16: =SUM(O16:O18,R16:R18,U16:U18,X16:X18,AA16:AA18,AD16:AD18) -> 0
O17: 0 | R17: 0 | U17: 0 | X17: 0 | AA17: 0 | AD17: 0
O18: 0 | R18: 0 | U18: 0 | X18: 0 | AA18: 0 | AD18: 0
B19: Sa | O19: 0 | R19: 0 | U19: 0 | X19: 0 | AA19: 0 | AD19: 0 | AH19: =SUM(O19:O21,R19:R21,U19:U21,X19:X21,AA19:AA21,AD19:AD21) -> 0
O20: 0 | R20: 0 | U20: 0 | X20: 0 | AA20: 0 | AD20: 0
O21: 0 | R21: 0 | U21: 0 | X21: 0 | AA21: 0 | AD21: 0
B22: So | O22: 0 | R22: 0 | U22: 0 | X22: 0 | AA22: 0 | AD22: 0 | AH22: =SUM(O22:O24,R22:R24,U22:U24,X22:X24,AA22:AA24,AD22:AD24) -> 0
O23: 0 | R23: 0 | U23: 0 | X23: 0 | AA23: 0 | AD23: 0
O24: 0 | R24: 0 | U24: 0 | X24: 0 | AA24: 0 | AD24: 0
K25: Total | M25: =SUM(M4:M24) -> 0 | O25: =SUM(O4:O24) -> 0 | P25: =SUM(P4:P24) -> 0 | R25: =SUM(R4:R24) -> 0 | S25: =SUM(S4:S24) -> 0 | U25: =SUM(U4:U24) -> 0 | V25: =SUM(V4:V24) -> 0 | X25: =SUM(X4:X24) -> 0 | Y25: =SUM(Y4:Y24) -> 0 | AA25: =SUM(AA4:AA24) -> 0 | AB25: =SUM(AB4:AB24) -> 0 | AD25: =SUM(AD4:AD24) -> 0 | AF25: TOTAL LOAD | AH25: =SUM(AH4:AH24) -> 0
B26: avg | D26: =IF(COUNTA(D4:D24)=0,"",AVERAGE(D4:D24)) ->  | E26: =IF(COUNTA(E4:E24)=0,"",AVERAGE(E4:E24)) ->  | F26: =IF(COUNTA(F4:F24)=0,"",AVERAGE(F4:F24)) ->  | G26: =IF(COUNTA(G4:G24)=0,"",AVERAGE(G4:G24)) ->  | H26: =IF(COUNTA(H4:H24)=0,"",COUNTIF(H4:H24,"x")) ->  | K26: Zone | M26: 1 | N26: 2 | O26: 3 | P26: 1 | Q26: 2 | R26: 3 | S26: 1 | T26: 2 | U26: 3 | V26: 1 | W26: 2 | X26: 3 | Y26: 1 | Z26: 2 | AA26: 3 | AB26: 1 | AC26: 2 | AD26: 3 | AF26: Mittelwert | AH26: =AVERAGE(AH4:AH24) -> 0
K27: Einheiten pro Zone (RPE) | M27: =IF(Beanspruchungverteilung!$AT$21="x",COUNTIF(N4:N24,"<3.5"),COUNTIF(N4:N24,"<4.5")) -> 0 | N27: =COUNT(N4:N24)-(M27+O27) -> 0 | O27: =IF(Beanspruchungverteilung!$AT$21="x",COUNTIF(N4:N24,">5.5"),COUNTIF(N4:N24,">6.5")) -> 0 | P27: =IF(Beanspruchungverteilung!$AT$21="x",COUNTIF(Q4:Q24,"<3.5"),COUNTIF(Q4:Q24,"<4.5")) -> 0 | Q27: =COUNT(Q4:Q24)-(P27+R27) -> 0 | R27: =IF(Beanspruchungverteilung!$AT$21="x",COUNTIF(Q4:Q24,">5.5"),COUNTIF(Q4:Q24,">6.5")) -> 0 | S27: =IF(Beanspruchungverteilung!$AT$21="x",COUNTIF(T4:T24,"<3.5"),COUNTIF(T4:T24,"<4.5")) -> 0 | T27: =COUNT(T4:T24)-(S27+U27) -> 0 | U27: =IF(Beanspruchungverteilung!$AT$21="x",COUNTIF(T4:T24,">5.5"),COUNTIF(T4:T24,">6.5")) -> 0 | V27: =IF(Beanspruchungverteilung!$AT$21="x",COUNTIF(W4:W24,"<3.5"),COUNTIF(W4:W24,"<4.5")) -> 0 | W27: =COUNT(W4:W24)-(V27+X27) -> 0 | X27: =IF(Beanspruchungverteilung!$AT$21="x",COUNTIF(W4:W24,">5.5"),COUNTIF(W4:W24,">6.5")) -> 0 | Y27: =IF(Beanspruchungverteilung!$AT$21="x",COUNTIF(Z4:Z24,"<3.5"),COUNTIF(Z4:Z24,"<4.5")) -> 0 | Z27: =COUNT(Z4:Z24)-(Y27+AA27) -> 0 | AA27: =IF(Beanspruchungverteilung!$AT$21="x",COUNTIF(Z4:Z24,">5.5"),COUNTIF(Z4:Z24,">6.5")) -> 0 | AB27: =IF(Beanspruchungverteilung!$AT$21="x",COUNTIF(AC4:AC24,"<3.5"),COUNTIF(AC4:AC24,"<4.5")) -> 0 | AC27: =COUNT(AC4:AC24)-(AB27+AD27) -> 0 | AD27: =IF(Beanspruchungverteilung!$AT$21="x",COUNTIF(AC4:AC24,">5.5"),COUNTIF(AC4:AC24,">6.5")) -> 0 | AF27: Standardabweichung | AH27: =STDEVP(AH4:AH24) -> 0
D28: Foster's Skala | H28: RPE | K28: Zeit pro Zone (RPE) | M28: =IF(Beanspruchungverteilung!$AT$21="x",SUMIF(N4:N24,"<3.5",M4:M24),SUMIF(N4:N24,"<4.5",M4:M24)) -> 0 | N28: =IF(N27=0,0,SUM((M25)-(M28+O28))) -> 0 | O28: =IF(Beanspruchungverteilung!$AT$21="x",SUMIF(N4:N24,">5.5",M4:M24),SUMIF(N4:N24,">6.5",M4:M24)) -> 0 | P28: =IF(Beanspruchungverteilung!$AT$21="x",SUMIF(Q4:Q24,"<3.5",P4:P24),SUMIF(Q4:Q24,"<4.5",P4:P24)) -> 0 | Q28: =IF(Q27=0,0,SUM((P25)-(P28+R28))) -> 0 | R28: =IF(Beanspruchungverteilung!$AT$21="x",SUMIF(Q4:Q24,">5.5",P4:P24),SUMIF(Q4:Q24,">6.5",P4:P24)) -> 0 | S28: =IF(Beanspruchungverteilung!$AT$21="x",SUMIF(T4:T24,"<3.5",S4:S24),SUMIF(T4:T24,"<4.5",S4:S24)) -> 0 | T28: =IF(T27=0,0,SUM((S25)-(S28+U28))) -> 0 | U28: =IF(Beanspruchungverteilung!$AT$21="x",SUMIF(T4:T24,">5.5",S4:S24),SUMIF(T4:T24,">6.5",S4:S24)) -> 0 | V28: =IF(Beanspruchungverteilung!$AT$21="x",SUMIF(W4:W24,"<3.5",V4:V24),SUMIF(W4:W24,"<4.5",V4:V24)) -> 0 | W28: =IF(W27=0,0,SUM((V25)-(V28+X28))) -> 0 | X28: =IF(Beanspruchungverteilung!$AT$21="x",SUMIF(W4:W24,">5.5",V4:V24),SUMIF(W4:W24,">6.5",V4:V24)) -> 0 | Y28: =IF(Beanspruchungverteilung!$AT$21="x",SUMIF(Z4:Z24,"<3.5",Y4:Y24),SUMIF(Z4:Z24,"<4.5",Y4:Y24)) -> 0 | Z28: =IF(Z27=0,0,SUM((Y25)-(Y28+AA28))) -> 0 | AA28: =IF(Beanspruchungverteilung!$AT$21="x",SUMIF(Z4:Z24,">5.5",Y4:Y24),SUMIF(Z4:Z24,">6.5",Y4:Y24)) -> 0 | AB28: =IF(Beanspruchungverteilung!$AT$21="x",SUMIF(AC4:AC24,"<3.5",AB4:AB24),SUMIF(AC4:AC24,"<4.5",AB4:AB24)) -> 0 | AC28: =IF(AC27=0,0,SUM((AB25)-(AB28+AD28))) -> 0 | AD28: =IF(Beanspruchungverteilung!$AT$21="x",SUMIF(AC4:AC24,">5.5",AB4:AB24),SUMIF(AC4:AC24,">6.5",AB4:AB24)) -> 0
D29: Wie in Ruhe | H29: 0
D30: Sehr locker | H30: 1
D31: Locker | H31: 2 | AF31: Trainingstagen | AH31: =IF(SUM(AH4:AH24)=0,"",COUNTIF(AH4:AH24,">0")) -> 
H32: 3
D33: Etwas hart | H33: 4 | AF33: Trainingseinheiten | AH33: =IF(AH31="","",SUM(M27:AD27)) -> 
D34: Hart | H34: 5
H35: 6 | AF35: Trainingsstunden | AH35: =IF(AH31="","",SUM(M25,P25,V25,Y25,S25,AB25)/60) -> 
D36: Sehr hart | H36: 7
H37: 8 | AF37: Training Load | AH37: =IF(AH31="","",SUM(AH25)) -> 
D38: Extrem hart | H38: 9
D39: Wie mein härtestes Training | H39: 10 | AF39: Monotonie | AH39: =IF(AH31="","",(AVERAGE(AH4:AH24))/AH27) -> 
AF41: Trainingsanstrengung | AH41: =IF(AH31="","",AH37*AH39) -> 
AF43: =AJ2 -> Lauf Km | AH43: =IF(AH31="","",SUM(AJ4:AJ24)) -> 
AF45: =AK2 -> J | AH45: =IF(AH31="","",SUM(AK4:AK24)) -> 
AF47: =AL2 -> Swim Km | AH47: =IF(AH31="","",SUM(AL4:AL24)) -> 
AF49: =AM2 -> Mental Training | AH49: =IF(AH31="","",COUNTA(AM4:AM24)) -> 
AF51: =AN2 -> Regeneration | AH51: =IF(AH31="","",COUNTA(AN4:AN24)) -> 
AF53: =H2 -> Verletzung/Erkrankung | AH53: =IF(H26="","",COUNTA(H4:H24)) -> 
V134: =W134-1 -> 36 | W134: 37 | X134: 38 | Y134: 39 | Z134: 40 | AA134: 41 | AB134: 42 | AC134: =D1 -> 43
AD155: =AC134+1 -> 44 | AE155: =AD155+1 -> 45 | AF155: =AE155+1 -> 46

Sheet 44
C1: Woche | D1: =INT(MOD(INT((F1-2)/7)+0.6,52+5/28))+1 -> 44 | E1: =D1+1000 -> 1044 | F1: ='43'!F1+7 -> 2013-10-28 | G1: - | H1: =F1+6 -> 2013-11-03 | AD1: =Overview!D2 -> Vorname Name | AF1: =Overview!N2 -> 0
B2: Tag | D2: Gewicht | E2: Motiv. | F2: Schlaf | G2: Schlaf | H2: Verletzung/Erkrankung | J2: Trainingsbeschreibung | M2: ='19'!M2:O2 -> Dauerlauf | P2: ='19'!P2:R2 -> Bahn/Intervall | S2: ='19'!S2:U2 -> Sprint/Koord/Tech | V2: ='19'!V2:X2 -> Kraft | Y2: ='19'!Y2:AA2 -> Alternativ | AB2: ='19'!AB2:AD2 -> Divers | AF2: Bemerkungen | AH2: Load/Tag | AJ2: Lauf Km | AK2: J | AL2: Swim Km | AM2: Mental Training | AN2: Regeneration
D3: kg | E3: [-2….+2] | F3: 1-6 | G3: Std | H3: "x" wenn ja | M3: Dauer | N3: RPE | O3: Load | P3: Dauer | Q3: RPE | R3: Load | S3: Dauer | T3: RPE | U3: Load | V3: Dauer | W3: RPE | X3: Load | Y3: Dauer | Z3: RPE | AA3: Load | AB3: Dauer | AC3: RPE | AD3: Load
